Workbook

Sheet Resumen
B1: Essalud
B2: Gerencia Central de Planeamiento y Presupuesto
B3: Gerencia de Gestión de la Información
B4: Sub Gerencia de Estadística
B7: TABLERO DE MONITOREO DE GESTIÓN
B8: DE LOS ESTABLECIMIENTOS DE SALUD
B9: CIFRAS PRELIMINARES A OCTUBRE 2024 (*)
B10: CONSULTA EXTERNA
D11: CRITERIOS | G11: Puntaje
D13: CONCENTRACION DE CONSULTAS | G13: =+'C.E_Concent.'!C8 -> 3.528 | L13: Cierre temporal de Centro Quirurgico del Hospital María Reiche de la Red ICA, según
D14: RENDIMIENTO HORA MEDICO | G14: =+'C.E_R.Hr.Medico'!C8 -> 4.309 | L14: Oficio N°752-2016-GORE-ICA-DRSA-2016 / Correo Carlos Avalos 22.03.16 | X14: 43661
D15: GRADO DE CUMPLIMIENTO DE HORAS PROGRAMADAS | G15: =+'C.E_G.C.H.Prog'!C8 -> 3.987 | X15: 18094
D16: PROMEDIO DE RECETAS POR CONSULTAS | G16: =+'C.E_Recetas'!C8 -> 2.724
B18: HOSPITALIZACION
D19: INDICADORES | G19: Puntaje
D21: PROMEDIO DIA ESTANCIA | G21: =+H_Estancias!C8 -> 4.238
D22: PORCENTAJE DE OCUPACION DE CAMA | G22: =+'H_% O.Cama'!C8 -> 2.444
D23: INTERVALO DE SUSTITUCION | G23: =+'H_I.Sust.'!C8 -> 3.538
D24: RENDIMIENTO CAMA | G24: =+H_R.Cama!C8 -> 4.085
D25: TASA NETA DE MORTALIDAD HOSPITALARIA | G25: =+'H_T.B.M.Hosp'!C8 -> 3.917
B27: INTERVENCIONES QUIRURGICAS
D28: INDICADORES | G28: Puntaje
D30: PORCENTAJE DE INTERVENCIONES MENORES | G30: =+Qx_I.Menor!C8 -> 4.327
D31: PORCENTAJE DE INTERVENCIONES DE ALTA COMPLEJIDAD | G31: =+Qx_I.Alta!C8 -> 1.3
D32: PORCENTAJE DE HORAS QUIRURGICAS EFECTIVAS | G32: =+'Qx_G.C.H.Prog'!C8 -> 3.1
D33: RENDIMIENTO DE SALA DE OPERACIONES | G33: =+Qx_Rend.SO!C8 -> 4.6
D34: PORCENTAJE DE OPERACIONES SUSPENDIDAS | G34: =+'Qx.Int.Susp'!C8 -> 4.8
D35: TASA DE CESAREAS | G35: =+H_T.Cesareas!C8 -> 1.36
B37: EMERGENCIA
D38: INDICADORES | G38: Puntaje
D40: % PRIORIDAD IV y V CON RESPECTO AL TOTAL DE EMERGENCIAS | G40: =+Em_Prio.IV_V!C8 -> 1.844
D41: % PRIORIDAD I Y II CON RESPECTO AL TOTAL DE EMERGENCIAS | G41: =+Em_Prio.I_II!C8 -> 3.454
B43: ODONTOLOGIA
D44: INDICADORES | G44: Puntaje
D46: CONCENTRACIÓN DE SESIONES ODONTOLÓGICAS | G46: =+O_Concent.!C8 -> 4.878
D47: RENDIMIENTO HORA ODONTOLÓGICA | G47: =+O_Hr.Odont!C8 -> 4.285
D48: GRADO DE CUMPLIMIENTO DE HORA ODONTÓLOGO | G48: =+'O_G.C.H.Odon'!C8 -> 4.338
D49: NÚMERO DE TRABAJOS ODONTOLÓGICOS POR SESIÓN | G49: =+'O_N.T.Odont.S'!C8 -> 4.328
B51: Fuente: Sistema de Estadísticas en Salud (SES)
B52: (*) Podrían modificarse acorde a omisiones y/o correcciones propias del proceso estadístico
AF201: 2
J343: 3.01

Sheet Estandares
B3: ESTANDARES DE INDICADORES
B6: CONSULTA EXTERNA
C7: - CONCENTRACION DE CONSULTAS (*)
C8: Nivel | D8: H.N. | E8: H.IV | F8: H.III | G8: H.II | H8: H.I | I8: POL. | J8: C.M. | K8: P.M. | L8: CNSR | M8: IPO | N8: INCOR
C9: Estandar | D9: 4 | E9: 4 | F9: 4 | G9: 3.5 | H9: 3.5 | I9: 3.5 | J9: 3.5 | K9: 3.5 | L9: 4 | M9: 4 | N9: 4
C10: % Acept. | D10: =+D9*1.1 -> 4.4 | E10: =+E9*1.1 -> 4.4 | F10: 4.4 | G10: 3.85 | H10: 3.85 | I10: 3.85 | J10: 3.85 | K10: 3.85 | L10: =+L9*1.1 -> 4.4 | M10: =+M9*1.1 -> 4.4 | N10: =+N9*1.1 -> 4.4 | P10: 0.1
C12: - RENDIMIENTO HORA MEDICO (*)
C13: Nivel | D13: H.N. | E13: H.IV | F13: H.III | G13: H.II | H13: H.I | I13: POL. | J13: C.M. | K13: P.M. | L13: CNSR | M13: IPO | N13: INCOR
C14: Estandar | D14: 4 | E14: 4 | F14: 4 | G14: 5 | H14: 5 | I14: 5 | J14: 5 | K14: 5 | L14: 3 | M14: 4 | N14: 4
C15: % Acept. | D15: =+D14-D14*0.1 -> 3.6 | E15: =+E14-E14*0.1 -> 3.6 | F15: 3.6 | G15: 4.5 | H15: 4.5 | I15: 4.5 | J15: 4.5 | K15: 4.5 | L15: =+L14-L14*0.1 -> 2.7 | M15: =+M14-M14*0.1 -> 3.6 | N15: =+N14-N14*0.1 -> 3.6 | P15: 0.1
C16: 11.11.22: CNSR se cambio el estandar de acuerdo a la Directiva N° 06-GCOP-ESSALUD-2016 17.06.2024: Se cambia el estándar de Rendimiento médico de 5 a 4 para H.IV y H.III, según Resolución N° 70-GCPS-ESSALUD-2017 que aprueba los “Lineamientos de Programación de las Prestaciones de Salud” y Resolución N° 1917-GG-ESSALUD-2022 que aprueba el Documento Técnico “Indicadores de evaluación del cumplimiento de estrategias vinculadas a la atención de salud”
C17: Modificado a solicitud de la Red con Nota N° 3056-GRPA-ESSALUD-2023, fecha: 07.09.2023
C18: - GRADO DE CUMPLIMIENTO DE HORAS PROGRAMADAS (*)
C19: Nivel | D19: H.N. | E19: H.IV | F19: H.III | G19: H.II | H19: H.I | I19: POL. | J19: C.M. | K19: P.M. | L19: CNSR | M19: IPO | N19: INCOR
C20: Estandar | D20: 0.98 | E20: 0.98 | F20: 0.98 | G20: 0.98 | H20: 0.98 | I20: 0.98 | J20: 0.98 | K20: 0.98 | L20: 0.98 | M20: 0.98 | N20: 0.98
C21: % Acept. | D21: =+D20-D20*0.05 -> 0.931 | E21: =+E20-E20*0.05 -> 0.931 | F21: 0.931 | G21: 0.931 | H21: 0.931 | I21: 0.931 | J21: 0.931 | K21: 0.931 | L21: =+L20-L20*0.05 -> 0.931 | M21: =+M20-M20*0.05 -> 0.931 | N21: =+N20-N20*0.05 -> 0.931 | P21: 0.05
C23: - PROMEDIO DE RECETAS POR CONSULTAS
C24: Nivel | D24: H.N. | E24: H.IV | F24: H.III | G24: H.II | H24: H.I | I24: POL. | J24: C.M. | K24: P.M. | L24: CNSR | M24: IPO | N24: INCOR
C25: Estandar | D25: 2 | E25: 2 | F25: 1.8 | G25: 1.8 | H25: 1.8 | I25: 1.8 | J25: 1.8 | K25: 1.8 | L25: 6 | M25: 2 | N25: 5.5
C26: % Acept. | D26: =+D25*1.1 -> 2.2 | E26: =+E25*1.1 -> 2.2 | F26: 1.98 | G26: 1.98 | H26: 1.98 | I26: 1.98 | J26: 1.98 | K26: 1.98 | L26: =+L25*1.1 -> 6.6 | M26: =+M25*1.1 -> 2.2 | N26: =+N25*1.1 -> 6.05 | P26: 0.1
C27: Nota: - Para el Centro Nacional de Salud Renal el Estandar del Promedio de Recetas por Consultas es de 6, según Carta N° 2223-OCPD-EsSalud-2008.
C28: - El Estandar del Promedio de recetas por Consultas para el Pol. Ancije es de 2.5, según Carta.
C29: - El Estandar de los siguientes indicadores: Concentración de Consultas, Rendimiento Hora Médico y Gradro de Cumplimiento de Horas Programadas ha sido actualizados mediante Directiva 012-GG-ESSALUD-2015
B30: HOSPITALIZACION
C31: - PROMEDIO DIA ESTANCIA (**)
C32: Nivel | D32: H.N. | E32: H.IV | F32: H.III | G32: H.II | H32: H.I | I32: POL. | J32: C.M. | K32: P.M. | L32: CNSR | M32: IPO | N32: INCOR
C33: Estandar | D33: 10 | E33: 6 | F33: 5 | G33: 4 | H33: 3.5 | I33: 3.5 | M33: 1.5 | N33: 10
C34: % Acept. | D34: =+D33*1.2 -> 12 | E34: 7.2 | F34: 6 | G34: 4.8 | H34: 4.2 | I34: 4.2 | M34: =+M33*1.2 -> 1.8 | N34: =+N33*1.2 -> 12 | P34: 0.2
C35: Nota: Para el Policlinico Geriatrico San Isidro Labrador el estandar de la estancia se esta considerando el 16.2.
C36: - PORCENTAJE DE OCUPACION DE CAMA (*)
C37: Nivel | D37: H.N. | E37: H.IV | F37: H.III | G37: H.II | H37: H.I | I37: POL. | J37: C.M. | K37: P.M. | L37: CNSR | M37: IPO | N37: INCOR
C38: Estandar | D38: 0.9 | E38: 0.9 | F38: 0.9 | G38: 0.9 | H38: 0.9 | I38: 0.9 | M38: 0.9 | N38: 0.9
C39: % No Acept. MAS | D39: 0.95 | E39: 0.95 | F39: 0.95 | G39: 0.95 | H39: 0.95 | I39: 0.95 | M39: 0.95 | N39: 0.95 | P39: 0.05 | Q39: Hacia arriba
C40: % No Acept. MENOS | D40: 0.85 | E40: 0.85 | F40: 0.85 | G40: 0.85 | H40: 0.85 | I40: 0.85 | M40: 0.85 | N40: 0.85 | P40: 0.05 | Q40: Hacia abajo
C42: - INTERVALO DE SUSTITUCION (*)
C43: Nivel | D43: H.N. | E43: H.IV | F43: H.III | G43: H.II | H43: H.I | I43: POL. | J43: C.M. | K43: P.M. | L43: CNSR | M43: IPO | N43: INCOR
C44: Estandar | D44: 1 | E44: 1 | F44: 1 | G44: 1 | H44: 1 | I44: 1 | M44: 1 | N44: 1
C45: % Acept. | D45: =+D44*1.2 -> 1.2 | E45: 1.2 | F45: 1.2 | G45: 1.2 | H45: 1.2 | I45: 1.2 | M45: =+M44*1.2 -> 1.2 | N45: =+N44*1.2 -> 1.2 | P45: 0.2
C47: - RENDIMIENTO CAMA (*)
C48: Nivel | D48: H.N. | E48: H.IV | F48: H.III | G48: H.II | H48: H.I | I48: POL. | J48: C.M. | K48: P.M. | L48: CNSR | M48: IPO | N48: INCOR
C49: Estandar | D49: 3 | E49: 3 | F49: 4.5 | G49: 6 | H49: 6.7 | I49: 6.5 | M49: 18 | N49: 3
C50: % Acept. | D50: =+D49-D49*0.2 -> 2.4 | E50: 2.4 | F50: 3.6 | G50: 4.8 | H50: 5.36 | I50: 5.2 | M50: =+M49-M49*0.2 -> 14.4 | N50: =+N49-N49*0.2 -> 2.4 | P50: 0.2
C51: Nota: Para el Policlinico Geriatrico San Isidro Labrador el estandar del Rendimiento Cama se está considerando el 1.74 (Carta N° 3002-OCPD-EsSalud-2009).
C52: - TASA NETA DE MORTALIDAD HOSPITALARIA
C53: Nivel | D53: H.N. | E53: H.IV | F53: H.III | G53: H.II | H53: H.I | I53: POL. | J53: C.M. | K53: P.M. | L53: CNSR | M53: IPO | N53: INCOR
C54: Estandar | D54: 0.03 | E54: 0.02 | F54: 0.02 | G54: 0.02 | H54: 0.02 | I54: 0.03 | M54: 0.03 | N54: 0.03
C55: % Acept. | D55: =+D54*1.1 -> 0.033 | E55: 0.022 | F55: 0.022 | G55: 0.022 | H55: 0.022 | I55: 0.033 | M55: =+M54*1.1 -> 0.033 | N55: =+N54*1.1 -> 0.033 | P55: 0.1
C56: Nota: - Para el Policlinico Geriatrico San Isidro Labrador el estandar de la tasa neta de mortalidad se esta considerando el 20%.
C57: - Los estandares son definidos mediante Carta N° 153-GCPS-ESSALUD-2017
B58: INTERVENCIONES QUIRURGICAS
C59: - PORCENTAJE DE INTERVENCIONES MENORES (**)
C60: Nivel | D60: H.N. | E60: H.IV | F60: H.III | G60: H.II | H60: H.I | I60: POL. | J60: C.M. | K60: P.M. | L60: CNSR | M60: IPO | N60: INCOR
C61: Estandar | E61: 0.05 | F61: 0.05 | G61: 0.35 | H61: 0.4 | I61: 0.65
C62: % Acept. | E62: =+E61*1.2 -> 0.06 | F62: =+F61*1.2 -> 0.06 | G62: =+G61*1.2 -> 0.42 | H62: =+H61*1.2 -> 0.48 | I62: =+I61*1.2 -> 0.78 | P62: 0.2
C64: - PORCENTAJE DE INTERVENCIONES DE ALTA COMPLEJIDAD (**)
C65: Nivel | D65: H.N. | E65: H.IV | F65: H.III | G65: H.II | H65: H.I | I65: POL. | J65: C.M. | K65: P.M. | L65: CNSR | M65: IPO | N65: INCOR
C66: Estandar | D66: 0.55 | E66: 0.3 | F66: 0.3 | M66: 0.6 | N66: 0.6
C67: % Acept. | D67: =+D66-D66*0.2 -> 0.44 | E67: =+E66-E66*0.2 -> 0.24 | F67: =+F66-F66*0.2 -> 0.24 | M67: =+M66-M66*0.2 -> 0.48 | N67: =+N66-N66*0.2 -> 0.48 | P67: 0.2
C69: - PORCENTAJE DE HORAS QUIRURGICAS EFECTIVAS
C70: Nivel | D70: H.N. | E70: H.IV | F70: H.III | G70: H.II | H70: H.I | I70: POL. | J70: C.M. | K70: P.M. | L70: CNSR | M70: IPO | N70: INCOR
C71: Estandar | D71: 0.9 | E71: 0.9 | F71: 0.9 | G71: 0.9 | H71: 0.9 | I71: 0.9 | M71: 0.9 | N71: 0.9
C72: % Acept. | D72: 0.8 | E72: 0.8 | F72: 0.8 | G72: 0.8 | H72: 0.8 | I72: 0.8 | M72: 0.8 | N72: 0.8 | P72: 0.1
C74: - RENDIMIENTO DE SALA DE OPERACIONES
C75: Nivel | D75: H.N. | E75: H.IV | F75: H.III | G75: H.II | H75: H.I | I75: POL. | J75: C.M. | K75: P.M. | L75: CNSR | M75: IPO | N75: INCOR
C76: Estandar | D76: 100 | E76: 125 | F76: 105 | G76: 85 | H76: 75 | I76: 75 | M76: 75 | N76: 60
C77: % Acept. | D77: =+D76-D76*0.1 -> 90 | E77: 112.5 | F77: 94.5 | G77: 76.5 | H77: 67.5 | I77: 67.5 | M77: =+M76-M76*0.1 -> 67.5 | N77: =+N76-N76*0.1 -> 54 | P77: 0.1
C79: - PORCENTAJE DE OPERACIONES SUSPENDIDAS
C80: Nivel | D80: H.N. | E80: H.IV | F80: H.III | G80: H.II | H80: H.I | I80: POL. | J80: C.M. | K80: P.M. | L80: CNSR | M80: IPO | N80: INCOR
C81: Estandar | D81: 0.05 | E81: 0.05 | F81: 0.05 | G81: 0.05 | H81: 0.05 | I81: 0.05 | M81: 0.05 | N81: 0.1
C82: % Acept. | D82: =D81*1.1 -> 0.055 | E82: 0.055 | F82: 0.055 | G82: 0.055 | H82: 0.055 | I82: 0.055 | M82: =M81*1.1 -> 0.055 | N82: =N81*1.1 -> 0.11 | P82: 0.1
C84: - TASA DE CESAREAS (*)
C85: Nivel | D85: H.N. | E85: H.IV | F85: H.III | G85: H.II | H85: H.I | I85: POL. | J85: C.M. | K85: P.M. | L85: CNSR | M85: IPO | N85: INCOR
C86: Estandar | D86: 0.45 | E86: 0.25 | F86: 0.2 | G86: 0.2 | H86: 0.2 | I86: 0.2
C87: % Acept. | D87: =+D86*1.1 -> 0.495 | E87: 0.275 | F87: 0.22 | G87: 0.22 | H87: 0.22 | I87: 0.22 | P87: 0.1
C88: - Los estandares son definidos mediante Carta N° 153-GCPS-ESSALUD-2017, tomando en cuenta la Resolución de Gerencia General N°900-GG-2016.
B90: EMERGENCIA
C91: - % PRIORIDAD IV Y V CON RESPECTO AL TOTAL DE EMERGENCIAS
C92: Nivel | D92: H.N. | E92: H.IV | F92: H.III | G92: H.II | H92: H.I | I92: POL. | J92: C.M. | K92: P.M. | L92: CNSR | M92: IPO | N92: INCOR
C93: Estandar | D93: 0.05 | E93: 0.05 | F93: 0.05 | G93: 0.05 | H93: 0.05 | I93: 0.05
C94: % Acept. | D94: =+D93*1.2 -> 0.06 | E94: 0.06 | F94: 0.06 | G94: 0.06 | H94: 0.06 | I94: 0.06 | P94: 0.2
C96: - % PRIORIDAD I Y II CON RESPECTO AL TOTAL DE EMERGENCIAS
C97: Nivel | D97: H.N. | E97: H.IV | F97: H.III | G97: H.II | H97: H.I | I97: POL. | J97: C.M. | K97: P.M. | L97: CNSR | M97: IPO | N97: INCOR
C98: Estandar | D98: 0.6 | E98: 0.35 | F98: 0.35 | G98: 0.1 | H98: 0.05 | I98: 0.05
C99: % Acept. | D99: =+D98-D98*0.1 -> 0.54 | E99: 0.315 | F99: 0.315 | G99: 0.09 | H99: 0.045 | I99: 0.045 | P99: 0.1
B102: ODONTOLOGIA
C103: - CONCENTRACIÓN DE SESIONES ODONTOLÓGICAS (*)
C104: Nivel | D104: H.N. | E104: H.IV | F104: H.III | G104: H.II | H104: H.I | I104: POL. | J104: C.M. | K104: P.M. | L104: CNSR | M104: IPO | N104: INCOR
C105: Estandar | D105: 4 | E105: 4 | F105: 4 | G105: 4 | H105: 4 | I105: 4 | J105: 4 | K105: 4
C106: % Acept. | D106: =+D105*1.1 -> 4.4 | E106: =+E105*1.1 -> 4.4 | F106: 4.4 | G106: 4.4 | H106: 4.4 | I106: 4.4 | J106: 4.4 | K106: 4.4 | P106: 0.1
C107: Fuente: Lineamientos generales para la programacion de actividades de servicios de salud 2005-Gerencia de Prestaciones
C108: - RENDIMIENTO HORA ODONTOLÓGICA (*)
C109: Nivel | D109: H.N. | E109: H.IV | F109: H.III | G109: H.II | H109: H.I | I109: POL. | J109: C.M. | K109: P.M. | L109: CNSR | M109: IPO | N109: INCOR
C110: Estandar | D110: 3 | E110: 3 | F110: 3 | G110: 3 | H110: 3 | I110: 3 | J110: 3 | K110: 3
C111: % Acept. | D111: =+D110-D110*0.1 -> 2.7 | E111: =+E110-E110*0.1 -> 2.7 | F111: 2.7 | G111: 2.7 | H111: 2.7 | I111: 2.7 | J111: 2.7 | K111: 2.7 | P111: 0.1
C113: - GRADO DE CUMPLIMIENTO DE HORA ODONTÓLOGO (*)
C114: Nivel | D114: H.N. | E114: H.IV | F114: H.III | G114: H.II | H114: H.I | I114: POL. | J114: C.M. | K114: P.M. | L114: CNSR | M114: IPO | N114: INCOR
C115: Estandar | D115: 0.95 | E115: 0.95 | F115: 0.95 | G115: 0.95 | H115: 0.95 | I115: 0.95 | J115: 0.95 | K115: 0.95
C116: % Acept. | D116: =+D115-D115*0.05 -> 0.9025 | E116: 0.9025 | F116: 0.9025 | G116: 0.9025 | H116: 0.9025 | I116: 0.9025 | J116: 0.9025 | K116: 0.9025 | P116: 0.05
C118: - NÚMERO DE TRABAJOS ODONTOLÓGICOS POR SESIÓN (*)
C119: Nivel | D119: H.N. | E119: H.IV | F119: H.III | G119: H.II | H119: H.I | I119: POL. | J119: C.M. | K119: P.M. | L119: CNSR | M119: IPO | N119: INCOR
C120: Estandar | D120: 1.5 | E120: 1.5 | F120: 1.5 | G120: 2 | H120: 2 | I120: 2 | J120: 2 | K120: 2
C121: % Acept. | D121: =+D120-D120*0.1 -> 1.35 | E121: =+E120-E120*0.1 -> 1.35 | F121: 1.35 | G121: 1.8 | H121: 1.8 | I121: 1.8 | J121: 1.8 | K121: 1.8 | P121: 0.1
C124: Observación:
C125: (*) Estandares obtenidos del documento:Limeamientos de Programación de las Prestaciones de salud 2018 - Gerencia Central de Prestaciones de Salud.
C126: (**) Estandares obtenidos del documento: Programacion Operativa de Actividades Asistenciales 2016 - Gerencia Central de Operaciones.
J344: 3.01

Sheet Definición
C2: DEFINICIÓN DE INDICADORES
B4: CONSULTA EXTERNA
C5: - CONCENTRACION DE CONSULTAS
C6: Objetivo estratégico Institucional del PEI al que Contribuye | D6: OEI.02: Brindar a los asegurados acceso oportuno a prestaciones integrales y de la calidad acorde a sus necesidades.
C7: Objetivo del indicador | D7: Medir la intensidad de uso por consultantes en el servicio de consulta externa.
C8: Definición operacional | D8: Es la relación entre el número de consultas médicas acumuladas en un determinado período de tiempo, respecto al número total de consultantes acumulados en el mismo período de tiempo.
C9: Responsable de la medición y evaluación en Redes / IPRESS | D9: Gerente de Red Prestacional, Gerente/Director de Red Asistencial, Gerente de Centro Especializado, Director de Instituto Especializado, Director de IPRESS.
C10: Responsable de la evaluación en sede central | D10: Gerencia Central de Operaciones.
C11: Responsable de la información | D11: Subgerencia de Estadística.
C12: Forma de cálculo
C13: Unidad de medida | D13: Consultas médicas por consultantes.
C14: Frecuencia de medición | D14: Anual (puede obtenerse de forma mensual para ser usado de forma referencial).
C15: Estándar | D15: H.N | E15: H.IV | F15: H.III | G15: H.II | H15: H.I | I15: POL | J15: CM | K15: PM | L15: CNSR | M15: IPO | N15: INCOR
D16: 4 | E16: 4 | F16: 4 | G16: 3.5 | H16: 3.5 | I16: 3.5 | J16: 3.5 | K16: 3.5 | L16: 4 | M16: 4 | N16: 4
C17: Sentido esperado del indicador | D17: Indicador de incremento.
C18: Fuente y bases de datos | D18: Sistema Estadístico de Salud (SES).
C20: - RENDIMIENTO HORA MEDICO
C21: Objetivo estratégico Institucional del PEI al que Contribuye | D21: OEI.02: Brindar a los asegurados acceso oportuno a prestaciones integrales y de la calidad acorde a sus necesidades.
C22: Objetivo del indicador | D22: Medir el número de consultas que realiza el médico por cada hora efectiva de trabajo en consulta externa.
C23: Definición operacional | D23: Es la relación entre el número de consultas que realiza el médico, respecto al número de horas médicas efectivas de trabajo.
C24: Responsable de la medición y evaluación en Redes / IPRESS | D24: Gerente de Red Prestacional, Gerente/Director de Red Asistencial, Gerente de Centro Especializado, Director de Instituto Especializado, Director de IPRESS.
C25: Responsable de la evaluación en sede central | D25: Gerencia Central de Operaciones.
C26: Responsable de la información | D26: Subgerencia de Estadística.
C27: Forma de cálculo
C28: Unidad de medida | D28: Consultas por hora.
C29: Frecuencia de medición | D29: Mensual.
C30: Estándar | D30: H.N | E30: H.IV | F30: H.III | G30: H.II | H30: H.I | I30: POL | J30: CM | K30: PM | L30: CNSR | M30: IPO | N30: INCOR
D31: 4 | E31: 4 | F31: 4 | G31: 5 | H31: 5 | I31: 5 | J31: 5 | K31: 5 | L31: 3 | M31: 4 | N31: 4
C32: Sentido esperado del indicador | D32: Indicador de incremento.
C33: Fuente y bases de datos | D33: Sistema Estadístico de Salud (SES).
C35: - GRADO DE CUMPLIMIENTO DE HORAS PROGRAMADAS
C36: Objetivo estratégico Institucional del PEI al que Contribuye | D36: OEI.02: Brindar a los asegurados acceso oportuno a prestaciones integrales y de la calidad acorde a sus necesidades.
C37: Objetivo del indicador | D37: Medir el grado de cumplimiento de las horas programadas en consulta externa.
C38: Definición operacional | D38: Es la relación porcentual de las horas médicas efectivas, respecto a las horas médicas programadas.
C39: Responsable de la medición y evaluación en Redes / IPRESS | D39: Gerente de Red Prestacional, Gerente/Director de Red Asistencial, Gerente de Centro Especializado, Director de Instituto Especializado, Director de IPRESS.
C40: Responsable de la evaluación en sede central | D40: Gerencia Central de Operaciones.
C41: Responsable de la información | D41: Subgerencia de Estadística.
C42: Forma de cálculo
C43: Unidad de medida | D43: Porcentaje de cumplimiento de horas programadas.
C44: Frecuencia de medición | D44: Mensual.
C45: Estándar | D45: H.N | E45: H.IV | F45: H.III | G45: H.II | H45: H.I | I45: POL | J45: CM | K45: PM | L45: CNSR | M45: IPO | N45: INCOR
D46: 0.98 | E46: 0.98 | F46: 0.98 | G46: 0.98 | H46: 0.98 | I46: 0.98 | J46: 0.98 | K46: 0.98 | L46: 0.98 | M46: 0.98 | N46: 0.98
C47: Sentido esperado del indicador | D47: Indicador de incremento.
C48: Fuente y bases de datos | D48: Sistema Estadístico de Salud (SES).
C50: - PROMEDIO DE RECETAS POR CONSULTAS
C51: Objetivo estratégico Institucional del PEI al que Contribuye | D51: OEI.02: Brindar a los asegurados acceso oportuno a prestaciones integrales y de la calidad acorde a sus necesidades.
C52: Objetivo del indicador | D52: Medir el número promedio de recetas que se otorga por cada consulta médica en consulta externa.
C53: Definición operacional | D53: Es la relación entre el número de recetas que otorga el médico en consulta, respecto al número de consultas médicas.
C54: Responsable de la medición y evaluación en Redes / IPRESS | D54: Gerente de Red Prestacional, Gerente/Director de Red Asistencial, Gerente de Centro Especializado, Director de Instituto Especializado, Director de IPRESS.
C55: Responsable de la evaluación en sede central | D55: Gerencia Central de Operaciones.
C56: Responsable de la información | D56: Subgerencia de Estadística.
C57: Forma de cálculo
C58: Unidad de medida | D58: Recetas por consulta en promedio.
C59: Frecuencia de medición | D59: Mensual.
C60: Estándar | D60: H.N | E60: H.IV | F60: H.III | G60: H.II | H60: H.I | I60: POL | J60: CM | K60: PM | L60: CNSR | M60: IPO | N60: INCOR
D61: 2 | E61: 2 | F61: 1.8 | G61: 1.8 | H61: 1.8 | I61: 1.8 | J61: 1.8 | K61: 1.8 | L61: 6 | M61: 2 | N61: 5.5
C62: Sentido esperado del indicador | D62: Indicador de incremento.
C63: Fuente y bases de datos | D63: Sistema Estadístico de Salud (SES).
B66: HOSPITALIZACION
C68: - PROMEDIO DIA ESTANCIA
C69: Objetivo estratégico Institucional del PEI al que Contribuye | D69: OEI.02: Brindar a los asegurados acceso oportuno a prestaciones integrales y de la calidad acorde a sus necesidades.
C70: Objetivo del indicador | D70: Medir el número promedio de días estancias de los pacientes en hospitalización.
C71: Definición operacional | D71: Es la relación entre el número de días estancia, respecto al número de egresos.
C72: Responsable de la medición y evaluación en Redes / IPRESS | D72: Gerente de Red Prestacional, Gerente/Director de Red Asistencial, Gerente de Centro Especializado, Director de Instituto Especializado, Director de IPRESS.
C73: Responsable de la evaluación en sede central | D73: Gerencia Central de Operaciones.
C74: Responsable de la información | D74: Subgerencia de Estadística.
C75: Forma de cálculo
C76: Unidad de medida | D76: Días estancia en promedio.
C77: Frecuencia de medición | D77: Mensual.
C78: Estándar | D78: H.N | E78: H.IV | F78: H.III | G78: H.II | H78: H.I | I78: POL | J78: CM | K78: PM | L78: CNSR | M78: IPO | N78: INCOR
D79: 10 | E79: 6 | F79: 5 | G79: 4 | H79: 3.5 | M79: 1.5 | N79: 10
C80: Sentido esperado del indicador | D80: Indicador de incremento.
C81: Fuente y bases de datos | D81: Sistema Estadístico de Salud (SES).
C83: - PORCENTAJE DE OCUPACION DE CAMA
C84: Objetivo estratégico Institucional del PEI al que Contribuye | D84: OEI.02: Brindar a los asegurados acceso oportuno a prestaciones integrales y de la calidad acorde a sus necesidades.
C85: Objetivo del indicador | D85: Medir el grado de ocupación de las camas de hospitalización en un día calendario.
C86: Definición operacional | D86: Es la relación porcentual entre el número de pacientes días, respecto al número de días camas disponibles.
C87: Responsable de la medición y evaluación en Redes / IPRESS | D87: Gerente de Red Prestacional, Gerente/Director de Red Asistencial, Gerente de Centro Especializado, Director de Instituto Especializado, Director de IPRESS.
C88: Responsable de la evaluación en sede central | D88: Gerencia Central de Operaciones.
C89: Responsable de la información | D89: Subgerencia de Estadística.
C90: Forma de cálculo
C91: Unidad de medida | D91: Porcentaje de ocupación de camas.
C92: Frecuencia de medición | D92: Mensual.
C93: Estándar | D93: H.N | E93: H.IV | F93: H.III | G93: H.II | H93: H.I | I93: POL | J93: CM | K93: PM | L93: CNSR | M93: IPO | N93: INCOR
D94: 0.9 | E94: 0.9 | F94: 0.9 | G94: 0.9 | H94: 0.9 | M94: 0.9 | N94: 0.9
C95: Sentido esperado del indicador | D95: Indicador de incremento.
C96: Fuente y bases de datos | D96: Sistema Estadístico de Salud (SES).
C98: - INTERVALO DE SUSTITUCION
C99: Objetivo estratégico Institucional del PEI al que Contribuye | D99: OEI.02: Brindar a los asegurados acceso oportuno a prestaciones integrales y de la calidad acorde a sus necesidades.
C100: Objetivo del indicador | D100: Medir el tiempo en que permanece la cama vacía entre un egreso y el subsiguiente ingreso a la misma cama de hospitalización.
C101: Definición operacional | D101: Es la relación de la diferencia del número de días camas disponible y el número de pacientes días, respecto al número de egresos.
C102: Responsable de la medición y evaluación en Redes / IPRESS | D102: Gerente de Red Prestacional, Gerente/Director de Red Asistencial, Gerente de Centro Especializado, Director de Instituto Especializado, Director de IPRESS.
C103: Responsable de la evaluación en sede central | D103: Gerencia Central de Operaciones.
C104: Responsable de la información | D104: Subgerencia de Estadística.
C105: Forma de cálculo
C106: Unidad de medida | D106: Días camas disponibles.
C107: Frecuencia de medición | D107: Mensual.
C108: Estándar | D108: H.N | E108: H.IV | F108: H.III | G108: H.II | H108: H.I | I108: POL | J108: CM | K108: PM | L108: CNSR | M108: IPO | N108: INCOR
D109: 1 | E109: 1 | F109: 1 | G109: 1 | H109: 1 | M109: 1 | N109: 1
C110: Sentido esperado del indicador | D110: Indicador de incremento.
C111: Fuente y bases de datos | D111: Sistema Estadístico de Salud (SES).
C113: - RENDIMIENTO CAMA
C114: Objetivo estratégico Institucional del PEI al que Contribuye | D114: OEI.02: Brindar a los asegurados acceso oportuno a prestaciones integrales y de la calidad acorde a sus necesidades.
C115: Objetivo del indicador | D115: Medir la utilización de una cama durante un período determinado de tiempo.
C116: Definición operacional | D116: Es la relación del número de egresos, respecto al número de camas hospitalarias (promedio).
C117: Responsable de la medición y evaluación en Redes / IPRESS | D117: Gerente de Red Prestacional, Gerente/Director de Red Asistencial, Gerente de Centro Especializado, Director de Instituto Especializado, Director de IPRESS.
C118: Responsable de la evaluación en sede central | D118: Gerencia Central de Operaciones.
C119: Responsable de la información | D119: Subgerencia de Estadística.
C120: Forma de cálculo
C121: Unidad de medida | D121: Días camas disponibes.
C122: Frecuencia de medición | D122: Mensual.
C123: Estándar | D123: H.N | E123: H.IV | F123: H.III | G123: H.II | H123: H.I | I123: POL | J123: CM | K123: PM | L123: CNSR | M123: IPO | N123: INCOR
D124: 3 | E124: 3 | F124: 4.5 | G124: 6 | H124: 6.7 | M124: 18 | N124: 3
C125: Sentido esperado del indicador | D125: Indicador de incremento.
C126: Fuente y bases de datos | D126: Sistema Estadístico de Salud (SES).
C128: - TASA NETA DE MORTALIDAD HOSPITALARIA
C129: Objetivo estratégico Institucional del PEI al que Contribuye | D129: OEI.02: Brindar a los asegurados acceso oportuno a prestaciones integrales y de la calidad acorde a sus necesidades.
C130: Objetivo del indicador | D130: Medir la apreciación global de la calidad de atención que se brinda en los servicios de hospitalización.
C131: Definición operacional | D131: Es la relación porcentual del número de defunciones producidas después de 48 horas, respecto a la diferencia del número de egresos y el número de defunciones producidas en menos de 48 horas.
C132: Responsable de la medición y evaluación en Redes / IPRESS | D132: Gerente de Red Prestacional, Gerente/Director de Red Asistencial, Gerente de Centro Especializado, Director de Instituto Especializado, Director de IPRESS.
C133: Responsable de la evaluación en sede central | D133: Gerencia Central de Operaciones.
C134: Responsable de la información | D134: Subgerencia de Estadística.
C135: Forma de cálculo
C136: Unidad de medida | D136: Porcentaje de mortalidad.
C137: Frecuencia de medición | D137: Mensual.
C138: Estándar | D138: H.N | E138: H.IV | F138: H.III | G138: H.II | H138: H.I | I138: POL | J138: CM | K138: PM | L138: CNSR | M138: IPO | N138: INCOR
D139: 0.03 | E139: 0.02 | F139: 0.02 | G139: 0.02 | H139: 0.02 | M139: 0.03 | N139: 0.03
C140: Sentido esperado del indicador | D140: Indicador de decremento.
C141: Fuente y bases de datos | D141: Sistema Estadístico de Salud (SES).
B144: INTERVENCIONES QUIRURGICAS
C146: - PORCENTAJE DE INTERVENCIONES MENORES
C147: Objetivo estratégico Institucional del PEI al que Contribuye | D147: OEI.02: Brindar a los asegurados acceso oportuno a prestaciones integrales y de la calidad acorde a sus necesidades.
C148: Objetivo del indicador | D148: Medir el porcentaje de intervenciones quirúrgicas menores que se realizan respecto al total.
C149: Definición operacional | D149: Es la relación porcentual de la sumatoria del número de cirugías menores de alto y bajo requerimiento, respecto al número de intervenciones quirúrgicas.
C150: Responsable de la medición y evaluación en Redes / IPRESS | D150: Gerente de Red Prestacional, Gerente/Director de Red Asistencial, Gerente de Centro Especializado, Director de Instituto Especializado, Director de IPRESS.
C151: Responsable de la evaluación en sede central | D151: Gerencia Central de Operaciones.
C152: Responsable de la información | D152: Subgerencia de Estadística.
C153: Forma de cálculo
C154: Unidad de medida | D154: Porcentaje de intervenciones menores.
C155: Frecuencia de medición | D155: Mensual.
C156: Estándar | D156: H.N | E156: H.IV | F156: H.III | G156: H.II | H156: H.I | I156: POL | J156: CM | K156: PM | L156: CNSR | M156: IPO | N156: INCOR
E157: 0.05 | F157: 0.05 | G157: 0.35 | H157: 0.4
C158: Sentido esperado del indicador | D158: Indicador de incremento.
C159: Fuente y bases de datos | D159: Sistema Estadístico de Salud (SES).
C161: - PORCENTAJE DE INTERVENCIONES DE ALTA COMPLEJIDAD
C162: Objetivo estratégico Institucional del PEI al que Contribuye | D162: OEI.02: Brindar a los asegurados acceso oportuno a prestaciones integrales y de la calidad acorde a sus necesidades.
C163: Objetivo del indicador | D163: Medir el porcentaje de intervenciones quirúrgicas alta complejidad que se realizan respecto al total.
C164: Definición operacional | D164: Es la relación porcentual del número de cirugías mayores de alta complejidad, respecto al número de intervenciones quirúrgicas.
C165: Responsable de la medición y evaluación en Redes / IPRESS | D165: Gerente de Red Prestacional, Gerente/Director de Red Asistencial, Gerente de Centro Especializado, Director de Instituto Especializado, Director de IPRESS.
C166: Responsable de la evaluación en sede central | D166: Gerencia Central de Operaciones.
C167: Responsable de la información | D167: Subgerencia de Estadística.
C168: Forma de cálculo
C169: Unidad de medida | D169: Porcentaje de intervenciones de alta complejidad.
C170: Frecuencia de medición | D170: Mensual.
C171: Estándar | D171: H.N | E171: H.IV | F171: H.III | G171: H.II | H171: H.I | I171: POL | J171: CM | K171: PM | L171: CNSR | M171: IPO | N171: INCOR
D172: 0.55 | E172: 0.3 | F172: 0.3 | M172: 0.6 | N172: 0.6
C173: Sentido esperado del indicador | D173: Indicador de incremento.
C174: Fuente y bases de datos | D174: Sistema Estadístico de Salud (SES).
C176: - PORCENTAJE DE HORAS QUIRURGICAS EFECTIVAS
C177: Objetivo estratégico Institucional del PEI al que Contribuye | D177: OEI.02: Brindar a los asegurados acceso oportuno a prestaciones integrales y de la calidad acorde a sus necesidades.
C178: Objetivo del indicador | D178: Medir el grado de cumplimiento de las horas quirúrgica programadas.
C179: Definición operacional | D179: Es la relación porcentual del número de horas de uso de sala quirúrgica, respecto al número de horas programadas en intervenciones quirúrgicas.
C180: Responsable de la medición y evaluación en Redes / IPRESS | D180: Gerente de Red Prestacional, Gerente/Director de Red Asistencial, Gerente de Centro Especializado, Director de Instituto Especializado, Director de IPRESS.
C181: Responsable de la evaluación en sede central | D181: Gerencia Central de Operaciones.
C182: Responsable de la información | D182: Subgerencia de Estadística.
C183: Forma de cálculo
C184: Unidad de medida | D184: Porcentaje de horas quirúrgicas efectivas.
C185: Frecuencia de medición | D185: Mensual.
C186: Estándar | D186: H.N | E186: H.IV | F186: H.III | G186: H.II | H186: H.I | I186: POL | J186: CM | K186: PM | L186: CNSR | M186: IPO | N186: INCOR
D187: 0.9 | E187: 0.9 | F187: 0.9 | G187: 0.9 | H187: 0.9 | M187: 0.9 | N187: 0.9
C188: Sentido esperado del indicador | D188: Indicador de incremento.
C189: Fuente y bases de datos | D189: Sistema Estadístico de Salud (SES).
C191: - RENDIMIENTO DE SALA DE OPERACIONES
C192: Objetivo estratégico Institucional del PEI al que Contribuye | D192: OEI.02: Brindar a los asegurados acceso oportuno a prestaciones integrales y de la calidad acorde a sus necesidades.
C193: Objetivo del indicador | D193: Medir el número promedio de intervenciones quirúrgicas realizadas por cada sala de operaciones.
C194: Definición operacional | D194: Es la relación del número de intervenciones quirúrgicas ejecutadas, respecto al número de salas de operaciones.
C195: Responsable de la medición y evaluación en Redes / IPRESS | D195: Gerente de Red Prestacional, Gerente/Director de Red Asistencial, Gerente de Centro Especializado, Director de Instituto Especializado, Director de IPRESS.
C196: Responsable de la evaluación en sede central | D196: Gerencia Central de Operaciones.
C197: Responsable de la información | D197: Subgerencia de Estadística.
C198: Forma de cálculo
C199: Unidad de medida | D199: Intervenciones quirúrgicas ejecutadas en promedio.
C200: Frecuencia de medición | D200: Mensual.
C201: Estándar | D201: H.N | E201: H.IV | F201: H.III | G201: H.II | H201: H.I | I201: POL | J201: CM | K201: PM | L201: CNSR | M201: IPO | N201: INCOR
D202: 100 | E202: 125 | F202: 105 | G202: 85 | H202: 75 | M202: 75 | N202: 60
C203: Sentido esperado del indicador | D203: Indicador de incremento.
C204: Fuente y bases de datos | D204: Sistema Estadístico de Salud (SES).
C206: - PORCENTAJE DE OPERACIONES SUSPENDIDAS
C207: Objetivo estratégico Institucional del PEI al que Contribuye | D207: OEI.02: Brindar a los asegurados acceso oportuno a prestaciones integrales y de la calidad acorde a sus necesidades.
C208: Objetivo del indicador | D208: Medir el grado de cumplimiento de las actividades quirúrgicas programadas.
C209: Definición operacional | D209: Es la relación porcentual del número de intervenciones quirúrgicas suspendidas, respecto al número de intervenciones quirúrgicas programadas.
C210: Responsable de la medición y evaluación en Redes / IPRESS | D210: Gerente de Red Prestacional, Gerente/Director de Red Asistencial, Gerente de Centro Especializado, Director de Instituto Especializado, Director de IPRESS.
C211: Responsable de la evaluación en sede central | D211: Gerencia Central de Operaciones.
C212: Responsable de la información | D212: Subgerencia de Estadística.
C213: Forma de cálculo
C214: Unidad de medida | D214: Porcentaje de intervenciones quirúrgicas suspendidas.
C215: Frecuencia de medición | D215: Mensual.
C216: Estándar | D216: H.N | E216: H.IV | F216: H.III | G216: H.II | H216: H.I | I216: POL | J216: CM | K216: PM | L216: CNSR | M216: IPO | N216: INCOR
D217: 0.05 | E217: 0.05 | F217: 0.05 | G217: 0.05 | H217: 0.05 | M217: 0.05 | N217: 0.1
C218: Sentido esperado del indicador | D218: Indicador de incremento.
C219: Fuente y bases de datos | D219: Sistema Estadístico de Salud (SES).
... 100 more rows

Sheet Definición_ (hidden)
C3: DEFINICION DE INDICADORES
B5: CONSULTA EXTERNA | Q5: AÑO: 2023 | AE5: AÑO : 2013 | AF5: AÑO: 2024
C7: - CONCENTRACION DE CONSULTAS
C8: Descripción | D8: El indicador mide la intensidad de uso de los servicios de C.Ext. Por el paciente. Las cifras reflejan la eficiencia de la gestión en el manejo del reciclaje o recurrencia a la consulta de pacientes.
C9: Responsable | D9: Gerencia de División de Prestaciones
C10: Fuente / Procesamiento | D10: Sistemas (NSIG) en C.A y el (SES) en las Redes y Sede Central
C11: Formula / Cálculo | D11: N° Total de consultas médicas acumuladas de enero al periodo de evaluación / N° total de consultantes acumulados de enero al mismo periodo que se evalua. | E11: Unidad:
C12: Frecuencia de Medición | D12: Mensual | E12: Oportunidad de Medición: | F12: 15 C/Mes
C14: - RENDIMIENTO HORA MEDICO
C15: Descripción | D15: Es el promedio de atenciones realizadas por cada hora de trabajo médico, es un indicador de eficiencia.
C16: Responsable | D16: Gerencia de División de Prestaciones
C17: Fuente / Procesamiento | D17: Sistemas (NSIG) en C.A y el (SES) en las Redes y Sede Central
C18: Formula / Cálculo | D18: N° Total de consultas / N° total de horas médicas efectivas. | E18: Unidad:
C19: Frecuencia de Medición | D19: Mensual | E19: Oportunidad de Medición: | F19: 15 C/Mes
C21: - GRADO DE CUMPLIMIENTO DE HORAS PROGRAMADAS
C22: Descripción | D22: Es el porcentaje de horas efectivas respecto al número horas programadas. Mide el grado de cumplimiento de las horas programadas.
C23: Responsable | D23: Gerencia de División de Prestaciones
C24: Fuente / Procesamiento | D24: Sistemas (NSIG) en C.A y el (SES) en las Redes y Sede Central
C25: Formula / Cálculo | D25: (Nº de Hrs. Médicas Efectivas / Nº de Hrs. Médicas Programadas) x 100. | E25: Unidad: | F25: %
C26: Frecuencia de Medición | D26: Mensual | E26: Oportunidad de Medición: | F26: 15 C/Mes
C28: - PROMEDIO DE RECETAS POR CONSULTAS
C29: Descripción | D29: Mide el número de recetas que se otorga por cada consulta médica. Es un indicador de eficiencia.
C30: Responsable | D30: Gerencia de División de Prestaciones
C31: Fuente / Procesamiento | D31: Sistemas (NSIG) en C.A y el (SES) en las Redes y Sede Central
C32: Formula / Cálculo | D32: N° total de recetas en C.Ext. / N° total de consultas médicas. | E32: Unidad:
C33: Frecuencia de Medición | D33: Mensual | E33: Oportunidad de Medición: | F33: 15 C/Mes
B35: HOSPITALIZACION
C37: - PROMEDIO DIA ESTANCIA
C38: Descripción | D38: Permite evaluar la calidad de los servicios prestados y el aprovechamiento del recurso cama.
C39: Responsable | D39: Gerencia de División de Prestaciones
C40: Fuente / Procesamiento | D40: Sistemas (NSIG) en C.A y el (SES) en las Redes y Sede Central
C41: Formula / Cálculo | D41: Total días estancias / N° total de egresos. | E41: Unidad:
C42: Frecuencia de Medición | D42: Mensual | E42: Oportunidad de Medición: | F42: 15 C/Mes
C44: - PORCENTAJE DE OCUPACION DE CAMA
C45: Descripción | D45: Indicador expresado en términos porcentuales, mide el grado de ocupación de cada cama hospitalaria.
C46: Responsable | D46: Gerencia de División de Prestaciones
C47: Fuente / Procesamiento | D47: Sistemas (NSIG) en C.A y el (SES) en las Redes y Sede Central
C48: Formula / Cálculo | D48: (Total de Pacientes-días / Total de Días camas Disponibles)*100. | E48: Unidad: | F48: %
C49: Frecuencia de Medición | D49: Mensual | E49: Oportunidad de Medición: | F49: 15 C/Mes
C51: - INTERVALO DE SUSTITUCION
C52: Descripción | D52: Este indicador mide el tiempo en que permanece la cama vacía entre un egreso y el subsiguiente ingreso a la misma cama. Los promedios más altos indican poca demanda del servicio u otros problemas organizativos.
C53: Responsable | D53: Gerencia de División de Prestaciones
C54: Fuente / Procesamiento | D54: Sistemas (NSIG) en C.A y el (SES) en las Redes y Sede Central
C55: Formula / Cálculo | D55: (Dias camas disponibles - Pacientes días) / N° Total de Egresos. | E55: Unidad:
C56: Frecuencia de Medición | D56: Mensual | E56: Oportunidad de Medición: | F56: 15 C/Mes
C58: - RENDIMIENTO CAMA
C59: Descripción | D59: Se mide como el promedio de egresos hospitalarios por cama hospitalaria disponible en el periodo. Es un indicador de eficiencia.
C60: Responsable | D60: Gerencia de División de Prestaciones
C61: Fuente / Procesamiento | D61: Sistemas (NSIG) en C.A y el (SES) en las Redes y Sede Central
C62: Formula / Cálculo | D62: N° Total de egresos hospitalarios / N° camas hospitalarias (promedio). | E62: Unidad:
C63: Frecuencia de Medición | D63: Mensual | E63: Oportunidad de Medición: | F63: 15 C/Mes
C65: - TASA NETA DE MORTALIDAD HOSPITALARIA
C66: Descripción | D66: Sirve para obtener una apreciación global de la calidad de atención que se brinda en los servicios de hospitalización.
C67: Responsable | D67: Gerencia de División de Prestaciones
C68: Fuente / Procesamiento | D68: Sistemas (NSIG) en C.A y el (SES) en las Redes y Sede Central
C69: Formula / Cálculo | D69: [Total de defunciones producidas despues de 48 horas / (N° total de egresos - Defunciones producidas en menos de 48 horas)] x 100 | E69: Unidad: | F69: %
C70: Frecuencia de Medición | D70: Mensual | E70: Oportunidad de Medición: | F70: 15 C/Mes
B72: INTERVENCIONES QUIRURGICAS
C74: - PORCENTAJE DE INTERVENCIONES MENORES
C75: Descripción | D75: Es el porcentaje de intervenciones Quirurgicas Menores que se realizán con respecto al Total.
C76: Responsable | D76: Gerencia de División de Prestaciones
C77: Fuente / Procesamiento | D77: Sistemas (NSIG) en C.A y el (SES) en las Redes y Sede Central
C78: Formula / Cálculo | D78: [(Total de Cirugías Menor de Alto Requerimiento + Total de Cirugías Menor de Bajo Requerimiento) / Total Intervenciones Quirúrgicas] x 100 | E78: Unidad: | F78: %
C79: Frecuencia de Medición | D79: Mensual | E79: Oportunidad de Medición: | F79: 15 C/Mes
C81: - PORCENTAJE DE INTERVENCIONES DE ALTA COMPLEJIDAD
C82: Descripción | D82: Es el porcentaje de intervenciones Quirúrgicas de Alta Complejidad que se realizán con respecto al Total.
C83: Responsable | D83: Gerencia de División de Prestaciones
C84: Fuente / Procesamiento | D84: Sistemas (NSIG) en C.A y el (SES) en las Redes y Sede Central
C85: Formula / Cálculo | D85: (Cirugía Mayor de alta Complejidad / Total Intervenciones Quirúrgicas) x 100 | E85: Unidad: | F85: %
C86: Frecuencia de Medición | D86: Mensual | E86: Oportunidad de Medición: | F86: 15 C/Mes
C88: - PORCENTAJE DE HORAS QUIRURGICAS EFECTIVAS
C89: Descripción | D89: Es el porcentaje de horas de uso de Sala Quirúrgica efectivas respecto al número horas programadas. Mide el grado de cumplimiento de las horas de uso programadas.
C90: Responsable | D90: Gerencia de División de Prestaciones
C91: Fuente / Procesamiento | D91: Sistemas (NSIG) en C.A y el (SES) en las Redes y Sede Central
C92: Formula / Cálculo | D92: (Nº de Horas de Uso de Sala Quirúrgica / Nº de Horas Programadas en Intervenciones Quirúrgicas) x 100. | E92: Unidad: | F92: % | G92: x
C93: Frecuencia de Medición | D93: Mensual | E93: Oportunidad de Medición: | F93: 15 C/Mes
C95: - RENDIMIENTO DE SALA DE OPERACIONES
C96: Descripción | D96: Mide el número promedio de intervenciones quirúrgicas realizadas por cada sala de operaciones.
C97: Responsable | D97: Gerencia de División de Prestaciones
C98: Fuente / Procesamiento | D98: Sistemas (NSIG) en C.A y el (SES) en las Redes y Sede Central
C99: Formula / Cálculo | D99: Nº de Intervenciones Quirúrgicas Ejecutadas / Nº de Salas de Operaciones. | E99: Unidad:
C100: Frecuencia de Medición | D100: Mensual | E100: Oportunidad de Medición: | F100: 15 C/Mes
C102: - PORCENTAJE DE OPERACIONES SUSPENDIDAS
C103: Descripción | D103: Mide el grado de cumplimiento de las actividades quirúrgicas programadas.
C104: Responsable | D104: Gerencia de División de Prestaciones
C105: Fuente / Procesamiento | D105: Sistemas (NSIG) en C.A y el (SES) en las Redes y Sede Central
C106: Formula / Cálculo | D106: (Nº de Intervenciones Quirúrgicas Suspendidas / Nº Total de Intervenciones Quirúrgicas Programadas) x 100 | E106: Unidad:
C107: Frecuencia de Medición | D107: Mensual | E107: Oportunidad de Medición: | F107: 15 C/Mes
C109: - TASA DE CESAREAS
C110: Descripción | D110: Es el porcentaje de cesáreas realizadas con relación al total de partos atendidos en el servicio de obstetricia. Evalua la calidad del servicio de obstetricia.
C111: Responsable | D111: Gerencia de División de Prestaciones
C112: Fuente / Procesamiento | D112: Sistemas (NSIG) en C.A y el (SES) en las Redes y Sede Central
C113: Formula / Cálculo | D113: (Nº de Cesáreas / Nº Total de Partos) x 100 | E113: Unidad: | F113: %
C114: Frecuencia de Medición | D114: Mensual | E114: Oportunidad de Medición: | F114: 15 C/Mes
B116: EMERGENCIA
C118: - % PRIORIDAD IV CON RESPECTO AL TOTAL DE EMERGENCIAS
C119: Descripción | D119: Es el porcentaje de Atenciones de Emergencia de PRIORIDAD IV que se realizán con respecto al Total.
C120: Responsable | D120: Gerencia de División de Prestaciones
C121: Fuente / Procesamiento | D121: Sistemas (NSIG) en C.A y el (SES) en las Redes y Sede Central
C122: Formula / Cálculo | D122: Total de Atenciones de Emergencia de Prioridad IV / Total de Atenciones de Emergencia | E122: Unidad: | F122: %
C123: Frecuencia de Medición | D123: Mensual | E123: Oportunidad de Medición: | F123: 15 C/Mes
C125: - % PRIORIDAD I Y II CON RESPECTO AL TOTAL DE EMERGENCIAS
C126: Descripción | D126: Es el porcentaje de Atenciones de Emergencia de PRIORIDAD I-II que se realizán con respecto al Total.
C127: Responsable | D127: Gerencia de División de Prestaciones
C128: Fuente / Procesamiento | D128: Sistemas (NSIG) en C.A y el (SES) en las Redes y Sede Central
C129: Formula / Cálculo | D129: Total de Atenciones de Emergencia de Prioridad I y II / Total de Atenciones de Emergencia | E129: Unidad: | F129: %
C130: Frecuencia de Medición | D130: Mensual | E130: Oportunidad de Medición: | F130: 15 C/Mes
B132: ODONTOLOGIA
C134: - CONCENTRACIÓN DE SESIONES ODONTOLÓGICAS
C135: Descripción | D135: Mide el número de sesiones odontológicas recibidas por cada usuario en un determinado período de tiempo.
C136: Responsable | D136: Gerencia de División de Prestaciones
C137: Fuente / Procesamiento | D137: Sistemas (NSIG) en C.A y el (SES) en las Redes y Sede Central
C138: Formula / Cálculo | D138: Nº de Sesiones Odontológicos Acumuladas desde Enero al periodo de evaluación / Nº de Consultantes de Odontología Acumulados desde enero al mismo periodo que se evalua. | E138: Unidad:
C139: Frecuencia de Medición | D139: Mensual | E139: Oportunidad de Medición: | F139: 15 C/Mes
C141: - RENDIMIENTO HORA ODONTOLÓGICA
C142: Descripción | D142: Es el promedio de sesiones realizadas por cada hora efectiva de trabajo en consultorio externo. Es un indicador de eficiencia.
C143: Responsable | D143: Gerencia de División de Prestaciones
C144: Fuente / Procesamiento | D144: Sistemas (NSIG) en C.A y el (SES) en las Redes y Sede Central
C145: Formula / Cálculo | D145: N° Total de sesiones odontológicas / N° total de horas odontólogo efectivas. | E145: Unidad:
C146: Frecuencia de Medición | D146: Mensual | E146: Oportunidad de Medición: | F146: 15 C/Mes
C148: - GRADO DE CUMPLIMIENTO DE HORA ODONTÓLOGO
C149: Descripción | D149: Es el porcentaje de horas-odontólogo efectivas respecto al número horas odontólogo-programadas. Mide el grado de cumplimiento de las horas programadas.
C150: Responsable | D150: Gerencia de División de Prestaciones
C151: Fuente / Procesamiento | D151: Sistemas (NSIG) en C.A y el (SES) en las Redes y Sede Central
C152: Formula / Cálculo | D152: (Nº de Horas Odontólogo Efectivas / Nº de Horas Odontólogo Programadas) x 100. | E152: Unidad: | F152: %
C153: Frecuencia de Medición | D153: Mensual | E153: Oportunidad de Medición: | F153: 15 C/Mes
C155: - NÚMERO DE TRABAJOS ODONTOLÓGICOS POR SESIÓN
C156: Descripción | D156: Mide el número de trabajos odontológicos que se realiza por cada sesión odontológica.
C157: Responsable | D157: Gerencia de División de Prestaciones
C158: Fuente / Procesamiento | D158: Sistemas (NSIG) en C.A y el (SES) en las Redes y Sede Central
C159: Formula / Cálculo | D159: Nº de Trabajos Odontológicos / Nº de Sesiones Odontológicas. | E159: Unidad:
C160: Frecuencia de Medición | D160: Mensual | E160: Oportunidad de Medición: | F160: 15 C/Mes
J343: 3.01
F356: 488 | G356: POLIC. CAP III CATACAOS
I408: 3

Sheet C.E_Concent.
C1: CRITERIOS DE EVALUACION
C3: CONCENTRACION DE CONSULTAS
S5: AÑO: 2024
C6: Puntaje | E6: Red Asistencial / Establecimientos | H6: Nivel | I6: Tipo | J6: Valor Real | K6: Estandar | L6: Verde | M6: Rojo | R6: Anual | S6: Ene | T6: Feb | U6: Mar | V6: Abr | W6: May | X6: Jun | Y6: Jul | Z6: Ago | AA6: Sep | AB6: Oct | AC6: Nov | AD6: Dic
C8: 3.528 | G8: TOTAL NACIONAL
C10: 2.6 | G10: RED ASISTENCIAL AMAZONAS
C11: 1 | D11: 3 | E11: = | F11: 153 | G11: EL BUEN SAMARITANO | H11: II | I11: H.I | J11: 3.932485992 | K11: 3.5 | L11: 3.5 | M11: 3.85 | S11: 1.358232509 | T11: 1.730540897 | U11: 2.040597171 | V11: 2.330448291 | W11: 2.620208374 | X11: 2.890458748 | Y11: 3.162175325 | Z11: 3.436915183 | AA11: 3.6833286 | AB11: 3.932485992 | AC11: 0 | AD11: 0
C12: 1 | D12: 3 | E12: = | F12: 154 | G12: HEROES DEL CENEPA | H12: II | I12: H.I | J12: 3.88535616 | K12: 3.5 | L12: 3.5 | M12: 3.85 | S12: 1.552012546 | T12: 2.023692004 | U12: 2.349865952 | V12: 2.608666367 | W12: 2.869314796 | X12: 3.12935966 | Y12: 3.365925669 | Z12: 3.507086355 | AA12: 3.722028526 | AB12: 3.88535616 | AC12: 0 | AD12: 0
C13: 1 | D13: 3 | E13: = | F13: 155 | G13: HIGOS URCO | H13: II | I13: H.I | J13: 4.043481742 | K13: 3.5 | L13: 3.5 | M13: 3.85 | S13: 1.471611722 | T13: 1.848399775 | U13: 2.130696345 | V13: 2.452497798 | W13: 2.725661757 | X13: 3.028006925 | Y13: 3.296052632 | Z13: 3.544227886 | AA13: 3.792132955 | AB13: 4.043481742 | AC13: 0 | AD13: 0
C14: 3 | D14: 2 | E14: = | F14: 843 | G14: RODRIGUEZ DE MENDOZA | H14: I | I14: C.A.P.II | J14: 3.583668005 | K14: 3.5 | L14: 3.5 | M14: 3.85 | S14: 1.053078556 | T14: 1.447058824 | U14: 1.776456599 | V14: 2.128205128 | W14: 2.354092527 | X14: 2.585325639 | Y14: 2.811737805 | Z14: 3.069767442 | AA14: 3.340766551 | AB14: 3.583668005 | AC14: 0 | AD14: 0
C15: 5 | D15: 1 | E15: = | F15: 845 | G15: SANTA MARIA DE NIEVA | H15: I | I15: C.A.P.II | J15: 3.277293696 | K15: 3.5 | L15: 3.5 | M15: 3.85 | S15: 1.368253968 | T15: 1.747474747 | U15: 1.947463768 | V15: 2.2192 | W15: 2.42846553 | X15: 2.637119114 | Y15: 2.744694132 | Z15: 2.911071849 | AA15: 3.08577633 | AB15: 3.277293696 | AC15: 0 | AD15: 0
C16: 5 | D16: 1 | E16: = | F16: 855 | G16: IMAZA | H16: I | I16: C.A.P.I | J16: 2.557153671 | K16: 3.5 | L16: 3.5 | M16: 3.85 | S16: 1.179166667 | T16: 1.477326969 | U16: 1.644366197 | V16: 1.837175793 | W16: 1.90964591 | X16: 2.059717698 | Y16: 2.213372665 | Z16: 2.322609473 | AA16: 2.447411003 | AB16: 2.557153671 | AC16: 0 | AD16: 0
C17: 3 | D17: 2 | E17: = | F17: 156 | G17: LAMUD | H17: I | I17: C.A.P.I | J17: 3.732903226 | K17: 3.5 | L17: 3.5 | M17: 3.85 | S17: 1.231818182 | T17: 1.629746835 | U17: 1.925531915 | V17: 2.295454545 | W17: 2.56626506 | X17: 2.792553191 | Y17: 3.070032573 | Z17: 3.32526475 | AA17: 3.546478873 | AB17: 3.732903226 | AC17: 0 | AD17: 0
C18: 3 | D18: 2 | E18: = | F18: 157 | G18: LONYA GRANDE | H18: I | I18: C.A.P.I | J18: 3.684021544 | K18: 3.5 | L18: 3.5 | M18: 3.85 | S18: 1.241830065 | T18: 1.615062762 | U18: 1.873287671 | V18: 2.115492958 | W18: 2.446153846 | X18: 2.724056604 | Y18: 2.969432314 | Z18: 3.140594059 | AA18: 3.431775701 | AB18: 3.684021544 | AC18: 0 | AD18: 0
C19: 3 | D19: 2 | E19: = | F19: 158 | G19: OCALLI | H19: I | I19: C.A.P.I | J19: 3.614250614 | K19: 3.5 | L19: 3.5 | M19: 3.85 | S19: 1.364583333 | T19: 1.739726027 | U19: 2.211428571 | V19: 2.507042254 | W19: 2.785714286 | X19: 3.064885496 | Y19: 3.040123457 | Z19: 3.241477273 | AA19: 3.551630435 | AB19: 3.614250614 | AC19: 0 | AD19: 0
C20: 1 | D20: 3 | E20: = | F20: 159 | G20: PEDRO RUIZ GALLO | H20: I | I20: C.A.P.I | J20: 4.024 | K20: 3.5 | L20: 3.5 | M20: 3.85 | S20: 1.303680982 | T20: 1.716666667 | U20: 2.037931034 | V20: 2.338235294 | W20: 2.617218543 | X20: 2.829683698 | Y20: 3.107305936 | Z20: 3.370558376 | AA20: 3.658215962 | AB20: 4.024 | AC20: 0 | AD20: 0
C22: 4.5 | G22: RED ASISTENCIAL ANCASH
C23: 5 | D23: 1 | E23: = | F23: 161 | G23: CHIMBOTE | H23: II | I23: H.III | J23: 3.063220127 | K23: 4 | L23: 4 | M23: 4.4 | S23: 1.321287463 | T23: 1.562979988 | U23: 1.762799576 | V23: 1.988351756 | W23: 2.205638992 | X23: 2.394116811 | Y23: 2.591288907 | Z23: 2.74148493 | AA23: 2.914838739 | AB23: 3.063220127 | AC23: 0 | AD23: 0
C24: 5 | D24: 1 | E24: = | F24: 167 | G24: CONO SUR | H24: II | I24: H.I | J24: 3.016485726 | K24: 3.5 | L24: 3.5 | M24: 3.85 | S24: 1.221485127 | T24: 1.432439303 | U24: 1.653967371 | V24: 1.885100243 | W24: 2.135860874 | X24: 2.334878807 | Y24: 2.506975492 | Z24: 2.674342271 | AA24: 2.851756198 | AB24: 3.016485726 | AC24: 0 | AD24: 0
C25: 5 | D25: 1 | E25: = | F25: 487 | G25: VICTOR PANTA RODRIGUEZ | H25: I | I25: POL. | J25: 3.394094696 | K25: 3.5 | L25: 3.5 | M25: 3.85 | S25: 1.254555127 | T25: 1.501629423 | U25: 1.706397632 | V25: 2.010055982 | W25: 2.287402122 | X25: 2.534025229 | Y25: 2.761637271 | Z25: 2.965499447 | AA25: 3.185621277 | AB25: 3.394094696 | AC25: 0 | AD25: 0
C26: 5 | D26: 1 | E26: = | F26: 165 | G26: CASMA | H26: I | I26: C.M. | J26: 3.152734778 | K26: 3.5 | L26: 3.5 | M26: 3.85 | S26: 1.239747634 | T26: 1.493039964 | U26: 1.710267706 | V26: 1.959079284 | W26: 2.220452849 | X26: 2.398137633 | Y26: 2.671852313 | Z26: 2.825164029 | AA26: 2.987899585 | AB26: 3.152734778 | AC26: 0 | AD26: 0
C27: 5 | D27: 1 | E27: = | F27: 166 | G27: COISHCO | H27: I | I27: C.M. | J27: 3.360437021 | K27: 3.5 | L27: 3.5 | M27: 3.85 | S27: 1.29812309 | T27: 1.570591233 | U27: 1.772247661 | V27: 2.008582218 | W27: 2.257159728 | X27: 2.472466081 | Y27: 2.680645161 | Z27: 2.884503772 | AA27: 3.131071704 | AB27: 3.360437021 | AC27: 0 | AD27: 0
C28: 5 | D28: 1 | E28: = | F28: 170 | G28: SIHUAS | H28: I | I28: C.M. | J28: 3.054535017 | K28: 3.5 | L28: 3.5 | M28: 3.85 | S28: 1.099585062 | T28: 1.388140162 | U28: 1.576530612 | V28: 1.796006944 | W28: 2.006993007 | X28: 2.179251941 | Y28: 2.362113402 | Z28: 2.574494175 | AA28: 2.790436836 | AB28: 3.054535017 | AC28: 0 | AD28: 0
C29: 3 | D29: 2 | E29: = | F29: 169 | G29: HUARMEY | H29: I | I29: C.M. | J29: 3.522041763 | K29: 3.5 | L29: 3.5 | M29: 3.85 | S29: 1.378995434 | T29: 1.718164794 | U29: 1.929385804 | V29: 2.187068424 | W29: 2.442962543 | X29: 2.697949527 | Y29: 2.920779862 | Z29: 3.153413089 | AA29: 3.345232816 | AB29: 3.522041763 | AC29: 0 | AD29: 0
C30: 1 | D30: 3 | E30: = | F30: 185 | G30: SAN JACINTO | H30: I | I30: C.A.P.II | J30: 4.03509456 | K30: 3.5 | L30: 3.5 | M30: 3.85 | S30: 1.311646586 | T30: 1.625 | U30: 1.923618444 | V30: 2.228231798 | W30: 2.585270306 | X30: 2.877727164 | Y30: 3.138095238 | Z30: 3.453155288 | AA30: 3.751430908 | AB30: 4.03509456 | AC30: 0 | AD30: 0
C31: 5 | D31: 1 | E31: = | F31: 171 | G31: CABANA | H31: I | I31: P.M. | J31: 3.379761905 | K31: 3.5 | L31: 3.5 | M31: 3.85 | S31: 1.211640212 | T31: 1.47810219 | U31: 1.645533141 | V31: 1.903755869 | W31: 2.209486166 | X31: 2.428327645 | Y31: 2.647577093 | Z31: 2.913746631 | AA31: 3.137546468 | AB31: 3.379761905 | AC31: 0 | AD31: 0
C32: 5 | D32: 1 | E32: = | F32: 175 | G32: CONCHUCOS | H32: I | I32: P.M. | J32: 3.111292962 | K32: 3.5 | L32: 3.5 | M32: 3.85 | S32: 1.693333333 | T32: 2.106481481 | U32: 2.301158301 | V32: 2.35504886 | W32: 2.50997151 | X32: 2.841708543 | Y32: 3.134396355 | Z32: 3.141104294 | AA32: 3.031523643 | AB32: 3.111292962 | AC32: 0 | AD32: 0
C33: 5 | D33: 1 | E33: = | F33: 178 | G33: PAMPAS | H33: I | I33: P.M. | J33: 3.312297735 | K33: 3.5 | L33: 3.5 | M33: 3.85 | S33: 1.625 | T33: 2.063291139 | U33: 2.310679612 | V33: 2.776566757 | W33: 3.0075 | X33: 3.097505669 | Y33: 3.363043478 | Z33: 3.37992126 | AA33: 3.427536232 | AB33: 3.312297735 | AC33: 0 | AD33: 0
C34: 5 | D34: 1 | E34: = | F34: 379 | G34: PALLASCA | H34: I | I34: P.M. | J34: 3.017857143 | K34: 3.5 | L34: 3.5 | M34: 3.85 | S34: 1.294117647 | T34: 1.707792208 | U34: 1.969387755 | V34: 2.145833333 | W34: 2.444839858 | X34: 2.406779661 | Y34: 2.598944591 | Z34: 2.743209877 | AA34: 2.892523364 | AB34: 3.017857143 | AC34: 0 | AD34: 0
C36: 1.5 | G36: RED ASISTENCIAL APURÍMAC
C37: 1 | D37: 3 | E37: = | F37: 67 | G37: ABANCAY | H37: II | I37: H.II | J37: 5.673207329 | K37: 3.5 | L37: 3.5 | M37: 3.85 | S37: 1.513149351 | T37: 2.146878825 | U37: 2.670059094 | V37: 3.16144786 | W37: 3.606796752 | X37: 4.073218077 | Y37: 4.498695109 | Z37: 4.875333689 | AA37: 5.288812497 | AB37: 5.673207329 | AC37: 0 | AD37: 0
C38: 1 | D38: 3 | E38: = | F38: 68 | G38: ANDAHUAYLAS | H38: II | I38: H.I | J38: 4.592592593 | K38: 3.5 | L38: 3.5 | M38: 3.85 | S38: 1.507759457 | T38: 1.985882744 | U38: 2.345930608 | V38: 2.741863905 | W38: 3.106728759 | X38: 3.397573776 | Y38: 3.676164987 | Z38: 4.012233096 | AA38: 4.290799944 | AB38: 4.592592593 | AC38: 0 | AD38: 0
C39: 5 | D39: 1 | E39: = | F39: 512 | G39: COTABAMBAS | H39: I | I39: C.A.P.II | J39: 3.013626374 | K39: 3.5 | L39: 3.5 | M39: 3.85 | S39: 1.304347826 | T39: 1.651574803 | U39: 1.890180879 | V39: 2.063538612 | W39: 2.223015873 | X39: 2.411149826 | Y39: 2.541763341 | Z39: 2.705759162 | AA39: 2.887011106 | AB39: 3.013626374 | AC39: 0 | AD39: 0
C40: 1 | D40: 3 | E40: = | F40: 847 | G40: CHINCHEROS | H40: I | I40: C.A.P.II | J40: 5.333794375 | K40: 3.5 | L40: 3.5 | M40: 3.85 | S40: 1.686098655 | T40: 2.247167868 | U40: 2.697095436 | V40: 3.095304835 | W40: 3.457627119 | X40: 3.766460326 | Y40: 4.191129884 | Z40: 4.6001001 | AA40: 4.953809524 | AB40: 5.333794375 | AC40: 0 | AD40: 0
C41: 1 | D41: 3 | E41: = | F41: 70 | G41: CHALHUANCA | H41: I | I41: C.A.P.II | J41: 4.254152824 | K41: 3.5 | L41: 3.5 | M41: 3.85 | S41: 1.496828753 | T41: 1.895460798 | U41: 2.239956569 | V41: 2.483483483 | W41: 2.755705833 | X41: 3.032835821 | Y41: 3.281965007 | Z41: 3.509744214 | AA41: 3.905318527 | AB41: 4.254152824 | AC41: 0 | AD41: 0
C42: 1 | D42: 3 | E42: = | F42: 71 | G42: CHUQUIBAMBILLA | H42: I | I42: P.M. | J42: 4.719951923 | K42: 3.5 | L42: 3.5 | M42: 3.85 | S42: 1.32735426 | T42: 1.579710145 | U42: 1.893518519 | V42: 2.298780488 | W42: 2.577898551 | X42: 2.86779661 | Y42: 3.418070444 | Z42: 3.93079096 | AA42: 4.305806452 | AB42: 4.719951923 | AC42: 0 | AD42: 0
C43: 1 | D43: 3 | E43: = | F43: 69 | G43: CURAHUASI | H43: I | I43: P.M. | J43: 5.11136537 | K43: 3.5 | L43: 3.5 | M43: 3.85 | S43: 1.488687783 | T43: 2.001519757 | U43: 2.541884817 | V43: 3.104460094 | W43: 3.600217865 | X43: 3.90990099 | Y43: 4.297794118 | Z43: 4.568627451 | AA43: 4.825180433 | AB43: 5.11136537 | AC43: 0 | AD43: 0
C44: 1 | D44: 3 | E44: = | F44: 468 | G44: ANTABAMBA | H44: I | I44: C.A.P.I | J44: 6.871985158 | K44: 3.5 | L44: 3.5 | M44: 3.85 | S44: 2.072 | T44: 2.778846154 | U44: 3.036923077 | V44: 3.68503937 | W44: 4.211302211 | X44: 4.832951945 | Y44: 5.462203024 | Z44: 5.958932238 | AA44: 6.474509804 | AB44: 6.871985158 | AC44: 0 | AD44: 0
C46: 3.214 | G46: RED ASISTENCIAL AREQUIPA
C47: 1 | D47: 3 | E47: = | F47: 3 | G47: CARLOS ALBERTO SEGUIN ESCOBEDO | H47: III | I47: H.N. | J47: 4.487025454 | K47: 4 | L47: 4 | M47: 4.4 | S47: 1.402701084 | T47: 1.759603418 | U47: 2.066109447 | V47: 2.507376931 | W47: 2.898023947 | X47: 3.263105292 | Y47: 3.599853018 | Z47: 3.886257105 | AA47: 4.213565022 | AB47: 4.487025454 | AC47: 0 | AD47: 0
C48: 5 | D48: 1 | E48: = | F48: 76 | G48: YANAHUARA | H48: II | I48: H.III | J48: 3.519544363 | K48: 4 | L48: 4 | M48: 4.4 | S48: 1.279077604 | T48: 1.589630347 | U48: 1.876358412 | V48: 2.175289772 | W48: 2.438088984 | X48: 2.691261035 | Y48: 2.924425837 | Z48: 3.123186547 | AA48: 3.332510046 | AB48: 3.519544363 | AC48: 0 | AD48: 0
C49: 1 | D49: 3 | E49: = | F49: 74 | G49: MANUEL DE TORRES MUÑOZ | H49: II | I49: H.II | J49: 4.176291793 | K49: 3.5 | L49: 3.5 | M49: 3.85 | S49: 1.393396226 | T49: 1.804347826 | U49: 2.095394737 | V49: 2.487286528 | W49: 2.80991921 | X49: 3.133504889 | Y49: 3.410283316 | Z49: 3.6630837 | AA49: 3.929196237 | AB49: 4.176291793 | AC49: 0 | AD49: 0
C50: 1 | D50: 3 | E50: = | F50: 75 | G50: SAMUEL PASTOR | H50: II | I50: H.I | J50: 4.297653959 | K50: 3.5 | L50: 3.5 | M50: 3.85 | S50: 1.444628099 | T50: 1.877159827 | U50: 2.211041852 | V50: 2.677087233 | W50: 2.967051071 | X50: 3.33643151 | Y50: 3.609346061 | Z50: 3.846516008 | AA50: 4.084404838 | AB50: 4.297653959 | AC50: 0 | AD50: 0
C51: 5 | D51: 1 | E51: = | F51: 79 | G51: EDMUNDO ESCOMEL | H51: II | I51: H.I | J51: 3.290559027 | K51: 3.5 | L51: 3.5 | M51: 3.85 | S51: 1.317004962 | T51: 1.620168676 | U51: 1.878457002 | V51: 2.14177315 | W51: 2.404413704 | X51: 2.62344953 | Y51: 2.800054535 | Z51: 2.94976714 | AA51: 3.115715403 | AB51: 3.290559027 | AC51: 0 | AD51: 0
C52: 1 | D52: 3 | E52: = | F52: 77 | G52: METROPOLITANO | H52: I | I52: POL. | J52: 3.876598686 | K52: 3.5 | L52: 3.5 | M52: 3.85 | S52: 1.273478261 | T52: 1.520393325 | U52: 1.79126012 | V52: 2.148007917 | W52: 2.487163505 | X52: 2.791918103 | Y52: 3.087031061 | Z52: 3.34873252 | AA52: 3.63331622 | AB52: 3.876598686 | AC52: 0 | AD52: 0
C53: 3 | D53: 2 | E53: = | F53: 697 | G53: HOSPITAL GERIATRICO MUNICIPAL | H53: I | I53: POL. | J53: 3.54258817 | K53: 3.5 | L53: 3.5 | M53: 3.85 | S53: 1.206366765 | T53: 1.603314831 | U53: 1.906046751 | V53: 2.18863904 | W53: 2.456408422 | X53: 2.682719681 | Y53: 2.910969997 | Z53: 3.120634671 | AA53: 3.337093466 | AB53: 3.54258817 | AC53: 0 | AD53: 0
C54: 5 | D54: 1 | E54: = | F54: 80 | G54: MELITON SALAS TEJADA | H54: I | I54: C.A.P.III | J54: 2.071309494 | K54: 3.5 | L54: 3.5 | M54: 3.85 | S54: 1.097820938 | T54: 1.203154426 | U54: 1.317071065 | V54: 1.450708235 | W54: 1.583410082 | X54: 1.684744828 | Y54: 1.778993435 | Z54: 1.872559291 | AA54: 1.985013925 | AB54: 2.071309494 | AC54: 0 | AD54: 0
C55: 1 | D55: 3 | E55: = | F55: 453 | G55: PAUCARPATA | H55: I | I55: C.A.P.III | J55: 3.934187536 | K55: 3.5 | L55: 3.5 | M55: 3.85 | S55: 1.336291038 | T55: 1.739693757 | U55: 1.903241182 | V55: 2.251017087 | W55: 2.565555556 | X55: 2.88247494 | Y55: 3.181140635 | Z55: 3.427361155 | AA55: 3.678323787 | AB55: 3.934187536 | AC55: 0 | AD55: 0
C56: 5 | D56: 1 | E56: = | F56: 482 | G56: ALTO SELVA ALEGRE | H56: I | I56: C.A.P.III | J56: 3.058998173 | K56: 3.5 | L56: 3.5 | M56: 3.85 | S56: 1.260736196 | T56: 1.497302697 | U56: 1.721861308 | V56: 1.969580809 | W56: 2.160592625 | X56: 2.311351036 | Y56: 2.515549914 | Z56: 2.692702541 | AA56: 2.89097805 | AB56: 3.058998173 | AC56: 0 | AD56: 0
C57: NA | D57: NA | E57: = | F57: 483 | G57: CERRO COLORADO | H57: NA | I57: NA | J57: NA | K57: NA | L57: NA | M57: NA | S57: NA | T57: NA | U57: NA | V57: NA | W57: NA | X57: NA | Y57: NA | Z57: NA | AA57: NA | AB57: NA | AC57: NA | AD57: NA
C58: 5 | D58: 1 | E58: = | F58: 522 | G58: MIRAFLORES | H58: I | I58: C.A.P.III | J58: 2.757340595 | K58: 3.5 | L58: 3.5 | M58: 3.85 | S58: 1.224542598 | T58: 1.324547861 | U58: 1.4854588 | V58: 1.68653913 | W58: 1.893758548 | X58: 2.073512651 | Y58: 2.257022925 | Z58: 2.42377551 | AA58: 2.595697791 | AB58: 2.757340595 | AC58: 0 | AD58: 0
C59: 1 | D59: 3 | E59: = | F59: 433 | G59: APLAO | H59: I | I59: C.M. | J59: 4.207509219 | K59: 3.5 | L59: 3.5 | M59: 3.85 | S59: 1.56010929 | T59: 1.842696629 | U59: 2.048694425 | V59: 2.368266979 | W59: 2.740978744 | X59: 3.040354767 | Y59: 3.295705521 | Z59: 3.603579589 | AA59: 3.931922399 | AB59: 4.207509219 | AC59: 0 | AD59: 0
C60: 1 | D60: 3 | E60: = | F60: 94 | G60: HUNTER | H60: I | I60: C.A.P.II | J60: 4.059907834 | K60: 3.5 | L60: 3.5 | M60: 3.85 | S60: 1.154475457 | T60: 1.651413582 | U60: 2.079104808 | V60: 2.44475814 | W60: 2.816496911 | X60: 3.127589313 | Y60: 3.451640271 | Z60: 3.743458322 | AA60: 3.921985816 | AB60: 4.059907834 | AC60: 0 | AD60: 0
C61: 5 | D61: 1 | E61: = | F61: 95 | G61: LA JOYA | H61: I | I61: P.M. | J61: 2.887417219 | K61: 3.5 | L61: 3.5 | M61: 3.85 | S61: 1.288918206 | T61: 1.524736415 | U61: 1.736119775 | V61: 1.932291667 | W61: 2.126657522 | X61: 2.278681685 | Y61: 2.392021481 | Z61: 2.565958928 | AA61: 2.732240437 | AB61: 2.887417219 | AC61: 0 | AD61: 0
C62: 5 | D62: 1 | E62: = | F62: 96 | G62: MATARANI | H62: I | I62: P.M. | J62: 3.429063361 | K62: 3.5 | L62: 3.5 | M62: 3.85 | S62: 1.295819936 | T62: 1.555160142 | U62: 1.760487145 | V62: 2.037527594 | W62: 2.306420233 | X62: 2.545945946 | Y62: 2.769425676 | Z62: 2.982799062 | AA62: 3.22246696 | AB62: 3.429063361 | AC62: 0 | AD62: 0
C63: 5 | D63: 1 | E63: = | F63: 99 | G63: SANTA RITA | H63: I | I63: P.M. | J63: 3.357995227 | K63: 3.5 | L63: 3.5 | M63: 3.85 | S63: 1.343115124 | T63: 1.6367713 | U63: 1.867857143 | V63: 2.136 | W63: 2.380530973 | X63: 2.566210046 | Y63: 2.754532775 | Z63: 2.967083608 | AA63: 3.151930262 | AB63: 3.357995227 | AC63: 0 | AD63: 0
C64: 1 | D64: 3 | E64: = | F64: 100 | G64: VITOR | H64: I | I64: P.M. | J64: 4.561783439 | K64: 3.5 | L64: 3.5 | M64: 3.85 | S64: 1.414096916 | T64: 1.808641975 | U64: 2.131840796 | V64: 2.59030837 | W64: 2.98490566 | X64: 3.233443709 | Y64: 3.589861751 | Z64: 3.895480226 | AA64: 4.255689424 | AB64: 4.561783439 | AC64: 0 | AD64: 0
C65: 1 | D65: 3 | E65: = | F65: 85 | G65: CARAVELI | H65: I | I65: P.M. | J65: 5.686666667 | K65: 3.5 | L65: 3.5 | M65: 3.85 | S65: 1.727272727 | T65: 2.016528926 | U65: 2.71147541 | V65: 3.410764873 | W65: 3.931034483 | X65: 4.325221239 | Y65: 4.809128631 | Z65: 5.16536965 | AA65: 5.344347826 | AB65: 5.686666667 | AC65: 0 | AD65: 0
C66: 5 | D66: 1 | E66: = | F66: 86 | G66: CHALA | H66: I | I66: P.M. | J66: 2.737510584 | K66: 3.5 | L66: 3.5 | M66: 3.85 | S66: 1.298245614 | T66: 1.513071895 | U66: 1.754545455 | V66: 2.02003643 | W66: 2.145953757 | X66: 2.358322745 | Y66: 2.571741512 | Z66: 2.634825871 | AA66: 2.704081633 | AB66: 2.737510584 | AC66: 0 | AD66: 0
C67: 5 | D67: 1 | E67: = | F67: 88 | G67: CHUCARAPI | H67: I | I67: P.M. | J67: 2.833065811 | K67: 3.5 | L67: 3.5 | M67: 3.85 | S67: 1.173431734 | T67: 1.388888889 | U67: 1.593333333 | V67: 1.765486726 | W67: 1.907928389 | X67: 2.110253583 | Y67: 2.326961771 | Z67: 2.520295203 | AA67: 2.677172061 | AB67: 2.833065811 | AC67: 0 | AD67: 0
C68: 1 | D68: 3 | E68: = | F68: 89 | G68: CHUQUIBAMBA | H68: I | I68: P.M. | J68: 3.954592363 | K68: 3.5 | L68: 3.5 | M68: 3.85 | S68: 1.286363636 | T68: 1.663316583 | U68: 1.98245614 | V68: 2.326797386 | W68: 2.608823529 | X68: 2.865710561 | Y68: 3.159855769 | Z68: 3.43166287 | AA68: 3.664516129 | AB68: 3.954592363 | AC68: 0 | AD68: 0
C69: NA | D69: NA | E69: = | F69: 90 | G69: CONO NORTE | H69: NA | I69: NA | J69: NA | K69: NA | L69: NA | M69: NA | S69: NA | T69: NA | U69: NA | V69: NA | W69: NA | X69: NA | Y69: NA | Z69: NA | AA69: NA | AB69: NA | AC69: NA | AD69: NA
C70: 3 | D70: 2 | E70: = | F70: 91 | G70: CORIRE | H70: I | I70: P.M. | J70: 3.648407643 | K70: 3.5 | L70: 3.5 | M70: 3.85 | S70: 1.38034188 | T70: 1.721448468 | U70: 2.096330275 | V70: 2.359756098 | W70: 2.526605505 | X70: 2.685950413 | Y70: 2.862865948 | Z70: 3.076583211 | AA70: 3.424694708 | AB70: 3.648407643 | AC70: 0 | AD70: 0
C71: 5 | D71: 1 | E71: = | F71: 92 | G71: COTAHUASI | H71: I | I71: P.M. | J71: 2.888571429 | K71: 3.5 | L71: 3.5 | M71: 3.85 | S71: 1.207253886 | T71: 1.577464789 | U71: 1.746361746 | V71: 1.979695431 | W71: 2.106221548 | X71: 2.194701987 | Y71: 2.327790974 | Z71: 2.463973799 | AA71: 2.691532258 | AB71: 2.888571429 | AC71: 0 | AD71: 0
C72: 3 | D72: 2 | E72: = | F72: 82 | G72: ACARI | H72: I | I72: P.M. | J72: 3.77179236 | K72: 3.5 | L72: 3.5 | M72: 3.85 | S72: 1.261682243 | T72: 1.64973262 | U72: 1.963636364 | V72: 2.344827586 | W72: 2.591743119 | X72: 2.891745602 | Y72: 3.089588378 | Z72: 3.322147651 | AA72: 3.572307692 | AB72: 3.77179236 | AC72: 0 | AD72: 0
C73: 1 | D73: 3 | E73: = | F73: 84 | G73: ATICO | H73: I | I73: P.M. | J73: 4.177671068 | K73: 3.5 | L73: 3.5 | M73: 3.85 | S73: 1.203125 | T73: 1.799450549 | U73: 1.994208494 | V73: 2.377207063 | W73: 2.700589971 | X73: 3.09623431 | Y73: 3.47027027 | Z73: 3.663087248 | AA73: 3.8825 | AB73: 4.177671068 | AC73: 0 | AD73: 0
C74: 5 | D74: 1 | E74: = | F74: 87 | G74: CHIVAY | H74: I | I74: C.A.P.I | J74: 3.346550788 | K74: 3.5 | L74: 3.5 | M74: 3.85 | S74: 1.552287582 | T74: 1.759856631 | U74: 1.984785615 | V74: 2.246284501 | W74: 2.430412371 | X74: 2.618003026 | Y74: 2.887831407 | Z74: 3.072636193 | AA74: 3.200805524 | AB74: 3.346550788 | AC74: 0 | AD74: 0
C75: 5 | D75: 1 | E75: = | F75: 101 | G75: YURA | H75: I | I75: C.A.P.I | J75: 2.578751165 | K75: 3.5 | L75: 3.5 | M75: 3.85 | S75: 1.1265625 | T75: 1.353647276 | U75: 1.539918809 | V75: 1.695867769 | W75: 1.888045541 | X75: 2.045723963 | Y75: 2.194379391 | Z75: 2.325266904 | AA75: 2.451187335 | AB75: 2.578751165 | AC75: 0 | AD75: 0
C76: 5 | E76: = | F76: 97 | G76: EL PEDREGAL | H76: I | I76: C.A.P.I | J76: 3.439870174 | K76: 3.5 | L76: 3.5 | M76: 3.85 | S76: 1.434610304 | T76: 1.755790329 | U76: 2.020401554 | V76: 2.247025496 | W76: 2.503482587 | X76: 2.647085102 | Y76: 2.858025963 | Z76: 3.047701481 | AA76: 3.251447178 | AB76: 3.439870174 | AC76: 0 | AD76: 0
C78: 4.4 | G78: RED ASISTENCIAL AYACUCHO
C79: 5 | D79: 1 | E79: = | F79: 102 | G79: HUAMANGA "CARLOS TUPPIA GARCIA GODOS" | H79: II | I79: H.II | J79: 3.476337323 | K79: 3.5 | L79: 3.5 | M79: 3.85 | S79: 1.402679396 | T79: 1.713361687 | U79: 1.988434102 | V79: 2.264552661 | W79: 2.506875273 | X79: 2.714517576 | Y79: 2.906086085 | Z79: 3.080755709 | AA79: 3.257458636 | AB79: 3.476337323 | AC79: 0 | AD79: 0
C80: 5 | D80: 1 | E80: = | F80: 449 | G80: METROPOLITANO | H80: I | I80: C.A.P.III | J80: 2.531982205 | K80: 3.5 | L80: 3.5 | M80: 3.85 | S80: 1.272974548 | T80: 1.449320926 | U80: 1.594008473 | V80: 1.767530166 | W80: 1.910738255 | X80: 2.022703889 | Y80: 2.149601856 | Z80: 2.261815629 | AA80: 2.388000642 | AB80: 2.531982205 | AC80: 0 | AD80: 0
C81: 3 | D81: 2 | E81: = | F81: 103 | G81: HUANTA | H81: I | I81: C.A.P.II | J81: 3.618999833 | K81: 3.5 | L81: 3.5 | M81: 3.85 | S81: 1.479333333 | T81: 1.792301184 | U81: 2.024809792 | V81: 2.264848812 | W81: 2.502482856 | X81: 2.717606543 | Y81: 2.941526264 | Z81: 3.15295869 | AA81: 3.373168179 | AB81: 3.618999833 | AC81: 0 | AD81: 0
C82: 5 | D82: 1 | E82: = | F82: 104 | G82: SAN MIGUEL | H82: I | I82: P.M. | J82: 3.124905375 | K82: 3.5 | L82: 3.5 | M82: 3.85 | S82: 1.35989011 | T82: 1.753222836 | U82: 1.966386555 | V82: 2.120238095 | W82: 2.244514107 | X82: 2.407969639 | Y82: 2.569311247 | Z82: 2.771712159 | AA82: 2.9464145 | AB82: 3.124905375 | AC82: 0 | AD82: 0
C83: 5 | D83: 1 | E83: = | F83: 105 | G83: CANGALLO | H83: I | I83: P.M. | J83: 2.862477771 | K83: 3.5 | L83: 3.5 | M83: 3.85 | S83: 1.292740047 | T83: 1.501416431 | U83: 1.710789766 | V83: 2.002915452 | W83: 2.175958188 | X83: 2.364217252 | Y83: 2.487734488 | Z83: 2.591182365 | AA83: 2.72465582 | AB83: 2.862477771 | AC83: 0 | AD83: 0
C84: 5 | D84: 1 | E84: = | F84: 109 | G84: SAN FRANCISCO | H84: I | I84: P.M. | J84: 2.306217316 | K84: 3.5 | L84: 3.5 | M84: 3.85 | S84: 1.247191011 | T84: 1.375796178 | U84: 1.452418097 | V84: 1.613285884 | W84: 1.755060729 | X84: 1.834901625 | Y84: 1.943854325 | Z84: 2.085616438 | AA84: 2.207178841 | AB84: 2.306217316 | AC84: 0 | AD84: 0
C85: 5 | D85: 1 | E85: = | F85: 110 | G85: VILCASHUAMAN | H85: I | I85: P.M. | J85: 3.089912281 | K85: 3.5 | L85: 3.5 | M85: 3.85 | S85: 1.261333333 | T85: 1.538726334 | U85: 1.765847348 | V85: 2.042391304 | W85: 2.20734127 | X85: 2.356761566 | Y85: 2.584382872 | Z85: 2.796812749 | AA85: 2.955725191 | AB85: 3.089912281 | AC85: 0 | AD85: 0
C86: 5 | D86: 1 | E86: = | F86: 423 | G86: QUEROBAMBA | H86: I | I86: P.M. | J86: 3.030224525 | K86: 3.5 | L86: 3.5 | M86: 3.85 | S86: 1.24742268 | T86: 1.486873508 | U86: 1.664814815 | V86: 1.821487603 | W86: 2.084468665 | X86: 2.254137116 | Y86: 2.492537313 | Z86: 2.658301158 | AA86: 2.85428051 | AB86: 3.030224525 | AC86: 0 | AD86: 0
C87: 3 | D87: 2 | E87: = | F87: 428 | G87: HUANCAPI | H87: I | I87: P.M. | J87: 3.521939954 | K87: 3.5 | L87: 3.5 | M87: 3.85 | S87: 1.374074074 | T87: 1.684434968 | U87: 2.048576214 | V87: 2.342816501 | W87: 2.66539924 | X87: 2.833883388 | Y87: 3.002873563 | Z87: 3.180935569 | AA87: 3.343417825 | AB87: 3.521939954 | AC87: 0 | AD87: 0
C88: 3 | D88: 2 | E88: = | F88: 401 | G88: HUANCASANCOS | H88: I | I88: C.A.P.I | J88: 3.665344964 | K88: 3.5 | L88: 3.5 | M88: 3.85 | S88: 1.413114754 | T88: 1.695744681 | U88: 1.944186047 | V88: 2.244444444 | W88: 2.468298109 | X88: 2.671641791 | Y88: 2.893813481 | Z88: 3.172711572 | AA88: 3.396877568 | AB88: 3.665344964 | AC88: 0 | AD88: 0
C90: 4.167 | G90: RED ASISTENCIAL CAJAMARCA
C91: 3 | D91: 2 | E91: = | F91: 191 | G91: CAJAMARCA | H91: II | I91: H.II | J91: 3.790386532 | K91: 3.5 | L91: 3.5 | M91: 3.85 | S91: 1.398837411 | T91: 1.763400052 | U91: 2.068192829 | V91: 2.391997593 | W91: 2.673292665 | X91: 2.930450772 | Y91: 3.159344262 | Z91: 3.373671881 | AA91: 3.587591159 | AB91: 3.790386532 | AC91: 0 | AD91: 0
C92: 5 | D92: 1 | E92: = | F92: 192 | G92: CAJABAMBA | H92: I | I92: C.M. | J92: 3.417032485 | K92: 3.5 | L92: 3.5 | M92: 3.85 | S92: 1.404945904 | T92: 1.718236819 | U92: 1.970645793 | V92: 2.239130435 | W92: 2.454032958 | X92: 2.596810934 | Y92: 2.796808511 | Z92: 2.979201056 | AA92: 3.246372337 | AB92: 3.417032485 | AC92: 0 | AD92: 0
C93: 5 | D93: 1 | E93: = | F93: 193 | G93: CELENDIN | H93: I | I93: C.M. | J93: 3.449974214 | K93: 3.5 | L93: 3.5 | M93: 3.85 | S93: 1.495798319 | T93: 1.721227621 | U93: 1.946149975 | V93: 2.204631579 | W93: 2.427249167 | X93: 2.656408522 | Y93: 2.829813284 | Z93: 3.040331808 | AA93: 3.259269283 | AB93: 3.449974214 | AC93: 0 | AD93: 0
C94: 5 | D94: 1 | E94: = | F94: 501 | G94: LOS BAÑOS DEL INCA | H94: I | I94: C.A.P.II | J94: 3.139819245 | K94: 3.5 | L94: 3.5 | M94: 3.85 | S94: 1.489059081 | T94: 1.763157895 | U94: 1.947586923 | V94: 2.150767987 | W94: 2.350357143 | X94: 2.52434581 | Y94: 2.699068323 | Z94: 2.793134598 | AA94: 2.984800688 | AB94: 3.139819245 | AC94: 0 | AD94: 0
C95: 5 | D95: 1 | E95: = | F95: 196 | G95: BAMBAMARCA | H95: I | I95: P.M. | J95: 2.830028329 | K95: 3.5 | L95: 3.5 | M95: 3.85 | S95: 1.282115869 | T95: 1.488538682 | U95: 1.689542484 | V95: 1.847411444 | W95: 1.990874525 | X95: 2.143500644 | Y95: 2.306925208 | Z95: 2.464754497 | AA95: 2.670753065 | AB95: 2.830028329 | AC95: 0 | AD95: 0
C96: 3 | D96: 2 | E96: = | F96: 198 | G96: CONTUMAZA | H96: I | I96: P.M. | J96: 3.846774194 | K96: 3.5 | L96: 3.5 | M96: 3.85 | S96: 1.412408759 | T96: 1.876847291 | U96: 2.152255639 | V96: 2.450320513 | W96: 2.771048744 | X96: 2.970860927 | Y96: 3.214634146 | Z96: 3.413166856 | AA96: 3.628844115 | AB96: 3.846774194 | AC96: 0 | AD96: 0
C97: 3 | D97: 2 | E97: = | F97: 999 | G97: BOLIVAR | H97: I | I97: P.M. | J97: 3.634722222 | K97: 3.5 | L97: 3.5 | M97: 3.85 | S97: 1.303225806 | T97: 1.71031746 | U97: 1.990712074 | V97: 2.313315927 | W97: 2.644341801 | X97: 2.775793651 | Y97: 2.932142857 | Z97: 3.128874388 | AA97: 3.377025037 | AB97: 3.634722222 | AC97: 0 | AD97: 0
C98: 5 | D98: 1 | E98: = | F98: 201 | G98: SAN MARCOS | H98: I | I98: P.M. | J98: 2.950861519 | K98: 3.5 | L98: 3.5 | M98: 3.85 | S98: 1.26342711 | T98: 1.5 | U98: 1.682337992 | V98: 1.88629118 | W98: 2.111848341 | X98: 2.274725275 | Y98: 2.417371253 | Z98: 2.600143575 | AA98: 2.773610181 | AB98: 2.950861519 | AC98: 0 | AD98: 0
C99: 5 | D99: 1 | E99: = | F99: 202 | G99: SAN MIGUEL | H99: I | I99: P.M. | J99: 2.821641791 | K99: 3.5 | L99: 3.5 | M99: 3.85 | S99: 1.13836478 | T99: 1.292639138 | U99: 1.426204819 | V99: 1.64969697 | W99: 1.878279119 | X99: 2.094924812 | Y99: 2.29109589 | Z99: 2.446428571 | AA99: 2.610852713 | AB99: 2.821641791 | AC99: 0 | AD99: 0
C100: 5 | D100: 1 | E100: = | F100: 203 | G100: SAN PABLO | H100: I | I100: P.M. | J100: 3.240726722 | K100: 3.5 | L100: 3.5 | M100: 3.85 | S100: 1.287539936 | T100: 1.558762887 | U100: 1.799019608 | V100: 2.055256065 | W100: 2.215617716 | X100: 2.383575884 | Y100: 2.631332083 | Z100: 2.802964255 | AA100: 3.024271845 | AB100: 3.240726722 | AC100: 0 | AD100: 0
C101: 1 | D101: 3 | E101: = | F101: 204 | G101: TEMBLADERA | H101: I | I101: P.M. | J101: 4.097777778 | K101: 3.5 | L101: 3.5 | M101: 3.85 | S101: 1.706896552 | T101: 2.065274151 | U101: 2.475479744 | V101: 2.821238938 | W101: 3.1376 | X101: 3.356508876 | Y101: 3.49867374 | Z101: 3.653562654 | AA101: 3.870669746 | AB101: 4.097777778 | AC101: 0 | AD101: 0
C102: 5 | D102: 1 | E102: = | F102: 199 | G102: HUALGAYOC | H102: I | I102: C.A.P.I | J102: 3.166469894 | K102: 3.5 | L102: 3.5 | M102: 3.85 | S102: 1.336585366 | T102: 1.642857143 | U102: 1.942211055 | V102: 2.185110664 | W102: 2.387372014 | X102: 2.560862866 | Y102: 2.713888889 | Z102: 2.856382979 | AA102: 2.991315136 | AB102: 3.166469894 | AC102: 0 | AD102: 0
C104: 4.667 | G104: RED ASISTENCIAL CUSCO
C105: 5 | D105: 1 | E105: = | F105: 111 | G105: ADOLFO GUEVARA VELASCO | H105: III | I105: H.N. | J105: 3.303530577 | K105: 4 | L105: 4 | M105: 4.4 | S105: 1.297969581 | T105: 1.593410523 | U105: 1.870947781 | V105: 2.119892701 | W105: 2.342808782 | X105: 2.545522371 | Y105: 2.744426387 | Z105: 2.935370518 | AA105: 3.137880355 | AB105: 3.303530577 | AC105: 0 | AD105: 0
C106: 5 | D106: 1 | E106: = | F106: 112 | G106: ESPINAR | H106: II | I106: H.I | J106: 2.817171392 | K106: 3.5 | L106: 3.5 | M106: 3.85 | S106: 1.380560132 | T106: 1.622688656 | U106: 1.825726141 | V106: 2.012899065 | W106: 2.164129532 | X106: 2.302568014 | Y106: 2.456898443 | Z106: 2.592808552 | AA106: 2.711465189 | AB106: 2.817171392 | AC106: 0 | AD106: 0
C107: 5 | D107: 1 | E107: = | F107: 113 | G107: QUILLABAMBA | H107: II | I107: H.I | J107: 3.107848188 | K107: 3.5 | L107: 3.5 | M107: 3.85 | S107: 1.3736713 | T107: 1.652108434 | U107: 1.80233874 | V107: 2.01080394 | W107: 2.181946007 | X107: 2.380725907 | Y107: 2.638072076 | Z107: 2.753339787 | AA107: 2.958001448 | AB107: 3.107848188 | AC107: 0 | AD107: 0
C108: 5 | D108: 1 | E108: = | F108: 114 | G108: URUBAMBA | H108: II | I108: H.I | J108: 3.228278041 | K108: 3.5 | L108: 3.5 | M108: 3.85 | S108: 1.416051661 | T108: 1.733100233 | U108: 1.986461251 | V108: 2.243589744 | W108: 2.472565158 | X108: 2.606759831 | Y108: 2.757613042 | Z108: 2.915061296 | AA108: 3.056079956 | AB108: 3.228278041 | AC108: 0 | AD108: 0
C109: 5 | D109: 1 | E109: = | F109: 115 | G109: SICUANI | H109: II | I109: H.I | J109: 3.421120913 | K109: 3.5 | L109: 3.5 | M109: 3.85 | S109: 1.529937444 | T109: 1.825795156 | U109: 2.041872501 | V109: 2.308776807 | W109: 2.49856425 | X109: 2.688228534 | Y109: 2.889834372 | Z109: 3.072403983 | AA109: 3.241383971 | AB109: 3.421120913 | AC109: 0 | AD109: 0
C110: 5 | D110: 1 | E110: = | F110: 126 | G110: SAN SEBASTIAN | H110: I | I110: POL. | J110: 3.35301353 | K110: 3.5 | L110: 3.5 | M110: 3.85 | S110: 1.183631714 | T110: 1.564990382 | U110: 1.863918807 | V110: 2.112529002 | W110: 2.349808767 | X110: 2.566768333 | Y110: 2.766306328 | Z110: 2.954591549 | AA110: 3.158098735 | AB110: 3.35301353 | AC110: 0 | AD110: 0
C111: 5 | D111: 1 | E111: = | F111: 121 | G111: MACHU PICCHU | H111: I | I111: C.M. | J111: 2.93088142 | K111: 3.5 | L111: 3.5 | M111: 3.85 | S111: 1.273356401 | T111: 1.468007313 | U111: 1.671532847 | V111: 1.920506912 | W111: 2.161 | X111: 2.297891037 | Y111: 2.465764331 | Z111: 2.629493764 | AA111: 2.79076087 | AB111: 2.93088142 | AC111: 0 | AD111: 0
C112: 5 | D112: 1 | E112: = | F112: 123 | G112: PAUCARTAMBO | H112: I | I112: C.M. | J112: 3.359504132 | K112: 3.5 | L112: 3.5 | M112: 3.85 | S112: 1.306930693 | T112: 1.647798742 | U112: 1.812903226 | V112: 2.087671233 | W112: 2.359564165 | X112: 2.519913886 | Y112: 2.744346116 | Z112: 2.917958067 | AA112: 3.124675325 | AB112: 3.359504132 | AC112: 0 | AD112: 0
C113: 1 | D113: 3 | E113: = | F113: 116 | G113: ACOMAYO | H113: I | I113: C.M. | J113: 3.949109415 | K113: 3.5 | L113: 3.5 | M113: 3.85 | S113: 1.441037736 | T113: 1.825757576 | U113: 2.203550296 | V113: 2.608193277 | W113: 2.919463087 | X113: 3.123901582 | Y113: 3.215160796 | Z113: 3.45565093 | AA113: 3.715719064 | AB113: 3.949109415 | AC113: 0 | AD113: 0
C114: 5 | D114: 1 | E114: = | F114: 118 | G114: CALCA | H114: I | I114: C.M. | J114: 3.479306072 | K114: 3.5 | L114: 3.5 | M114: 3.85 | S114: 1.354809437 | T114: 1.668957617 | U114: 1.962007505 | V114: 2.218203034 | W114: 2.462273814 | X114: 2.688529785 | Y114: 2.903863167 | Z114: 3.076648352 | AA114: 3.287167449 | AB114: 3.479306072 | AC114: 0 | AD114: 0
C115: 5 | D115: 1 | E115: = | F115: 119 | G115: URCOS | H115: I | I115: C.M. | J115: 2.947614991 | K115: 3.5 | L115: 3.5 | M115: 3.85 | S115: 1.233333333 | T115: 1.546099291 | U115: 1.755855856 | V115: 1.979049757 | W115: 2.135903919 | X115: 2.301244076 | Y115: 2.489669976 | Z115: 2.654785156 | AA115: 2.814065732 | AB115: 2.947614991 | AC115: 0 | AD115: 0
C116: 5 | D116: 1 | E116: = | F116: 698 | G116: PICHARI | H116: I | I116: C.M. | J116: 2.299019608 | K116: 3.5 | L116: 3.5 | M116: 3.85 | S116: 1.2 | T116: 1.346385542 | U116: 1.396396396 | V116: 1.541800643 | W116: 1.666666667 | X116: 1.797619048 | Y116: 1.94255112 | Z116: 2.050890585 | AA116: 2.192162773 | AB116: 2.299019608 | AC116: 0 | AD116: 0
C117: 5 | D117: 1 | E117: = | F117: 417 | G117: METROPOLITANO | H117: I | I117: C.M. | J117: 2.663651985 | K117: 3.5 | L117: 3.5 | M117: 3.85 | S117: 1.125115603 | T117: 1.298110511 | U117: 1.456608089 | V117: 1.641284225 | W117: 1.83005521 | X117: 2.00938101 | Y117: 2.171876128 | Z117: 2.33777342 | AA117: 2.511886955 | AB117: 2.663651985 | AC117: 0 | AD117: 0
C118: 5 | D118: 1 | E118: = | F118: 373 | G118: SAN FRANCISCO | H118: I | I118: C.M. | J118: 3.06497677 | K118: 3.5 | L118: 3.5 | M118: 3.85 | S118: 1.233732127 | T118: 1.456267943 | U118: 1.677741359 | V118: 1.905582438 | W118: 2.113519092 | X118: 2.315171528 | Y118: 2.514922236 | Z118: 2.680774355 | AA118: 2.873420479 | AB118: 3.06497677 | AC118: 0 | AD118: 0
C119: 5 | D119: 1 | E119: = | F119: 120 | G119: HUYRO | H119: I | I119: C.A.P.II | J119: 3.273684211 | K119: 3.5 | L119: 3.5 | M119: 3.85 | S119: 1.218905473 | T119: 1.509615385 | U119: 1.761154856 | V119: 1.982721382 | W119: 2.187007874 | X119: 2.466911765 | Y119: 2.698360656 | Z119: 2.864233577 | AA119: 3.086657497 | AB119: 3.273684211 | AC119: 0 | AD119: 0
C120: 3 | D120: 2 | E120: = | F120: 134 | G120: SALVACION | H120: I | I120: P.M. | J120: 3.681365576 | K120: 3.5 | L120: 3.5 | M120: 3.85 | S120: 1.348571429 | T120: 1.708955224 | U120: 1.929775281 | V120: 2.338600451 | W120: 2.535496957 | X120: 2.795112782 | Y120: 3.097560976 | Z120: 3.301980198 | AA120: 3.529141104 | AB120: 3.681365576 | AC120: 0 | AD120: 0
C121: 5 | D121: 1 | E121: = | F121: 513 | G121: ECHARATE | H121: I | I121: C.A.P.I | J121: 2.489230769 | K121: 3.5 | L121: 3.5 | M121: 3.85 | S121: 1.269461078 | T121: 1.525896414 | U121: 1.658536585 | V121: 1.82045929 | W121: 1.994915254 | X121: 2.10371517 | Y121: 2.220689655 | Z121: 2.296969697 | AA121: 2.386563877 | AB121: 2.489230769 | AC121: 0 | AD121: 0
C122: 5 | D122: 1 | E122: = | F122: 510 | G122: SANTO TOMAS | H122: I | I122: C.A.P.I | J122: 2.914186508 | K122: 3.5 | L122: 3.5 | M122: 3.85 | S122: 1.301435407 | T122: 1.516690856 | U122: 1.715048026 | V122: 1.923273657 | W122: 2.06851312 | X122: 2.204359673 | Y122: 2.402334152 | Z122: 2.57191393 | AA122: 2.74353562 | AB122: 2.914186508 | AC122: 0 | AD122: 0
C124: 3.857 | G124: RED ASISTENCIAL HUANCAVELICA
C125: 1 | D125: 3 | E125: = | F125: 342 | G125: HUANCAVELICA | H125: II | I125: H.II | J125: 4.352808742 | K125: 3.5 | L125: 3.5 | M125: 3.85 | S125: 1.620511762 | T125: 2.067083107 | U125: 2.375216263 | V125: 2.671655412 | W125: 2.992644707 | X125: 3.260007186 | Y125: 3.537444643 | Z125: 3.797565346 | AA125: 4.055471566 | AB125: 4.352808742 | AC125: 0 | AD125: 0
C126: 3 | D126: 2 | E126: = | F126: 347 | G126: LIRCAY | H126: I | I126: C.M. | J126: 3.597181511 | K126: 3.5 | L126: 3.5 | M126: 3.85 | S126: 1.252770449 | T126: 1.615100766 | U126: 1.90628374 | V126: 2.178767974 | W126: 2.425461429 | X126: 2.641957642 | Y126: 2.892756728 | Z126: 3.101771579 | AA126: 3.361593341 | AB126: 3.597181511 | AC126: 0 | AD126: 0
C127: 5 | D127: 1 | E127: = | F127: 348 | G127: PAMPAS | H127: I | I127: C.M. | J127: 3.156900726 | K127: 3.5 | L127: 3.5 | M127: 3.85 | S127: 1.406460296 | T127: 1.763888889 | U127: 1.943963027 | V127: 2.122100656 | W127: 2.370167903 | X127: 2.527729334 | Y127: 2.690162907 | Z127: 2.889114659 | AA127: 3.069546319 | AB127: 3.156900726 | AC127: 0 | AD127: 0
C128: 5 | D128: 1 | E128: = | F128: 343 | G128: ACOBAMBA | H128: I | I128: P.M. | J128: 3.392960463 | K128: 3.5 | L128: 3.5 | M128: 3.85 | S128: 1.255102041 | T128: 1.554070474 | U128: 1.836174242 | V128: 2.073836276 | W128: 2.383611313 | X128: 2.553650794 | Y128: 2.789289872 | Z128: 3.008068854 | AA128: 3.213164557 | AB128: 3.392960463 | AC128: 0 | AD128: 0
C129: 5 | D129: 1 | E129: = | F129: 344 | G129: CASTROVIRREYNA | H129: I | I129: P.M. | J129: 2.423777565 | K129: 3.5 | L129: 3.5 | M129: 3.85 | S129: 1.225274725 | T129: 1.331858407 | U129: 1.528239203 | V129: 1.597883598 | W129: 1.674496644 | X129: 1.824512535 | Y129: 1.98873592 | Z129: 2.150669643 | AA129: 2.228456914 | AB129: 2.423777565 | AC129: 0 | AD129: 0
C130: 5 | D130: 1 | E130: = | F130: 345 | G130: CHURCAMPA | H130: I | I130: C.A.P.I | J130: 3.333699835 | K130: 3.5 | L130: 3.5 | M130: 3.85 | S130: 1.375690608 | T130: 1.89028777 | U130: 1.926143025 | V130: 2.047027507 | W130: 2.27258567 | X130: 2.518888097 | Y130: 2.713071895 | Z130: 2.923169994 | AA130: 3.110858442 | AB130: 3.333699835 | AC130: 0 | AD130: 0
C131: 3 | D131: 2 | E131: = | F131: 346 | G131: HUAYTARA | H131: I | I131: C.A.P.I | J131: 3.535816619 | K131: 3.5 | L131: 3.5 | M131: 3.85 | S131: 1.339726027 | T131: 1.567353407 | U131: 1.69570011 | V131: 1.916089965 | W131: 2.181605612 | X131: 2.512384996 | Y131: 2.759609121 | Z131: 3.056910569 | AA131: 3.258954786 | AB131: 3.535816619 | AC131: 0 | AD131: 0
C133: 2.714 | G133: RED ASISTENCIAL HUÁNUCO
C134: 5 | D134: 1 | E134: = | F134: 296 | G134: HUANUCO | H134: II | I134: H.II | J134: 3.201785571 | K134: 3.5 | L134: 3.5 | M134: 3.85 | S134: 1.354328094 | T134: 1.639455782 | U134: 1.906898688 | V134: 2.137809801 | W134: 2.389835773 | X134: 2.577303212 | Y134: 2.746105664 | Z134: 2.889833855 | AA134: 3.054522293 | AB134: 3.201785571 | AC134: 0 | AD134: 0
C135: 3 | D135: 2 | E135: = | F135: 297 | G135: TINGO MARIA | H135: II | I135: H.I | J135: 3.820597015 | K135: 3.5 | L135: 3.5 | M135: 3.85 | S135: 1.433709745 | T135: 1.782712766 | U135: 2.089656591 | V135: 2.447197539 | W135: 2.726154769 | X135: 2.953645117 | Y135: 3.208449632 | Z135: 3.402544824 | AA135: 3.626319718 | AB135: 3.820597015 | AC135: 0 | AD135: 0
C136: 5 | D136: 1 | E136: = | F136: 475 | G136: METROPOLITANO DE HUANUCO | H136: I | I136: C.A.P.III | J136: 3.253348496 | K136: 3.5 | L136: 3.5 | M136: 3.85 | S136: 1.29788346 | T136: 1.596575131 | U136: 1.84190956 | V136: 2.067133151 | W136: 2.289487968 | X136: 2.454858549 | Y136: 2.63501506 | Z136: 2.863812135 | AA136: 3.054427617 | AB136: 3.253348496 | AC136: 0 | AD136: 0
C137: 5 | D137: 1 | E137: = | F137: 771 | G137: AMARILIS PILCO-MARCA | H137: I | I137: C.A.P.III | J137: 2.538675033 | K137: 3.5 | L137: 3.5 | M137: 3.85 | S137: 1.142414861 | T137: 1.340108893 | U137: 1.423563521 | V137: 1.613874346 | W137: 1.774263688 | X137: 1.929116685 | Y137: 2.101201251 | Z137: 2.246800465 | AA137: 2.362084691 | AB137: 2.538675033 | AC137: 0 | AD137: 0
C138: 1 | D138: 3 | E138: = | F138: 298 | G138: LEONCIO PRADO | H138: I | I138: C.M. | J138: 4.189053592 | K138: 3.5 | L138: 3.5 | M138: 3.85 | S138: 1.410347904 | T138: 1.783407572 | U138: 2.188737352 | V138: 2.52963101 | W138: 2.896436896 | X138: 3.179897374 | Y138: 3.429313645 | Z138: 3.674885613 | AA138: 3.939190807 | AB138: 4.189053592 | AC138: 0 | AD138: 0
C139: 5 | D139: 1 | E139: = | F139: 299 | G139: AUCAYACU | H139: I | I139: P.M. | J139: 3.02989449 | K139: 3.5 | L139: 3.5 | M139: 3.85 | S139: 1.265789474 | T139: 1.539412674 | U139: 1.668973472 | V139: 1.884801549 | W139: 2.110147441 | X139: 2.27365129 | Y139: 2.43543759 | Z139: 2.634065203 | AA139: 2.803439803 | AB139: 3.02989449 | AC139: 0 | AD139: 0
C140: 1 | D140: 3 | E140: = | F140: 300 | G140: BAÑOS | H140: I | I140: P.M. | J140: 4.371727749 | K140: 3.5 | L140: 3.5 | M140: 3.85 | S140: 1.727586207 | T140: 2.406320542 | U140: 2.78113879 | V140: 3.226006192 | W140: 3.509308511 | X140: 3.447397564 | Y140: 3.701338826 | Z140: 3.93385214 | AA140: 4.214616096 | AB140: 4.371727749 | AC140: 0 | AD140: 0
C141: 1 | D141: 3 | E141: = | F141: 302 | G141: SÚNGARO | H141: I | I141: P.M. | J141: 4.716027875 | K141: 3.5 | L141: 3.5 | M141: 3.85 | S141: 1.918088737 | T141: 2.455752212 | U141: 2.866548043 | V141: 3.059574468 | W141: 3.323891626 | X141: 3.673012318 | Y141: 3.858490566 | Z141: 4.206256109 | AA141: 4.418857661 | AB141: 4.716027875 | AC141: 0 | AD141: 0
C142: 1 | D142: 3 | E142: = | F142: 303 | G142: LA UNION | H142: I | I142: P.M. | J142: 4.252714113 | K142: 3.5 | L142: 3.5 | M142: 3.85 | S142: 1.547149123 | T142: 1.956989247 | U142: 2.289413119 | V142: 2.689536032 | W142: 2.972854641 | X142: 3.251584786 | Y142: 3.508178844 | Z142: 3.782667569 | AA142: 4.004120444 | AB142: 4.252714113 | AC142: 0 | AD142: 0
C143: 1 | D143: 3 | E143: = | F143: 304 | G143: LLATA | H143: I | I143: P.M. | J143: 4.423674771 | K143: 3.5 | L143: 3.5 | M143: 3.85 | S143: 1.306451613 | T143: 1.742196532 | U143: 2.098715891 | V143: 2.638739946 | W143: 3.001165501 | X143: 3.295597484 | Y143: 3.602021174 | Z143: 3.862639821 | AA143: 4.150524109 | AB143: 4.423674771 | AC143: 0 | AD143: 0
C144: 3 | D144: 2 | E144: = | F144: 305 | G144: PANAO | H144: I | I144: P.M. | J144: 3.794811321 | K144: 3.5 | L144: 3.5 | M144: 3.85 | S144: 1.305084746 | T144: 1.680981595 | U144: 1.981395349 | V144: 2.313548387 | W144: 2.669923996 | X144: 2.961577351 | Y144: 3.165266106 | Z144: 3.391725352 | AA144: 3.610099338 | AB144: 3.794811321 | AC144: 0 | AD144: 0
C145: 5 | D145: 1 | E145: = | F145: 290 | G145: TOCACHE | H145: I | I145: P.M. | J145: 2.897903373 | K145: 3.5 | L145: 3.5 | M145: 3.85 | S145: 1.317124736 | T145: 1.823759791 | U145: 2.023529412 | V145: 2.266115702 | W145: 2.403749099 | X145: 2.470435348 | Y145: 2.589369159 | Z145: 2.677557579 | AA145: 2.806515301 | AB145: 2.897903373 | AC145: 0 | AD145: 0
C146: 1 | D146: 3 | E146: = | F146: 400 | G146: SANTA LUCIA | H146: I | I146: P.M. | J146: 5.132118451 | K146: 3.5 | L146: 3.5 | M146: 3.85 | S146: 1.395196507 | T146: 1.942446043 | U146: 2.279481132 | V146: 2.804852321 | W146: 3.198104265 | X146: 3.58635961 | Y146: 4.000848176 | Z146: 4.428219852 | AA146: 4.798425197 | AB146: 5.132118451 | AC146: 0 | AD146: 0
C147: 1 | D147: 3 | E147: = | F147: 291 | G147: UCHIZA | H147: I | I147: C.A.P.I | J147: 4.061172161 | K147: 3.5 | L147: 3.5 | M147: 3.85 | S147: 1.534920635 | T147: 1.900390625 | U147: 2.176119403 | V147: 2.53928347 | W147: 2.817884406 | X147: 3.031295137 | Y147: 3.283694211 | Z147: 3.505557843 | AA147: 3.755094195 | AB147: 4.061172161 | AC147: 0 | AD147: 0
C149: 3 | G149: RED ASISTENCIAL HUARAZ
C150: 3 | D150: 2 | E150: = | F150: 162 | G150: HUARAZ | H150: II | I150: H.II | J150: 3.765931173 | K150: 3.5 | L150: 3.5 | M150: 3.85 | S150: 1.350020687 | T150: 1.637347047 | U150: 1.894931761 | V150: 2.20505522 | W150: 2.553983849 | X150: 2.805068316 | Y150: 3.045961809 | Z150: 3.288150808 | AA150: 3.537385766 | AB150: 3.765931173 | AC150: 0 | AD150: 0
C151: 5 | D151: 1 | E151: = | F151: 163 | G151: CARAZ | H151: I | I151: C.M. | J151: 3.48395985 | K151: 3.5 | L151: 3.5 | M151: 3.85 | S151: 1.329278888 | T151: 1.633484163 | U151: 1.880298273 | V151: 2.176788553 | W151: 2.441499859 | X151: 2.627568922 | Y151: 2.853726492 | Z151: 3.08 | AA151: 3.291554264 | AB151: 3.48395985 | AC151: 0 | AD151: 0
C152: 3 | D152: 2 | E152: = | F152: 164 | G152: CARHUAZ | H152: I | I152: C.M. | J152: 3.822762148 | K152: 3.5 | L152: 3.5 | M152: 3.85 | S152: 1.41563786 | T152: 1.853918495 | U152: 2.199380165 | V152: 2.546541418 | W152: 2.845801527 | X152: 3.102608696 | Y152: 3.246588089 | Z152: 3.430671663 | AA152: 3.628777748 | AB152: 3.822762148 | AC152: 0 | AD152: 0
C153: 3 | D153: 2 | E153: = | F153: 168 | G153: HUARI | H153: I | I153: C.M. | J153: 3.619411765 | K153: 3.5 | L153: 3.5 | M153: 3.85 | S153: 1.228840125 | T153: 1.464870067 | U153: 1.698441464 | V153: 1.989666371 | W153: 2.307631786 | X153: 2.560921795 | Y153: 2.844929513 | Z153: 3.122114347 | AA153: 3.383480221 | AB153: 3.619411765 | AC153: 0 | AD153: 0
C154: 1 | D154: 3 | E154: = | F154: 181 | G154: POMABAMBA | H154: I | I154: C.A.P.II | J154: 4.040909091 | K154: 3.5 | L154: 3.5 | M154: 3.85 | S154: 1.337686567 | T154: 1.774154589 | U154: 2.098240469 | V154: 2.396551724 | W154: 2.73197069 | X154: 3.003171247 | Y154: 3.271592775 | Z154: 3.518864983 | AA154: 3.779159266 | AB154: 4.040909091 | AC154: 0 | AD154: 0
C155: 1 | D155: 3 | E155: = | F155: 179 | G155: PISCOBAMBA | H155: I | I155: P.M. | J155: 4.554695562 | K155: 3.5 | L155: 3.5 | M155: 3.85 | S155: 1.157407407 | T155: 1.255506608 | U155: 1.700356718 | V155: 2.143661972 | W155: 2.643684501 | X155: 3.061688312 | Y155: 3.489861259 | Z155: 3.893459916 | AA155: 4.259916493 | AB155: 4.554695562 | AC155: 0 | AD155: 0
C156: 5 | D156: 1 | E156: = | F156: 190 | G156: YUNGAY | H156: I | I156: P.M. | J156: 3.043809524 | K156: 3.5 | L156: 3.5 | M156: 3.85 | S156: 1.09009009 | T156: 1.306518724 | U156: 1.569124424 | V156: 1.830830831 | W156: 2.047321429 | X156: 2.192214112 | Y156: 2.379284082 | Z156: 2.605563481 | AA156: 2.824234354 | AB156: 3.043809524 | AC156: 0 | AD156: 0
C158: 4.529 | G158: RED ASISTENCIAL ICA
C159: 5 | D159: 1 | E159: = | F159: 854 | G159: AUGUSTO HERNANDEZ MENDOZA | H159: II | I159: H.IV | J159: 3.626734298 | K159: 4 | L159: 4 | M159: 4.4 | S159: 1.321684171 | T159: 1.609943619 | U159: 1.850183366 | V159: 2.138586336 | W159: 2.439076573 | X159: 2.709145047 | Y159: 2.95758574 | Z159: 3.200929666 | AA159: 3.432729557 | AB159: 3.626734298 | AC159: 0 | AD159: 0
C160: 3 | D160: 2 | E160: = | F160: 46 | G160: RENE TOCHE GROPPO | H160: II | I160: H.II | J160: 3.528558905 | K160: 3.5 | L160: 3.5 | M160: 3.85 | S160: 1.34797975 | T160: 1.665662295 | U160: 1.950177437 | V160: 2.264599503 | W160: 2.524590164 | X160: 2.76612372 | Y160: 3.010280348 | Z160: 3.191457158 | AA160: 3.334378489 | AB160: 3.528558905 | AC160: 0 | AD160: 0
C161: 3 | D161: 2 | E161: = | F161: 47 | G161: MARIA REICHE NEUMAN | H161: II | I161: H.I | J161: 3.747714515 | K161: 3.5 | L161: 3.5 | M161: 3.85 | S161: 1.393685567 | T161: 1.710304054 | U161: 1.945355191 | V161: 2.225289895 | W161: 2.483532569 | X161: 2.747700394 | Y161: 2.9976 | Z161: 3.290375802 | AA161: 3.536999321 | AB161: 3.747714515 | AC161: 0 | AD161: 0
C162: 5 | D162: 1 | E162: = | F162: 45 | G162: FELIX TORREALVA GUTIERREZ | H162: II | I162: H.I | J162: 2.573216761 | K162: 3.5 | L162: 3.5 | M162: 3.85 | S162: 1.181760808 | T162: 1.372004004 | U162: 1.528046857 | V162: 1.732652987 | W162: 1.921804655 | X162: 2.072258028 | Y162: 2.207199958 | Z162: 2.328374509 | AA162: 2.46063825 | AB162: 2.573216761 | AC162: 0 | AD162: 0
C163: 3 | D163: 2 | E163: = | F163: 48 | G163: ANTONIO SKRABONJA ANTONCICH | H163: II | I163: H.I | J163: 3.788946892 | K163: 3.5 | L163: 3.5 | M163: 3.85 | S163: 1.397350993 | T163: 1.733963255 | U163: 1.966971849 | V163: 2.269206032 | W163: 2.588602356 | X163: 2.888984018 | Y163: 3.149749111 | Z163: 3.380122354 | AA163: 3.587882641 | AB163: 3.788946892 | AC163: 0 | AD163: 0
C164: 5 | D164: 1 | E164: = | F164: 424 | G164: PUEBLO NUEVO | H164: I | I164: C.A.P.II | J164: 2.660466769 | K164: 3.5 | L164: 3.5 | M164: 3.85 | S164: 1.141424273 | T164: 1.398999375 | U164: 1.579251444 | V164: 1.837706511 | W164: 2.061141304 | X164: 2.188497907 | Y164: 2.330740421 | Z164: 2.423657944 | AA164: 2.537753687 | AB164: 2.660466769 | AC164: 0 | AD164: 0
C165: 5 | D165: 1 | E165: = | F165: 432 | G165: NASCA | H165: I | I165: C.A.P.II | J165: 2.905296085 | K165: 3.5 | L165: 3.5 | M165: 3.85 | S165: 1.187636047 | T165: 1.475467606 | U165: 1.639849291 | V165: 1.876834479 | W165: 2.076140466 | X165: 2.264802632 | Y165: 2.447881641 | Z165: 2.615384615 | AA165: 2.740009135 | AB165: 2.905296085 | AC165: 0 | AD165: 0
C166: 5 | D166: 1 | E166: = | F166: 52 | G166: MACACONA | H166: I | I166: C.A.P.II | J166: 2.551922702 | K166: 3.5 | L166: 3.5 | M166: 3.85 | S166: 1.185281385 | T166: 1.357391072 | U166: 1.531558782 | V166: 1.692020615 | W166: 1.839888077 | X166: 1.974027759 | Y166: 2.104132647 | Z166: 2.232820871 | AA166: 2.402895182 | AB166: 2.551922702 | AC166: 0 | AD166: 0
C167: 5 | D167: 1 | E167: = | F167: 841 | G167: LA TINGUIÑA | H167: I | I167: C.A.P.II | J167: 2.722921729 | K167: 3.5 | L167: 3.5 | M167: 3.85 | S167: 1.301052632 | T167: 1.562125512 | U167: 1.74987361 | V167: 1.895233959 | W167: 2.070770722 | X167: 2.235070671 | Y167: 2.389863059 | Z167: 2.513664696 | AA167: 2.616452009 | AB167: 2.722921729 | AC167: 0 | AD167: 0
C168: 5 | D168: 1 | E168: = | F168: 842 | G168: SANTA MARGARITA | H168: I | I168: C.A.P.II | J168: 2.49233279 | K168: 3.5 | L168: 3.5 | M168: 3.85 | S168: 1.240706071 | T168: 1.384436251 | U168: 1.537858172 | V168: 1.72108209 | W168: 1.901888145 | X168: 2.035117958 | Y168: 2.197969052 | Z168: 2.308745177 | AA168: 2.413558446 | AB168: 2.49233279 | AC168: 0 | AD168: 0
C169: 3 | D169: 2 | E169: = | F169: 846 | G169: PUQUIO | H169: I | I169: C.A.P.II | J169: 3.586722645 | K169: 3.5 | L169: 3.5 | M169: 3.85 | S169: 1.396551724 | T169: 1.664811379 | U169: 1.910793494 | V169: 2.152486642 | W169: 2.387596899 | X169: 2.620053655 | Y169: 2.851457223 | Z169: 3.06226138 | AA169: 3.30237099 | AB169: 3.586722645 | AC169: 0 | AD169: 0
C170: 5 | D170: 1 | E170: = | F170: 832 | G170: CORACORA | H170: I | I170: C.A.P.I | J170: 2.568903174 | K170: 3.5 | L170: 3.5 | M170: 3.85 | S170: 1.246246246 | T170: 1.358350951 | U170: 1.431654676 | V170: 1.553836634 | W170: 1.715304443 | X170: 1.971029488 | Y170: 2.110481586 | Z170: 2.231236443 | AA170: 2.384805945 | AB170: 2.568903174 | AC170: 0 | AD170: 0
C171: 5 | D171: 1 | E171: = | F171: 50 | G171: CHAVALINA | H171: I | I171: C.A.P.I | J171: 2.813248503 | K171: 3.5 | L171: 3.5 | M171: 3.85 | S171: 1.170588235 | T171: 1.408357075 | U171: 1.546827795 | V171: 1.758945386 | W171: 1.98830735 | X171: 2.161661662 | Y171: 2.361086376 | Z171: 2.540677966 | AA171: 2.678899083 | AB171: 2.813248503 | AC171: 0 | AD171: 0
C172: 5 | D172: 1 | E172: = | F172: 54 | G172: PALPA | H172: I | I172: C.A.P.I | J172: 3.343012704 | K172: 3.5 | L172: 3.5 | M172: 3.85 | S172: 1.159025788 | T172: 1.532580365 | U172: 1.735971223 | V172: 1.965451056 | W172: 2.205128205 | X172: 2.426067908 | Y172: 2.63061651 | Z172: 2.846983816 | AA172: 3.109227872 | AB172: 3.343012704 | AC172: 0 | AD172: 0
C173: 5 | D173: 1 | E173: = | F173: 57 | G173: SAN CLEMENTE | H173: I | I173: C.A.P.I | J173: 2.816352468 | K173: 3.5 | L173: 3.5 | M173: 3.85 | S173: 1.183729433 | T173: 1.476470588 | U173: 1.685288641 | V173: 1.948529412 | W173: 2.136622391 | X173: 2.334486736 | Y173: 2.432137285 | Z173: 2.539701636 | AA173: 2.663244811 | AB173: 2.816352468 | AC173: 0 | AD173: 0
C174: 5 | D174: 1 | E174: = | F174: 59 | G174: TAMBO DE MORA | H174: I | I174: C.A.P.I | J174: 2.792516057 | K174: 3.5 | L174: 3.5 | M174: 3.85 | S174: 1.124508519 | T174: 1.352983465 | U174: 1.621040724 | V174: 1.819232547 | W174: 1.956215794 | X174: 2.155319149 | Y174: 2.302403204 | Z174: 2.484282602 | AA174: 2.619964974 | AB174: 2.792516057 | AC174: 0 | AD174: 0
C175: 5 | D175: 1 | E175: = | F175: 61 | G175: VILLA TÚPAC AMARU | H175: I | I175: C.A.P.I | J175: 2.974940334 | K175: 3.5 | L175: 3.5 | M175: 3.85 | S175: 1.200351494 | T175: 1.446342766 | U175: 1.69959035 | V175: 1.941267388 | W175: 2.196209196 | X175: 2.397946085 | Y175: 2.583407672 | Z175: 2.678918919 | AA175: 2.795771144 | AB175: 2.974940334 | AC175: 0 | AD175: 0
C177: 4.455 | G177: RED ASISTENCIAL JUNÍN
C178: 5 | D178: 1 | E178: = | F178: 307 | G178: RAMIRO PRIALE PRIALE | H178: III | I178: H.N. | J178: 3.148784856 | K178: 4 | L178: 4 | M178: 4.4 | S178: 1.371428571 | T178: 1.71119535 | U178: 1.641873366 | V178: 1.920581594 | W178: 2.170350685 | X178: 2.407094748 | Y178: 2.622033791 | Z178: 2.802795678 | AA178: 2.983296711 | AB178: 3.148784856 | AC178: 0 | AD178: 0
C179: 1 | D179: 3 | E179: = | F179: 308 | G179: ALBERTO HURTADO ABADIA | H179: II | I179: H.II | J179: 3.908119067 | K179: 3.5 | L179: 3.5 | M179: 3.85 | S179: 1.625142423 | T179: 2.031917447 | U179: 2.373442368 | V179: 2.766345997 | W179: 2.784749164 | X179: 3.098629799 | Y179: 3.215254979 | Z179: 3.443157133 | AA179: 3.662545383 | AB179: 3.908119067 | AC179: 0 | AD179: 0
C180: 5 | D180: 1 | E180: = | F180: 309 | G180: RIO NEGRO - SATIPO | H180: II | I180: H.I | J180: 3.393345581 | K180: 3.5 | L180: 3.5 | M180: 3.85 | S180: 1.163064833 | T180: 1.60815402 | U180: 1.878264719 | V180: 2.198307579 | W180: 2.449499839 | X180: 2.62562592 | Y180: 2.791488223 | Z180: 3.011427182 | AA180: 3.192676937 | AB180: 3.393345581 | AC180: 0 | AD180: 0
C181: 5 | D181: 1 | E181: = | F181: 313 | G181: HOSPITAL DE LA SELVA CENTRAL Y ENFERMEDADES TROPICALES HUGO PESCE PESCETTO | H181: II | I181: H.I | J181: 3.419718572 | K181: 3.5 | L181: 3.5 | M181: 3.85 | S181: 1.394483363 | T181: 1.759080801 | U181: 1.990558912 | V181: 2.223935277 | W181: 2.449611382 | X181: 2.667926757 | Y181: 2.902297593 | Z181: 3.105028512 | AA181: 3.277435144 | AB181: 3.419718572 | AC181: 0 | AD181: 0
C182: 3 | D182: 2 | E182: = | F182: 310 | G182: TARMA | H182: II | I182: H.I | J182: 3.657972858 | K182: 3.5 | L182: 3.5 | M182: 3.85 | S182: 1.318144159 | T182: 1.636780438 | U182: 1.887197502 | V182: 2.058058058 | W182: 2.228139183 | X182: 2.428334714 | Y182: 2.710696339 | Z182: 3.029823354 | AA182: 3.347453907 | AB182: 3.657972858 | AC182: 0 | AD182: 0
C183: 3 | D183: 2 | E183: = | F183: 311 | G183: JAUJA | H183: I | I183: POL. | J183: 3.512096774 | K183: 3.5 | L183: 3.5 | M183: 3.85 | S183: 1.391169978 | T183: 1.810334703 | U183: 2.098976982 | V183: 2.365601081 | W183: 2.604907975 | X183: 2.796533534 | Y183: 2.999291534 | Z183: 3.187927297 | AA183: 3.352679987 | AB183: 3.512096774 | AC183: 0 | AD183: 0
C184: 5 | D184: 1 | E184: = | F184: 834 | G184: METROPOLITANO HUANCAYO | H184: I | I184: POL. | J184: 2.58513082 | K184: 3.5 | L184: 3.5 | M184: 3.85 | S184: 1.156057866 | T184: 1.318114328 | U184: 1.479481103 | V184: 1.679306191 | W184: 1.877310712 | X184: 2.020299186 | Y184: 2.135945594 | Z184: 2.262915851 | AA184: 2.421873594 | AB184: 2.58513082 | AC184: 0 | AD184: 0
C185: 5 | D185: 1 | E185: = | F185: 494 | G185: MANTARO | H185: I | I185: C.A.P.III | J185: 3.095596958 | K185: 3.5 | L185: 3.5 | M185: 3.85 | S185: 1.203766595 | T185: 1.467629749 | U185: 1.694071361 | V185: 1.909588416 | W185: 2.15060241 | X185: 2.352353911 | Y185: 2.558350101 | Z185: 2.737440611 | AA185: 2.926479203 | AB185: 3.095596958 | AC185: 0 | AD185: 0
C186: 5 | D186: 1 | E186: = | F186: 317 | G186: CONCEPCION | H186: I | I186: C.M. | J186: 3.072817632 | K186: 3.5 | L186: 3.5 | M186: 3.85 | S186: 1.160361842 | T186: 1.424523442 | U186: 1.641295547 | V186: 1.881676809 | W186: 2.103059103 | X186: 2.303410641 | Y186: 2.512788048 | Z186: 2.71869763 | AA186: 2.902350814 | AB186: 3.072817632 | AC186: 0 | AD186: 0
C187: 5 | D187: 1 | E187: = | F187: 312 | G187: JUNIN | H187: I | I187: C.A.P.II | J187: 2.705350414 | K187: 3.5 | L187: 3.5 | M187: 3.85 | S187: 1.270833333 | T187: 1.476744186 | U187: 1.614121511 | V187: 1.809139785 | W187: 1.964912281 | X187: 2.148777896 | Y187: 2.266019417 | Z187: 2.427807487 | AA187: 2.570850202 | AB187: 2.705350414 | AC187: 0 | AD187: 0
C188: 5 | D188: 1 | E188: = | F188: 320 | G188: MOROCOCHA | H188: I | I188: C.A.P.II | J188: 2.041884817 | K188: 3.5 | L188: 3.5 | M188: 3.85 | S188: 1.739795918 | T188: 1.548 | U188: 1.795527157 | V188: 1.970588235 | W188: 2.096551724 | X188: 2.238974359 | Y188: 2.389990557 | Z188: 2.598765432 | AA188: 2.210280374 | AB188: 2.041884817 | AC188: 0 | AD188: 0
C189: 5 | D189: 1 | E189: = | F189: 454 | G189: CHILCA | H189: I | I189: C.A.P.II | J189: 2.851864546 | K189: 3.5 | L189: 3.5 | M189: 3.85 | S189: 1.185146444 | T189: 1.4326 | U189: 1.639704797 | V189: 1.842493847 | W189: 2.03124366 | X189: 2.206773128 | Y189: 2.366289163 | Z189: 2.531998158 | AA189: 2.703434373 | AB189: 2.851864546 | AC189: 0 | AD189: 0
C190: 5 | D190: 1 | E190: = | F190: 853 | G190: CHUPACA | H190: I | I190: C.A.P.II | J190: 3.408418421 | K190: 3.5 | L190: 3.5 | M190: 3.85 | S190: 1.20258949 | T190: 1.542931937 | U190: 1.843460765 | V190: 2.114851485 | W190: 2.353198948 | X190: 2.560186455 | Y190: 2.763164462 | Z190: 2.991215904 | AA190: 3.202141608 | AB190: 3.408418421 | AC190: 0 | AD190: 0
C191: 3 | D191: 2 | E191: = | F191: 372 | G191: SAN PEDRO DE CAJAS | H191: I | I191: P.M. | J191: 3.632450331 | K191: 3.5 | L191: 3.5 | M191: 3.85 | S191: 1.342857143 | T191: 1.883333333 | U191: 2.024242424 | V191: 2.279569892 | W191: 2.575471698 | X191: 2.736170213 | Y191: 3.090909091 | Z191: 3.243542435 | AA191: 3.37716263 | AB191: 3.632450331 | AC191: 0 | AD191: 0
C192: 3 | D192: 2 | E192: = | F192: 322 | G192: PACHACAYO | H192: I | I192: P.M. | J192: 3.638418079 | K192: 3.5 | L192: 3.5 | M192: 3.85 | S192: 1.163934426 | T192: 1.490196078 | U192: 1.793478261 | V192: 2.048048048 | W192: 2.342391304 | X192: 2.664974619 | Y192: 2.880733945 | Z192: 3.094339623 | AA192: 3.413043478 | AB192: 3.638418079 | AC192: 0 | AD192: 0
C193: 5 | D193: 1 | E193: = | F193: 323 | G193: SAN CRISTOBAL | H193: I | I193: P.M. | J193: 3.118881119 | K193: 3.5 | L193: 3.5 | M193: 3.85 | S193: 1.268817204 | T193: 1.563934426 | U193: 1.667567568 | V193: 1.811138015 | W193: 1.922920892 | X193: 2.021466905 | Y193: 2.205521472 | Z193: 2.58643617 | AA193: 2.916354557 | AB193: 3.118881119 | AC193: 0 | AD193: 0
C194: 5 | D194: 1 | E194: = | F194: 324 | G194: YAURICOCHA | H194: I | I194: P.M. | J194: 2.640915594 | K194: 3.5 | L194: 3.5 | M194: 3.85 | S194: 1.297297297 | T194: 1.56372549 | U194: 1.75862069 | V194: 2.01552795 | W194: 2.14973262 | X194: 2.2 | Y194: 2.325955734 | Z194: 2.460288809 | AA194: 2.56 | AB194: 2.640915594 | AC194: 0 | AD194: 0
C195: 5 | D195: 1 | E195: = | F195: 318 | G195: MARH-TÚNEL | H195: I | I195: P.M. | J195: 2.400211193 | K195: 3.5 | L195: 3.5 | M195: 3.85 | S195: 1.191082803 | T195: 1.305755396 | U195: 1.445623342 | V195: 1.652806653 | W195: 1.820840951 | X195: 1.935430464 | Y195: 2.081871345 | Z195: 2.182781457 | AA195: 2.268018018 | AB195: 2.400211193 | AC195: 0 | AD195: 0
C196: 5 | D196: 1 | E196: = | F196: 314 | G196: ANDAYCHAGUA | H196: I | I196: P.M. | J196: 2.473411154 | K196: 3.5 | L196: 3.5 | M196: 3.85 | S196: 1.177083333 | T196: 1.326007326 | U196: 1.475308642 | V196: 1.620098039 | W196: 1.839055794 | X196: 1.959923664 | Y196: 2.204225352 | Z196: 2.357487923 | AA196: 2.421582734 | AB196: 2.473411154 | AC196: 0 | AD196: 0
C197: 5 | D197: 1 | E197: = | F197: 315 | G197: COBRIZA | H197: I | I197: P.M. | J197: 2.372670807 | K197: 3.5 | L197: 3.5 | M197: 3.85 | S197: 1.35 | T197: 1.606451613 | U197: 1.70531401 | V197: 1.778985507 | W197: 1.8 | X197: 1.865384615 | Y197: 1.961945032 | Z197: 2.065543071 | AA197: 2.276740238 | AB197: 2.372670807 | AC197: 0 | AD197: 0
C198: 5 | D198: 1 | E198: = | F198: 316 | G198: CORPACANCHA | H198: I | I198: P.M. | J198: 3.058035714 | K198: 3.5 | L198: 3.5 | M198: 3.85 | S198: 1.176470588 | T198: 1.431372549 | U198: 1.570175439 | V198: 1.712 | W198: 2.026315789 | X198: 2.270114943 | Y198: 2.526595745 | Z198: 2.746268657 | AA198: 2.910798122 | AB198: 3.058035714 | AC198: 0 | AD198: 0
C199: 5 | D199: 1 | E199: = | F199: 492 | G199: PICHANAQUI | H199: I | I199: C.A.P.I | J199: 2.391529818 | K199: 3.5 | L199: 3.5 | M199: 3.85 | S199: 1.196236559 | T199: 1.403348554 | U199: 1.555183946 | V199: 1.724576271 | W199: 1.850148368 | X199: 1.959974177 | Y199: 2.046082949 | Z199: 2.165778252 | AA199: 2.267298578 | AB199: 2.391529818 | AC199: 0 | AD199: 0
C201: 1.667 | G201: RED ASISTENCIAL JAEN
C202: 1 | D202: 3 | E202: = | F202: 245 | G202: JAEN | H202: II | I202: H.II | J202: 4.948063978 | K202: 3.5 | L202: 3.5 | M202: 3.85 | S202: 1.623886732 | T202: 2.371787383 | U202: 2.898093842 | V202: 3.394123932 | W202: 3.694578987 | X202: 3.954918033 | Y202: 4.19231357 | Z202: 4.421433591 | AA202: 4.679192078 | AB202: 4.948063978 | AC202: 0 | AD202: 0
C203: 3 | D203: 2 | E203: = | F203: 256 | G203: SAN IGNACIO | H203: I | I203: C.A.P.II | J203: 3.805841446 | K203: 3.5 | L203: 3.5 | M203: 3.85 | S203: 1.431111111 | T203: 1.929824561 | U203: 2.304972376 | V203: 2.671648551 | W203: 2.878096736 | X203: 3.142443962 | Y203: 3.338590604 | Z203: 3.493705864 | AA203: 3.646185207 | AB203: 3.805841446 | AC203: 0 | AD203: 0
C204: 1 | D204: 3 | E204: = | F204: 255 | G204: PUCARA | H204: I | I204: P.M. | J204: 4.3557394 | K204: 3.5 | L204: 3.5 | M204: 3.85 | S204: 1.587458746 | T204: 2.111827957 | U204: 2.487046632 | V204: 2.99381762 | W204: 3.337110482 | X204: 3.665338645 | Y204: 3.835802469 | Z204: 3.988505747 | AA204: 4.142088267 | AB204: 4.3557394 | AC204: 0 | AD204: 0
C206: 3.917 | G206: RED ASISTENCIAL LA LIBERTAD
C207: 5 | D207: 1 | E207: = | F207: 671 | G207: HOSPITAL DE ALTA COMPLEJIDAD DE LA LIBERTAD VIRGEN DE LA PUERTA | H207: III | I207: H.N. | J207: 3.785005844 | K207: 4 | L207: 4 | M207: 4.4 | S207: 1.3188939 | T207: 1.614876385 | U207: 1.887100355 | V207: 2.221209771 | W207: 2.554181495 | X207: 2.833451188 | Y207: 3.10348892 | Z207: 3.355178205 | AA207: 3.591966993 | AB207: 3.785005844 | AC207: 0 | AD207: 0
C208: 5 | D208: 1 | E208: = | F208: 205 | G208: VICTOR LAZARTE ECHEGARAY | H208: II | I208: H.IV | J208: 3.485758936 | K208: 4 | L208: 4 | M208: 4.4 | S208: 1.350167705 | T208: 1.619929453 | U208: 1.853073651 | V208: 2.1467473 | W208: 2.397329664 | X208: 2.632582322 | Y208: 2.872194481 | Z208: 3.090931603 | AA208: 3.315511996 | AB208: 3.485758936 | AC208: 0 | AD208: 0
C209: 5 | D209: 1 | E209: = | F209: 206 | G209: CHOCOPE | H209: II | I209: H.II | J209: 3.40283863 | K209: 3.5 | L209: 3.5 | M209: 3.85 | S209: 1.286877158 | T209: 1.600875274 | U209: 1.871288273 | V209: 2.203046187 | W209: 2.45253726 | X209: 2.687388844 | Y209: 2.911209351 | Z209: 3.08346127 | AA209: 3.264838394 | AB209: 3.40283863 | AC209: 0 | AD209: 0
C210: 1 | D210: 3 | E210: = | F210: 207 | G210: ALBRECHT | H210: II | I210: H.I | J210: 3.965711701 | K210: 3.5 | L210: 3.5 | M210: 3.85 | S210: 1.343274644 | T210: 1.723203026 | U210: 2.024335187 | V210: 2.379729293 | W210: 2.699318144 | X210: 2.984101628 | Y210: 3.242978075 | Z210: 3.449413024 | AA210: 3.742867951 | AB210: 3.965711701 | AC210: 0 | AD210: 0
C211: 5 | D211: 1 | E211: = | F211: 208 | G211: PACASMAYO | H211: II | I211: H.I | J211: 3.406895723 | K211: 3.5 | L211: 3.5 | M211: 3.85 | S211: 1.329404467 | T211: 1.586135896 | U211: 1.837791829 | V211: 2.110633947 | W211: 2.410502442 | X211: 2.646398203 | Y211: 2.866558298 | Z211: 3.043249238 | AA211: 3.227958088 | AB211: 3.406895723 | AC211: 0 | AD211: 0
C212: 3 | D212: 2 | E212: = | F212: 211 | G212: FLORENCIA DE MORA | H212: II | I212: H.I | J212: 3.685340022 | K212: 3.5 | L212: 3.5 | M212: 3.85 | S212: 1.376089483 | T212: 1.762976533 | U212: 2.078677619 | V212: 2.340907849 | W212: 2.600977995 | X212: 2.836615936 | Y212: 3.055789518 | Z212: 3.275037135 | AA212: 3.485692274 | AB212: 3.685340022 | AC212: 0 | AD212: 0
C213: 5 | D213: 1 | E213: = | F213: 212 | G213: LA ESPERANZA | H213: II | I213: H.I | J213: 2.87438415 | K213: 3.5 | L213: 3.5 | M213: 3.85 | S213: 1.194266019 | T213: 1.41920334 | U213: 1.59352518 | V213: 1.811259411 | W213: 1.995665604 | X213: 2.179564204 | Y213: 2.368152119 | Z213: 2.529494218 | AA213: 2.711286765 | AB213: 2.87438415 | AC213: 0 | AD213: 0
C214: 3 | D214: 2 | E214: = | F214: 213 | G214: MOCHE | H214: II | I214: H.I | J214: 3.709755822 | K214: 3.5 | L214: 3.5 | M214: 3.85 | S214: 1.457015496 | T214: 1.810832128 | U214: 2.048174894 | V214: 2.339858252 | W214: 2.625307314 | X214: 2.860285714 | Y214: 3.115100738 | Z214: 3.289098049 | AA214: 3.502655181 | AB214: 3.709755822 | AC214: 0 | AD214: 0
C215: 5 | D215: 1 | E215: = | F215: 241 | G215: VICTOR SOLES GARCIA | H215: II | I215: H.I | J215: 3.08715847 | K215: 3.5 | L215: 3.5 | M215: 3.85 | S215: 1.441245593 | T215: 1.695160721 | U215: 1.918792867 | V215: 2.15960547 | W215: 2.350256815 | X215: 2.502340655 | Y215: 2.680046442 | Z215: 2.830293663 | AA215: 2.970883534 | AB215: 3.08715847 | AC215: 0 | AD215: 0
C216: 5 | D216: 1 | E216: = | F216: 210 | G216: EL PORVENIR | H216: I | I216: POL. | J216: 2.385377254 | K216: 3.5 | L216: 3.5 | M216: 3.85 | S216: 1.146580645 | T216: 1.280349073 | U216: 1.409884048 | V216: 1.577143866 | W216: 1.742636258 | X216: 1.886075949 | Y216: 2.003973941 | Z216: 2.111459101 | AA216: 2.256766216 | AB216: 2.385377254 | AC216: 0 | AD216: 0
C217: 1 | D217: 3 | E217: = | F217: 443 | G217: VICTOR LARCO HERRERA | H217: I | I217: POL. | J217: 3.901581243 | K217: 3.5 | L217: 3.5 | M217: 3.85 | S217: 1.270669291 | T217: 1.60089498 | U217: 1.854356307 | V217: 2.206299362 | W217: 2.530676455 | X217: 2.857541441 | Y217: 3.134238077 | Z217: 3.386510351 | AA217: 3.643269848 | AB217: 3.901581243 | AC217: 0 | AD217: 0
... 241 more rows

Sheet C.E_R.Hr.Medico
C1: CRITERIOS DE EVALUACION
C3: RENDIMIENTO HORA MEDICO
S5: AÑO: 2024
C6: Puntaje | E6: Red Asistencial / Establecimientos | H6: Nivel | I6: Tipo | J6: Valor Real | K6: Estandar | L6: Verde | M6: Rojo | R6: Anual | S6: Ene | T6: Feb | U6: Mar | V6: Abr | W6: May | X6: Jun | Y6: Jul | Z6: Ago | AA6: Sep | AB6: Oct | AC6: Nov | AD6: Dic
C8: 4.309 | G8: TOTAL NACIONAL
C10: 4.4 | G10: RED ASISTENCIAL AMAZONAS
C11: 5 | D11: 1 | E11: = | F11: 153 | G11: EL BUEN SAMARITANO | H11: II | I11: H.I | J11: 5.001763668 | K11: 5 | L11: 5 | M11: 4.5 | S11: 4.537785589 | T11: 4.516949153 | U11: 4.447552448 | V11: 4.562289562 | W11: 4.705490849 | X11: 4.534265734 | Y11: 4.637958533 | Z11: 4.787790698 | AA11: 4.795454545 | AB11: 5.001763668 | AC11: 0 | AD11: 0
C12: 5 | D12: 1 | E12: = | F12: 154 | G12: HEROES DEL CENEPA | H12: II | I12: H.I | J12: 5.03125 | K12: 5 | L12: 5 | M12: 4.5 | S12: 4.437967115 | T12: 4.461430575 | U12: 4.77189781 | V12: 4.788590604 | W12: 4.705490849 | X12: 4.737735849 | Y12: 4.817097416 | Z12: 5.367231638 | AA12: 4.878318584 | AB12: 5.03125 | AC12: 0 | AD12: 0
C13: 1 | D13: 3 | E13: = | F13: 155 | G13: HIGOS URCO | H13: II | I13: H.I | J13: 4.486772487 | K13: 5 | L13: 5 | M13: 4.5 | S13: 4.270150576 | T13: 4.060240964 | U13: 3.886775362 | V13: 4.088325653 | W13: 4.162601626 | X13: 3.933947773 | Y13: 3.885007278 | Z13: 4.157595451 | AA13: 3.915228807 | AB13: 4.486772487 | AC13: 0 | AD13: 0
C14: 3 | D14: 2 | E14: = | F14: 843 | G14: RODRIGUEZ DE MENDOZA | H14: I | I14: C.A.P.II | J14: 4.705882353 | K14: 5 | L14: 5 | M14: 4.5 | S14: 4.769230769 | T14: 4.560747664 | U14: 4.553571429 | V14: 4.723577236 | W14: 4.60483871 | X14: 4.666666667 | Y14: 4.647058824 | Z14: 4.734513274 | AA14: 4.830508475 | AB14: 4.705882353 | AC14: 0 | AD14: 0
C15: 5 | D15: 1 | E15: = | F15: 845 | G15: SANTA MARIA DE NIEVA | H15: I | I15: C.A.P.II | J15: 5 | K15: 5 | L15: 5 | M15: 4.5 | S15: 4.98265896 | T15: 4.793103448 | U15: 4.006756757 | V15: 4.363636364 | W15: 4.365217391 | X15: 3.855072464 | Y15: 4.118881119 | Z15: 4.963636364 | AA15: 4.719745223 | AB15: 5 | AC15: 0 | AD15: 0
C16: 5 | D16: 1 | E16: = | F16: 855 | G16: IMAZA | H16: I | I16: C.A.P.I | J16: 5.515625 | K16: 5 | L16: 5 | M16: 4.5 | S16: 4.879310345 | T16: 5.090909091 | U16: 4.772727273 | V16: 5.246153846 | W16: 4.898305085 | X16: 4.826086957 | Y16: 4.985915493 | Z16: 5.117647059 | AA16: 5.392405063 | AB16: 5.515625 | AC16: 0 | AD16: 0
C17: 5 | D17: 1 | E17: = | F17: 156 | G17: LAMUD | H17: I | I17: C.A.P.I | J17: 5 | K17: 5 | L17: 5 | M17: 4.5 | S17: 4.927272727 | T17: 4.784313725 | U17: 4.976190476 | V17: 4.847457627 | W17: 4.322580645 | X17: 4.868852459 | Y17: 4.84375 | Z17: 5.589285714 | AA17: 4.923076923 | AB17: 5 | AC17: 0 | AD17: 0
C18: 5 | D18: 1 | E18: = | F18: 157 | G18: LONYA GRANDE | H18: I | I18: C.A.P.I | J18: 5.023255814 | K18: 5 | L18: 5 | M18: 4.5 | S18: 5.135135135 | T18: 5.025641026 | U18: 5.03125 | V18: 5.230769231 | W18: 4.951219512 | X18: 5.025 | Y18: 5 | Z18: 5.022222222 | AA18: 5 | AB18: 5.023255814 | AC18: 0 | AD18: 0
C19: 5 | D19: 1 | E19: = | F19: 158 | G19: OCALLI | H19: I | I19: C.A.P.I | J19: 5.466666667 | K19: 5 | L19: 5 | M19: 4.5 | S19: 5.458333333 | T19: 5.125 | U19: 6.045454545 | V19: 6.125 | W19: 4.961538462 | X19: 5.185185185 | Y19: 5.515151515 | Z19: 5.777777778 | AA19: 5.03030303 | AB19: 5.466666667 | AC19: 0 | AD19: 0
C20: 5 | D20: 1 | E20: = | F20: 159 | G20: PEDRO RUIZ GALLO | H20: I | I20: C.A.P.I | J20: 5.007936508 | K20: 5 | L20: 5 | M20: 4.5 | S20: 5.120481928 | T20: 5.115384615 | U20: 5.114285714 | V20: 5.1 | W20: 5.078947368 | X20: 5 | Y20: 5.142857143 | Z20: 5.155172414 | AA20: 5.008695652 | AB20: 5.007936508 | AC20: 0 | AD20: 0
C22: 5 | G22: RED ASISTENCIAL ANCASH
C23: 5 | D23: 1 | E23: = | F23: 161 | G23: CHIMBOTE | H23: II | I23: H.III | J23: 4.850731044 | K23: 4 | L23: 4 | M23: 3.6 | S23: 4.865507452 | T23: 4.766565758 | U23: 4.631222486 | V23: 4.732198142 | W23: 4.669035533 | X23: 4.653319644 | Y23: 4.819730077 | Z23: 4.914108045 | AA23: 4.803278689 | AB23: 4.850731044 | AC23: 0 | AD23: 0
C24: 5 | D24: 1 | E24: = | F24: 167 | G24: CONO SUR | H24: II | I24: H.I | J24: 5.540408163 | K24: 5 | L24: 5 | M24: 4.5 | S24: 5.531007752 | T24: 5.522343595 | U24: 5.533670034 | V24: 5.592948718 | W24: 5.487101669 | X24: 5.301097394 | Y24: 5.441223833 | Z24: 5.720142602 | AA24: 5.663994169 | AB24: 5.540408163 | AC24: 0 | AD24: 0
C25: 5 | D25: 1 | E25: = | F25: 487 | G25: VICTOR PANTA RODRIGUEZ | H25: I | I25: POL. | J25: 5.451431493 | K25: 5 | L25: 5 | M25: 4.5 | S25: 5.202978489 | T25: 5.257021728 | U25: 5.363691194 | V25: 5.680690399 | W25: 5.585970464 | X25: 5.374371859 | Y25: 5.440488842 | Z25: 5.537915985 | AA25: 5.384687208 | AB25: 5.451431493 | AC25: 0 | AD25: 0
C26: 5 | D26: 1 | E26: = | F26: 165 | G26: CASMA | H26: I | I26: C.M. | J26: 5.546583851 | K26: 5 | L26: 5 | M26: 4.5 | S26: 5.24 | T26: 5.618589744 | U26: 5.25 | V26: 5.08815427 | W26: 5.245478036 | X26: 5.174050633 | Y26: 5.337931034 | Z26: 5.711038961 | AA26: 5.734939759 | AB26: 5.546583851 | AC26: 0 | AD26: 0
C27: 5 | D27: 1 | E27: = | F27: 166 | G27: COISHCO | H27: I | I27: C.M. | J27: 5.206140351 | K27: 5 | L27: 5 | M27: 4.5 | S27: 5.611320755 | T27: 5.526863085 | U27: 5.544534413 | V27: 5.668016194 | W27: 5.704292528 | X27: 5.41543514 | Y27: 5.726755218 | Z27: 5.622183709 | AA27: 5.41969697 | AB27: 5.206140351 | AC27: 0 | AD27: 0
C28: 5 | D28: 1 | E28: = | F28: 170 | G28: SIHUAS | H28: I | I28: C.M. | J28: 5.711538462 | K28: 5 | L28: 5 | M28: 4.5 | S28: 5.096153846 | T28: 5 | U28: 5.364583333 | V28: 5.038461538 | W28: 5.14 | X28: 5.489130435 | Y28: 5.504761905 | Z28: 5.33 | AA28: 5.28 | AB28: 5.711538462 | AC28: 0 | AD28: 0
C29: 5 | D29: 1 | E29: = | F29: 169 | G29: HUARMEY | H29: I | I29: C.M. | J29: 5.098101266 | K29: 5 | L29: 5 | M29: 4.5 | S29: 5.23699422 | T29: 5.33908046 | U29: 6.852173913 | V29: 5.186746988 | W29: 5.096273292 | X29: 5.073619632 | Y29: 5.171052632 | Z29: 5.911764706 | AA29: 5.48 | AB29: 5.098101266 | AC29: 0 | AD29: 0
C30: 5 | D30: 1 | E30: = | F30: 185 | G30: SAN JACINTO | H30: I | I30: C.A.P.II | J30: 5.55450237 | K30: 5 | L30: 5 | M30: 4.5 | S30: 5.389438944 | T30: 5.3657289 | U30: 5.539936102 | V30: 5.308093995 | W30: 5.596736597 | X30: 5.610666667 | Y30: 5.755485893 | Z30: 5.625641026 | AA30: 5.430913349 | AB30: 5.55450237 | AC30: 0 | AD30: 0
C31: 5 | D31: 1 | E31: = | F31: 171 | G31: CABANA | H31: I | I31: P.M. | J31: 5.116666667 | K31: 5 | L31: 5 | M31: 4.5 | S31: 7.387096774 | T31: 6.285714286 | U31: 5.533333333 | V31: 6.486486486 | W31: 5.116666667 | X31: 5.169491525 | Y31: 5.205479452 | Z31: 5.202898551 | AA31: 5.285714286 | AB31: 5.116666667 | AC31: 0 | AD31: 0
C32: 5 | D32: 1 | E32: = | F32: 175 | G32: CONCHUCOS | H32: I | I32: P.M. | J32: 5 | K32: 5 | L32: 5 | M32: 4.5 | S32: 5.08 | T32: 5.153846154 | U32: 5.875 | V32: 5.08 | W32: 5.096774194 | X32: 5.319148936 | Y32: 5 | Z32: 5 | AA32: 5 | AB32: 5 | AC32: 0 | AD32: 0
C33: 5 | D33: 1 | E33: = | F33: 178 | G33: PAMPAS | H33: I | I33: P.M. | J33: 5 | K33: 5 | L33: 5 | M33: 4.5 | S33: 5 | T33: 5.088888889 | U33: 5 | V33: 5 | W33: 5.111111111 | X33: 5.09375 | Y33: 5.027777778 | Z33: 5.151515152 | AA33: 5 | AB33: 5 | AC33: 0 | AD33: 0
C34: 5 | D34: 1 | E34: = | F34: 379 | G34: PALLASCA | H34: I | I34: P.M. | J34: 5.181818182 | K34: 5 | L34: 5 | M34: 4.5 | S34: 5.28 | T34: 5.24 | U34: 5.125 | V34: 5.16 | W34: 5.733333333 | X34: 5.15625 | Y34: 5.115384615 | Z34: 5.25 | AA34: 5.08 | AB34: 5.181818182 | AC34: 0 | AD34: 0
C36: 3 | G36: RED ASISTENCIAL APURÍMAC
C37: 5 | D37: 1 | E37: = | F37: 67 | G37: ABANCAY | H37: II | I37: H.II | J37: 4.994386228 | K37: 5 | L37: 5 | M37: 4.5 | S37: 5.10180624 | T37: 5.198138298 | U37: 4.993043478 | V37: 4.922022279 | W37: 4.818379791 | X37: 4.991311543 | Y37: 5.067584481 | Z37: 5.044481746 | AA37: 4.856882074 | AB37: 4.994386228 | AC37: 0 | AD37: 0
C38: 3 | D38: 2 | E38: = | F38: 68 | G38: ANDAHUAYLAS | H38: II | I38: H.I | J38: 4.989678203 | K38: 5 | L38: 5 | M38: 4.5 | S38: 4.63338301 | T38: 4.838954469 | U38: 4.9848 | V38: 4.905815424 | W38: 4.855907781 | X38: 4.696823204 | Y38: 4.859838275 | Z38: 4.881500987 | AA38: 4.954851752 | AB38: 4.989678203 | AC38: 0 | AD38: 0
C39: 3 | D39: 2 | E39: = | F39: 512 | G39: COTABAMBAS | H39: I | I39: C.A.P.II | J39: 4.872222222 | K39: 5 | L39: 5 | M39: 4.5 | S39: 2.727272727 | T39: 3.280821918 | U39: 4.394366197 | V39: 4.438356164 | W39: 4.85915493 | X39: 4.673758865 | Y39: 4.75257732 | Z39: 4.440677966 | AA39: 4.480662983 | AB39: 4.872222222 | AC39: 0 | AD39: 0
C40: 3 | D40: 2 | E40: = | F40: 847 | G40: CHINCHEROS | H40: I | I40: C.A.P.II | J40: 4.858333333 | K40: 5 | L40: 5 | M40: 4.5 | S40: 4.641975309 | T40: 4.447257384 | U40: 4.43153527 | V40: 4.763265306 | W40: 4.603375527 | X40: 4.87654321 | Y40: 5.1875 | Z40: 4.972222222 | AA40: 4.86746988 | AB40: 4.858333333 | AC40: 0 | AD40: 0
C41: 5 | D41: 1 | E41: = | F41: 70 | G41: CHALHUANCA | H41: I | I41: C.A.P.II | J41: 5.469945355 | K41: 5 | L41: 5 | M41: 4.5 | S41: 4.022727273 | T41: 3.806818182 | U41: 5.310077519 | V41: 5.971428571 | W41: 4.233695652 | X41: 4.729411765 | Y41: 4.593220339 | Z41: 5.034090909 | AA41: 4.68877551 | AB41: 5.469945355 | AC41: 0 | AD41: 0
C42: 1 | D42: 3 | E42: = | F42: 71 | G42: CHUQUIBAMBILLA | H42: I | I42: P.M. | J42: 3.959731544 | K42: 5 | L42: 5 | M42: 4.5 | S42: 3.7 | T42: 3.830769231 | U42: 4.265625 | V42: 4.742424242 | W42: 4.786885246 | X42: 4.075757576 | Y42: 4.285714286 | Z42: 3.907801418 | AA42: 3.668874172 | AB42: 3.959731544 | AC42: 0 | AD42: 0
C43: 3 | D43: 2 | E43: = | F43: 69 | G43: CURAHUASI | H43: I | I43: P.M. | J43: 4.56 | K43: 5 | L43: 5 | M43: 4.5 | S43: 4.768115942 | T43: 4.845588235 | U43: 4.807692308 | V43: 4.950704225 | W43: 4.714285714 | X43: 4.953846154 | Y43: 5.11971831 | Z43: 4.710344828 | AA43: 4.768115942 | AB43: 4.56 | AC43: 0 | AD43: 0
C44: 1 | D44: 3 | E44: = | F44: 468 | G44: ANTABAMBA | H44: I | I44: C.A.P.I | J44: 4.102040816 | K44: 5 | L44: 5 | M44: 4.5 | S44: 2.943181818 | T44: 3.19 | U44: 3.787037037 | V44: 3.933962264 | W44: 3.522727273 | X44: 4.422222222 | Y44: 4.436170213 | Z44: 3.968085106 | AA44: 4.081632653 | AB44: 4.102040816 | AC44: 0 | AD44: 0
C46: 4.5 | G46: RED ASISTENCIAL AREQUIPA
C47: 5 | D47: 1 | E47: = | F47: 3 | G47: CARLOS ALBERTO SEGUIN ESCOBEDO | H47: III | I47: H.N. | J47: 4.317178881 | K47: 4 | L47: 4 | M47: 3.6 | S47: 4.265425855 | T47: 4.192806604 | U47: 4.209547427 | V47: 4.167706168 | W47: 4.161265726 | X47: 4.126293996 | Y47: 4.2506 | Z47: 4.301065913 | AA47: 4.282811938 | AB47: 4.317178881 | AC47: 0 | AD47: 0
C48: 5 | D48: 1 | E48: = | F48: 76 | G48: YANAHUARA | H48: II | I48: H.III | J48: 4.980942993 | K48: 4 | L48: 4 | M48: 3.6 | S48: 4.796714208 | T48: 4.782952872 | U48: 4.695738355 | V48: 4.74886417 | W48: 4.702415285 | X48: 4.769689935 | Y48: 4.901379945 | Z48: 4.987705693 | AA48: 4.918617794 | AB48: 4.980942993 | AC48: 0 | AD48: 0
C49: 5 | D49: 1 | E49: = | F49: 74 | G49: MANUEL DE TORRES MUÑOZ | H49: II | I49: H.II | J49: 5.143841516 | K49: 5 | L49: 5 | M49: 4.5 | S49: 4.728922092 | T49: 4.727891156 | U49: 4.751258812 | V49: 5.042857143 | W49: 4.995357474 | X49: 5.089538172 | Y49: 5.098943324 | Z49: 5.048526863 | AA49: 5.035863219 | AB49: 5.143841516 | AC49: 0 | AD49: 0
C50: 5 | D50: 1 | E50: = | F50: 75 | G50: SAMUEL PASTOR | H50: II | I50: H.I | J50: 5.080592105 | K50: 5 | L50: 5 | M50: 4.5 | S50: 4.505154639 | T50: 4.536745407 | U50: 4.706161137 | V50: 4.959137344 | W50: 4.452581032 | X50: 4.926489227 | Y50: 4.786908078 | Z50: 4.802650957 | AA50: 4.89200561 | AB50: 5.080592105 | AC50: 0 | AD50: 0
C51: 5 | D51: 1 | E51: = | F51: 79 | G51: EDMUNDO ESCOMEL | H51: II | I51: H.I | J51: 5.041287016 | K51: 5 | L51: 5 | M51: 4.5 | S51: 4.644925231 | T51: 4.590497116 | U51: 4.647577093 | V51: 4.787702094 | W51: 4.880869565 | X51: 4.894192764 | Y51: 4.971150621 | Z51: 5.016427822 | AA51: 4.961904762 | AB51: 5.041287016 | AC51: 0 | AD51: 0
C52: 3 | D52: 2 | E52: = | F52: 77 | G52: METROPOLITANO | H52: I | I52: POL. | J52: 4.881970578 | K52: 5 | L52: 5 | M52: 4.5 | S52: 4.785947712 | T52: 4.76500698 | U52: 4.785823171 | V52: 4.904519414 | W52: 4.799655172 | X52: 4.78263865 | Y52: 4.830821918 | Z52: 4.8 | AA52: 4.931563799 | AB52: 4.881970578 | AC52: 0 | AD52: 0
C53: 3 | D53: 2 | E53: = | F53: 697 | G53: HOSPITAL GERIATRICO MUNICIPAL | H53: I | I53: POL. | J53: 4.846916774 | K53: 5 | L53: 5 | M53: 4.5 | S53: 4.730120482 | T53: 4.729323308 | U53: 4.817700053 | V53: 4.760726906 | W53: 4.723993727 | X53: 4.726157278 | Y53: 4.925460637 | Z53: 4.68490808 | AA53: 4.858606557 | AB53: 4.846916774 | AC53: 0 | AD53: 0
C54: 5 | D54: 1 | E54: = | F54: 80 | G54: MELITON SALAS TEJADA | H54: I | I54: C.A.P.III | J54: 5.544508671 | K54: 5 | L54: 5 | M54: 4.5 | S54: 5.440140845 | T54: 5.24108818 | U54: 5.340764331 | V54: 5.352818372 | W54: 6.09009009 | X54: 5.88228005 | Y54: 5.26547619 | Z54: 5.43765586 | AA54: 5.42038835 | AB54: 5.544508671 | AC54: 0 | AD54: 0
C55: 5 | D55: 1 | E55: = | F55: 453 | G55: PAUCARPATA | H55: I | I55: C.A.P.III | J55: 5.594017094 | K55: 5 | L55: 5 | M55: 4.5 | S55: 4.953947368 | T55: 4.891891892 | U55: 4.924170616 | V55: 5.016286645 | W55: 5.069090909 | X55: 5.134545455 | Y55: 5.222614841 | Z55: 5.421568627 | AA55: 5.556521739 | AB55: 5.594017094 | AC55: 0 | AD55: 0
C56: 5 | D56: 1 | E56: = | F56: 482 | G56: ALTO SELVA ALEGRE | H56: I | I56: C.A.P.III | J56: 5.145218418 | K56: 5 | L56: 5 | M56: 4.5 | S56: 5.239376771 | T56: 5.142276423 | U56: 5.029639175 | V56: 5.226066897 | W56: 4.970552147 | X56: 5.39031339 | Y56: 5.52149792 | Z56: 5.132049519 | AA56: 5.046403712 | AB56: 5.145218418 | AC56: 0 | AD56: 0
C57: NA | D57: NA | E57: = | F57: 483 | G57: CERRO COLORADO | H57: NA | I57: NA | J57: NA | K57: NA | L57: NA | M57: NA | S57: NA | T57: NA | U57: NA | V57: NA | W57: NA | X57: NA | Y57: NA | Z57: NA | AA57: NA | AB57: NA | AC57: NA | AD57: NA
C58: 3 | D58: 2 | E58: = | F58: 522 | G58: MIRAFLORES | H58: I | I58: C.A.P.III | J58: 4.972033258 | K58: 5 | L58: 5 | M58: 4.5 | S58: 4.685997171 | T58: 4.723684211 | U58: 4.531446541 | V58: 4.594460227 | W58: 4.65494012 | X58: 4.602175602 | Y58: 4.976702509 | Z58: 4.991928251 | AA58: 4.976882923 | AB58: 4.972033258 | AC58: 0 | AD58: 0
C59: 5 | D59: 1 | E59: = | F59: 433 | G59: APLAO | H59: I | I59: C.M. | J59: 5.278195489 | K59: 5 | L59: 5 | M59: 4.5 | S59: 5.796954315 | T59: 6.556291391 | U59: 6.0234375 | V59: 6.415730337 | W59: 5.905511811 | X59: 6.154929577 | Y59: 5.892156863 | Z59: 5.531496063 | AA59: 5.539473684 | AB59: 5.278195489 | AC59: 0 | AD59: 0
C60: 5 | D60: 1 | E60: = | F60: 94 | G60: HUNTER | H60: I | I60: C.A.P.II | J60: 5.331761006 | K60: 5 | L60: 5 | M60: 4.5 | S60: 4.856275304 | T60: 5.235576923 | U60: 5.279829545 | V60: 5.188489209 | W60: 5.206711409 | X60: 5.146562905 | Y60: 5.12034384 | Z60: 4.976190476 | AA60: 5.077409163 | AB60: 5.331761006 | AC60: 0 | AD60: 0
C61: 5 | D61: 1 | E61: = | F61: 95 | G61: LA JOYA | H61: I | I61: P.M. | J61: 5.300970874 | K61: 5 | L61: 5 | M61: 4.5 | S61: 5.01025641 | T61: 5.016666667 | U61: 5.016666667 | V61: 4.930851064 | W61: 5.25698324 | X61: 5.47972973 | Y61: 5.337931034 | Z61: 5.048888889 | AA61: 5.755102041 | AB61: 5.300970874 | AC61: 0 | AD61: 0
C62: 5 | D62: 1 | E62: = | F62: 96 | G62: MATARANI | H62: I | I62: P.M. | J62: 5.619047619 | K62: 5 | L62: 5 | M62: 4.5 | S62: 4.686046512 | T62: 4.572815534 | U62: 4.641304348 | V62: 5.046296296 | W62: 5.25 | X62: 4.460784314 | Y62: 5.457831325 | Z62: 4.701754386 | AA62: 5.314814815 | AB62: 5.619047619 | AC62: 0 | AD62: 0
C63: 5 | D63: 1 | E63: = | F63: 99 | G63: SANTA RITA | H63: I | I63: P.M. | J63: 5.442307692 | K63: 5 | L63: 5 | M63: 4.5 | S63: 6.071428571 | T63: 5 | U63: 5.042553191 | V63: 5.67 | W63: 5.276190476 | X63: 6.82 | Y63: 6.020833333 | Z63: 5.683673469 | AA63: 5.388349515 | AB63: 5.442307692 | AC63: 0 | AD63: 0
C64: 5 | D64: 1 | E64: = | F64: 100 | G64: VITOR | H64: I | I64: P.M. | J64: 5.661971831 | K64: 5 | L64: 5 | M64: 4.5 | S64: 5.015625 | T64: 4.649122807 | U64: 5.018518519 | V64: 5.063492063 | W64: 6.059701493 | X64: 5.225352113 | Y64: 5.731343284 | Z64: 5.2625 | AA64: 5.767123288 | AB64: 5.661971831 | AC64: 0 | AD64: 0
C65: 5 | D65: 1 | E65: = | F65: 85 | G65: CARAVELI | H65: I | I65: P.M. | J65: 5.467741935 | K65: 5 | L65: 5 | M65: 4.5 | S65: 3.352941176 | T65: 4.482758621 | U65: 5.136363636 | V65: 5.026666667 | W65: 5.444444444 | X65: 5.439393939 | Y65: 5.260869565 | Z65: 5.524590164 | AA65: 5.5 | AB65: 5.467741935 | AC65: 0 | AD65: 0
C66: 5 | D66: 1 | E66: = | F66: 86 | G66: CHALA | H66: I | I66: P.M. | J66: 5.047619048 | K66: 5 | L66: 5 | M66: 4.5 | S66: 3.827586207 | T66: 4.084745763 | U66: 4.904761905 | V66: 4.884057971 | W66: 5.529411765 | X66: 6.288135593 | Y66: 7.028571429 | Z66: 4.615384615 | AA66: 5.037735849 | AB66: 5.047619048 | AC66: 0 | AD66: 0
C67: 5 | D67: 1 | E67: = | F67: 88 | G67: CHUCARAPI | H67: I | I67: P.M. | J67: 5.375 | K67: 5 | L67: 5 | M67: 4.5 | S67: 4.608695652 | T67: 4.611111111 | U67: 4.857142857 | V67: 4.547169811 | W67: 4.836065574 | X67: 4.964705882 | Y67: 4.75 | Z67: 4.988095238 | AA67: 5.074074074 | AB67: 5.375 | AC67: 0 | AD67: 0
C68: 5 | D68: 1 | E68: = | F68: 89 | G68: CHUQUIBAMBA | H68: I | I68: P.M. | J68: 5.888888889 | K68: 5 | L68: 5 | M68: 4.5 | S68: 4.639344262 | T68: 5.338028169 | U68: 5.298507463 | V68: 5.652777778 | W68: 5 | X68: 6.057142857 | Y68: 6.432835821 | Z68: 5.818181818 | AA68: 5.895522388 | AB68: 5.888888889 | AC68: 0 | AD68: 0
C69: NA | D69: NA | E69: = | F69: 90 | G69: CONO NORTE | H69: NA | I69: NA | J69: NA | K69: NA | L69: NA | M69: NA | S69: NA | T69: NA | U69: NA | V69: NA | W69: NA | X69: NA | Y69: NA | Z69: NA | AA69: NA | AB69: NA | AC69: NA | AD69: NA
C70: 1 | D70: 3 | E70: = | F70: 91 | G70: CORIRE | H70: I | I70: P.M. | J70: 3.695652174 | K70: 5 | L70: 5 | M70: 4.5 | S70: 4.820895522 | T70: 4.402985075 | U70: 4.852459016 | V70: 5.145833333 | W70: 5.142857143 | X70: 5.391304348 | Y70: 5.295454545 | Z70: 5.25 | AA70: 4.887640449 | AB70: 3.695652174 | AC70: 0 | AD70: 0
C71: 3 | D71: 2 | E71: = | F71: 92 | G71: COTAHUASI | H71: I | I71: P.M. | J71: 4.776315789 | K71: 5 | L71: 5 | M71: 4.5 | S71: 3.819672131 | T71: 4.605633803 | U71: 4.179104478 | V71: 3.626373626 | W71: 5.19047619 | X71: 5.075471698 | Y71: 4.80952381 | Z71: 4.714285714 | AA71: 5.227848101 | AB71: 4.776315789 | AC71: 0 | AD71: 0
C72: 5 | D72: 1 | E72: = | F72: 82 | G72: ACARI | H72: I | I72: P.M. | J72: 7.36 | K72: 5 | L72: 5 | M72: 4.5 | S72: 3.375 | T72: 4.753424658 | U72: 5.144927536 | V72: 5.878787879 | W72: 4.926470588 | X72: 6.597014925 | Y72: 6.287878788 | Z72: 6.53125 | AA72: 7.544117647 | AB72: 7.36 | AC72: 0 | AD72: 0
C73: 5 | D73: 1 | E73: = | F73: 84 | G73: ATICO | H73: I | I73: P.M. | J73: 5.194444444 | K73: 5 | L73: 5 | M73: 4.5 | S73: 4.277777778 | T73: 4.753424658 | U73: 6 | V73: 6.054054054 | W73: 5.223880597 | X73: 5.637681159 | Y73: 5.043478261 | Z73: 5.962962963 | AA73: 5.164383562 | AB73: 5.194444444 | AC73: 0 | AD73: 0
C74: 5 | D74: 1 | E74: = | F74: 87 | G74: CHIVAY | H74: I | I74: C.A.P.I | J74: 5.06779661 | K74: 5 | L74: 5 | M74: 4.5 | S74: 5.588235294 | T74: 5.07 | U74: 4.923913043 | V74: 5.448 | W74: 5.941666667 | X74: 5.401709402 | Y74: 6.843478261 | Z74: 7.404494382 | AA74: 5.754385965 | AB74: 5.06779661 | AC74: 0 | AD74: 0
C75: 5 | D75: 1 | E75: = | F75: 101 | G75: YURA | H75: I | I75: C.A.P.I | J75: 5.203592814 | K75: 5 | L75: 5 | M75: 4.5 | S75: 4.423312883 | T75: 4.331395349 | U75: 4.709302326 | V75: 4.831325301 | W75: 4.823529412 | X75: 4.868571429 | Y75: 4.787878788 | Z75: 4.8 | AA75: 4.961325967 | AB75: 5.203592814 | AC75: 0 | AD75: 0
C76: 3 | E76: = | F76: 97 | G76: EL PEDREGAL | H76: I | I76: C.A.P.I | J76: 4.817371938 | K76: 5 | L76: 5 | M76: 4.5 | S76: 5.259079903 | T76: 4.997674419 | U76: 4.994791667 | V76: 5.225308642 | W76: 5.162227603 | X76: 5.350299401 | Y76: 5.009925558 | Z76: 4.828850856 | AA76: 4.883027523 | AB76: 4.817371938 | AC76: 0 | AD76: 0
C78: 3.2 | G78: RED ASISTENCIAL AYACUCHO
C79: 3 | D79: 2 | E79: = | F79: 102 | G79: HUAMANGA "CARLOS TUPPIA GARCIA GODOS" | H79: II | I79: H.II | J79: 4.621882793 | K79: 5 | L79: 5 | M79: 4.5 | S79: 4.688111168 | T79: 4.590664273 | U79: 4.597351643 | V79: 4.487271281 | W79: 4.528493365 | X79: 4.731408228 | Y79: 4.873553719 | Z79: 4.876817793 | AA79: 4.635334088 | AB79: 4.621882793 | AC79: 0 | AD79: 0
C80: 5 | D80: 1 | E80: = | F80: 449 | G80: METROPOLITANO | H80: I | I80: C.A.P.III | J80: 5.160377358 | K80: 5 | L80: 5 | M80: 4.5 | S80: 5.063369397 | T80: 5.318716578 | U80: 5.401515152 | V80: 5.314049587 | W80: 5.356242841 | X80: 5.369444444 | Y80: 5.49255441 | Z80: 5.256594724 | AA80: 5.076271186 | AB80: 5.160377358 | AC80: 0 | AD80: 0
C81: 5 | D81: 1 | E81: = | F81: 103 | G81: HUANTA | H81: I | I81: C.A.P.II | J81: 5.15212528 | K81: 5 | L81: 5 | M81: 4.5 | S81: 6.643712575 | T81: 5.574585635 | U81: 5.161643836 | V81: 6.031914894 | W81: 6.377906977 | X81: 5.771186441 | Y81: 5.951612903 | Z81: 5.717391304 | AA81: 6.497282609 | AB81: 5.15212528 | AC81: 0 | AD81: 0
C82: 1 | D82: 3 | E82: = | F82: 104 | G82: SAN MIGUEL | H82: I | I82: P.M. | J82: 4.322222222 | K82: 5 | L82: 5 | M82: 4.5 | S82: 5.15625 | T82: 4.861702128 | U82: 5.65 | V82: 4.097826087 | W82: 3.989130435 | X82: 4.588235294 | Y82: 4.494505495 | Z82: 4.391304348 | AA82: 5.464788732 | AB82: 4.322222222 | AC82: 0 | AD82: 0
C83: 3 | D83: 2 | E83: = | F83: 105 | G83: CANGALLO | H83: I | I83: P.M. | J83: 4.75 | K83: 5 | L83: 5 | M83: 4.5 | S83: 5.52 | T83: 5.131313131 | U83: 5.195652174 | V83: 5.23 | W83: 4.6 | X83: 5.02173913 | Y83: 4.831683168 | Z83: 4.736263736 | AA83: 4.439252336 | AB83: 4.75 | AC83: 0 | AD83: 0
C84: 3 | D84: 2 | E84: = | F84: 109 | G84: SAN FRANCISCO | H84: I | I84: P.M. | J84: 4.686868687 | K84: 5 | L84: 5 | M84: 4.5 | S84: 5.123076923 | T84: 4.772727273 | U84: 4.353846154 | V84: 5.430379747 | W84: 4.10989011 | X84: 4.617977528 | Y84: 4.582417582 | Z84: 4.979381443 | AA84: 4.693877551 | AB84: 4.686868687 | AC84: 0 | AD84: 0
C85: 1 | D85: 3 | E85: = | F85: 110 | G85: VILCASHUAMAN | H85: I | I85: P.M. | J85: 3.944444444 | K85: 5 | L85: 5 | M85: 4.5 | S85: 6.757142857 | T85: 5.689189189 | U85: 6.28 | V85: 6.675324675 | W85: 4.119047619 | X85: 5.170731707 | Y85: 4.820224719 | Z85: 5.142857143 | AA85: 4.16091954 | AB85: 3.944444444 | AC85: 0 | AD85: 0
C86: 1 | D86: 3 | E86: = | F86: 423 | G86: QUEROBAMBA | H86: I | I86: P.M. | J86: 4.166666667 | K86: 5 | L86: 5 | M86: 4.5 | S86: 7.117647059 | T86: 6.5 | U86: 6.571428571 | V86: 7 | W86: 4.553191489 | X86: 4.488095238 | Y86: 5.192771084 | Z86: 4.47311828 | AA86: 3.838383838 | AB86: 4.166666667 | AC86: 0 | AD86: 0
C87: 5 | D87: 1 | E87: = | F87: 428 | G87: HUANCAPI | H87: I | I87: P.M. | J87: 5.586206897 | K87: 5 | L87: 5 | M87: 4.5 | S87: 5.3 | T87: 5.513157895 | U87: 5.094117647 | V87: 5.170731707 | W87: 4.956521739 | X87: 5.698795181 | Y87: 6.425287356 | Z87: 5.390804598 | AA87: 5.511363636 | AB87: 5.586206897 | AC87: 0 | AD87: 0
C88: 5 | D88: 1 | E88: = | F88: 401 | G88: HUANCASANCOS | H88: I | I88: C.A.P.I | J88: 5.083333333 | K88: 5 | L88: 5 | M88: 4.5 | S88: 6.841269841 | T88: 6.310344828 | U88: 6.013157895 | V88: 6 | W88: 4.609195402 | X88: 5.295454545 | Y88: 5.102272727 | Z88: 5.869565217 | AA88: 5 | AB88: 5.083333333 | AC88: 0 | AD88: 0
C90: 3 | G90: RED ASISTENCIAL CAJAMARCA
C91: 3 | D91: 2 | E91: = | F91: 191 | G91: CAJAMARCA | H91: II | I91: H.II | J91: 4.94803759 | K91: 5 | L91: 5 | M91: 4.5 | S91: 4.758854782 | T91: 4.656200942 | U91: 4.749176729 | V91: 5.021980736 | W91: 4.98146634 | X91: 4.921667552 | Y91: 4.93199066 | Z91: 5.048147067 | AA91: 4.809674027 | AB91: 4.94803759 | AC91: 0 | AD91: 0
C92: 1 | D92: 3 | E92: = | F92: 192 | G92: CAJABAMBA | H92: I | I92: C.M. | J92: 4.31598513 | K92: 5 | L92: 5 | M92: 4.5 | S92: 4.169724771 | T92: 4.182170543 | U92: 3.912878788 | V92: 4.386292835 | W92: 4.489051095 | X92: 4.542307692 | Y92: 5.132352941 | Z92: 5.098654709 | AA92: 4.26 | AB92: 4.31598513 | AC92: 0 | AD92: 0
C93: 3 | D93: 2 | E93: = | F93: 193 | G93: CELENDIN | H93: I | I93: C.M. | J93: 4.638888889 | K93: 5 | L93: 5 | M93: 4.5 | S93: 4.961672474 | T93: 4.342465753 | U93: 4.450757576 | V93: 4.753472222 | W93: 4.76534296 | X93: 4.920454545 | Y93: 5.054545455 | Z93: 5.766666667 | AA93: 4.777027027 | AB93: 4.638888889 | AC93: 0 | AD93: 0
C94: 3 | D94: 2 | E94: = | F94: 501 | G94: LOS BAÑOS DEL INCA | H94: I | I94: C.A.P.II | J94: 4.943661972 | K94: 5 | L94: 5 | M94: 4.5 | S94: 4.725694444 | T94: 5.386363636 | U94: 5.202586207 | V94: 5.226666667 | W94: 6.5625 | X94: 5.652173913 | Y94: 6.220930233 | Z94: 6.358695652 | AA94: 9.129032258 | AB94: 4.943661972 | AC94: 0 | AD94: 0
C95: 3 | D95: 2 | E95: = | F95: 196 | G95: BAMBAMARCA | H95: I | I95: P.M. | J95: 4.51010101 | K95: 5 | L95: 5 | M95: 4.5 | S95: 5.302083333 | T95: 5.3 | U95: 5.565217391 | V95: 5.488636364 | W95: 3.842105263 | X95: 3.565 | Y95: 3.685840708 | Z95: 3.973684211 | AA95: 4.746543779 | AB95: 4.51010101 | AC95: 0 | AD95: 0
C96: 5 | D96: 1 | E96: = | F96: 198 | G96: CONTUMAZA | H96: I | I96: P.M. | J96: 5.184210526 | K96: 5 | L96: 5 | M96: 4.5 | S96: 5.301369863 | T96: 5.208333333 | U96: 6.079365079 | V96: 5.565217391 | W96: 5.102941176 | X96: 5.31884058 | Y96: 5.383561644 | Z96: 5.225352113 | AA96: 5.253164557 | AB96: 5.184210526 | AC96: 0 | AD96: 0
C97: 3 | D97: 2 | E97: = | F97: 999 | G97: BOLIVAR | H97: I | I97: P.M. | J97: 4.5 | K97: 5 | L97: 5 | M97: 4.5 | S97: 4.208333333 | T97: 4.58 | U97: 4.608695652 | V97: 5.282608696 | W97: 5.18 | X97: 5.52173913 | Y97: 5.522727273 | Z97: 5.111111111 | AA97: 5 | AB97: 4.5 | AC97: 0 | AD97: 0
C98: 5 | D98: 1 | E98: = | F98: 201 | G98: SAN MARCOS | H98: I | I98: P.M. | J98: 5.488636364 | K98: 5 | L98: 5 | M98: 4.5 | S98: 5.145833333 | T98: 4.57 | U98: 4.098901099 | V98: 4.51 | W98: 4.71875 | X98: 5.261363636 | Y98: 4.729166667 | Z98: 5.184782609 | AA98: 5.521276596 | AB98: 5.488636364 | AC98: 0 | AD98: 0
C99: 1 | D99: 3 | E99: = | F99: 202 | G99: SAN MIGUEL | H99: I | I99: P.M. | J99: 4.302083333 | K99: 5 | L99: 5 | M99: 4.5 | S99: 3.770833333 | T99: 3.58 | U99: 2.702380952 | V99: 4.14 | W99: 4.46875 | X99: 4.988636364 | Y99: 5.079545455 | Z99: 4.447368421 | AA99: 3.403846154 | AB99: 4.302083333 | AC99: 0 | AD99: 0
C100: 5 | D100: 1 | E100: = | F100: 203 | G100: SAN PABLO | H100: I | I100: P.M. | J100: 5.65625 | K100: 5 | L100: 5 | M100: 4.5 | S100: 4.197916667 | T100: 3.53 | U100: 3.920454545 | V100: 4.24 | W100: 3.76 | X100: 4.666666667 | Y100: 5.818181818 | Z100: 5.694444444 | AA100: 5.447916667 | AB100: 5.65625 | AC100: 0 | AD100: 0
C101: 3 | D101: 2 | E101: = | F101: 204 | G101: TEMBLADERA | H101: I | I101: P.M. | J101: 4.732394366 | K101: 5 | L101: 5 | M101: 4.5 | S101: 4.125 | T101: 3.95 | U101: 4.204545455 | V101: 4.33 | W101: 3.946236559 | X101: 4.4 | Y101: 4.855263158 | Z101: 4.941176471 | AA101: 5.04 | AB101: 4.732394366 | AC101: 0 | AD101: 0
C102: 1 | D102: 3 | E102: = | F102: 199 | G102: HUALGAYOC | H102: I | I102: C.A.P.I | J102: 3.763888889 | K102: 5 | L102: 5 | M102: 4.5 | S102: 4.151515152 | T102: 3.541666667 | U102: 3.696969697 | V102: 4.347222222 | W102: 4.347222222 | X102: 3.984848485 | Y102: 4.231884058 | Z102: 3.592592593 | AA102: 3.811594203 | AB102: 3.763888889 | AC102: 0 | AD102: 0
C104: 3.667 | G104: RED ASISTENCIAL CUSCO
C105: 5 | D105: 1 | E105: = | F105: 111 | G105: ADOLFO GUEVARA VELASCO | H105: III | I105: H.N. | J105: 4.160024277 | K105: 4 | L105: 4 | M105: 3.6 | S105: 4.033527357 | T105: 3.973752711 | U105: 4.038056332 | V105: 4.067756549 | W105: 3.87309335 | X105: 3.963733906 | Y105: 4.064824655 | Z105: 4.118816068 | AA105: 4.045403796 | AB105: 4.160024277 | AC105: 0 | AD105: 0
C106: 1 | D106: 3 | E106: = | F106: 112 | G106: ESPINAR | H106: II | I106: H.I | J106: 4.20412844 | K106: 5 | L106: 5 | M106: 4.5 | S106: 4.54200542 | T106: 4.746223565 | U106: 4.886503067 | V106: 5.098181818 | W106: 4.943573668 | X106: 4.794573643 | Y106: 4.603004292 | Z106: 4.347560976 | AA106: 4.128342246 | AB106: 4.20412844 | AC106: 0 | AD106: 0
C107: 5 | D107: 1 | E107: = | F107: 113 | G107: QUILLABAMBA | H107: II | I107: H.I | J107: 5.856666667 | K107: 5 | L107: 5 | M107: 4.5 | S107: 5.618729097 | T107: 5.163461538 | U107: 5.181184669 | V107: 5.535714286 | W107: 5.58984375 | X107: 5.475 | Y107: 5.764285714 | Z107: 5.992146597 | AA107: 5.918994413 | AB107: 5.856666667 | AC107: 0 | AD107: 0
C108: 5 | D108: 1 | E108: = | F108: 114 | G108: URUBAMBA | H108: II | I108: H.I | J108: 5.309322034 | K108: 5 | L108: 5 | M108: 4.5 | S108: 5.185810811 | T108: 4.996527778 | U108: 4.984435798 | V108: 5 | W108: 4.831649832 | X108: 4.827380952 | Y108: 5.303370787 | Z108: 5.161616162 | AA108: 5.209183673 | AB108: 5.309322034 | AC108: 0 | AD108: 0
C109: 5 | D109: 1 | E109: = | F109: 115 | G109: SICUANI | H109: II | I109: H.I | J109: 5.525462963 | K109: 5 | L109: 5 | M109: 4.5 | S109: 4.652173913 | T109: 4.952797203 | U109: 4.695736434 | V109: 4.662974684 | W109: 5.077433628 | X109: 5.024590164 | Y109: 5.045801527 | Z109: 5.491489362 | AA109: 5.297777778 | AB109: 5.525462963 | AC109: 0 | AD109: 0
C110: 5 | D110: 1 | E110: = | F110: 126 | G110: SAN SEBASTIAN | H110: I | I110: POL. | J110: 5.006711409 | K110: 5 | L110: 5 | M110: 4.5 | S110: 5.165178571 | T110: 4.644230769 | U110: 5.067484663 | V110: 5.169655172 | W110: 5.238636364 | X110: 4.98820059 | Y110: 5.087797619 | Z110: 5.054252199 | AA110: 5 | AB110: 5.006711409 | AC110: 0 | AD110: 0
C111: 5 | D111: 1 | E111: = | F111: 121 | G111: MACHU PICCHU | H111: I | I111: C.M. | J111: 5.354166667 | K111: 5 | L111: 5 | M111: 4.5 | S111: 5.04109589 | T111: 5 | U111: 5.029411765 | V111: 5.019230769 | W111: 5.040816327 | X111: 4.989010989 | Y111: 5.239130435 | Z111: 5.020618557 | AA111: 6.022988506 | AB111: 5.354166667 | AC111: 0 | AD111: 0
C112: 3 | D112: 2 | E112: = | F112: 123 | G112: PAUCARTAMBO | H112: I | I112: C.M. | J112: 4.75 | K112: 5 | L112: 5 | M112: 4.5 | S112: 5.012658228 | T112: 5 | U112: 5.044776119 | V112: 5 | W112: 5 | X112: 5.025641026 | Y112: 3.982300885 | Z112: 5 | AA112: 4.975609756 | AB112: 4.75 | AC112: 0 | AD112: 0
C113: 3 | D113: 2 | E113: = | F113: 116 | G113: ACOMAYO | H113: I | I113: C.M. | J113: 4.837037037 | K113: 5 | L113: 5 | M113: 4.5 | S113: 2.453815261 | T113: 3.126315789 | U113: 2.933035714 | V113: 2.784753363 | W113: 3.849315068 | X113: 3.893129771 | Y113: 2.740425532 | Z113: 3.308900524 | AA113: 4.49689441 | AB113: 4.837037037 | AC113: 0 | AD113: 0
C114: 3 | D114: 2 | E114: = | F114: 118 | G114: CALCA | H114: I | I114: C.M. | J114: 4.786666667 | K114: 5 | L114: 5 | M114: 4.5 | S114: 5.65530303 | T114: 5.224264706 | U114: 4.95703125 | V114: 5.507246377 | W114: 5.239583333 | X114: 4.75 | Y114: 4.601351351 | Z114: 4.506666667 | AA114: 5.014285714 | AB114: 4.786666667 | AC114: 0 | AD114: 0
C115: 5 | D115: 1 | E115: = | F115: 119 | G115: URCOS | H115: I | I115: C.M. | J115: 5.707142857 | K115: 5 | L115: 5 | M115: 4.5 | S115: 4.709090909 | T115: 4.261290323 | U115: 4.893129771 | V115: 5.272727273 | W115: 5.560606061 | X115: 5.158163265 | Y115: 5.551470588 | Z115: 5.616197183 | AA115: 5.074074074 | AB115: 5.707142857 | AC115: 0 | AD115: 0
C116: 1 | D116: 3 | E116: = | F116: 698 | G116: PICHARI | H116: I | I116: C.M. | J116: 2.710144928 | K116: 5 | L116: 5 | M116: 4.5 | S116: 5.023255814 | T116: 5.02173913 | U116: 5.088235294 | V116: 5.059701493 | W116: 5.013888889 | X116: 5.014705882 | Y116: 4.985074627 | Z116: 4.976470588 | AA116: 5.010204082 | AB116: 2.710144928 | AC116: 0 | AD116: 0
C117: 5 | D117: 1 | E117: = | F117: 417 | G117: METROPOLITANO | H117: I | I117: C.M. | J117: 5.040085516 | K117: 5 | L117: 5 | M117: 4.5 | S117: 5.012360212 | T117: 4.974603175 | U117: 5.043031471 | V117: 4.920124481 | W117: 4.833517699 | X117: 4.802739726 | Y117: 4.859848485 | Z117: 4.966795794 | AA117: 4.935386169 | AB117: 5.040085516 | AC117: 0 | AD117: 0
C118: 3 | D118: 2 | E118: = | F118: 373 | G118: SAN FRANCISCO | H118: I | I118: C.M. | J118: 4.872928177 | K118: 5 | L118: 5 | M118: 4.5 | S118: 5.131067961 | T118: 5.023774146 | U118: 5.016483516 | V118: 4.97961264 | W118: 4.767876788 | X118: 4.265232975 | Y118: 4.829545455 | Z118: 4.929885057 | AA118: 4.805555556 | AB118: 4.872928177 | AC118: 0 | AD118: 0
C119: 1 | D119: 3 | E119: = | F119: 120 | G119: HUYRO | H119: I | I119: C.A.P.II | J119: 1.90625 | K119: 5 | L119: 5 | M119: 4.5 | S119: 5 | T119: 5.022222222 | U119: 5 | V119: 5.040816327 | W119: 5.078947368 | X119: 5.02173913 | Y119: 4.983606557 | Z119: 5.015873016 | AA119: 5.035714286 | AB119: 1.90625 | AC119: 0 | AD119: 0
C120: 1 | D120: 3 | E120: = | F120: 134 | G120: SALVACION | H120: I | I120: P.M. | J120: 2.51754386 | K120: 5 | L120: 5 | M120: 4.5 | S120: 5.021276596 | T120: 5.045454545 | U120: 5.088888889 | V120: 5.057971014 | W120: 5.095238095 | X120: 2.008474576 | Y120: 5.017241379 | Z120: 4.955555556 | AA120: 2.307692308 | AB120: 2.51754386 | AC120: 0 | AD120: 0
C121: 5 | D121: 1 | E121: = | F121: 513 | G121: ECHARATE | H121: I | I121: C.A.P.I | J121: 5 | K121: 5 | L121: 5 | M121: 4.5 | S121: 5.047619048 | T121: 5.029411765 | U121: 5.088888889 | V121: 5 | W121: 5 | X121: 5.055555556 | Y121: 5.02 | Z121: 5 | AA121: 5.037037037 | AB121: 5 | AC121: 0 | AD121: 0
C122: 5 | D122: 1 | E122: = | F122: 510 | G122: SANTO TOMAS | H122: I | I122: C.A.P.I | J122: 5.633333333 | K122: 5 | L122: 5 | M122: 4.5 | S122: 3.073446328 | T122: 2.556122449 | U122: 3.49068323 | V122: 5.192 | W122: 4.217391304 | X122: 7.37037037 | Y122: 4.470198675 | Z122: 3.410810811 | AA122: 3.819767442 | AB122: 5.633333333 | AC122: 0 | AD122: 0
C124: 4.714 | G124: RED ASISTENCIAL HUANCAVELICA
C125: 3 | D125: 2 | E125: = | F125: 342 | G125: HUANCAVELICA | H125: II | I125: H.II | J125: 4.78062249 | K125: 5 | L125: 5 | M125: 4.5 | S125: 4.963969659 | T125: 4.92251169 | U125: 4.600272851 | V125: 4.495694957 | W125: 4.714450867 | X125: 4.956875 | Y125: 4.623015873 | Z125: 5.098265896 | AA125: 5.256816741 | AB125: 4.78062249 | AC125: 0 | AD125: 0
C126: 5 | D126: 1 | E126: = | F126: 347 | G126: LIRCAY | H126: I | I126: C.M. | J126: 6.356643357 | K126: 5 | L126: 5 | M126: 4.5 | S126: 4.844897959 | T126: 6.292220114 | U126: 6.093203883 | V126: 5.259541985 | W126: 5.629764065 | X126: 5.824528302 | Y126: 6.034548944 | Z126: 6.378881988 | AA126: 6.158075601 | AB126: 6.356643357 | AC126: 0 | AD126: 0
C127: 5 | D127: 1 | E127: = | F127: 348 | G127: PAMPAS | H127: I | I127: C.M. | J127: 5.777408638 | K127: 5 | L127: 5 | M127: 4.5 | S127: 5.710382514 | T127: 5.802083333 | U127: 7.265060241 | V127: 6.235294118 | W127: 6.708791209 | X127: 6.502762431 | Y127: 6.802030457 | Z127: 7.265957447 | AA127: 6.319248826 | AB127: 5.777408638 | AC127: 0 | AD127: 0
C128: 5 | D128: 1 | E128: = | F128: 343 | G128: ACOBAMBA | H128: I | I128: P.M. | J128: 5.3984375 | K128: 5 | L128: 5 | M128: 4.5 | S128: 5 | T128: 5.107692308 | U128: 5.11627907 | V128: 5.078740157 | W128: 5.285714286 | X128: 5.697674419 | Y128: 5.923076923 | Z128: 6.201550388 | AA128: 5.84496124 | AB128: 5.3984375 | AC128: 0 | AD128: 0
C129: 5 | D129: 1 | E129: = | F129: 344 | G129: CASTROVIRREYNA | H129: I | I129: P.M. | J129: 8.216216216 | K129: 5 | L129: 5 | M129: 4.5 | S129: 2.934210526 | T129: 2.6 | U129: 3.117647059 | V129: 2.482758621 | W129: 6.459016393 | X129: 8.432432432 | Y129: 7.75 | Z129: 8.45 | AA129: 8.485714286 | AB129: 8.216216216 | AC129: 0 | AD129: 0
C130: 5 | D130: 1 | E130: = | F130: 345 | G130: CHURCAMPA | H130: I | I130: C.A.P.I | J130: 9.25 | K130: 5 | L130: 5 | M130: 4.5 | S130: 5.1875 | T130: 6.284090909 | U130: 7.4 | V130: 8.405063291 | W130: 6.714285714 | X130: 7.512195122 | Y130: 7.810126582 | Z130: 7.827586207 | AA130: 7.710843373 | AB130: 9.25 | AC130: 0 | AD130: 0
C131: 5 | D131: 1 | E131: = | F131: 346 | G131: HUAYTARA | H131: I | I131: C.A.P.I | J131: 7.380952381 | K131: 5 | L131: 5 | M131: 4.5 | S131: 6.52 | T131: 7.042253521 | U131: 5.659793814 | V131: 7.522222222 | W131: 7.12195122 | X131: 7.291262136 | Y131: 8.365853659 | Z131: 7.244444444 | AA131: 7.355555556 | AB131: 7.380952381 | AC131: 0 | AD131: 0
C133: 4.143 | G133: RED ASISTENCIAL HUÁNUCO
C134: 3 | D134: 2 | E134: = | F134: 296 | G134: HUANUCO | H134: II | I134: H.II | J134: 4.731581043 | K134: 5 | L134: 5 | M134: 4.5 | S134: 4.892043183 | T134: 4.715618661 | U134: 4.78579275 | V134: 4.778596355 | W134: 4.737004236 | X134: 4.757160648 | Y134: 4.786607143 | Z134: 4.800084175 | AA134: 4.753725782 | AB134: 4.731581043 | AC134: 0 | AD134: 0
C135: 3 | D135: 2 | E135: = | F135: 297 | G135: TINGO MARIA | H135: II | I135: H.I | J135: 4.969457014 | K135: 5 | L135: 5 | M135: 4.5 | S135: 5.257668712 | T135: 5.198412698 | U135: 5.248861912 | V135: 5.185785536 | W135: 5.14953271 | X135: 5.238473768 | Y135: 5.248968363 | Z135: 4.911904762 | AA135: 4.760373444 | AB135: 4.969457014 | AC135: 0 | AD135: 0
C136: 5 | D136: 1 | E136: = | F136: 475 | G136: METROPOLITANO DE HUANUCO | H136: I | I136: C.A.P.III | J136: 5.045627376 | K136: 5 | L136: 5 | M136: 4.5 | S136: 4.957085828 | T136: 7.195187166 | U136: 4.952522255 | V136: 4.895813048 | W136: 4.90438247 | X136: 4.882911392 | Y136: 4.942326491 | Z136: 5.056387665 | AA136: 5.164772727 | AB136: 5.045627376 | AC136: 0 | AD136: 0
C137: 3 | D137: 2 | E137: = | F137: 771 | G137: AMARILIS PILCO-MARCA | H137: I | I137: C.A.P.III | J137: 4.913851351 | K137: 5 | L137: 5 | M137: 4.5 | S137: 5.153631285 | T137: 5.144846797 | U137: 4.896848138 | V137: 5.200520833 | W137: 5.156862745 | X137: 5.055555556 | Y137: 4.988425926 | Z137: 5.018726592 | AA137: 5.018726592 | AB137: 4.913851351 | AC137: 0 | AD137: 0
C138: 5 | D138: 1 | E138: = | F138: 298 | G138: LEONCIO PRADO | H138: I | I138: C.M. | J138: 5.147849462 | K138: 5 | L138: 5 | M138: 4.5 | S138: 5.770072993 | T138: 4.770588235 | U138: 4.508905852 | V138: 4.253521127 | W138: 4.718518519 | X138: 4.95148248 | Y138: 5.156812339 | Z138: 5.220708447 | AA138: 5.120512821 | AB138: 5.147849462 | AC138: 0 | AD138: 0
C139: 3 | D139: 2 | E139: = | F139: 299 | G139: AUCAYACU | H139: I | I139: P.M. | J139: 4.879032258 | K139: 5 | L139: 5 | M139: 4.5 | S139: 5.063157895 | T139: 5.15 | U139: 4.026785714 | V139: 5.208333333 | W139: 5.0625 | X139: 5.163043478 | Y139: 5.072916667 | Z139: 4.991150442 | AA139: 4.879032258 | AB139: 4.879032258 | AC139: 0 | AD139: 0
C140: 5 | D140: 1 | E140: = | F140: 300 | G140: BAÑOS | H140: I | I140: P.M. | J140: 5.101123596 | K140: 5 | L140: 5 | M140: 4.5 | S140: 5.01 | T140: 5.044642857 | U140: 4.920792079 | V140: 4.824074074 | W140: 4.868421053 | X140: 4.9375 | Y140: 5.010416667 | Z140: 5 | AA140: 4.923076923 | AB140: 5.101123596 | AC140: 0 | AD140: 0
C141: 5 | D141: 1 | E141: = | F141: 302 | G141: SÚNGARO | H141: I | I141: P.M. | J141: 5 | K141: 5 | L141: 5 | M141: 4.5 | S141: 5.017857143 | T141: 4.981818182 | U141: 4.911764706 | V141: 4.789473684 | W141: 4.201550388 | X141: 4.762295082 | Y141: 5.0125 | Z141: 4.821705426 | AA141: 4.965217391 | AB141: 5 | AC141: 0 | AD141: 0
C142: 5 | D142: 1 | E142: = | F142: 303 | G142: LA UNION | H142: I | I142: P.M. | J142: 5.100694444 | K142: 5 | L142: 5 | M142: 4.5 | S142: 5.05734767 | T142: 5.053639847 | U142: 5.077235772 | V142: 5.017064846 | W142: 4.688811189 | X142: 5.078853047 | Y142: 5.048951049 | Z142: 5.043046358 | AA142: 5.031034483 | AB142: 5.100694444 | AC142: 0 | AD142: 0
C143: 5 | D143: 1 | E143: = | F143: 304 | G143: LLATA | H143: I | I143: P.M. | J143: 5 | K143: 5 | L143: 5 | M143: 4.5 | S143: 5.0625 | T143: 4.820512821 | U143: 4.968609865 | V143: 4.896296296 | W143: 4.910931174 | X143: 4.969432314 | Y143: 5.008368201 | Z143: 4.991304348 | AA143: 4.964705882 | AB143: 5 | AC143: 0 | AD143: 0
C144: 5 | D144: 1 | E144: = | F144: 305 | G144: PANAO | H144: I | I144: P.M. | J144: 5.010752688 | K144: 5 | L144: 5 | M144: 4.5 | S144: 5.065789474 | T144: 5.022988506 | U144: 4.653061224 | V144: 4.598214286 | W144: 4.897058824 | X144: 5 | Y144: 5.010869565 | Z144: 4.978494624 | AA144: 5.02970297 | AB144: 5.010752688 | AC144: 0 | AD144: 0
C145: 1 | D145: 3 | E145: = | F145: 290 | G145: TOCACHE | H145: I | I145: P.M. | J145: 3.712707182 | K145: 5 | L145: 5 | M145: 4.5 | S145: 7.7875 | T145: 4.526315789 | U145: 4.331168831 | V145: 4.05988024 | W145: 3.7 | X145: 3.932773109 | Y145: 3.824242424 | Z145: 3.850340136 | AA145: 3.754098361 | AB145: 3.712707182 | AC145: 0 | AD145: 0
C146: 5 | D146: 1 | E146: = | F146: 400 | G146: SANTA LUCIA | H146: I | I146: P.M. | J146: 5.037878788 | K146: 5 | L146: 5 | M146: 4.5 | S146: 5.031496063 | T146: 5.007042254 | U146: 4.940677966 | V146: 4.97260274 | W146: 5.035211268 | X146: 5 | Y146: 5.099236641 | Z146: 5.007352941 | AA146: 5.007194245 | AB146: 5.037878788 | AC146: 0 | AD146: 0
C147: 5 | D147: 1 | E147: = | F147: 291 | G147: UCHIZA | H147: I | I147: C.A.P.I | J147: 5.176470588 | K147: 5 | L147: 5 | M147: 4.5 | S147: 5.143617021 | T147: 5.291891892 | U147: 4.663461538 | V147: 4.973451327 | W147: 5.174311927 | X147: 5.174311927 | Y147: 4.809322034 | Z147: 5.041860465 | AA147: 5.008 | AB147: 5.176470588 | AC147: 0 | AD147: 0
C149: 4.714 | G149: RED ASISTENCIAL HUARAZ
C150: 5 | D150: 1 | E150: = | F150: 162 | G150: HUARAZ | H150: II | I150: H.II | J150: 5.131460674 | K150: 5 | L150: 5 | M150: 4.5 | S150: 5.11709357 | T150: 5.252421308 | U150: 5.026878771 | V150: 5.09825528 | W150: 5.03597786 | X150: 5.005402972 | Y150: 4.873680241 | Z150: 5.029359745 | AA150: 5.11501254 | AB150: 5.131460674 | AC150: 0 | AD150: 0
C151: 5 | D151: 1 | E151: = | F151: 163 | G151: CARAZ | H151: I | I151: C.M. | J151: 5.257142857 | K151: 5 | L151: 5 | M151: 4.5 | S151: 5.257731959 | T151: 5.240853659 | U151: 5.105960265 | V151: 5.111940299 | W151: 5.398809524 | X151: 5.461077844 | Y151: 5.222543353 | Z151: 5.263157895 | AA151: 5.30239521 | AB151: 5.257142857 | AC151: 0 | AD151: 0
C152: 5 | D152: 1 | E152: = | F152: 164 | G152: CARHUAZ | H152: I | I152: C.M. | J152: 5.303846154 | K152: 5 | L152: 5 | M152: 4.5 | S152: 5.805907173 | T152: 5.489583333 | U152: 5.08203125 | V152: 6.226277372 | W152: 5.405797101 | X152: 6.421052632 | Y152: 6.263157895 | Z152: 6.076271186 | AA152: 5.953571429 | AB152: 5.303846154 | AC152: 0 | AD152: 0
C153: 5 | D153: 1 | E153: = | F153: 168 | G153: HUARI | H153: I | I153: C.M. | J153: 5.080729167 | K153: 5 | L153: 5 | M153: 4.5 | S153: 5.444444444 | T153: 4.92 | U153: 5.547297297 | V153: 5.1325 | W153: 5.392670157 | X153: 5.278846154 | Y153: 5.675824176 | Z153: 5.381868132 | AA153: 5.3046875 | AB153: 5.080729167 | AC153: 0 | AD153: 0
C154: 5 | D154: 1 | E154: = | F154: 181 | G154: POMABAMBA | H154: I | I154: C.A.P.II | J154: 5.607692308 | K154: 5 | L154: 5 | M154: 4.5 | S154: 4.979166667 | T154: 5.013333333 | U154: 4.981617647 | V154: 5.131386861 | W154: 4.726962457 | X154: 4.928082192 | Y154: 5.555984556 | Z154: 5.229249012 | AA154: 5.444852941 | AB154: 5.607692308 | AC154: 0 | AD154: 0
C155: 3 | D155: 2 | E155: = | F155: 179 | G155: PISCOBAMBA | H155: I | I155: P.M. | J155: 4.889705882 | K155: 5 | L155: 5 | M155: 4.5 | S155: 5.154639175 | T155: 5.076530612 | U155: 4.914772727 | V155: 5.369318182 | W155: 4.94 | X155: 5.029069767 | Y155: 5.011363636 | Z155: 5.072289157 | AA155: 5.064935065 | AB155: 4.889705882 | AC155: 0 | AD155: 0
C156: 5 | D156: 1 | E156: = | F156: 190 | G156: YUNGAY | H156: I | I156: P.M. | J156: 6.571428571 | K156: 5 | L156: 5 | M156: 4.5 | S156: 5.260869565 | T156: 5.452380952 | U156: 5 | V156: 5.306818182 | W156: 4.833333333 | X156: 4.823529412 | Y156: 5.2625 | Z156: 6.011363636 | AA156: 6.402173913 | AB156: 6.571428571 | AC156: 0 | AD156: 0
C158: 5 | G158: RED ASISTENCIAL ICA
C159: 5 | D159: 1 | E159: = | F159: 854 | G159: AUGUSTO HERNANDEZ MENDOZA | H159: II | I159: H.IV | J159: 4.574448244 | K159: 4 | L159: 4 | M159: 3.6 | S159: 4.760629394 | T159: 4.78182437 | U159: 4.783896696 | V159: 4.703168256 | W159: 4.735006519 | X159: 4.730082855 | Y159: 4.681308411 | Z159: 4.662969809 | AA159: 4.685056078 | AB159: 4.574448244 | AC159: 0 | AD159: 0
C160: 5 | D160: 1 | E160: = | F160: 46 | G160: RENE TOCHE GROPPO | H160: II | I160: H.II | J160: 5.030606061 | K160: 5 | L160: 5 | M160: 4.5 | S160: 5.18061674 | T160: 5.096272168 | U160: 5.148710167 | V160: 4.954619125 | W160: 4.992108586 | X160: 5.035484858 | Y160: 5.025188917 | Z160: 5.059861374 | AA160: 4.984706617 | AB160: 5.030606061 | AC160: 0 | AD160: 0
C161: 5 | D161: 1 | E161: = | F161: 47 | G161: MARIA REICHE NEUMAN | H161: II | I161: H.I | J161: 5.064128257 | K161: 5 | L161: 5 | M161: 4.5 | S161: 5.212048193 | T161: 4.978891821 | U161: 5.242038217 | V161: 5.241685144 | W161: 5.083932854 | X161: 5.088172043 | Y161: 5.108786611 | Z161: 4.993254637 | AA161: 5.237318841 | AB161: 5.064128257 | AC161: 0 | AD161: 0
C162: 5 | D162: 1 | E162: = | F162: 45 | G162: FELIX TORREALVA GUTIERREZ | H162: II | I162: H.I | J162: 5.069320215 | K162: 5 | L162: 5 | M162: 4.5 | S162: 5.201388889 | T162: 5.107112616 | U162: 5.143895349 | V162: 5.059796916 | W162: 5.087301587 | X162: 5.1192 | Y162: 5.163667524 | Z162: 5.222222222 | AA162: 5.16306862 | AB162: 5.069320215 | AC162: 0 | AD162: 0
C163: 5 | D163: 1 | E163: = | F163: 48 | G163: ANTONIO SKRABONJA ANTONCICH | H163: II | I163: H.I | J163: 5.023335231 | K163: 5 | L163: 5 | M163: 4.5 | S163: 5.206662554 | T163: 5.134138589 | U163: 5.1776 | V163: 4.951977401 | W163: 5.025974026 | X163: 4.995486459 | Y163: 4.992753623 | Z163: 4.989866667 | AA163: 5.090070537 | AB163: 5.023335231 | AC163: 0 | AD163: 0
C164: 5 | D164: 1 | E164: = | F164: 424 | G164: PUEBLO NUEVO | H164: I | I164: C.A.P.II | J164: 5.065359477 | K164: 5 | L164: 5 | M164: 4.5 | S164: 5.03539823 | T164: 5.111627907 | U164: 5.150568182 | V164: 4.888888889 | W164: 4.468333333 | X164: 4.918114144 | Y164: 4.956730769 | Z164: 5.230994152 | AA164: 5.174641148 | AB164: 5.065359477 | AC164: 0 | AD164: 0
C165: 5 | D165: 1 | E165: = | F165: 432 | G165: NASCA | H165: I | I165: C.A.P.II | J165: 5.440740741 | K165: 5 | L165: 5 | M165: 4.5 | S165: 4.569514238 | T165: 5.009225092 | U165: 5.120418848 | V165: 5.2 | W165: 5.202040816 | X165: 5.187110187 | Y165: 5.004918033 | Z165: 5.542750929 | AA165: 5.840248963 | AB165: 5.440740741 | AC165: 0 | AD165: 0
C166: 5 | D166: 1 | E166: = | F166: 52 | G166: MACACONA | H166: I | I166: C.A.P.II | J166: 5.160606061 | K166: 5 | L166: 5 | M166: 4.5 | S166: 5.166037736 | T166: 5.211581292 | U166: 4.2879046 | V166: 5.276712329 | W166: 5.167410714 | X166: 5.16122449 | Y166: 5.325892857 | Z166: 5.377777778 | AA166: 5.173913043 | AB166: 5.160606061 | AC166: 0 | AD166: 0
C167: 5 | D167: 1 | E167: = | F167: 841 | G167: LA TINGUIÑA | H167: I | I167: C.A.P.II | J167: 5.557504873 | K167: 5 | L167: 5 | M167: 4.5 | S167: 5.505567929 | T167: 5.490044248 | U167: 5.401920439 | V167: 5.788461538 | W167: 5.451117318 | X167: 5.383879781 | Y167: 5.398373984 | Z167: 5.38973384 | AA167: 5.261811024 | AB167: 5.557504873 | AC167: 0 | AD167: 0
C168: 5 | D168: 1 | E168: = | F168: 842 | G168: SANTA MARGARITA | H168: I | I168: C.A.P.II | J168: 6.026128266 | K168: 5 | L168: 5 | M168: 4.5 | S168: 4.966809422 | T168: 5.102249489 | U168: 5.130705394 | V168: 5.250793651 | W168: 5.008347245 | X168: 5.287744227 | Y168: 5.260631001 | Z168: 5.897058824 | AA168: 6.233261339 | AB168: 6.026128266 | AC168: 0 | AD168: 0
C169: 5 | D169: 1 | E169: = | F169: 846 | G169: PUQUIO | H169: I | I169: C.A.P.II | J169: 5 | K169: 5 | L169: 5 | M169: 4.5 | S169: 5.0625 | T169: 4.692771084 | U169: 5 | V169: 5 | W169: 5.004065041 | X169: 5 | Y169: 5.003891051 | Z169: 5.011320755 | AA169: 5.007092199 | AB169: 5 | AC169: 0 | AD169: 0
C170: 5 | D170: 1 | E170: = | F170: 832 | G170: CORACORA | H170: I | I170: C.A.P.I | J170: 5.15 | K170: 5 | L170: 5 | M170: 4.5 | S170: 5.09202454 | T170: 5.229885057 | U170: 5.111111111 | V170: 5.413533835 | W170: 5.980582524 | X170: 6.153153153 | Y170: 5.789473684 | Z170: 6.118181818 | AA170: 5.41025641 | AB170: 5.15 | AC170: 0 | AD170: 0
C171: 5 | D171: 1 | E171: = | F171: 50 | G171: CHAVALINA | H171: I | I171: C.A.P.I | J171: 5.167741935 | K171: 5 | L171: 5 | M171: 4.5 | S171: 5.685714286 | T171: 5.409448819 | U171: 5.231481481 | V171: 5.094594595 | W171: 4.80625 | X171: 5.054054054 | Y171: 5.178947368 | Z171: 5.171641791 | AA171: 5.217391304 | AB171: 5.167741935 | AC171: 0 | AD171: 0
C172: 5 | D172: 1 | E172: = | F172: 54 | G172: PALPA | H172: I | I172: C.A.P.I | J172: 5.026315789 | K172: 5 | L172: 5 | M172: 4.5 | S172: 5.466216216 | T172: 5.106951872 | U172: 4.772058824 | V172: 4.335526316 | W172: 4.890625 | X172: 5.083333333 | Y172: 5.307017544 | Z172: 5.202702703 | AA172: 5.121794872 | AB172: 5.026315789 | AC172: 0 | AD172: 0
C173: 5 | D173: 1 | E173: = | F173: 57 | G173: SAN CLEMENTE | H173: I | I173: C.A.P.I | J173: 5.581967213 | K173: 5 | L173: 5 | M173: 4.5 | S173: 5.038910506 | T173: 5.352422907 | U173: 5.260663507 | V173: 5.26645768 | W173: 5.218637993 | X173: 5.296442688 | Y173: 5.51754386 | Z173: 5.916256158 | AA173: 5.794117647 | AB173: 5.581967213 | AC173: 0 | AD173: 0
C174: 5 | D174: 1 | E174: = | F174: 59 | G174: TAMBO DE MORA | H174: I | I174: C.A.P.I | J174: 5.752808989 | K174: 5 | L174: 5 | M174: 4.5 | S174: 4.612903226 | T174: 4.633484163 | U174: 5.497206704 | V174: 4.018796992 | W174: 4.018796992 | X174: 5.536082474 | Y174: 5.578231293 | Z174: 5.796791444 | AA174: 4.710900474 | AB174: 5.752808989 | AC174: 0 | AD174: 0
C175: 5 | D175: 1 | E175: = | F175: 61 | G175: VILLA TÚPAC AMARU | H175: I | I175: C.A.P.I | J175: 5.377192982 | K175: 5 | L175: 5 | M175: 4.5 | S175: 5.213740458 | T175: 5.067924528 | U175: 5.125 | V175: 8.6 | W175: 5.337662338 | X175: 5.105042017 | Y175: 5.21888412 | Z175: 5.142857143 | AA175: 5.163424125 | AB175: 5.377192982 | AC175: 0 | AD175: 0
C177: 4 | G177: RED ASISTENCIAL JUNÍN
C178: 5 | D178: 1 | E178: = | F178: 307 | G178: RAMIRO PRIALE PRIALE | H178: III | I178: H.N. | J178: 4.038892412 | K178: 4 | L178: 4 | M178: 3.6 | S178: 4.02915589 | T178: 3.995221027 | U178: 3.97723174 | V178: 3.872028862 | W178: 3.933779264 | X178: 4.006096233 | Y178: 4.027179822 | Z178: 4.082116351 | AA178: 3.806542811 | AB178: 4.038892412 | AC178: 0 | AD178: 0
C179: 5 | D179: 1 | E179: = | F179: 308 | G179: ALBERTO HURTADO ABADIA | H179: II | I179: H.II | J179: 5.271784232 | K179: 5 | L179: 5 | M179: 4.5 | S179: 5.382389937 | T179: 5.383033419 | U179: 4.997315436 | V179: 4.9958159 | W179: 5 | X179: 5.001166861 | Y179: 5.167874396 | Z179: 4.99871959 | AA179: 5.186136072 | AB179: 5.271784232 | AC179: 0 | AD179: 0
C180: 5 | D180: 1 | E180: = | F180: 309 | G180: RIO NEGRO - SATIPO | H180: II | I180: H.I | J180: 5.429906542 | K180: 5 | L180: 5 | M180: 4.5 | S180: 5.949748744 | T180: 7.426008969 | U180: 6.153508772 | V180: 5.891156463 | W180: 5.515358362 | X180: 5.444444444 | Y180: 5.804597701 | Z180: 5.466480447 | AA180: 5.713432836 | AB180: 5.429906542 | AC180: 0 | AD180: 0
C181: 5 | D181: 1 | E181: = | F181: 313 | G181: HOSPITAL DE LA SELVA CENTRAL Y ENFERMEDADES TROPICALES HUGO PESCE PESCETTO | H181: II | I181: H.I | J181: 5.500854701 | K181: 5 | L181: 5 | M181: 4.5 | S181: 5.617283951 | T181: 5.37431694 | U181: 5.459330144 | V181: 4.811230585 | W181: 5.318361955 | X181: 5.340026774 | Y181: 5.461218837 | Z181: 5.589869281 | AA181: 5.465944272 | AB181: 5.500854701 | AC181: 0 | AD181: 0
C182: 3 | D182: 2 | E182: = | F182: 310 | G182: TARMA | H182: II | I182: H.I | J182: 4.975124378 | K182: 5 | L182: 5 | M182: 4.5 | S182: 5.003144654 | T182: 5.00617284 | U182: 4.990769231 | V182: 5.011278195 | W182: 5.06779661 | X182: 5.014035088 | Y182: 5.009881423 | Z182: 4.997340426 | AA182: 5.009803922 | AB182: 4.975124378 | AC182: 0 | AD182: 0
C183: 5 | D183: 1 | E183: = | F183: 311 | G183: JAUJA | H183: I | I183: POL. | J183: 5.497685185 | K183: 5 | L183: 5 | M183: 4.5 | S183: 5.260434057 | T183: 5.180412371 | U183: 5.561307902 | V183: 5.795969773 | W183: 5.74742268 | X183: 5.616 | Y183: 5.648648649 | Z183: 5.643410853 | AA183: 5.575757576 | AB183: 5.497685185 | AC183: 0 | AD183: 0
C184: 5 | D184: 1 | E184: = | F184: 834 | G184: METROPOLITANO HUANCAYO | H184: I | I184: POL. | J184: 5.298760899 | K184: 5 | L184: 5 | M184: 4.5 | S184: 5.155645161 | T184: 4.809729064 | U184: 4.740039841 | V184: 4.790017212 | W184: 4.799102692 | X184: 4.836333879 | Y184: 4.952316076 | Z184: 4.907614782 | AA184: 4.771848739 | AB184: 5.298760899 | AC184: 0 | AD184: 0
C185: 5 | D185: 1 | E185: = | F185: 494 | G185: MANTARO | H185: I | I185: C.A.P.III | J185: 4.998863636 | K185: 5 | L185: 5 | M185: 4.5 | S185: 4.998717949 | T185: 5 | U185: 4.997652582 | V185: 4.996483001 | W185: 4.995721925 | X185: 5.003521127 | Y185: 4.997931748 | Z185: 5 | AA185: 5.003115265 | AB185: 4.998863636 | AC185: 0 | AD185: 0
C186: 5 | D186: 1 | E186: = | F186: 317 | G186: CONCEPCION | H186: I | I186: C.M. | J186: 5.003623188 | K186: 5 | L186: 5 | M186: 4.5 | S186: 5.003546099 | T186: 5.014814815 | U186: 5.015564202 | V186: 5.006622517 | W186: 5 | X186: 5.003676471 | Y186: 5.003378378 | Z186: 5.01048951 | AA186: 5.013513514 | AB186: 5.003623188 | AC186: 0 | AD186: 0
C187: 5 | D187: 1 | E187: = | F187: 312 | G187: JUNIN | H187: I | I187: C.A.P.II | J187: 5 | K187: 5 | L187: 5 | M187: 4.5 | S187: 4.979591837 | T187: 5.012820513 | U187: 5.043478261 | V187: 5.041666667 | W187: 5.060606061 | X187: 5.029411765 | Y187: 5.032258065 | Z187: 5 | AA187: 5.011111111 | AB187: 5 | AC187: 0 | AD187: 0
C188: 5 | D188: 1 | E188: = | F188: 320 | G188: MOROCOCHA | H188: I | I188: C.A.P.II | J188: 6.135416667 | K188: 5 | L188: 5 | M188: 4.5 | S188: 6.089285714 | T188: 8.836734694 | U188: 4.666666667 | V188: 8.139534884 | W188: 5 | X188: 4.273809524 | Y188: 4.578947368 | Z188: 5.2 | AA188: 4.282352941 | AB188: 6.135416667 | AC188: 0 | AD188: 0
C189: 5 | D189: 1 | E189: = | F189: 454 | G189: CHILCA | H189: I | I189: C.A.P.II | J189: 5.075093867 | K189: 5 | L189: 5 | M189: 4.5 | S189: 4.998529412 | T189: 4.998671979 | U189: 5.001267427 | V189: 4.997833153 | W189: 5.002325581 | X189: 5.001243781 | Y189: 5 | Z189: 5.143529412 | AA189: 5.165720772 | AB189: 5.075093867 | AC189: 0 | AD189: 0
C190: 5 | D190: 1 | E190: = | F190: 853 | G190: CHUPACA | H190: I | I190: C.A.P.II | J190: 5.163636364 | K190: 5 | L190: 5 | M190: 4.5 | S190: 5.407534247 | T190: 5.261538462 | U190: 5.154574132 | V190: 5.357771261 | W190: 5.312903226 | X190: 5.319502075 | Y190: 5.194610778 | Z190: 5.203342618 | AA190: 5.254601227 | AB190: 5.163636364 | AC190: 0 | AD190: 0
C191: 1 | D191: 3 | E191: = | F191: 372 | G191: SAN PEDRO DE CAJAS | H191: I | I191: P.M. | J191: 2.880952381 | K191: 5 | L191: 5 | M191: 4.5 | S191: 2.292682927 | T191: 2.490566038 | U191: 2.511627907 | V191: 2.368421053 | W191: 2.904761905 | X191: 3.730769231 | Y191: 4.633333333 | Z191: 2.552631579 | AA191: 2.552631579 | AB191: 2.880952381 | AC191: 0 | AD191: 0
C192: 5 | D192: 1 | E192: = | F192: 322 | G192: PACHACAYO | H192: I | I192: P.M. | J192: 5.540540541 | K192: 5 | L192: 5 | M192: 4.5 | S192: 5.259259259 | T192: 5.0625 | U192: 5.305555556 | V192: 2.968253968 | W192: 3.75 | X192: 3.68627451 | Y192: 4.47826087 | Z192: 4.583333333 | AA192: 5.456521739 | AB192: 5.540540541 | AC192: 0 | AD192: 0
C193: 3 | D193: 2 | E193: = | F193: 323 | G193: SAN CRISTOBAL | H193: I | I193: P.M. | J193: 4.788732394 | K193: 5 | L193: 5 | M193: 4.5 | S193: 3.371428571 | T193: 3.442857143 | U193: 2.121212121 | V193: 2.787234043 | W193: 3.389830508 | X193: 4.55 | Y193: 4.4 | Z193: 4.296610169 | AA193: 4.030927835 | AB193: 4.788732394 | AC193: 0 | AD193: 0
C194: 3 | D194: 2 | E194: = | F194: 324 | G194: YAURICOCHA | H194: I | I194: P.M. | J194: 4.92 | K194: 5 | L194: 5 | M194: 4.5 | S194: 4.965517241 | T194: 5 | U194: 5 | V194: 5 | W194: 4.078947368 | X194: 4.733333333 | Y194: 4.772727273 | Z194: 4.404255319 | AA194: 4.836734694 | AB194: 4.92 | AC194: 0 | AD194: 0
C195: 3 | D195: 2 | E195: = | F195: 318 | G195: MARH-TÚNEL | H195: I | I195: P.M. | J195: 4.625 | K195: 5 | L195: 5 | M195: 4.5 | S195: 3.978723404 | T195: 2.793650794 | U195: 2.888888889 | V195: 3.623188406 | W195: 3.045454545 | X195: 2.836065574 | Y195: 3.109756098 | Z195: 2.545454545 | AA195: 3.97826087 | AB195: 4.625 | AC195: 0 | AD195: 0
C196: 3 | D196: 2 | E196: = | F196: 314 | G196: ANDAYCHAGUA | H196: I | I196: P.M. | J196: 4.765957447 | K196: 5 | L196: 5 | M196: 4.5 | S196: 3.424242424 | T196: 2.566037736 | U196: 2.636363636 | V196: 2.376623377 | W196: 2.333333333 | X196: 2.361111111 | Y196: 2.678571429 | Z196: 3.261538462 | AA196: 4.055555556 | AB196: 4.765957447 | AC196: 0 | AD196: 0
C197: 1 | D197: 3 | E197: = | F197: 315 | G197: COBRIZA | H197: I | I197: P.M. | J197: 3.978723404 | K197: 5 | L197: 5 | M197: 4.5 | S197: 6.136363636 | T197: 4.071428571 | U197: 4.952380952 | V197: 6.272727273 | W197: 3.823529412 | X197: 3.875 | Y197: 4 | Z197: 3.804347826 | AA197: 4.175438596 | AB197: 3.978723404 | AC197: 0 | AD197: 0
C198: 1 | D198: 3 | E198: = | F198: 316 | G198: CORPACANCHA | H198: I | I198: P.M. | J198: 2.407407407 | K198: 5 | L198: 5 | M198: 4.5 | S198: 3.333333333 | T198: 2.6875 | U198: 3.3 | V198: 2.5 | W198: 1.044444444 | X198: 1.673076923 | Y198: 2 | Z198: 1.833333333 | AA198: 2.833333333 | AB198: 2.407407407 | AC198: 0 | AD198: 0
C199: 5 | D199: 1 | E199: = | F199: 492 | G199: PICHANAQUI | H199: I | I199: C.A.P.I | J199: 5 | K199: 5 | L199: 5 | M199: 4.5 | S199: 5.235294118 | T199: 5.021052632 | U199: 5.141304348 | V199: 5.517241379 | W199: 5.4 | X199: 3.763888889 | Y199: 3.909090909 | Z199: 4.731481481 | AA199: 4.005555556 | AB199: 5 | AC199: 0 | AD199: 0
C201: 4.333 | G201: RED ASISTENCIAL JAEN
C202: 3 | D202: 2 | E202: = | F202: 245 | G202: JAEN | H202: II | I202: H.II | J202: 4.75135428 | K202: 5 | L202: 5 | M202: 4.5 | S202: 5.251846381 | T202: 4.788148925 | U202: 4.457960644 | V202: 4.510364146 | W202: 4.588030215 | X202: 4.598672299 | Y202: 4.574185766 | Z202: 4.654713707 | AA202: 4.760722348 | AB202: 4.75135428 | AC202: 0 | AD202: 0
C203: 5 | D203: 1 | E203: = | F203: 256 | G203: SAN IGNACIO | H203: I | I203: C.A.P.II | J203: 5.137168142 | K203: 5 | L203: 5 | M203: 4.5 | S203: 5.457627119 | T203: 5.103658537 | U203: 5.123745819 | V203: 5.186186186 | W203: 5.419847328 | X203: 5.161654135 | Y203: 5.151639344 | Z203: 5.416666667 | AA203: 5.653465347 | AB203: 5.137168142 | AC203: 0 | AD203: 0
C204: 5 | D204: 1 | E204: = | F204: 255 | G204: PUCARA | H204: I | I204: P.M. | J204: 5.055555556 | K204: 5 | L204: 5 | M204: 4.5 | S204: 5.010416667 | T204: 5.01 | U204: 5.032967033 | V204: 5.071428571 | W204: 5.048192771 | X204: 4.987654321 | Y204: 4.957142857 | Z204: 4.84 | AA204: 4.973684211 | AB204: 5.055555556 | AC204: 0 | AD204: 0
C206: 4.886 | G206: RED ASISTENCIAL LA LIBERTAD
C207: 5 | D207: 1 | E207: = | F207: 671 | G207: HOSPITAL DE ALTA COMPLEJIDAD DE LA LIBERTAD VIRGEN DE LA PUERTA | H207: III | I207: H.N. | J207: 4.633171913 | K207: 4 | L207: 4 | M207: 3.6 | S207: 4.605470369 | T207: 4.56861974 | U207: 4.619516195 | V207: 4.50152207 | W207: 4.46628131 | X207: 4.547811305 | Y207: 4.475504323 | Z207: 4.492383697 | AA207: 4.580237457 | AB207: 4.633171913 | AC207: 0 | AD207: 0
C208: 5 | D208: 1 | E208: = | F208: 205 | G208: VICTOR LAZARTE ECHEGARAY | H208: II | I208: H.IV | J208: 4.378401122 | K208: 4 | L208: 4 | M208: 3.6 | S208: 4.495532865 | T208: 4.455021834 | U208: 4.372383721 | V208: 4.326962283 | W208: 4.364130435 | X208: 4.335683297 | Y208: 4.339248434 | Z208: 4.387288136 | AA208: 4.376189314 | AB208: 4.378401122 | AC208: 0 | AD208: 0
C209: 5 | D209: 1 | E209: = | F209: 206 | G209: CHOCOPE | H209: II | I209: H.II | J209: 5.230925738 | K209: 5 | L209: 5 | M209: 4.5 | S209: 5.275025278 | T209: 5.243169399 | U209: 5.227227227 | V209: 5.258650519 | W209: 5.32210109 | X209: 5.231775701 | Y209: 5.347950429 | Z209: 5.322355289 | AA209: 5.774577954 | AB209: 5.230925738 | AC209: 0 | AD209: 0
C210: 5 | D210: 1 | E210: = | F210: 207 | G210: ALBRECHT | H210: II | I210: H.I | J210: 5.269500619 | K210: 5 | L210: 5 | M210: 4.5 | S210: 5.353221957 | T210: 5.29980198 | U210: 5.282552083 | V210: 5.264548376 | W210: 5.277449823 | X210: 5.284654432 | Y210: 5.291195477 | Z210: 5.363762743 | AA210: 5.277740189 | AB210: 5.269500619 | AC210: 0 | AD210: 0
C211: 5 | D211: 1 | E211: = | F211: 208 | G211: PACASMAYO | H211: II | I211: H.I | J211: 5.452464789 | K211: 5 | L211: 5 | M211: 4.5 | S211: 5.265356265 | T211: 5.40087146 | U211: 5.395220588 | V211: 5.325626204 | W211: 5.126099707 | X211: 5.2 | Y211: 5.193202147 | Z211: 5.325 | AA211: 5.335483871 | AB211: 5.452464789 | AC211: 0 | AD211: 0
C212: 5 | D212: 1 | E212: = | F212: 211 | G212: FLORENCIA DE MORA | H212: II | I212: H.I | J212: 5.221037324 | K212: 5 | L212: 5 | M212: 4.5 | S212: 5.348955392 | T212: 5.286065977 | U212: 5.242698892 | V212: 5.221510883 | W212: 5.211800303 | X212: 5.14661274 | Y212: 5.157046282 | Z212: 5.223992036 | AA212: 5.185133887 | AB212: 5.221037324 | AC212: 0 | AD212: 0
C213: 5 | D213: 1 | E213: = | F213: 212 | G213: LA ESPERANZA | H213: II | I213: H.I | J213: 5.157480315 | K213: 5 | L213: 5 | M213: 4.5 | S213: 5.082 | T213: 5.069970845 | U213: 5.060777385 | V213: 4.988547318 | W213: 5.06528371 | X213: 5.071724956 | Y213: 5.128719276 | Z213: 5.111043689 | AA213: 5.175014732 | AB213: 5.157480315 | AC213: 0 | AD213: 0
C214: 5 | D214: 1 | E214: = | F214: 213 | G214: MOCHE | H214: II | I214: H.I | J214: 5.233722871 | K214: 5 | L214: 5 | M214: 4.5 | S214: 5.073170732 | T214: 5.100369004 | U214: 5.073206442 | V214: 5.019285714 | W214: 5.147082334 | X214: 5.206560284 | Y214: 5.221795856 | Z214: 5.299015219 | AA214: 5.197793538 | AB214: 5.233722871 | AC214: 0 | AD214: 0
C215: 5 | D215: 1 | E215: = | F215: 241 | G215: VICTOR SOLES GARCIA | H215: II | I215: H.I | J215: 5 | K215: 5 | L215: 5 | M215: 4.5 | S215: 5.263948498 | T215: 5.331818182 | U215: 5.314769976 | V215: 5.176470588 | W215: 5.096846847 | X215: 5.2109375 | Y215: 5.033407572 | Z215: 5.116389549 | AA215: 5.108510638 | AB215: 5 | AC215: 0 | AD215: 0
C216: 5 | D216: 1 | E216: = | F216: 210 | G216: EL PORVENIR | H216: I | I216: POL. | J216: 5.529100529 | K216: 5 | L216: 5 | M216: 4.5 | S216: 5.270462633 | T216: 5.225761773 | U216: 5.24725944 | V216: 5.219178082 | W216: 5.2265625 | X216: 5.302994012 | Y216: 5.325842697 | Z216: 5.272197962 | AA216: 5.127380952 | AB216: 5.529100529 | AC216: 0 | AD216: 0
C217: 5 | D217: 1 | E217: = | F217: 443 | G217: VICTOR LARCO HERRERA | H217: I | I217: POL. | J217: 5.378378378 | K217: 5 | L217: 5 | M217: 4.5 | S217: 5.274770174 | T217: 5.348085106 | U217: 5.333333333 | V217: 5.263431542 | W217: 5.327793167 | X217: 5.284684685 | Y217: 5.332697807 | Z217: 5.357948718 | AA217: 5.413346614 | AB217: 5.378378378 | AC217: 0 | AD217: 0
... 241 more rows

Sheet C.E_G.C.H.Prog
C1: CRITERIOS DE EVALUACION
C3: GRADO DE CUMPLIMIENTO DE HORAS PROGRAMADAS
S5: AÑO: 2024
C6: Puntaje | E6: Red Asistencial / Establecimientos | H6: Nivel | I6: Tipo | J6: Valor Real | K6: Estandar | L6: Verde | M6: Rojo | R6: Anual | S6: Ene | T6: Feb | U6: Mar | V6: Abr | W6: May | X6: Jun | Y6: Jul | Z6: Ago | AA6: Sep | AB6: Oct | AC6: Nov | AD6: Dic
C8: 3.987 | G8: TOTAL NACIONAL
C10: 4.4 | G10: RED ASISTENCIAL AMAZONAS
C11: 5 | D11: 1 | E11: = | F11: 153 | G11: EL BUEN SAMARITANO | H11: II | I11: H.I | J11: 0.9947368421 | K11: 0.98 | L11: 0.98 | M11: 0.931 | S11: 0.9515050167 | T11: 0.9500805153 | U11: 0.9828178694 | V11: 0.9124423963 | W11: 0.9405320814 | X11: 0.9407894737 | Y11: 0.9751166407 | Z11: 0.9347826087 | AA11: 0.8019441069 | AB11: 0.9947368421 | AC11: 0 | AD11: 0
C12: 5 | D12: 1 | E12: = | F12: 154 | G12: HEROES DEL CENEPA | H12: II | I12: H.I | J12: 1 | K12: 0.98 | L12: 0.98 | M12: 0.931 | S12: 1 | T12: 0.9393939394 | U12: 0.933560477 | V12: 0.9551282051 | W12: 0.9405320814 | X12: 0.9618874773 | Y12: 0.9526515152 | Z12: 0.9915966387 | AA12: 0.9847494553 | AB12: 1 | AC12: 0 | AD12: 0
C13: 1 | D13: 3 | E13: = | F13: 155 | G13: HIGOS URCO | H13: II | I13: H.I | J13: 0.8992862807 | K13: 0.98 | L13: 0.98 | M13: 0.931 | S13: 0.8265007321 | T13: 0.856258597 | U13: 0.8658823529 | V13: 0.8985507246 | W13: 0.93323217 | X13: 0.9482884195 | Y13: 0.9703389831 | Z13: 0.9172876304 | AA13: 0.9263377345 | AB13: 0.8992862807 | AC13: 0 | AD13: 0
C14: 5 | D14: 1 | E14: = | F14: 843 | G14: RODRIGUEZ DE MENDOZA | H14: I | I14: C.A.P.II | J14: 0.9834710744 | K14: 0.98 | L14: 0.98 | M14: 0.931 | S14: 0.9285714286 | T14: 0.9304347826 | U14: 0.9824561404 | V14: 1 | W14: 0.9612403101 | X14: 0.9459459459 | Y14: 1 | Z14: 0.9912280702 | AA14: 0.9672131148 | AB14: 0.9834710744 | AC14: 0 | AD14: 0
C15: 3 | D15: 2 | E15: = | F15: 845 | G15: SANTA MARIA DE NIEVA | H15: I | I15: C.A.P.II | J15: 0.9594594595 | K15: 0.98 | L15: 0.98 | M15: 0.931 | S15: 0.9719101124 | T15: 1 | U15: 0.9487179487 | V15: 1 | W15: 0.8646616541 | X15: 0.9857142857 | Y15: 0.9533333333 | Z15: 0.7096774194 | AA15: 0.9751552795 | AB15: 0.9594594595 | AC15: 0 | AD15: 0
C16: 5 | D16: 1 | E16: = | F16: 855 | G16: IMAZA | H16: I | I16: C.A.P.I | J16: 1 | K16: 0.98 | L16: 0.98 | M16: 0.931 | S16: 1 | T16: 1 | U16: 1 | V16: 1 | W16: 1 | X16: 0.9718309859 | Y16: 1 | Z16: 1 | AA16: 1 | AB16: 1 | AC16: 0 | AD16: 0
C17: 5 | D17: 1 | E17: = | F17: 156 | G17: LAMUD | H17: I | I17: C.A.P.I | J17: 1 | K17: 0.98 | L17: 0.98 | M17: 0.931 | S17: 1 | T17: 1 | U17: 1 | V17: 1 | W17: 0.9538461538 | X17: 0.8970588235 | Y17: 0.9275362319 | Z17: 1 | AA17: 1 | AB17: 1 | AC17: 0 | AD17: 0
C18: 5 | D18: 1 | E18: = | F18: 157 | G18: LONYA GRANDE | H18: I | I18: C.A.P.I | J18: 1 | K18: 0.98 | L18: 0.98 | M18: 0.931 | S18: 1 | T18: 1 | U18: 0.9696969697 | V18: 1 | W18: 0.9318181818 | X18: 1 | Y18: 1 | Z18: 1 | AA18: 1 | AB18: 1 | AC18: 0 | AD18: 0
C19: 5 | D19: 1 | E19: = | F19: 158 | G19: OCALLI | H19: I | I19: C.A.P.I | J19: 1 | K19: 0.98 | L19: 0.98 | M19: 0.931 | S19: 0.96 | T19: 1 | U19: 1 | V19: 1 | W19: 1 | X19: 1 | Y19: 1 | Z19: 1 | AA19: 1 | AB19: 1 | AC19: 0 | AD19: 0
C20: 5 | D20: 1 | E20: = | F20: 159 | G20: PEDRO RUIZ GALLO | H20: I | I20: C.A.P.I | J20: 0.9921259843 | K20: 0.98 | L20: 0.98 | M20: 0.931 | S20: 1 | T20: 1 | U20: 1 | V20: 1 | W20: 1 | X20: 1 | Y20: 1 | Z20: 1 | AA20: 1 | AB20: 0.9921259843 | AC20: 0 | AD20: 0
C22: 4.833 | G22: RED ASISTENCIAL ANCASH
C23: 5 | D23: 1 | E23: = | F23: 161 | G23: CHIMBOTE | H23: II | I23: H.III | J23: 0.9879072892 | K23: 0.98 | L23: 0.98 | M23: 0.931 | S23: 0.9209150327 | T23: 0.9769963851 | U23: 0.9879558381 | V23: 0.9975293391 | W23: 0.949855352 | X23: 0.9785666443 | Y23: 0.9860583016 | Z23: 0.972778828 | AA23: 0.9821109123 | AB23: 0.9879072892 | AC23: 0 | AD23: 0
C24: 3 | D24: 2 | E24: = | F24: 167 | G24: CONO SUR | H24: II | I24: H.I | J24: 0.9784345048 | K24: 0.98 | L24: 0.98 | M24: 0.931 | S24: 0.9424657534 | T24: 0.8825591586 | U24: 0.9398734177 | V24: 0.9203539823 | W24: 0.9229691877 | X24: 0.9579500657 | Y24: 1 | Z24: 0.985940246 | AA24: 1 | AB24: 0.9784345048 | AC24: 0 | AD24: 0
C25: 5 | D25: 1 | E25: = | F25: 487 | G25: VICTOR PANTA RODRIGUEZ | H25: I | I25: POL. | J25: 1 | K25: 0.98 | L25: 0.98 | M25: 0.931 | S25: 0.9847908745 | T25: 0.9746900826 | U25: 0.9993972272 | V25: 1 | W25: 0.9854469854 | X25: 0.9979939819 | Y25: 1.000531632 | Z25: 0.9892066919 | AA25: 1 | AB25: 1 | AC25: 0 | AD25: 0
C26: 5 | D26: 1 | E26: = | F26: 165 | G26: CASMA | H26: I | I26: C.M. | J26: 1 | K26: 0.98 | L26: 0.98 | M26: 0.931 | S26: 1 | T26: 0.9968051118 | U26: 1 | V26: 0.9810810811 | W26: 1 | X26: 1 | Y26: 1 | Z26: 1 | AA26: 1 | AB26: 1 | AC26: 0 | AD26: 0
C27: 5 | D27: 1 | E27: = | F27: 166 | G27: COISHCO | H27: I | I27: C.M. | J27: 0.9941860465 | K27: 0.98 | L27: 0.98 | M27: 0.931 | S27: 0.9851301115 | T27: 0.9863247863 | U27: 0.9919678715 | V27: 1 | W27: 0.969183359 | X27: 0.9934747145 | Y27: 1 | Z27: 0.9931153184 | AA27: 1 | AB27: 0.9941860465 | AC27: 0 | AD27: 0
C28: 5 | D28: 1 | E28: = | F28: 170 | G28: SIHUAS | H28: I | I28: C.M. | J28: 1 | K28: 0.98 | L28: 0.98 | M28: 0.931 | S28: 1 | T28: 1 | U28: 1 | V28: 1 | W28: 0.9615384615 | X28: 1 | Y28: 0.9633027523 | Z28: 1 | AA28: 1 | AB28: 1 | AC28: 0 | AD28: 0
C29: 5 | D29: 1 | E29: = | F29: 169 | G29: HUARMEY | H29: I | I29: C.M. | J29: 1 | K29: 0.98 | L29: 0.98 | M29: 0.931 | S29: 1 | T29: 1 | U29: 1 | V29: 1 | W29: 1 | X29: 1 | Y29: 1 | Z29: 0.9855072464 | AA29: 1 | AB29: 1 | AC29: 0 | AD29: 0
C30: 5 | D30: 1 | E30: = | F30: 185 | G30: SAN JACINTO | H30: I | I30: C.A.P.II | J30: 0.9906103286 | K30: 0.98 | L30: 0.98 | M30: 0.931 | S30: 1 | T30: 1 | U30: 1 | V30: 1 | W30: 1 | X30: 1 | Y30: 0.9876160991 | Z30: 1 | AA30: 0.9907192575 | AB30: 0.9906103286 | AC30: 0 | AD30: 0
C31: 5 | D31: 1 | E31: = | F31: 171 | G31: CABANA | H31: I | I31: P.M. | J31: 1 | K31: 0.98 | L31: 0.98 | M31: 0.931 | S31: 0.96875 | T31: 0.9655172414 | U31: 1 | V31: 1 | W31: 1 | X31: 1 | Y31: 1 | Z31: 0.9452054795 | AA31: 1 | AB31: 1 | AC31: 0 | AD31: 0
C32: 5 | D32: 1 | E32: = | F32: 175 | G32: CONCHUCOS | H32: I | I32: P.M. | J32: 1 | K32: 0.98 | L32: 0.98 | M32: 0.931 | S32: 1 | T32: 1 | U32: 1 | V32: 1 | W32: 1 | X32: 1 | Y32: 1 | Z32: 1 | AA32: 1 | AB32: 1 | AC32: 0 | AD32: 0
C33: 5 | D33: 1 | E33: = | F33: 178 | G33: PAMPAS | H33: I | I33: P.M. | J33: 1 | K33: 0.98 | L33: 0.98 | M33: 0.931 | S33: 1 | T33: 1 | U33: 1 | V33: 1 | W33: 1 | X33: 1 | Y33: 1 | Z33: 0.8461538462 | AA33: 1 | AB33: 1 | AC33: 0 | AD33: 0
C34: 5 | D34: 1 | E34: = | F34: 379 | G34: PALLASCA | H34: I | I34: P.M. | J34: 1 | K34: 0.98 | L34: 0.98 | M34: 0.931 | S34: 1 | T34: 1 | U34: 1 | V34: 1 | W34: 1 | X34: 1 | Y34: 1 | Z34: 1 | AA34: 1 | AB34: 1 | AC34: 0 | AD34: 0
C36: 4.75 | G36: RED ASISTENCIAL APURÍMAC
C37: 3 | D37: 2 | E37: = | F37: 67 | G37: ABANCAY | H37: II | I37: H.II | J37: 0.9542857143 | K37: 0.98 | L37: 0.98 | M37: 0.931 | S37: 0.970260223 | T37: 0.9982300885 | U37: 0.9871244635 | V37: 0.9526530612 | W37: 0.9487603306 | X37: 0.9452483379 | Y37: 0.9771708113 | Z37: 0.9851178173 | AA37: 0.9884518224 | AB37: 0.9542857143 | AC37: 0 | AD37: 0
C38: 5 | D38: 1 | E38: = | F38: 68 | G38: ANDAHUAYLAS | H38: II | I38: H.I | J38: 0.9975772259 | K38: 0.98 | L38: 0.98 | M38: 0.931 | S38: 0.9781341108 | T38: 0.919379845 | U38: 0.9384384384 | V38: 0.9461722488 | W38: 0.9900142653 | X38: 0.9823609227 | Y38: 0.9873586161 | Z38: 0.9973736047 | AA38: 0.9959731544 | AB38: 0.9975772259 | AC38: 0 | AD38: 0
C39: 5 | D39: 1 | E39: = | F39: 512 | G39: COTABAMBAS | H39: I | I39: C.A.P.II | J39: 1 | K39: 0.98 | L39: 0.98 | M39: 0.931 | S39: 1 | T39: 1 | U39: 1 | V39: 1 | W39: 1 | X39: 1 | Y39: 1 | Z39: 1 | AA39: 1 | AB39: 1 | AC39: 0 | AD39: 0
C40: 5 | D40: 1 | E40: = | F40: 847 | G40: CHINCHEROS | H40: I | I40: C.A.P.II | J40: 1 | K40: 0.98 | L40: 0.98 | M40: 0.931 | S40: 1 | T40: 1 | U40: 1 | V40: 1 | W40: 1 | X40: 1 | Y40: 1 | Z40: 1 | AA40: 1 | AB40: 1 | AC40: 0 | AD40: 0
C41: 5 | D41: 1 | E41: = | F41: 70 | G41: CHALHUANCA | H41: I | I41: C.A.P.II | J41: 1 | K41: 0.98 | L41: 0.98 | M41: 0.931 | S41: 1 | T41: 1 | U41: 1 | V41: 1 | W41: 1 | X41: 1 | Y41: 1 | Z41: 1 | AA41: 1 | AB41: 1 | AC41: 0 | AD41: 0
C42: 5 | D42: 1 | E42: = | F42: 71 | G42: CHUQUIBAMBILLA | H42: I | I42: P.M. | J42: 1 | K42: 0.98 | L42: 0.98 | M42: 0.931 | S42: 1 | T42: 1 | U42: 1 | V42: 1 | W42: 1 | X42: 1 | Y42: 1 | Z42: 1 | AA42: 1 | AB42: 1 | AC42: 0 | AD42: 0
C43: 5 | D43: 1 | E43: = | F43: 69 | G43: CURAHUASI | H43: I | I43: P.M. | J43: 1 | K43: 0.98 | L43: 0.98 | M43: 0.931 | S43: 1 | T43: 1 | U43: 1 | V43: 1 | W43: 1 | X43: 1 | Y43: 1 | Z43: 1 | AA43: 1 | AB43: 1 | AC43: 0 | AD43: 0
C44: 5 | D44: 1 | E44: = | F44: 468 | G44: ANTABAMBA | H44: I | I44: C.A.P.I | J44: 1 | K44: 0.98 | L44: 0.98 | M44: 0.931 | S44: 1 | T44: 1 | U44: 1 | V44: 1 | W44: 1 | X44: 1 | Y44: 1 | Z44: 1 | AA44: 1 | AB44: 1 | AC44: 0 | AD44: 0
C46: 3.571 | G46: RED ASISTENCIAL AREQUIPA
C47: 5 | D47: 1 | E47: = | F47: 3 | G47: CARLOS ALBERTO SEGUIN ESCOBEDO | H47: III | I47: H.N. | J47: 0.988317757 | K47: 0.98 | L47: 0.98 | M47: 0.931 | S47: 0.9594332298 | T47: 0.964549763 | U47: 0.9703228394 | V47: 0.9546807807 | W47: 0.9510514866 | X47: 0.985897198 | Y47: 0.9865824783 | Z47: 0.991373733 | AA47: 0.9868701207 | AB47: 0.988317757 | AC47: 0 | AD47: 0
C48: 3 | D48: 2 | E48: = | F48: 76 | G48: YANAHUARA | H48: II | I48: H.III | J48: 0.9734527427 | K48: 0.98 | L48: 0.98 | M48: 0.931 | S48: 0.9698826825 | T48: 0.9853074551 | U48: 0.9694155324 | V48: 0.9759938838 | W48: 0.9448228883 | X48: 0.9490165224 | Y48: 0.9483510731 | Z48: 0.9400782361 | AA48: 0.9706896552 | AB48: 0.9734527427 | AC48: 0 | AD48: 0
C49: 3 | D49: 2 | E49: = | F49: 74 | G49: MANUEL DE TORRES MUÑOZ | H49: II | I49: H.II | J49: 0.973176865 | K49: 0.98 | L49: 0.98 | M49: 0.931 | S49: 0.964984552 | T49: 0.9942028986 | U49: 0.992007992 | V49: 0.9991079393 | W49: 0.9880733945 | X49: 0.991588785 | Y49: 0.979303857 | Z49: 0.9779661017 | AA49: 0.9852095316 | AB49: 0.973176865 | AC49: 0 | AD49: 0
C50: 3 | D50: 2 | E50: = | F50: 75 | G50: SAMUEL PASTOR | H50: II | I50: H.I | J50: 0.9650793651 | K50: 0.98 | L50: 0.98 | M50: 0.931 | S50: 0.9860228717 | T50: 0.9806949807 | U50: 0.9693721286 | V50: 0.9910011249 | W50: 0.9952210275 | X50: 0.9850187266 | Y50: 0.9535192563 | Z50: 0.9523141655 | AA50: 0.9082802548 | AB50: 0.9650793651 | AC50: 0 | AD50: 0
C51: 5 | D51: 1 | E51: = | F51: 79 | G51: EDMUNDO ESCOMEL | H51: II | I51: H.I | J51: 0.9876265467 | K51: 0.98 | L51: 0.98 | M51: 0.931 | S51: 0.9444110577 | T51: 0.9627181386 | U51: 0.97872952 | V51: 0.9828080229 | W51: 0.9336941813 | X51: 0.9236169615 | Y51: 0.9616129032 | Z51: 0.959745052 | AA51: 0.9833836858 | AB51: 0.9876265467 | AC51: 0 | AD51: 0
C52: 5 | D52: 1 | E52: = | F52: 77 | G52: METROPOLITANO | H52: I | I52: POL. | J52: 0.9812017456 | K52: 0.98 | L52: 0.98 | M52: 0.931 | S52: 0.9683544304 | T52: 0.9568121104 | U52: 0.9718518519 | V52: 0.9632127529 | W52: 0.9461663948 | X52: 0.9625331565 | Y52: 0.9462086844 | Z52: 0.9686609687 | AA52: 0.9747506234 | AB52: 0.9812017456 | AC52: 0 | AD52: 0
C53: 3 | D53: 2 | E53: = | F53: 697 | G53: HOSPITAL GERIATRICO MUNICIPAL | H53: I | I53: POL. | J53: 0.9678631052 | K53: 0.98 | L53: 0.98 | M53: 0.931 | S53: 0.9553406998 | T53: 0.9955966535 | U53: 1 | V53: 0.9782716049 | W53: 0.9989556136 | X53: 0.9994425864 | Y53: 0.985555097 | Z53: 0.9965913933 | AA53: 0.9979550102 | AB53: 0.9678631052 | AC53: 0 | AD53: 0
C54: 5 | D54: 1 | E54: = | F54: 80 | G54: MELITON SALAS TEJADA | H54: I | I54: C.A.P.III | J54: 0.9863169897 | K54: 0.98 | L54: 0.98 | M54: 0.931 | S54: 0.993006993 | T54: 0.9744058501 | U54: 0.918128655 | V54: 0.9795501022 | W54: 0.9568965517 | X54: 0.9482961222 | Y54: 0.9545454545 | Z54: 0.9347319347 | AA54: 0.9922928709 | AB54: 0.9863169897 | AC54: 0 | AD54: 0
C55: 3 | D55: 2 | E55: = | F55: 453 | G55: PAUCARPATA | H55: I | I55: C.A.P.III | J55: 0.975 | K55: 0.98 | L55: 0.98 | M55: 0.931 | S55: 0.987012987 | T55: 0.9367088608 | U55: 0.9768518519 | V55: 0.983974359 | W55: 0.9821428571 | X55: 0.9548611111 | Y55: 0.9691780822 | Z55: 0.9807692308 | AA55: 0.9829059829 | AB55: 0.975 | AC55: 0 | AD55: 0
C56: 5 | D56: 1 | E56: = | F56: 482 | G56: ALTO SELVA ALEGRE | H56: I | I56: C.A.P.III | J56: 1 | K56: 0.98 | L56: 0.98 | M56: 0.931 | S56: 1 | T56: 0.9946091644 | U56: 0.9282296651 | V56: 1 | W56: 0.9622195986 | X56: 0.9188481675 | Y56: 0.889025894 | Z56: 1 | AA56: 0.9953810624 | AB56: 1 | AC56: 0 | AD56: 0
C57: NA | D57: NA | E57: = | F57: 483 | G57: CERRO COLORADO | H57: NA | I57: NA | J57: NA | K57: NA | L57: NA | M57: NA | S57: NA | T57: NA | U57: NA | V57: NA | W57: NA | X57: NA | Y57: NA | Z57: NA | AA57: NA | AB57: NA | AC57: NA | AD57: NA
C58: 5 | D58: 1 | E58: = | F58: 522 | G58: MIRAFLORES | H58: I | I58: C.A.P.III | J58: 0.9829123328 | K58: 0.98 | L58: 0.98 | M58: 0.931 | S58: 0.9554054054 | T58: 0.9563758389 | U58: 0.9636363636 | V58: 0.9657064472 | W58: 0.9766081871 | X58: 0.89375 | Y58: 0.9441624365 | Z58: 0.9662045061 | AA58: 0.9903988183 | AB58: 0.9829123328 | AC58: 0 | AD58: 0
C59: 5 | D59: 1 | E59: = | F59: 433 | G59: APLAO | H59: I | I59: C.M. | J59: 0.9851851852 | K59: 0.98 | L59: 0.98 | M59: 0.931 | S59: 0.912037037 | T59: 1 | U59: 0.7804878049 | V59: 0.9673913043 | W59: 0.9960784314 | X59: 1 | Y59: 0.976076555 | Z59: 1 | AA59: 1 | AB59: 0.9851851852 | AC59: 0 | AD59: 0
C60: 3 | D60: 2 | E60: = | F60: 94 | G60: HUNTER | H60: I | I60: C.A.P.II | J60: 0.9695121951 | K60: 0.98 | L60: 0.98 | M60: 0.931 | S60: 1 | T60: 1 | U60: 1 | V60: 1 | W60: 0.9687906372 | X60: 1 | Y60: 1 | Z60: 1 | AA60: 0.9590909091 | AB60: 0.9695121951 | AC60: 0 | AD60: 0
C61: 3 | D61: 2 | E61: = | F61: 95 | G61: LA JOYA | H61: I | I61: P.M. | J61: 0.9581395349 | K61: 0.98 | L61: 0.98 | M61: 0.931 | S61: 0.9948979592 | T61: 0.9 | U61: 0.9677419355 | V61: 1 | W61: 0.881773399 | X61: 0.9736842105 | Y61: 0.935483871 | Z61: 1 | AA61: 0.9898989899 | AB61: 0.9581395349 | AC61: 0 | AD61: 0
C62: 1 | D62: 3 | E62: = | F62: 96 | G62: MATARANI | H62: I | I62: P.M. | J62: 0.84 | K62: 0.98 | L62: 0.98 | M62: 0.931 | S62: 0.9247311828 | T62: 0.8956521739 | U62: 0.7666666667 | V62: 0.9310344828 | W62: 0.8333333333 | X62: 0.8429752066 | Y62: 0.6484375 | Z62: 0.7651006711 | AA62: 1 | AB62: 0.84 | AC62: 0 | AD62: 0
C63: 5 | D63: 1 | E63: = | F63: 99 | G63: SANTA RITA | H63: I | I63: P.M. | J63: 0.9904761905 | K63: 0.98 | L63: 0.98 | M63: 0.931 | S63: 1 | T63: 1 | U63: 0.9591836735 | V63: 1 | W63: 0.9375 | X63: 1 | Y63: 1 | Z63: 0.98 | AA63: 0.9537037037 | AB63: 0.9904761905 | AC63: 0 | AD63: 0
C64: 1 | D64: 3 | E64: = | F64: 100 | G64: VITOR | H64: I | I64: P.M. | J64: 0.8658536585 | K64: 0.98 | L64: 0.98 | M64: 0.931 | S64: 0.8533333333 | T64: 0.76 | U64: 0.72 | V64: 0.84 | W64: 0.858974359 | X64: 1 | Y64: 1 | Z64: 1 | AA64: 0.9125 | AB64: 0.8658536585 | AC64: 0 | AD64: 0
C65: 1 | D65: 3 | E65: = | F65: 85 | G65: CARAVELI | H65: I | I65: P.M. | J65: 0.8985507246 | K65: 0.98 | L65: 0.98 | M65: 0.931 | S65: 0.9066666667 | T65: 0.7733333333 | U65: 1 | V65: 1 | W65: 0.96 | X65: 0.9565217391 | Y65: 0.9583333333 | Z65: 0.884057971 | AA65: 0.9382716049 | AB65: 0.8985507246 | AC65: 0 | AD65: 0
C66: 1 | D66: 3 | E66: = | F66: 86 | G66: CHALA | H66: I | I66: P.M. | J66: 0.84 | K66: 0.98 | L66: 0.98 | M66: 0.931 | S66: 0.7733333333 | T66: 0.7866666667 | U66: 0.84 | V66: 0.92 | W66: 0.9066666667 | X66: 0.8194444444 | Y66: 0.9333333333 | Z66: 0.8666666667 | AA66: 0.7066666667 | AB66: 0.84 | AC66: 0 | AD66: 0
C67: 5 | D67: 1 | E67: = | F67: 88 | G67: CHUCARAPI | H67: I | I67: P.M. | J67: 1 | K67: 0.98 | L67: 0.98 | M67: 0.931 | S67: 0.9583333333 | T67: 0.96 | U67: 0.9130434783 | V67: 0.9298245614 | W67: 0.953125 | X67: 0.9239130435 | Y67: 0.9882352941 | Z67: 1 | AA67: 0.9418604651 | AB67: 1 | AC67: 0 | AD67: 0
C68: 5 | D68: 1 | E68: = | F68: 89 | G68: CHUQUIBAMBA | H68: I | I68: P.M. | J68: 1 | K68: 0.98 | L68: 0.98 | M68: 0.931 | S68: 0.953125 | T68: 0.9466666667 | U68: 1 | V68: 0.96 | W68: 0.8641975309 | X68: 1 | Y68: 1 | Z68: 1 | AA68: 1 | AB68: 1 | AC68: 0 | AD68: 0
C69: NA | D69: NA | E69: = | F69: 90 | G69: CONO NORTE | H69: NA | I69: NA | J69: NA | K69: NA | L69: NA | M69: NA | S69: NA | T69: NA | U69: NA | V69: NA | W69: NA | X69: NA | Y69: NA | Z69: NA | AA69: NA | AB69: NA | AC69: NA | AD69: NA
C70: 5 | D70: 1 | E70: = | F70: 91 | G70: CORIRE | H70: I | I70: P.M. | J70: 1 | K70: 0.98 | L70: 0.98 | M70: 0.931 | S70: 0.8933333333 | T70: 0.9054054054 | U70: 0.8714285714 | V70: 1 | W70: 0.8235294118 | X70: 1 | Y70: 0.9565217391 | Z70: 0.9565217391 | AA70: 1 | AB70: 1 | AC70: 0 | AD70: 0
C71: 5 | D71: 1 | E71: = | F71: 92 | G71: COTAHUASI | H71: I | I71: P.M. | J71: 1 | K71: 0.98 | L71: 0.98 | M71: 0.931 | S71: 0.6931818182 | T71: 0.8765432099 | U71: 0.8701298701 | V71: 0.91 | W71: 0.9545454545 | X71: 0.9636363636 | Y71: 1 | Z71: 1 | AA71: 1 | AB71: 1 | AC71: 0 | AD71: 0
C72: 1 | D72: 3 | E72: = | F72: 82 | G72: ACARI | H72: I | I72: P.M. | J72: 0.6666666667 | K72: 0.98 | L72: 0.98 | M72: 0.931 | S72: 0.8888888889 | T72: 0.9733333333 | U72: 1 | V72: 0.9166666667 | W72: 0.9444444444 | X72: 0.9710144928 | Y72: 0.9565217391 | Z72: 0.9696969697 | AA72: 0.9444444444 | AB72: 0.6666666667 | AC72: 0 | AD72: 0
C73: 3 | D73: 2 | E73: = | F73: 84 | G73: ATICO | H73: I | I73: P.M. | J73: 0.96 | K73: 0.98 | L73: 0.98 | M73: 0.931 | S73: 0.96 | T73: 0.9733333333 | U73: 0.9130434783 | V73: 0.9866666667 | W73: 0.8933333333 | X73: 0.9583333333 | Y73: 1 | Z73: 0.3103448276 | AA73: 0.9733333333 | AB73: 0.96 | AC73: 0 | AD73: 0
C74: 5 | D74: 1 | E74: = | F74: 87 | G74: CHIVAY | H74: I | I74: C.A.P.I | J74: 0.9915966387 | K74: 0.98 | L74: 0.98 | M74: 0.931 | S74: 0.85 | T74: 1 | U74: 0.92 | V74: 1 | W74: 0.96 | X74: 0.936 | Y74: 0.92 | Z74: 0.9368421053 | AA74: 0.9913043478 | AB74: 0.9915966387 | AC74: 0 | AD74: 0
C75: 3 | D75: 2 | E75: = | F75: 101 | G75: YURA | H75: I | I75: C.A.P.I | J75: 0.9766081871 | K75: 0.98 | L75: 0.98 | M75: 0.931 | S75: 0.9367816092 | T75: 0.8865979381 | U75: 0.9555555556 | V75: 0.9822485207 | W75: 1 | X75: 0.9722222222 | Y75: 0.9375 | Z75: 0.9223300971 | AA75: 0.9427083333 | AB75: 0.9766081871 | AC75: 0 | AD75: 0
C76: 3 | E76: = | F76: 97 | G76: EL PEDREGAL | H76: I | I76: C.A.P.I | J76: 0.9760869565 | K76: 0.98 | L76: 0.98 | M76: 0.931 | S76: 1 | T76: 0.9598214286 | U76: 0.9504950495 | V76: 1 | W76: 0.9951807229 | X76: 1 | Y76: 0.9460093897 | Z76: 0.9808153477 | AA76: 0.9841986456 | AB76: 0.9760869565 | AC76: 0 | AD76: 0
C78: 3.8 | G78: RED ASISTENCIAL AYACUCHO
C79: 3 | D79: 2 | E79: = | F79: 102 | G79: HUAMANGA "CARLOS TUPPIA GARCIA GODOS" | H79: II | I79: H.II | J79: 0.9744835966 | K79: 0.98 | L79: 0.98 | M79: 0.931 | S79: 0.9372889532 | T79: 0.9928698752 | U79: 0.998042095 | V79: 0.9778296383 | W79: 0.9823619632 | X79: 0.9968454259 | Y79: 0.990990991 | Z79: 0.9823529412 | AA79: 0.9832962138 | AB79: 0.9744835966 | AC79: 0 | AD79: 0
C80: 3 | D80: 2 | E80: = | F80: 449 | G80: METROPOLITANO | H80: I | I80: C.A.P.III | J80: 0.9520958084 | K80: 0.98 | L80: 0.98 | M80: 0.931 | S80: 0.97586727 | T80: 0.9709241952 | U80: 0.9383886256 | V80: 0.9918032787 | W80: 0.9875565611 | X80: 1 | Y80: 0.9657079646 | Z80: 1 | AA80: 0.9866220736 | AB80: 0.9520958084 | AC80: 0 | AD80: 0
C81: 5 | D81: 1 | E81: = | F81: 103 | G81: HUANTA | H81: I | I81: C.A.P.II | J81: 1 | K81: 0.98 | L81: 0.98 | M81: 0.931 | S81: 1 | T81: 0.9836956522 | U81: 1 | V81: 1 | W81: 1 | X81: 1 | Y81: 1 | Z81: 1 | AA81: 1 | AB81: 1 | AC81: 0 | AD81: 0
C82: 1 | D82: 3 | E82: = | F82: 104 | G82: SAN MIGUEL | H82: I | I82: P.M. | J82: 0.8910891089 | K82: 0.98 | L82: 0.98 | M82: 0.931 | S82: 1 | T82: 0.94 | U82: 0.987654321 | V82: 1 | W82: 0.9484536082 | X82: 0.8762886598 | Y82: 0.9285714286 | Z82: 0.9019607843 | AA82: 0.7171717172 | AB82: 0.8910891089 | AC82: 0 | AD82: 0
C83: 5 | D83: 1 | E83: = | F83: 105 | G83: CANGALLO | H83: I | I83: P.M. | J83: 0.9900990099 | K83: 0.98 | L83: 0.98 | M83: 0.931 | S83: 1 | T83: 1 | U83: 1 | V83: 1 | W83: 0.9595959596 | X83: 0.9787234043 | Y83: 1 | Z83: 0.9479166667 | AA83: 0.9816513761 | AB83: 0.9900990099 | AC83: 0 | AD83: 0
C84: 5 | D84: 1 | E84: = | F84: 109 | G84: SAN FRANCISCO | H84: I | I84: P.M. | J84: 1 | K84: 0.98 | L84: 0.98 | M84: 0.931 | S84: 0.9420289855 | T84: 0.7951807229 | U84: 0.7558139535 | V84: 1 | W84: 0.9680851064 | X84: 0.978021978 | Y84: 0.9891304348 | Z84: 0.9797979798 | AA84: 0.9514563107 | AB84: 1 | AC84: 0 | AD84: 0
C85: 5 | D85: 1 | E85: = | F85: 110 | G85: VILCASHUAMAN | H85: I | I85: P.M. | J85: 1 | K85: 0.98 | L85: 0.98 | M85: 0.931 | S85: 1 | T85: 1 | U85: 1 | V85: 0.950617284 | W85: 0.9655172414 | X85: 1 | Y85: 1 | Z85: 0.9438202247 | AA85: 0.9666666667 | AB85: 1 | AC85: 0 | AD85: 0
C86: 1 | D86: 3 | E86: = | F86: 423 | G86: QUEROBAMBA | H86: I | I86: P.M. | J86: 0.8737864078 | K86: 0.98 | L86: 0.98 | M86: 0.931 | S86: 0.7391304348 | T86: 0.625 | U86: 0.6 | V86: 0.2871287129 | W86: 0.9591836735 | X86: 0.9230769231 | Y86: 0.9651162791 | Z86: 0.9587628866 | AA86: 0.9252336449 | AB86: 0.8737864078 | AC86: 0 | AD86: 0
C87: 5 | D87: 1 | E87: = | F87: 428 | G87: HUANCAPI | H87: I | I87: P.M. | J87: 1 | K87: 0.98 | L87: 0.98 | M87: 0.931 | S87: 0.985915493 | T87: 1 | U87: 1 | V87: 1 | W87: 1 | X87: 1 | Y87: 1 | Z87: 1 | AA87: 1 | AB87: 1 | AC87: 0 | AD87: 0
C88: 5 | D88: 1 | E88: = | F88: 401 | G88: HUANCASANCOS | H88: I | I88: C.A.P.I | J88: 1 | K88: 0.98 | L88: 0.98 | M88: 0.931 | S88: 0.984375 | T88: 0.9830508475 | U88: 1 | V88: 1 | W88: 0.9886363636 | X88: 1 | Y88: 1 | Z88: 1 | AA88: 0.9583333333 | AB88: 1 | AC88: 0 | AD88: 0
C90: 3.5 | G90: RED ASISTENCIAL CAJAMARCA
C91: 3 | D91: 2 | E91: = | F91: 191 | G91: CAJAMARCA | H91: II | I91: H.II | J91: 0.9627461416 | K91: 0.98 | L91: 0.98 | M91: 0.931 | S91: 0.9668949772 | T91: 0.9564564565 | U91: 0.929117797 | V91: 0.9887667888 | W91: 0.9799679487 | X91: 0.9884514436 | Y91: 0.9629005059 | Z91: 0.9836394948 | AA91: 0.9674465921 | AB91: 0.9627461416 | AC91: 0 | AD91: 0
C92: 1 | D92: 3 | E92: = | F92: 192 | G92: CAJABAMBA | H92: I | I92: C.M. | J92: 0.9307958478 | K92: 0.98 | L92: 0.98 | M92: 0.931 | S92: 1 | T92: 0.9847328244 | U92: 0.9777777778 | V92: 0.9727272727 | W92: 0.9072847682 | X92: 0.9848484848 | Y92: 0.7876447876 | Z92: 0.9330543933 | AA92: 0.9668508287 | AB92: 0.9307958478 | AC92: 0 | AD92: 0
C93: 5 | D93: 1 | E93: = | F93: 193 | G93: CELENDIN | H93: I | I93: C.M. | J93: 0.9896907216 | K93: 0.98 | L93: 0.98 | M93: 0.931 | S93: 0.8996865204 | T93: 0.9329073482 | U93: 0.9705882353 | V93: 0.96 | W93: 0.9719298246 | X93: 0.904109589 | Y93: 0.9482758621 | Z93: 0.8888888889 | AA93: 0.9221183801 | AB93: 0.9896907216 | AC93: 0 | AD93: 0
C94: 5 | D94: 1 | E94: = | F94: 501 | G94: LOS BAÑOS DEL INCA | H94: I | I94: C.A.P.II | J94: 1 | K94: 0.98 | L94: 0.98 | M94: 0.931 | S94: 1 | T94: 1 | U94: 1 | V94: 1 | W94: 1 | X94: 1 | Y94: 0.9347826087 | Z94: 0.5111111111 | AA94: 0.8378378378 | AB94: 1 | AC94: 0 | AD94: 0
C95: 1 | D95: 3 | E95: = | F95: 196 | G95: BAMBAMARCA | H95: I | I95: P.M. | J95: 0.8959276018 | K95: 0.98 | L95: 0.98 | M95: 0.931 | S95: 1 | T95: 1 | U95: 1 | V95: 1 | W95: 0.9743589744 | X95: 0.9259259259 | Y95: 1 | Z95: 1 | AA95: 1.009302326 | AB95: 0.8959276018 | AC95: 0 | AD95: 0
C96: 5 | D96: 1 | E96: = | F96: 198 | G96: CONTUMAZA | H96: I | I96: P.M. | J96: 1 | K96: 0.98 | L96: 0.98 | M96: 0.931 | S96: 0.9605263158 | T96: 1 | U96: 1 | V96: 1 | W96: 0.9714285714 | X96: 1 | Y96: 1 | Z96: 1 | AA96: 1 | AB96: 1 | AC96: 0 | AD96: 0
C97: 5 | D97: 1 | E97: = | F97: 999 | G97: BOLIVAR | H97: I | I97: P.M. | J97: 1 | K97: 0.98 | L97: 0.98 | M97: 0.931 | S97: 1 | T97: 1 | U97: 1 | V97: 0.9583333333 | W97: 1 | X97: 1 | Y97: 0.9166666667 | Z97: 1 | AA97: 1 | AB97: 1 | AC97: 0 | AD97: 0
C98: 1 | D98: 3 | E98: = | F98: 201 | G98: SAN MARCOS | H98: I | I98: P.M. | J98: 0.88 | K98: 0.98 | L98: 0.98 | M98: 0.931 | S98: 0.96 | T98: 1 | U98: 1 | V98: 1 | W98: 0.9142857143 | X98: 1 | Y98: 1 | Z98: 0.9583333333 | AA98: 0.9791666667 | AB98: 0.88 | AC98: 0 | AD98: 0
C99: 5 | D99: 1 | E99: = | F99: 202 | G99: SAN MIGUEL | H99: I | I99: P.M. | J99: 1 | K99: 0.98 | L99: 0.98 | M99: 0.931 | S99: 1 | T99: 1 | U99: 0.75 | V99: 1 | W99: 1 | X99: 1 | Y99: 0.9565217391 | Z99: 1 | AA99: 1 | AB99: 1 | AC99: 0 | AD99: 0
C100: 5 | D100: 1 | E100: = | F100: 203 | G100: SAN PABLO | H100: I | I100: P.M. | J100: 1 | K100: 0.98 | L100: 0.98 | M100: 0.931 | S100: 1 | T100: 1 | U100: 0.9565217391 | V100: 1 | W100: 1 | X100: 0.9130434783 | Y100: 0.9565217391 | Z100: 1 | AA100: 0.96 | AB100: 1 | AC100: 0 | AD100: 0
C101: 1 | D101: 3 | E101: = | F101: 204 | G101: TEMBLADERA | H101: I | I101: P.M. | J101: 0.9220779221 | K101: 0.98 | L101: 0.98 | M101: 0.931 | S101: 0.96 | T101: 1 | U101: 0.9565217391 | V101: 1 | W101: 0.6992481203 | X101: 0.9589041096 | Y101: 1 | Z101: 0.9444444444 | AA101: 0.9375 | AB101: 0.9220779221 | AC101: 0 | AD101: 0
C102: 5 | D102: 1 | E102: = | F102: 199 | G102: HUALGAYOC | H102: I | I102: C.A.P.I | J102: 1 | K102: 0.98 | L102: 0.98 | M102: 0.931 | S102: 0.88 | T102: 0.96 | U102: 0.9565217391 | V102: 0.96 | W102: 0.9230769231 | X102: 0.9166666667 | Y102: 1 | Z102: 1 | AA102: 0.9583333333 | AB102: 1 | AC102: 0 | AD102: 0
C104: 3.556 | G104: RED ASISTENCIAL CUSCO
C105: 3 | D105: 2 | E105: = | F105: 111 | G105: ADOLFO GUEVARA VELASCO | H105: III | I105: H.N. | J105: 0.9739901478 | K105: 0.98 | L105: 0.98 | M105: 0.931 | S105: 0.9739229025 | T105: 0.988210075 | U105: 0.9495712536 | V105: 0.9767218161 | W105: 0.9307211811 | X105: 0.9440842788 | Y105: 0.9645346453 | Z105: 0.9611867507 | AA105: 0.9785142025 | AB105: 0.9739901478 | AC105: 0 | AD105: 0
C106: 1 | D106: 3 | E106: = | F106: 112 | G106: ESPINAR | H106: II | I106: H.I | J106: 0.8952772074 | K106: 0.98 | L106: 0.98 | M106: 0.931 | S106: 0.9892761394 | T106: 0.9735294118 | U106: 0.9848942598 | V106: 1 | W106: 0.9845679012 | X106: 1 | Y106: 0.9748953975 | Z106: 0.984 | AA106: 0.9911660777 | AB106: 0.8952772074 | AC106: 0 | AD106: 0
C107: 5 | D107: 1 | E107: = | F107: 113 | G107: QUILLABAMBA | H107: II | I107: H.I | J107: 1 | K107: 0.98 | L107: 0.98 | M107: 0.931 | S107: 0.9676375405 | T107: 0.9719626168 | U107: 0.9862542955 | V107: 0.9893992933 | W107: 1 | X107: 0.9696969697 | Y107: 0.9813084112 | Z107: 0.9052132701 | AA107: 0.9597855228 | AB107: 1 | AC107: 0 | AD107: 0
C108: 5 | D108: 1 | E108: = | F108: 114 | G108: URUBAMBA | H108: II | I108: H.I | J108: 1 | K108: 0.98 | L108: 0.98 | M108: 0.931 | S108: 0.9487179487 | T108: 1 | U108: 1 | V108: 1 | W108: 0.9488817891 | X108: 0.9545454545 | Y108: 0.9368421053 | Z108: 1 | AA108: 0.9607843137 | AB108: 1 | AC108: 0 | AD108: 0
C109: 5 | D109: 1 | E109: = | F109: 115 | G109: SICUANI | H109: II | I109: H.I | J109: 0.9818181818 | K109: 0.98 | L109: 0.98 | M109: 0.931 | S109: 0.9945945946 | T109: 0.9930555556 | U109: 0.9626865672 | V109: 0.9813664596 | W109: 0.9475890985 | X109: 0.976 | Y109: 0.9703703704 | Z109: 0.8529945554 | AA109: 0.9761388286 | AB109: 0.9818181818 | AC109: 0 | AD109: 0
C110: 5 | D110: 1 | E110: = | F110: 126 | G110: SAN SEBASTIAN | H110: I | I110: POL. | J110: 1 | K110: 0.98 | L110: 0.98 | M110: 0.931 | S110: 0.9180327869 | T110: 1 | U110: 0.9702380952 | V110: 1 | W110: 0.9390243902 | X110: 0.8805194805 | Y110: 1 | Z110: 0.9393939394 | AA110: 0.9916317992 | AB110: 1 | AC110: 0 | AD110: 0
C111: 5 | D111: 1 | E111: = | F111: 121 | G111: MACHU PICCHU | H111: I | I111: C.M. | J111: 1 | K111: 0.98 | L111: 0.98 | M111: 0.931 | S111: 1 | T111: 1 | U111: 1 | V111: 1 | W111: 1 | X111: 1 | Y111: 1 | Z111: 1 | AA111: 1 | AB111: 1 | AC111: 0 | AD111: 0
C112: 3 | D112: 2 | E112: = | F112: 123 | G112: PAUCARTAMBO | H112: I | I112: C.M. | J112: 0.96 | K112: 0.98 | L112: 0.98 | M112: 0.931 | S112: 1 | T112: 1 | U112: 1 | V112: 1 | W112: 1 | X112: 1 | Y112: 0.9338842975 | Z112: 1 | AA112: 1 | AB112: 0.96 | AC112: 0 | AD112: 0
C113: 5 | D113: 1 | E113: = | F113: 116 | G113: ACOMAYO | H113: I | I113: C.M. | J113: 0.9854014599 | K113: 0.98 | L113: 0.98 | M113: 0.931 | S113: 0.8706293706 | T113: 0.76 | U113: 0.896 | V113: 0.8544061303 | W113: 0.6666666667 | X113: 0.8343949045 | Y113: 0.9108527132 | Z113: 0.888372093 | AA113: 0.7853658537 | AB113: 0.9854014599 | AC113: 0 | AD113: 0
C114: 5 | D114: 1 | E114: = | F114: 118 | G114: CALCA | H114: I | I114: C.M. | J114: 1 | K114: 0.98 | L114: 0.98 | M114: 0.931 | S114: 0.9166666667 | T114: 0.9855072464 | U114: 0.9142857143 | V114: 1 | W114: 0.972972973 | X114: 0.9571428571 | Y114: 1 | Z114: 1 | AA114: 1 | AB114: 1 | AC114: 0 | AD114: 0
C115: 5 | D115: 1 | E115: = | F115: 119 | G115: URCOS | H115: I | I115: C.M. | J115: 0.985915493 | K115: 0.98 | L115: 0.98 | M115: 0.931 | S115: 1 | T115: 1 | U115: 1 | V115: 1 | W115: 0.9705882353 | X115: 1 | Y115: 0.9855072464 | Z115: 1 | AA115: 1 | AB115: 0.985915493 | AC115: 0 | AD115: 0
C116: 1 | D116: 3 | E116: = | F116: 698 | G116: PICHARI | H116: I | I116: C.M. | J116: 0.92 | K116: 0.98 | L116: 0.98 | M116: 0.931 | S116: 1 | T116: 1 | U116: 1 | V116: 1 | W116: 1 | X116: 1 | Y116: 1 | Z116: 1 | AA116: 1 | AB116: 0.92 | AC116: 0 | AD116: 0
C117: 3 | D117: 2 | E117: = | F117: 417 | G117: METROPOLITANO | H117: I | I117: C.M. | J117: 0.9609655881 | K117: 0.98 | L117: 0.98 | M117: 0.931 | S117: 0.9274017467 | T117: 0.9656652361 | U117: 0.9306634788 | V117: 0.9717741935 | W117: 0.9397089397 | X117: 0.9956355701 | Y117: 0.9788135593 | Z117: 0.9825992387 | AA117: 0.9880299252 | AB117: 0.9609655881 | AC117: 0 | AD117: 0
C118: 3 | D118: 2 | E118: = | F118: 373 | G118: SAN FRANCISCO | H118: I | I118: C.M. | J118: 0.9313893654 | K118: 0.98 | L118: 0.98 | M118: 0.931 | S118: 0.9581395349 | T118: 1 | U118: 0.8605200946 | V118: 0.9919110212 | W118: 0.8698564593 | X118: 0.9238410596 | Y118: 0.9157994324 | Z118: 0.9775280899 | AA118: 0.9514066496 | AB118: 0.9313893654 | AC118: 0 | AD118: 0
C119: 1 | D119: 3 | E119: = | F119: 120 | G119: HUYRO | H119: I | I119: C.A.P.II | J119: 0.8888888889 | K119: 0.98 | L119: 0.98 | M119: 0.931 | S119: 1 | T119: 1 | U119: 1 | V119: 1 | W119: 1 | X119: 1 | Y119: 1 | Z119: 1 | AA119: 1 | AB119: 0.8888888889 | AC119: 0 | AD119: 0
C120: 3 | D120: 2 | E120: = | F120: 134 | G120: SALVACION | H120: I | I120: P.M. | J120: 0.95 | K120: 0.98 | L120: 0.98 | M120: 0.931 | S120: 1 | T120: 1 | U120: 1 | V120: 1 | W120: 1 | X120: 1 | Y120: 1 | Z120: 1 | AA120: 1 | AB120: 0.95 | AC120: 0 | AD120: 0
C121: 5 | D121: 1 | E121: = | F121: 513 | G121: ECHARATE | H121: I | I121: C.A.P.I | J121: 1 | K121: 0.98 | L121: 0.98 | M121: 0.931 | S121: 1 | T121: 1 | U121: 1 | V121: 1 | W121: 1 | X121: 1 | Y121: 1 | Z121: 1 | AA121: 1 | AB121: 1 | AC121: 0 | AD121: 0
C122: 1 | D122: 3 | E122: = | F122: 510 | G122: SANTO TOMAS | H122: I | I122: C.A.P.I | J122: 0.8 | K122: 0.98 | L122: 0.98 | M122: 0.931 | S122: 0.9267015707 | T122: 0.98 | U122: 0.9757575758 | V122: 0.9842519685 | W122: 0.9452054795 | X122: 1 | Y122: 0.867816092 | Z122: 1 | AA122: 1 | AB122: 0.8 | AC122: 0 | AD122: 0
C124: 4.429 | G124: RED ASISTENCIAL HUANCAVELICA
C125: 3 | D125: 2 | E125: = | F125: 342 | G125: HUANCAVELICA | H125: II | I125: H.II | J125: 0.9531100478 | K125: 0.98 | L125: 0.98 | M125: 0.931 | S125: 0.9050343249 | T125: 0.9100303951 | U125: 0.9319771138 | V125: 0.9812914906 | W125: 0.9829545455 | X125: 0.9894867038 | Y125: 0.9783693844 | Z125: 0.9948881789 | AA125: 0.9680785758 | AB125: 0.9531100478 | AC125: 0 | AD125: 0
C126: 3 | D126: 2 | E126: = | F126: 347 | G126: LIRCAY | H126: I | I126: C.M. | J126: 0.9662162162 | K126: 0.98 | L126: 0.98 | M126: 0.931 | S126: 0.9369024857 | T126: 0.9444444444 | U126: 0.931283906 | V126: 0.9909228442 | W126: 1 | X126: 1 | Y126: 0.9942748092 | Z126: 1 | AA126: 1 | AB126: 0.9662162162 | AC126: 0 | AD126: 0
C127: 5 | D127: 1 | E127: = | F127: 348 | G127: PAMPAS | H127: I | I127: C.M. | J127: 1 | K127: 0.98 | L127: 0.98 | M127: 0.931 | S127: 0.9891891892 | T127: 0.9746192893 | U127: 0.9325842697 | V127: 0.952 | W127: 0.9680851064 | X127: 0.9576719577 | Y127: 1 | Z127: 1 | AA127: 1 | AB127: 1 | AC127: 0 | AD127: 0
C128: 5 | D128: 1 | E128: = | F128: 343 | G128: ACOBAMBA | H128: I | I128: P.M. | J128: 1 | K128: 0.98 | L128: 0.98 | M128: 0.931 | S128: 0.9534883721 | T128: 1 | U128: 1 | V128: 0.9769230769 | W128: 1 | X128: 1 | Y128: 1 | Z128: 1 | AA128: 1 | AB128: 1 | AC128: 0 | AD128: 0
C129: 5 | D129: 1 | E129: = | F129: 344 | G129: CASTROVIRREYNA | H129: I | I129: P.M. | J129: 1 | K129: 0.98 | L129: 0.98 | M129: 0.931 | S129: 0.8636363636 | T129: 0.9090909091 | U129: 0.7727272727 | V129: 0.8285714286 | W129: 0.9838709677 | X129: 1 | Y129: 1 | Z129: 1 | AA129: 0.8974358974 | AB129: 1 | AC129: 0 | AD129: 0
C130: 5 | D130: 1 | E130: = | F130: 345 | G130: CHURCAMPA | H130: I | I130: C.A.P.I | J130: 1 | K130: 0.98 | L130: 0.98 | M130: 0.931 | S130: 1 | T130: 1 | U130: 1 | V130: 1 | W130: 1 | X130: 1 | Y130: 1 | Z130: 1 | AA130: 1 | AB130: 1 | AC130: 0 | AD130: 0
C131: 5 | D131: 1 | E131: = | F131: 346 | G131: HUAYTARA | H131: I | I131: C.A.P.I | J131: 1 | K131: 0.98 | L131: 0.98 | M131: 0.931 | S131: 0.9493670886 | T131: 0.9594594595 | U131: 0.8362068966 | V131: 0.8333333333 | W131: 1 | X131: 1 | Y131: 1 | Z131: 1 | AA131: 1 | AB131: 1 | AC131: 0 | AD131: 0
C133: 4.143 | G133: RED ASISTENCIAL HUÁNUCO
C134: 5 | D134: 1 | E134: = | F134: 296 | G134: HUANUCO | H134: II | I134: H.II | J134: 0.9889720362 | K134: 0.98 | L134: 0.98 | M134: 0.931 | S134: 0.9505891296 | T134: 0.9797297297 | U134: 0.9667256637 | V134: 0.9873660031 | W134: 0.9512820513 | X134: 0.9753036437 | Y134: 0.9613733906 | Z134: 0.9891756869 | AA134: 0.980994152 | AB134: 0.9889720362 | AC134: 0 | AD134: 0
C135: 3 | D135: 2 | E135: = | F135: 297 | G135: TINGO MARIA | H135: II | I135: H.I | J135: 0.9778761062 | K135: 0.98 | L135: 0.98 | M135: 0.931 | S135: 0.9588235294 | T135: 0.9292035398 | U135: 0.9191073919 | V135: 0.9303944316 | W135: 0.904589372 | X135: 0.9129172714 | Y135: 0.9320512821 | Z135: 0.976744186 | AA135: 0.987704918 | AB135: 0.9778761062 | AC135: 0 | AD135: 0
C136: 3 | D136: 2 | E136: = | F136: 475 | G136: METROPOLITANO DE HUANUCO | H136: I | I136: C.A.P.III | J136: 0.9624885636 | K136: 0.98 | L136: 0.98 | M136: 0.931 | S136: 0.9606903164 | T136: 0.9714285714 | U136: 0.9960591133 | V136: 1 | W136: 0.9862475442 | X136: 0.984423676 | Y136: 0.9316939891 | Z136: 0.9750859107 | AA136: 0.9750692521 | AB136: 0.9624885636 | AC136: 0 | AD136: 0
C137: 5 | D137: 1 | E137: = | F137: 771 | G137: AMARILIS PILCO-MARCA | H137: I | I137: C.A.P.III | J137: 1 | K137: 0.98 | L137: 0.98 | M137: 0.931 | S137: 0.9944444444 | T137: 0.9972222222 | U137: 0.9858757062 | V137: 1 | W137: 1 | X137: 0.9473684211 | Y137: 1 | Z137: 1 | AA137: 1 | AB137: 1 | AC137: 0 | AD137: 0
C138: 5 | D138: 1 | E138: = | F138: 298 | G138: LEONCIO PRADO | H138: I | I138: C.M. | J138: 0.9841269841 | K138: 0.98 | L138: 0.98 | M138: 0.931 | S138: 1 | T138: 0.9742120344 | U138: 0.9492753623 | V138: 0.9616252822 | W138: 0.987804878 | X138: 0.9763157895 | Y138: 0.970074813 | Z138: 1 | AA138: 0.9558823529 | AB138: 0.9841269841 | AC138: 0 | AD138: 0
C139: 5 | D139: 1 | E139: = | F139: 299 | G139: AUCAYACU | H139: I | I139: P.M. | J139: 1 | K139: 0.98 | L139: 0.98 | M139: 0.931 | S139: 0.9895833333 | T139: 1 | U139: 1 | V139: 0.96 | W139: 1 | X139: 1 | Y139: 1 | Z139: 1 | AA139: 1 | AB139: 1 | AC139: 0 | AD139: 0
C140: 3 | D140: 2 | E140: = | F140: 300 | G140: BAÑOS | H140: I | I140: P.M. | J140: 0.9673913043 | K140: 0.98 | L140: 0.98 | M140: 0.931 | S140: 1 | T140: 1 | U140: 1 | V140: 1 | W140: 0.95 | X140: 0.9795918367 | Y140: 0.9896907216 | Z140: 0.9782608696 | AA140: 1 | AB140: 0.9673913043 | AC140: 0 | AD140: 0
C141: 5 | D141: 1 | E141: = | F141: 302 | G141: SÚNGARO | H141: I | I141: P.M. | J141: 1 | K141: 0.98 | L141: 0.98 | M141: 0.931 | S141: 0.9105691057 | T141: 0.990990991 | U141: 0.9444444444 | V141: 0.9047619048 | W141: 0.8958333333 | X141: 0.953125 | Y141: 0.8791208791 | Z141: 0.9847328244 | AA141: 0.9504132231 | AB141: 1 | AC141: 0 | AD141: 0
C142: 3 | D142: 2 | E142: = | F142: 303 | G142: LA UNION | H142: I | I142: P.M. | J142: 0.9411764706 | K142: 0.98 | L142: 0.98 | M142: 0.931 | S142: 0.9964285714 | T142: 0.9961832061 | U142: 0.9534883721 | V142: 0.9898648649 | W142: 0.9166666667 | X142: 1 | Y142: 1 | Z142: 1 | AA142: 1 | AB142: 0.9411764706 | AC142: 0 | AD142: 0
C143: 5 | D143: 1 | E143: = | F143: 304 | G143: LLATA | H143: I | I143: P.M. | J143: 0.9917355372 | K143: 0.98 | L143: 0.98 | M143: 0.931 | S143: 0.9911504425 | T143: 0.9653465347 | U143: 0.9955357143 | V143: 1 | W143: 0.9114391144 | X143: 0.9385245902 | Y143: 0.9192307692 | Z143: 0.9787234043 | AA143: 0.9922178988 | AB143: 0.9917355372 | AC143: 0 | AD143: 0
C144: 3 | D144: 2 | E144: = | F144: 305 | G144: PANAO | H144: I | I144: P.M. | J144: 0.9789473684 | K144: 0.98 | L144: 0.98 | M144: 0.931 | S144: 0.6785714286 | T144: 0.87 | U144: 0.875 | V144: 0.8115942029 | W144: 0.9714285714 | X144: 1 | Y144: 1 | Z144: 1 | AA144: 1 | AB144: 0.9789473684 | AC144: 0 | AD144: 0
C145: 3 | D145: 2 | E145: = | F145: 290 | G145: TOCACHE | H145: I | I145: P.M. | J145: 0.9378238342 | K145: 0.98 | L145: 0.98 | M145: 0.931 | S145: 0.9411764706 | T145: 0.7808219178 | U145: 0.88 | V145: 0.9766081871 | W145: 0.8791208791 | X145: 0.8321678322 | Y145: 0.9537572254 | Z145: 0.9074074074 | AA145: 0.9891891892 | AB145: 0.9378238342 | AC145: 0 | AD145: 0
C146: 5 | D146: 1 | E146: = | F146: 400 | G146: SANTA LUCIA | H146: I | I146: P.M. | J146: 1 | K146: 0.98 | L146: 0.98 | M146: 0.931 | S146: 0.984496124 | T146: 1 | U146: 0.8676470588 | V146: 0.9864864865 | W146: 1 | X146: 1 | Y146: 1 | Z146: 0.9855072464 | AA146: 0.9652777778 | AB146: 1 | AC146: 0 | AD146: 0
C147: 5 | D147: 1 | E147: = | F147: 291 | G147: UCHIZA | H147: I | I147: C.A.P.I | J147: 0.9922178988 | K147: 0.98 | L147: 0.98 | M147: 0.931 | S147: 0.9690721649 | T147: 0.9946236559 | U147: 0.9454545455 | V147: 1 | W147: 1 | X147: 1 | Y147: 1 | Z147: 0.9953703704 | AA147: 1 | AB147: 0.9922178988 | AC147: 0 | AD147: 0
C149: 4.143 | G149: RED ASISTENCIAL HUARAZ
C150: 3 | D150: 2 | E150: = | F150: 162 | G150: HUARAZ | H150: II | I150: H.II | J150: 0.9798165138 | K150: 0.98 | L150: 0.98 | M150: 0.931 | S150: 0.9608237067 | T150: 0.9927884615 | U150: 0.9806347499 | V150: 0.985520362 | W150: 0.9787810384 | X150: 0.9964109466 | Y150: 0.9906611879 | Z150: 0.9592806244 | AA150: 0.9584478022 | AB150: 0.9798165138 | AC150: 0 | AD150: 0
C151: 5 | D151: 1 | E151: = | F151: 163 | G151: CARAZ | H151: I | I151: C.M. | J151: 0.988700565 | K151: 0.98 | L151: 0.98 | M151: 0.931 | S151: 0.9509803922 | T151: 0.9879518072 | U151: 1 | V151: 1 | W151: 0.9130434783 | X151: 0.7990430622 | Y151: 0.9153439153 | Z151: 1 | AA151: 0.7952380952 | AB151: 0.988700565 | AC151: 0 | AD151: 0
C152: 5 | D152: 1 | E152: = | F152: 164 | G152: CARHUAZ | H152: I | I152: C.M. | J152: 0.9848484848 | K152: 0.98 | L152: 0.98 | M152: 0.931 | S152: 1 | T152: 1 | U152: 1 | V152: 1 | W152: 1 | X152: 0.9827586207 | Y152: 0.9320754717 | Z152: 0.9833333333 | AA152: 0.985915493 | AB152: 0.9848484848 | AC152: 0 | AD152: 0
C153: 5 | D153: 1 | E153: = | F153: 168 | G153: HUARI | H153: I | I153: C.M. | J153: 1 | K153: 0.98 | L153: 0.98 | M153: 0.931 | S153: 1 | T153: 1 | U153: 1 | V153: 1 | W153: 1 | X153: 1 | Y153: 1 | Z153: 1 | AA153: 1 | AB153: 1 | AC153: 0 | AD153: 0
C154: 5 | D154: 1 | E154: = | F154: 181 | G154: POMABAMBA | H154: I | I154: C.A.P.II | J154: 1 | K154: 0.98 | L154: 0.98 | M154: 0.931 | S154: 1 | T154: 1 | U154: 0.9577464789 | V154: 0.9891696751 | W154: 1 | X154: 1 | Y154: 0.9557195572 | Z154: 0.969348659 | AA154: 1 | AB154: 1 | AC154: 0 | AD154: 0
C155: 3 | D155: 2 | E155: = | F155: 179 | G155: PISCOBAMBA | H155: I | I155: P.M. | J155: 0.9714285714 | K155: 0.98 | L155: 0.98 | M155: 0.931 | S155: 1 | T155: 1 | U155: 0.9565217391 | V155: 0.9565217391 | W155: 1 | X155: 1 | Y155: 0.9361702128 | Z155: 1 | AA155: 1 | AB155: 0.9714285714 | AC155: 0 | AD155: 0
C156: 3 | D156: 2 | E156: = | F156: 190 | G156: YUNGAY | H156: I | I156: P.M. | J156: 0.9545454545 | K156: 0.98 | L156: 0.98 | M156: 0.931 | S156: 1 | T156: 1 | U156: 0.9545454545 | V156: 1 | W156: 1 | X156: 1 | Y156: 0.9090909091 | Z156: 1 | AA156: 1 | AB156: 0.9545454545 | AC156: 0 | AD156: 0
C158: 4.529 | G158: RED ASISTENCIAL ICA
C159: 3 | D159: 2 | E159: = | F159: 854 | G159: AUGUSTO HERNANDEZ MENDOZA | H159: II | I159: H.IV | J159: 0.9526206692 | K159: 0.98 | L159: 0.98 | M159: 0.931 | S159: 0.9518801785 | T159: 0.9422706863 | U159: 0.9136016655 | V159: 0.9707375336 | W159: 0.9268882175 | X159: 0.9715170279 | Y159: 0.9795544706 | Z159: 0.9827429609 | AA159: 0.9531927189 | AB159: 0.9526206692 | AC159: 0 | AD159: 0
C160: 5 | D160: 1 | E160: = | F160: 46 | G160: RENE TOCHE GROPPO | H160: II | I160: H.II | J160: 0.9836065574 | K160: 0.98 | L160: 0.98 | M160: 0.931 | S160: 0.9941605839 | T160: 0.9921005386 | U160: 0.9868962935 | V160: 0.9874633236 | W160: 0.9808049536 | X160: 0.9954323995 | Y160: 0.9925 | Z160: 0.9952963311 | AA160: 0.9870609982 | AB160: 0.9836065574 | AC160: 0 | AD160: 0
C161: 5 | D161: 1 | E161: = | F161: 47 | G161: MARIA REICHE NEUMAN | H161: II | I161: H.I | J161: 0.996007984 | K161: 0.98 | L161: 0.98 | M161: 0.931 | S161: 1 | T161: 1 | U161: 0.8920454545 | V161: 1 | W161: 0.943438914 | X161: 1 | Y161: 0.9937629938 | Z161: 0.9966386555 | AA161: 0.9892473118 | AB161: 0.996007984 | AC161: 0 | AD161: 0
C162: 5 | D162: 1 | E162: = | F162: 45 | G162: FELIX TORREALVA GUTIERREZ | H162: II | I162: H.I | J162: 0.9802718106 | K162: 0.98 | L162: 0.98 | M162: 0.931 | S162: 0.9854014599 | T162: 0.957438184 | U162: 0.9467889908 | V162: 0.9779330636 | W162: 0.9655172414 | X162: 0.9777082519 | Y162: 0.9927690345 | Z162: 0.9919239905 | AA162: 0.9833206975 | AB162: 0.9802718106 | AC162: 0 | AD162: 0
C163: 5 | D163: 1 | E163: = | F163: 48 | G163: ANTONIO SKRABONJA ANTONCICH | H163: II | I163: H.I | J163: 0.988745076 | K163: 0.98 | L163: 0.98 | M163: 0.931 | S163: 0.9884146341 | T163: 0.9905541562 | U163: 0.9704968944 | V163: 0.9910414334 | W163: 0.9730769231 | X163: 0.9885969261 | Y163: 0.988741044 | Z163: 0.999466951 | AA163: 0.9684708355 | AB163: 0.988745076 | AC163: 0 | AD163: 0
C164: 5 | D164: 1 | E164: = | F164: 424 | G164: PUEBLO NUEVO | H164: I | I164: C.A.P.II | J164: 1 | K164: 0.98 | L164: 0.98 | M164: 0.931 | S164: 1 | T164: 0.9188034188 | U164: 0.9887640449 | V164: 0.9642857143 | W164: 0.9868421053 | X164: 1 | Y164: 1 | Z164: 1 | AA164: 1 | AB164: 1 | AC164: 0 | AD164: 0
C165: 5 | D165: 1 | E165: = | F165: 432 | G165: NASCA | H165: I | I165: C.A.P.II | J165: 1 | K165: 0.98 | L165: 0.98 | M165: 0.931 | S165: 0.995 | T165: 1 | U165: 1 | V165: 1 | W165: 1 | X165: 1 | Y165: 1 | Z165: 1 | AA165: 1 | AB165: 1 | AC165: 0 | AD165: 0
C166: 5 | D166: 1 | E166: = | F166: 52 | G166: MACACONA | H166: I | I166: C.A.P.II | J166: 1 | K166: 0.98 | L166: 0.98 | M166: 0.931 | S166: 1 | T166: 1 | U166: 1 | V166: 1 | W166: 0.9824561404 | X166: 0.983935743 | Y166: 0.9824561404 | Z166: 1 | AA166: 0.9885386819 | AB166: 1 | AC166: 0 | AD166: 0
C167: 5 | D167: 1 | E167: = | F167: 841 | G167: LA TINGUIÑA | H167: I | I167: C.A.P.II | J167: 1 | K167: 0.98 | L167: 0.98 | M167: 0.931 | S167: 0.9868131868 | T167: 0.974137931 | U167: 0.9785234899 | V167: 0.975 | W167: 1.005617978 | X167: 0.9891891892 | Y167: 0.980861244 | Z167: 0.9924528302 | AA167: 0.9921875 | AB167: 1 | AC167: 0 | AD167: 0
C168: 5 | D168: 1 | E168: = | F168: 842 | G168: SANTA MARGARITA | H168: I | I168: C.A.P.II | J168: 0.9976303318 | K168: 0.98 | L168: 0.98 | M168: 0.931 | S168: 0.9894067797 | T168: 0.9819277108 | U168: 0.9917695473 | V168: 0.987460815 | W168: 0.9229583975 | X168: 0.996460177 | Y168: 0.9931880109 | Z168: 1 | AA168: 0.987206823 | AB168: 0.9976303318 | AC168: 0 | AD168: 0
C169: 5 | D169: 1 | E169: = | F169: 846 | G169: PUQUIO | H169: I | I169: C.A.P.II | J169: 1 | K169: 0.98 | L169: 0.98 | M169: 0.931 | S169: 1 | T169: 1 | U169: 0.9875 | V169: 1 | W169: 0.9879518072 | X169: 1 | Y169: 1 | Z169: 0.9888059701 | AA169: 0.9894736842 | AB169: 1 | AC169: 0 | AD169: 0
C170: 5 | D170: 1 | E170: = | F170: 832 | G170: CORACORA | H170: I | I170: C.A.P.I | J170: 1 | K170: 0.98 | L170: 0.98 | M170: 0.931 | S170: 0.9878787879 | T170: 1 | U170: 0.9705882353 | V170: 0.9925373134 | W170: 0.9626168224 | X170: 0.9736842105 | Y170: 0.9827586207 | Z170: 0.990990991 | AA170: 1 | AB170: 1 | AC170: 0 | AD170: 0
C171: 3 | D171: 2 | E171: = | F171: 50 | G171: CHAVALINA | H171: I | I171: C.A.P.I | J171: 0.9748427673 | K171: 0.98 | L171: 0.98 | M171: 0.931 | S171: 1 | T171: 0.8698630137 | U171: 0.9310344828 | V171: 0.9487179487 | W171: 0.9756097561 | X171: 0.9736842105 | Y171: 0.9895833333 | Z171: 1 | AA171: 0.8518518519 | AB171: 0.9748427673 | AC171: 0 | AD171: 0
C172: 5 | D172: 1 | E172: = | F172: 54 | G172: PALPA | H172: I | I172: C.A.P.I | J172: 1 | K172: 0.98 | L172: 0.98 | M172: 0.931 | S172: 0.9487179487 | T172: 0.958974359 | U172: 0.9714285714 | V172: 0.95 | W172: 0.9696969697 | X172: 1 | Y172: 0.9047619048 | Z172: 1 | AA172: 1 | AB172: 1 | AC172: 0 | AD172: 0
C173: 5 | D173: 1 | E173: = | F173: 57 | G173: SAN CLEMENTE | H173: I | I173: C.A.P.I | J173: 1 | K173: 0.98 | L173: 0.98 | M173: 0.931 | S173: 1 | T173: 1 | U173: 1 | V173: 1 | W173: 1 | X173: 1 | Y173: 0.9913043478 | Z173: 1 | AA173: 1 | AB173: 1 | AC173: 0 | AD173: 0
C174: 1 | D174: 3 | E174: = | F174: 59 | G174: TAMBO DE MORA | H174: I | I174: C.A.P.I | J174: 0.8436018957 | K174: 0.98 | L174: 0.98 | M174: 0.931 | S174: 0.7126436782 | T174: 0.9650655022 | U174: 0.634751773 | V174: 0.9851851852 | W174: 0.9851851852 | X174: 0.8899082569 | Y174: 0.9074074074 | Z174: 0.8862559242 | AA174: 1 | AB174: 0.8436018957 | AC174: 0 | AD174: 0
C175: 5 | D175: 1 | E175: = | F175: 61 | G175: VILLA TÚPAC AMARU | H175: I | I175: C.A.P.I | J175: 1 | K175: 0.98 | L175: 0.98 | M175: 0.931 | S175: 0.9390681004 | T175: 1 | U175: 1 | V175: 1 | W175: 0.991416309 | X175: 0.9754098361 | Y175: 1 | Z175: 1 | AA175: 1 | AB175: 1 | AC175: 0 | AD175: 0
C177: 2.909 | G177: RED ASISTENCIAL JUNÍN
C178: 5 | D178: 1 | E178: = | F178: 307 | G178: RAMIRO PRIALE PRIALE | H178: III | I178: H.N. | J178: 0.9983118801 | K178: 0.98 | L178: 0.98 | M178: 0.931 | S178: 0.9872330548 | T178: 0.9863304266 | U178: 0.9851210304 | V178: 0.9897080445 | W178: 0.9837683703 | X178: 0.9868929953 | Y178: 0.9814340589 | Z178: 0.9902797534 | AA178: 0.9800118741 | AB178: 0.9983118801 | AC178: 0 | AD178: 0
C179: 5 | D179: 1 | E179: = | F179: 308 | G179: ALBERTO HURTADO ABADIA | H179: II | I179: H.II | J179: 1 | K179: 0.98 | L179: 0.98 | M179: 0.931 | S179: 1 | T179: 1 | U179: 0.9920106525 | V179: 0.9865841073 | W179: 0.9796437659 | X179: 0.9783105023 | Y179: 1 | Z179: 0.9606396064 | AA179: 1 | AB179: 1 | AC179: 0 | AD179: 0
C180: 3 | D180: 2 | E180: = | F180: 309 | G180: RIO NEGRO - SATIPO | H180: II | I180: H.I | J180: 0.9406593407 | K180: 0.98 | L180: 0.98 | M180: 0.931 | S180: 0.8805309735 | T180: 1 | U180: 0.9382716049 | V180: 0.9514563107 | W180: 1 | X180: 0.8901098901 | Y180: 0.9288256228 | Z180: 0.9623655914 | AA180: 0.7701149425 | AB180: 0.9406593407 | AC180: 0 | AD180: 0
C181: 3 | D181: 2 | E181: = | F181: 313 | G181: HOSPITAL DE LA SELVA CENTRAL Y ENFERMEDADES TROPICALES HUGO PESCE PESCETTO | H181: II | I181: H.I | J181: 0.9512195122 | K181: 0.98 | L181: 0.98 | M181: 0.931 | S181: 0.9659284497 | T181: 0.9312977099 | U181: 0.9021582734 | V181: 0.9238410596 | W181: 0.9033412888 | X181: 0.9054545455 | Y181: 0.9139240506 | Z181: 0.976076555 | AA181: 0.989280245 | AB181: 0.9512195122 | AC181: 0 | AD181: 0
C182: 1 | D182: 3 | E182: = | F182: 310 | G182: TARMA | H182: II | I182: H.I | J182: 0.9095022624 | K182: 0.98 | L182: 0.98 | M182: 0.931 | S182: 0.9352941176 | T182: 0.9529411765 | U182: 0.9789156627 | V182: 0.9568345324 | W182: 1 | X182: 0.931372549 | Y182: 0.9583333333 | Z182: 0.9353233831 | AA182: 0.951048951 | AB182: 0.9095022624 | AC182: 0 | AD182: 0
C183: 1 | D183: 3 | E183: = | F183: 311 | G183: JAUJA | H183: I | I183: POL. | J183: 0.8944099379 | K183: 0.98 | L183: 0.98 | M183: 0.931 | S183: 0.908952959 | T183: 0.7791164659 | U183: 0.8800959233 | V183: 0.9126436782 | W183: 0.9463414634 | X183: 0.9493670886 | Y183: 0.9367088608 | Z183: 0.9325301205 | AA183: 0.9120603015 | AB183: 0.8944099379 | AC183: 0 | AD183: 0
C184: 3 | D184: 2 | E184: = | F184: 834 | G184: METROPOLITANO HUANCAYO | H184: I | I184: POL. | J184: 0.9771300448 | K184: 0.98 | L184: 0.98 | M184: 0.931 | S184: 0.9408194234 | T184: 0.9508196721 | U184: 0.996031746 | V184: 0.9872557349 | W184: 0.9833333333 | X184: 0.9556830031 | Y184: 0.9244332494 | Z184: 1 | AA184: 0.9900166389 | AB184: 0.9771300448 | AC184: 0 | AD184: 0
C185: 5 | D185: 1 | E185: = | F185: 494 | G185: MANTARO | H185: I | I185: C.A.P.III | J185: 1.006864989 | K185: 0.98 | L185: 0.98 | M185: 0.931 | S185: 1.031746032 | T185: 0.996547756 | U185: 1.010676157 | V185: 1.017899761 | W185: 1.013001083 | X185: 0.9883990719 | Y185: 0.9867346939 | Z185: 1 | AA185: 0.9938080495 | AB185: 1.006864989 | AC185: 0 | AD185: 0
C186: 5 | D186: 1 | E186: = | F186: 317 | G186: CONCEPCION | H186: I | I186: C.M. | J186: 1 | K186: 0.98 | L186: 0.98 | M186: 0.931 | S186: 0.9929577465 | T186: 0.9926470588 | U186: 0.9884615385 | V186: 0.9934210526 | W186: 0.993442623 | X186: 0.9927007299 | Y186: 0.9932885906 | Z186: 0.9930555556 | AA186: 1 | AB186: 1 | AC186: 0 | AD186: 0
C187: 5 | D187: 1 | E187: = | F187: 312 | G187: JUNIN | H187: I | I187: C.A.P.II | J187: 1 | K187: 0.98 | L187: 0.98 | M187: 0.931 | S187: 1 | T187: 1 | U187: 1 | V187: 1 | W187: 1 | X187: 1 | Y187: 1 | Z187: 1 | AA187: 1 | AB187: 1 | AC187: 0 | AD187: 0
C188: 1 | D188: 3 | E188: = | F188: 320 | G188: MOROCOCHA | H188: I | I188: C.A.P.II | J188: 0.9056603774 | K188: 0.98 | L188: 0.98 | M188: 0.931 | S188: 0.7088607595 | T188: 0.6621621622 | U188: 1 | V188: 0.5733333333 | W188: 1 | X188: 0.5793103448 | Y188: 0.7307692308 | Z188: 0.9090909091 | AA188: 0.8947368421 | AB188: 0.9056603774 | AC188: 0 | AD188: 0
C189: 5 | D189: 1 | E189: = | F189: 454 | G189: CHILCA | H189: I | I189: C.A.P.II | J189: 1 | K189: 0.98 | L189: 0.98 | M189: 0.931 | S189: 1.052631579 | T189: 1.025885559 | U189: 1.040897098 | V189: 1.041760722 | W189: 1.005847953 | X189: 1.013871375 | Y189: 1.076380729 | Z189: 0.991831972 | AA189: 0.9898876404 | AB189: 1 | AC189: 0 | AD189: 0
C190: 5 | D190: 1 | E190: = | F190: 853 | G190: CHUPACA | H190: I | I190: C.A.P.II | J190: 0.9821428571 | K190: 0.98 | L190: 0.98 | M190: 0.931 | S190: 0.9965870307 | T190: 1 | U190: 0.9844720497 | V190: 0.9912790698 | W190: 0.9967845659 | X190: 0.9958677686 | Y190: 0.9910979228 | Z190: 0.9972222222 | AA190: 0.993902439 | AB190: 0.9821428571 | AC190: 0 | AD190: 0
C191: 1 | D191: 3 | E191: = | F191: 372 | G191: SAN PEDRO DE CAJAS | H191: I | I191: P.M. | J191: 0.8076923077 | K191: 0.98 | L191: 0.98 | M191: 0.931 | S191: 0.6949152542 | T191: 0.8983050847 | U191: 0.7543859649 | V191: 0.8260869565 | W191: 0.9130434783 | X191: 0.5909090909 | Y191: 0.6666666667 | Z191: 0.76 | AA191: 0.7916666667 | AB191: 0.8076923077 | AC191: 0 | AD191: 0
C192: 1 | D192: 3 | E192: = | F192: 322 | G192: PACHACAYO | H192: I | I192: P.M. | J192: 0.9024390244 | K192: 0.98 | L192: 0.98 | M192: 0.931 | S192: 0.54 | T192: 0.5925925926 | U192: 0.72 | V192: 0.9545454545 | W192: 0.8571428571 | X192: 0.6891891892 | Y192: 0.9019607843 | Z192: 0.96 | AA192: 0.9387755102 | AB192: 0.9024390244 | AC192: 0 | AD192: 0
C193: 5 | D193: 1 | E193: = | F193: 323 | G193: SAN CRISTOBAL | H193: I | I193: P.M. | J193: 1 | K193: 0.98 | L193: 0.98 | M193: 0.931 | S193: 0.7446808511 | T193: 0.7446808511 | U193: 0.6875 | V193: 0.7580645161 | W193: 0.7564102564 | X193: 0.8 | Y193: 0.875 | Z193: 1 | AA193: 1 | AB193: 1 | AC193: 0 | AD193: 0
C194: 5 | D194: 1 | E194: = | F194: 324 | G194: YAURICOCHA | H194: I | I194: P.M. | J194: 1 | K194: 0.98 | L194: 0.98 | M194: 0.931 | S194: 1 | T194: 1 | U194: 1 | V194: 1 | W194: 1 | X194: 0.9677419355 | Y194: 1 | Z194: 1 | AA194: 0.98 | AB194: 1 | AC194: 0 | AD194: 0
C195: 1 | D195: 3 | E195: = | F195: 318 | G195: MARH-TÚNEL | H195: I | I195: P.M. | J195: 0.875 | K195: 0.98 | L195: 0.98 | M195: 0.931 | S195: 1 | T195: 1 | U195: 0.84 | V195: 0.92 | W195: 0.3837209302 | X195: 0.8026315789 | Y195: 0.8913043478 | Z195: 0.9166666667 | AA195: 0.9583333333 | AB195: 0.875 | AC195: 0 | AD195: 0
C196: 1 | D196: 3 | E196: = | F196: 314 | G196: ANDAYCHAGUA | H196: I | I196: P.M. | J196: 0.746031746 | K196: 0.98 | L196: 0.98 | M196: 0.931 | S196: 0.9565217391 | T196: 0.5638297872 | U196: 0.4150943396 | V196: 0.7549019608 | W196: 0.7777777778 | X196: 0.6666666667 | Y196: 0.8076923077 | Z196: 0.8227848101 | AA196: 0.7297297297 | AB196: 0.746031746 | AC196: 0 | AD196: 0
C197: 1 | D197: 3 | E197: = | F197: 315 | G197: COBRIZA | H197: I | I197: P.M. | J197: 0.8245614035 | K197: 0.98 | L197: 0.98 | M197: 0.931 | S197: 0.9565217391 | T197: 0.9333333333 | U197: 0.9130434783 | V197: 0.8148148148 | W197: 0.85 | X197: 0.8510638298 | Y197: 0.8085106383 | Z197: 0.92 | AA197: 0.9047619048 | AB197: 0.8245614035 | AC197: 0 | AD197: 0
C198: 1 | D198: 3 | E198: = | F198: 316 | G198: CORPACANCHA | H198: I | I198: P.M. | J198: 0.8181818182 | K198: 0.98 | L198: 0.98 | M198: 0.931 | S198: 0.3913043478 | T198: 0.6666666667 | U198: 0.2777777778 | V198: 0.3684210526 | W198: 0.6976744186 | X198: 0.6933333333 | Y198: 0.4081632653 | Z198: 0.4772727273 | AA198: 0.7272727273 | AB198: 0.8181818182 | AC198: 0 | AD198: 0
C199: 1 | D199: 3 | E199: = | F199: 492 | G199: PICHANAQUI | H199: I | I199: C.A.P.I | J199: 0.75 | K199: 0.98 | L199: 0.98 | M199: 0.931 | S199: 0.8415841584 | T199: 1 | U199: 1 | V199: 1 | W199: 0.9550561798 | X199: 0.972972973 | Y199: 1 | Z199: 0.9642857143 | AA199: 1 | AB199: 0.75 | AC199: 0 | AD199: 0
C201: 1.667 | G201: RED ASISTENCIAL JAEN
C202: 1 | D202: 3 | E202: = | F202: 245 | G202: JAEN | H202: II | I202: H.II | J202: 0.9174950298 | K202: 0.98 | L202: 0.98 | M202: 0.931 | S202: 0.8838120104 | T202: 0.8991041961 | U202: 0.92092257 | V202: 0.8544758258 | W202: 0.8780612245 | X202: 0.9114411441 | Y202: 0.886631016 | Z202: 0.9473972603 | AA202: 0.918134715 | AB202: 0.9174950298 | AC202: 0 | AD202: 0
C203: 1 | D203: 3 | E203: = | F203: 256 | G203: SAN IGNACIO | H203: I | I203: C.A.P.II | J203: 0.8625954198 | K203: 0.98 | L203: 0.98 | M203: 0.931 | S203: 0.885 | T203: 0.6431372549 | U203: 0.5862745098 | V203: 0.7239130435 | W203: 0.6599496222 | X203: 0.7665706052 | Y203: 0.7820512821 | Z203: 0.854368932 | AA203: 0.9099099099 | AB203: 0.8625954198 | AC203: 0 | AD203: 0
C204: 3 | D204: 2 | E204: = | F204: 255 | G204: PUCARA | H204: I | I204: P.M. | J204: 0.96 | K204: 0.98 | L204: 0.98 | M204: 0.931 | S204: 1 | T204: 1 | U204: 0.9891304348 | V204: 0.98 | W204: 0.8645833333 | X204: 0.9759036145 | Y204: 0.985915493 | Z204: 0.9868421053 | AA204: 0.9382716049 | AB204: 0.96 | AC204: 0 | AD204: 0
C206: 4.714 | G206: RED ASISTENCIAL LA LIBERTAD
C207: 5 | D207: 1 | E207: = | F207: 671 | G207: HOSPITAL DE ALTA COMPLEJIDAD DE LA LIBERTAD VIRGEN DE LA PUERTA | H207: III | I207: H.N. | J207: 0.9876444799 | K207: 0.98 | L207: 0.98 | M207: 0.931 | S207: 0.9682985554 | T207: 0.9672879422 | U207: 0.9651760981 | V207: 0.967243283 | W207: 0.9719101124 | X207: 0.9804166667 | Y207: 0.9731570513 | Z207: 0.984197731 | AA207: 0.9856549641 | AB207: 0.9876444799 | AC207: 0 | AD207: 0
C208: 3 | D208: 2 | E208: = | F208: 205 | G208: VICTOR LAZARTE ECHEGARAY | H208: II | I208: H.IV | J208: 0.9552518757 | K208: 0.98 | L208: 0.98 | M208: 0.931 | S208: 0.9581167839 | T208: 0.9619154299 | U208: 0.9508015478 | V208: 0.9473684211 | W208: 0.8918367347 | X208: 0.9596669269 | Y208: 0.9499256321 | Z208: 0.9539207761 | AA208: 0.9570394583 | AB208: 0.9552518757 | AC208: 0 | AD208: 0
C209: 5 | D209: 1 | E209: = | F209: 206 | G209: CHOCOPE | H209: II | I209: H.II | J209: 0.983 | K209: 0.98 | L209: 0.98 | M209: 0.931 | S209: 0.9811507937 | T209: 0.981233244 | U209: 0.9832677165 | V209: 0.9804919423 | W209: 0.980563654 | X209: 0.985267035 | Y209: 0.9812909261 | Z209: 0.9891411649 | AA209: 0.9805258033 | AB209: 0.983 | AC209: 0 | AD209: 0
C210: 3 | D210: 2 | E210: = | F210: 207 | G210: ALBRECHT | H210: II | I210: H.I | J210: 0.9618896387 | K210: 0.98 | L210: 0.98 | M210: 0.931 | S210: 0.9610091743 | T210: 0.9506777108 | U210: 0.9636135508 | V210: 0.9645316804 | W210: 0.9672630377 | X210: 0.9527529762 | Y210: 0.9626749611 | Z210: 0.9690166143 | AA210: 0.9647519582 | AB210: 0.9618896387 | AC210: 0 | AD210: 0
C211: 5 | D211: 1 | E211: = | F211: 208 | G211: PACASMAYO | H211: II | I211: H.I | J211: 1 | K211: 0.98 | L211: 0.98 | M211: 0.931 | S211: 0.9951100244 | T211: 0.9935064935 | U211: 0.9945155393 | V211: 0.9885714286 | W211: 0.9941690962 | X211: 0.996131528 | Y211: 0.9946619217 | Z211: 0.9958506224 | AA211: 1 | AB211: 1 | AC211: 0 | AD211: 0
C212: 5 | D212: 1 | E212: = | F212: 211 | G212: FLORENCIA DE MORA | H212: II | I212: H.I | J212: 0.9814462417 | K212: 0.98 | L212: 0.98 | M212: 0.931 | S212: 0.9640718563 | T212: 0.9685264664 | U212: 0.9697265625 | V212: 0.9466666667 | W212: 0.930549038 | X212: 0.9715127701 | Y212: 0.9726858877 | Z212: 0.9785679493 | AA212: 0.9747974797 | AB212: 0.9814462417 | AC212: 0 | AD212: 0
C213: 5 | D213: 1 | E213: = | F213: 212 | G213: LA ESPERANZA | H213: II | I213: H.I | J213: 0.9880311191 | K213: 0.98 | L213: 0.98 | M213: 0.931 | S213: 0.9855453351 | T213: 0.9873344847 | U213: 0.9860627178 | V213: 0.9857397504 | W213: 0.9785074627 | X213: 0.990604815 | Y213: 0.9828353465 | Z213: 0.985645933 | AA213: 0.9941417692 | AB213: 0.9880311191 | AC213: 0 | AD213: 0
C214: 5 | D214: 1 | E214: = | F214: 213 | G214: MOCHE | H214: II | I214: H.I | J214: 0.995843724 | K214: 0.98 | L214: 0.98 | M214: 0.931 | S214: 0.9818577649 | T214: 0.981884058 | U214: 0.9806173726 | V214: 0.9810791871 | W214: 0.973540856 | X214: 0.9964664311 | Y214: 1 | Z214: 0.993772242 | AA214: 0.99140625 | AB214: 0.995843724 | AC214: 0 | AD214: 0
C215: 5 | D215: 1 | E215: = | F215: 241 | G215: VICTOR SOLES GARCIA | H215: II | I215: H.I | J215: 0.9895013123 | K215: 0.98 | L215: 0.98 | M215: 0.931 | S215: 0.939516129 | T215: 0.9691629956 | U215: 0.9137168142 | V215: 0.9010600707 | W215: 0.8987854251 | X215: 0.8971962617 | Y215: 0.9955654102 | Z215: 0.9633867277 | AA215: 0.9915611814 | AB215: 0.9895013123 | AC215: 0 | AD215: 0
C216: 3 | D216: 2 | E216: = | F216: 210 | G216: EL PORVENIR | H216: I | I216: POL. | J216: 0.976744186 | K216: 0.98 | L216: 0.98 | M216: 0.931 | S216: 0.9612314709 | T216: 0.9717362046 | U216: 0.9762187872 | V216: 0.956928839 | W216: 0.9451476793 | X216: 0.9392575928 | Y216: 0.9621621622 | Z216: 0.933423913 | AA216: 0.9824561404 | AB216: 0.976744186 | AC216: 0 | AD216: 0
C217: 5 | D217: 1 | E217: = | F217: 443 | G217: VICTOR LARCO HERRERA | H217: I | I217: POL. | J217: 0.9930735931 | K217: 0.98 | L217: 0.98 | M217: 0.931 | S217: 0.9760717846 | T217: 0.9799833194 | U217: 0.9833333333 | V217: 0.9787955895 | W217: 0.9881386861 | X217: 0.9946236559 | Y217: 0.9886899152 | Z217: 0.993883792 | AA217: 0.9950445986 | AB217: 0.9930735931 | AC217: 0 | AD217: 0
... 241 more rows

Sheet C.E_Recetas
C1: CRITERIOS DE EVALUACION
C3: PROMEDIO DE RECETAS POR CONSULTAS
S5: AÑO: 2024
C6: Puntaje | E6: Red Asistencial / Establecimientos | H6: Nivel | I6: Tipo | J6: Valor Real | K6: Estandar | L6: Verde | M6: Rojo | R6: Anual | S6: Ene | T6: Feb | U6: Mar | V6: Abr | W6: May | X6: Jun | Y6: Jul | Z6: Ago | AA6: Sep | AB6: Oct | AC6: Nov | AD6: Dic
C8: 2.724 | G8: TOTAL NACIONAL
C10: 1.4 | G10: RED ASISTENCIAL AMAZONAS
C11: 1 | D11: 3 | E11: = | F11: 153 | G11: EL BUEN SAMARITANO | H11: II | I11: H.I | J11: 3.769040903 | K11: 1.8 | L11: 1.8 | M11: 1.98 | S11: 1.984120837 | T11: 1.940337711 | U11: 2.134827044 | V11: 2.095571956 | W11: 2.297029703 | X11: 2.119062307 | Y11: 2.238308116 | Z11: 2.161505768 | AA11: 2.190521327 | AB11: 3.769040903 | AC11: 0 | AD11: 0
C12: 1 | D12: 3 | E12: = | F12: 154 | G12: HEROES DEL CENEPA | H12: II | I12: H.I | J12: 2.080745342 | K12: 1.8 | L12: 1.8 | M12: 1.98 | S12: 1.657797238 | T12: 1.604841245 | U12: 1.922370937 | V12: 1.765942537 | W12: 1.923620934 | X12: 2.053365193 | Y12: 1.993809327 | Z12: 1.96 | AA12: 1.997278912 | AB12: 2.080745342 | AC12: 0 | AD12: 0
C13: 1 | D13: 3 | E13: = | F13: 155 | G13: HIGOS URCO | H13: II | I13: H.I | J13: 2.072916667 | K13: 1.8 | L13: 1.8 | M13: 1.98 | S13: 1.90064302 | T13: 2.004352127 | U13: 2.16126777 | V13: 2.122111591 | W13: 2.231054687 | X13: 2.223935963 | Y13: 2.130385912 | Z13: 2.102579132 | AA13: 2.219390688 | AB13: 2.072916667 | AC13: 0 | AD13: 0
C14: 1 | D14: 3 | E14: = | F14: 843 | G14: RODRIGUEZ DE MENDOZA | H14: I | I14: C.A.P.II | J14: 3.908928571 | K14: 1.8 | L14: 1.8 | M14: 1.98 | S14: 4.221774194 | T14: 3.981557377 | U14: 4 | V14: 4.00172117 | W14: 3.754816112 | X14: 4.287755102 | Y14: 4.303797468 | Z14: 3.874766355 | AA14: 4.045614035 | AB14: 3.908928571 | AC14: 0 | AD14: 0
C15: 1 | D15: 3 | E15: = | F15: 845 | G15: SANTA MARIA DE NIEVA | H15: I | I15: C.A.P.II | J15: 2.507042254 | K15: 1.8 | L15: 1.8 | M15: 1.98 | S15: 2.360788863 | T15: 2.063309353 | U15: 1.495784148 | V15: 2.206730769 | W15: 2.177290837 | X15: 2.862781955 | Y15: 2.655348048 | Z15: 3.340659341 | AA15: 2.537112011 | AB15: 2.507042254 | AC15: 0 | AD15: 0
C16: 3 | D16: 2 | E16: = | F16: 855 | G16: IMAZA | H16: I | I16: C.A.P.I | J16: 1.940509915 | K16: 1.8 | L16: 1.8 | M16: 1.98 | S16: 2.116607774 | T16: 1.803571429 | U16: 1.926984127 | V16: 2.126099707 | W16: 2.429065744 | X16: 2.780780781 | Y16: 3.031073446 | Z16: 2.560344828 | AA16: 2.17370892 | AB16: 1.940509915 | AC16: 0 | AD16: 0
C17: 1 | D17: 3 | E17: = | F17: 156 | G17: LAMUD | H17: I | I17: C.A.P.I | J17: 2.12 | K17: 1.8 | L17: 1.8 | M17: 1.98 | S17: 2.468634686 | T17: 2.467213115 | U17: 2.660287081 | V17: 2.874125874 | W17: 2.194029851 | X17: 2.296296296 | Y17: 2.125806452 | Z17: 2.699680511 | AA17: 2.6 | AB17: 2.12 | AC17: 0 | AD17: 0
C18: 3 | D18: 2 | E18: = | F18: 157 | G18: LONYA GRANDE | H18: I | I18: C.A.P.I | J18: 1.912037037 | K18: 1.8 | L18: 1.8 | M18: 1.98 | S18: 2.147368421 | T18: 1.974489796 | U18: 2.335403727 | V18: 2.730392157 | W18: 1.709359606 | X18: 1.865671642 | Y18: 1.897560976 | Z18: 1.57079646 | AA18: 1.696 | AB18: 1.912037037 | AC18: 0 | AD18: 0
C19: 1 | D19: 3 | E19: = | F19: 158 | G19: OCALLI | H19: I | I19: C.A.P.I | J19: 2.695121951 | K19: 1.8 | L19: 1.8 | M19: 1.98 | S19: 1.893129771 | T19: 1.674796748 | U19: 2.165413534 | V19: 3.06122449 | W19: 2.465116279 | X19: 2.378571429 | Y19: 2.917582418 | Z19: 2.564102564 | AA19: 2.891566265 | AB19: 2.695121951 | AC19: 0 | AD19: 0
C20: 1 | D20: 3 | E20: = | F20: 159 | G20: PEDRO RUIZ GALLO | H20: I | I20: C.A.P.I | J20: 2.083993661 | K20: 1.8 | L20: 1.8 | M20: 1.98 | S20: 2.284705882 | T20: 2.473684211 | U20: 2.477653631 | V20: 2.830882353 | W20: 2.919689119 | X20: 2.834285714 | Y20: 2.606060606 | Z20: 2.409698997 | AA20: 2.595486111 | AB20: 2.083993661 | AC20: 0 | AD20: 0
C22: 4.667 | G22: RED ASISTENCIAL ANCASH
C23: 5 | D23: 1 | E23: = | F23: 161 | G23: CHIMBOTE | H23: II | I23: H.III | J23: 1.667320903 | K23: 1.8 | L23: 1.8 | M23: 1.98 | S23: 1.602290132 | T23: 1.559522969 | U23: 1.760236911 | V23: 1.637684004 | W23: 1.683264478 | X23: 1.766566154 | Y23: 1.711780785 | Z23: 1.723979753 | AA23: 1.659777525 | AB23: 1.667320903 | AC23: 0 | AD23: 0
C24: 3 | D24: 2 | E24: = | F24: 167 | G24: CONO SUR | H24: II | I24: H.I | J24: 1.892736113 | K24: 1.8 | L24: 1.8 | M24: 1.98 | S24: 1.658724597 | T24: 1.631181442 | U24: 1.647550958 | V24: 1.667621777 | W24: 1.827710177 | X24: 1.831543537 | Y24: 1.792838118 | Z24: 1.83187909 | AA24: 1.78715738 | AB24: 1.892736113 | AC24: 0 | AD24: 0
C25: 5 | D25: 1 | E25: = | F25: 487 | G25: VICTOR PANTA RODRIGUEZ | H25: I | I25: POL. | J25: 1.684235206 | K25: 1.8 | L25: 1.8 | M25: 1.98 | S25: 1.556344747 | T25: 1.470362903 | U25: 1.648600022 | V25: 1.632263578 | W25: 1.676234539 | X25: 1.622253389 | Y25: 1.70114269 | Z25: 1.754802483 | AA25: 1.721172187 | AB25: 1.684235206 | AC25: 0 | AD25: 0
C26: 5 | D26: 1 | E26: = | F26: 165 | G26: CASMA | H26: I | I26: C.M. | J26: 1.40481523 | K26: 1.8 | L26: 1.8 | M26: 1.98 | S26: 1.431933842 | T26: 1.232173417 | U26: 1.367595819 | V26: 1.489442339 | W26: 1.62364532 | X26: 1.535168196 | Y26: 1.700689061 | Z26: 1.660602615 | AA26: 1.662289916 | AB26: 1.40481523 | AC26: 0 | AD26: 0
C27: 5 | D27: 1 | E27: = | F27: 166 | G27: COISHCO | H27: I | I27: C.M. | J27: 1.731255265 | K27: 1.8 | L27: 1.8 | M27: 1.98 | S27: 1.550773369 | T27: 1.666039511 | U27: 1.637458927 | V27: 1.538571429 | W27: 1.560479376 | X27: 1.668587022 | Y27: 1.596752816 | Z27: 1.719482121 | AA27: 1.727704781 | AB27: 1.731255265 | AC27: 0 | AD27: 0
C28: 5 | D28: 1 | E28: = | F28: 170 | G28: SIHUAS | H28: I | I28: C.M. | J28: 1.712121212 | K28: 1.8 | L28: 1.8 | M28: 1.98 | S28: 1.494339623 | T28: 1.452 | U28: 1.700970874 | V28: 1.788167939 | W28: 1.645914397 | X28: 1.706930693 | Y28: 1.626297578 | Z28: 1.666041276 | AA28: 1.736742424 | AB28: 1.712121212 | AC28: 0 | AD28: 0
C29: 5 | D29: 1 | E29: = | F29: 169 | G29: HUARMEY | H29: I | I29: C.M. | J29: 1.638112973 | K29: 1.8 | L29: 1.8 | M29: 1.98 | S29: 1.526490066 | T29: 1.308396125 | U29: 1.400380711 | V29: 1.291521487 | W29: 1.544180378 | X29: 1.674123337 | Y29: 1.573155216 | Z29: 1.748134328 | AA29: 1.586982968 | AB29: 1.638112973 | AC29: 0 | AD29: 0
C30: 5 | D30: 1 | E30: = | F30: 185 | G30: SAN JACINTO | H30: I | I30: C.A.P.II | J30: 1.719709898 | K30: 1.8 | L30: 1.8 | M30: 1.98 | S30: 1.545621555 | T30: 1.691611058 | U30: 1.657439446 | V30: 1.679783571 | W30: 2.200749688 | X30: 2.027091255 | Y30: 1.796296296 | Z30: 1.673655424 | AA30: 1.71970677 | AB30: 1.719709898 | AC30: 0 | AD30: 0
C31: 5 | D31: 1 | E31: = | F31: 171 | G31: CABANA | H31: I | I31: P.M. | J31: 1.57980456 | K31: 1.8 | L31: 1.8 | M31: 1.98 | S31: 1.593886463 | T31: 1.443181818 | U31: 1.228915663 | V31: 1.775 | W31: 1.586319218 | X31: 1.626229508 | Y31: 1.668421053 | Z31: 1.573816156 | AA31: 1.467567568 | AB31: 1.57980456 | AC31: 0 | AD31: 0
C32: 3 | D32: 2 | E32: = | F32: 175 | G32: CONCHUCOS | H32: I | I32: P.M. | J32: 1.841176471 | K32: 1.8 | L32: 1.8 | M32: 1.98 | S32: 1.307086614 | T32: 1.129353234 | U32: 1.446808511 | V32: 1.763779528 | W32: 1.632911392 | X32: 1.776 | Y32: 1.697959184 | Z32: 1.36875 | AA32: 1.78974359 | AB32: 1.841176471 | AC32: 0 | AD32: 0
C33: 5 | D33: 1 | E33: = | F33: 178 | G33: PAMPAS | H33: I | I33: P.M. | J33: 0.8903225806 | K33: 1.8 | L33: 1.8 | M33: 1.98 | S33: 1.742307692 | T33: 1.331877729 | U33: 1.551111111 | V33: 1.6 | W33: 1.22826087 | X33: 1.288343558 | Y33: 1.685082873 | Z33: 1.629411765 | AA33: 1.165714286 | AB33: 0.8903225806 | AC33: 0 | AD33: 0
C34: 5 | D34: 1 | E34: = | F34: 379 | G34: PALLASCA | H34: I | I34: P.M. | J34: 1.719298246 | K34: 1.8 | L34: 1.8 | M34: 1.98 | S34: 1.431818182 | T34: 1.13740458 | U34: 1.170731707 | V34: 1.271317829 | W34: 1.715116279 | X34: 1.460606061 | Y34: 1.533834586 | Z34: 1.76984127 | AA34: 1.661417323 | AB34: 1.719298246 | AC34: 0 | AD34: 0
C36: 3.25 | G36: RED ASISTENCIAL APURÍMAC
C37: 5 | D37: 1 | E37: = | F37: 67 | G37: ABANCAY | H37: II | I37: H.II | J37: 1.447583365 | K37: 1.8 | L37: 1.8 | M37: 1.98 | S37: 1.574616457 | T37: 1.655751684 | U37: 1.560083595 | V37: 1.64110376 | W37: 1.781975956 | X37: 1.807277851 | Y37: 1.776241047 | Z37: 1.644122785 | AA37: 1.46034729 | AB37: 1.447583365 | AC37: 0 | AD37: 0
C38: 3 | D38: 2 | E38: = | F38: 68 | G38: ANDAHUAYLAS | H38: II | I38: H.I | J38: 1.835969822 | K38: 1.8 | L38: 1.8 | M38: 1.98 | S38: 1.497748472 | T38: 1.649764767 | U38: 1.742416948 | V38: 1.884422111 | W38: 1.910089021 | X38: 1.988089987 | Y38: 1.987520799 | Z38: 1.93513149 | AA38: 1.896096831 | AB38: 1.835969822 | AC38: 0 | AD38: 0
C39: 1 | D39: 3 | E39: = | F39: 512 | G39: COTABAMBAS | H39: I | I39: C.A.P.II | J39: 2.176738883 | K39: 1.8 | L39: 1.8 | M39: 1.98 | S39: 2.444444444 | T39: 2.260960334 | U39: 1.950320513 | V39: 2.304012346 | W39: 2.707246377 | X39: 3.418816388 | Y39: 2.439262473 | Z39: 2.376590331 | AA39: 3.024660912 | AB39: 2.176738883 | AC39: 0 | AD39: 0
C40: 5 | D40: 1 | E40: = | F40: 847 | G40: CHINCHEROS | H40: I | I40: C.A.P.II | J40: 1.765866209 | K40: 1.8 | L40: 1.8 | M40: 1.98 | S40: 2.069148936 | T40: 1.628083491 | U40: 1.200374532 | V40: 1.992287918 | W40: 1.917506874 | X40: 2.061603376 | Y40: 2.063453815 | Z40: 1.706304868 | AA40: 1.784653465 | AB40: 1.765866209 | AC40: 0 | AD40: 0
C41: 5 | D41: 1 | E41: = | F41: 70 | G41: CHALHUANCA | H41: I | I41: C.A.P.II | J41: 1.387612388 | K41: 1.8 | L41: 1.8 | M41: 1.98 | S41: 1.751412429 | T41: 1.546268657 | U41: 1.871532847 | V41: 2.528708134 | W41: 2.397946085 | X41: 2.251243781 | Y41: 2.044280443 | Z41: 1.811512415 | AA41: 1.451577802 | AB41: 1.387612388 | AC41: 0 | AD41: 0
C42: 1 | D42: 3 | E42: = | F42: 71 | G42: CHUQUIBAMBILLA | H42: I | I42: P.M. | J42: 2.120338983 | K42: 1.8 | L42: 1.8 | M42: 1.98 | S42: 3.405405405 | T42: 3.429718876 | U42: 3.311355311 | V42: 3.482428115 | W42: 2.25 | X42: 2.371747212 | Y42: 2.596296296 | Z42: 1.912885662 | AA42: 2.010830325 | AB42: 2.120338983 | AC42: 0 | AD42: 0
C43: 1 | D43: 3 | E43: = | F43: 69 | G43: CURAHUASI | H43: I | I43: P.M. | J43: 2.713450292 | K43: 1.8 | L43: 1.8 | M43: 1.98 | S43: 2.433130699 | T43: 2.144157815 | U43: 2.3584 | V43: 2.6685633 | W43: 2.693939394 | X43: 2.557453416 | Y43: 2.651994498 | Z43: 2.46852123 | AA43: 2.58662614 | AB43: 2.713450292 | AC43: 0 | AD43: 0
C44: 5 | D44: 1 | E44: = | F44: 468 | G44: ANTABAMBA | H44: I | I44: C.A.P.I | J44: 1.706467662 | K44: 1.8 | L44: 1.8 | M44: 1.98 | S44: 1.988416988 | T44: 0.934169279 | U44: 1.254278729 | V44: 1.436450839 | W44: 1.703225806 | X44: 1.394472362 | Y44: 1.302158273 | Z44: 1.774798928 | AA44: 1.32 | AB44: 1.706467662 | AC44: 0 | AD44: 0
C46: 2 | G46: RED ASISTENCIAL AREQUIPA
C47: 5 | D47: 1 | E47: = | F47: 3 | G47: CARLOS ALBERTO SEGUIN ESCOBEDO | H47: III | I47: H.N. | J47: 1.562334581 | K47: 2 | L47: 2 | M47: 2.2 | S47: 1.479368241 | T47: 1.480757512 | U47: 1.547766323 | V47: 1.50889591 | W47: 1.530737517 | X47: 1.52310359 | Y47: 1.570037171 | Z47: 1.663766943 | AA47: 1.529616725 | AB47: 1.562334581 | AC47: 0 | AD47: 0
C48: 1 | D48: 3 | E48: = | F48: 76 | G48: YANAHUARA | H48: II | I48: H.III | J48: 2.673241202 | K48: 1.8 | L48: 1.8 | M48: 1.98 | S48: 2.071963567 | T48: 2.968092067 | U48: 2.861544956 | V48: 3.002705199 | W48: 3.140135689 | X48: 2.64833484 | Y48: 3.009459815 | Z48: 3.053166477 | AA48: 2.660779357 | AB48: 2.673241202 | AC48: 0 | AD48: 0
C49: 1 | D49: 3 | E49: = | F49: 74 | G49: MANUEL DE TORRES MUÑOZ | H49: II | I49: H.II | J49: 3.26406564 | K49: 1.8 | L49: 1.8 | M49: 1.98 | S49: 4.123448432 | T49: 3.324974306 | U49: 3.697541331 | V49: 3.633498584 | W49: 3.660594796 | X49: 3.171851852 | Y49: 3.499811605 | Z49: 3.424991418 | AA49: 3.284034448 | AB49: 3.26406564 | AC49: 0 | AD49: 0
C50: 5 | D50: 1 | E50: = | F50: 75 | G50: SAMUEL PASTOR | H50: II | I50: H.I | J50: 0.5681450308 | K50: 1.8 | L50: 1.8 | M50: 1.98 | S50: 1.812929062 | T50: 1.723170379 | U50: 1.963746224 | V50: 1.996108949 | W50: 2.452143435 | X50: 2.092616414 | Y50: 2.157986616 | Z50: 1.917509966 | AA50: 2.024655963 | AB50: 0.5681450308 | AC50: 0 | AD50: 0
C51: 3 | D51: 2 | E51: = | F51: 79 | G51: EDMUNDO ESCOMEL | H51: II | I51: H.I | J51: 1.860604349 | K51: 1.8 | L51: 1.8 | M51: 1.98 | S51: 1.878347832 | T51: 1.584898887 | U51: 1.755829384 | V51: 1.801317538 | W51: 1.834788289 | X51: 1.800335466 | Y51: 1.816114448 | Z51: 1.801769788 | AA51: 1.796111696 | AB51: 1.860604349 | AC51: 0 | AD51: 0
C52: 1 | D52: 3 | E52: = | F52: 77 | G52: METROPOLITANO | H52: I | I52: POL. | J52: 4.106657323 | K52: 1.8 | L52: 1.8 | M52: 1.98 | S52: 4.20151929 | T52: 4.224316406 | U52: 3.790412486 | V52: 3.689227774 | W52: 4.090092679 | X52: 3.877412849 | Y52: 4.118105771 | Z52: 4.315257353 | AA52: 3.714869334 | AB52: 4.106657323 | AC52: 0 | AD52: 0
C53: 3 | D53: 2 | E53: = | F53: 697 | G53: HOSPITAL GERIATRICO MUNICIPAL | H53: I | I53: POL. | J53: 1.917259786 | K53: 1.8 | L53: 1.8 | M53: 1.98 | S53: 2.715741212 | T53: 2.656223698 | U53: 3.137718623 | V53: 2.875941045 | W53: 2.851720704 | X53: 3.310715129 | Y53: 3.615201496 | Z53: 3.577660157 | AA53: 2.201433994 | AB53: 1.917259786 | AC53: 0 | AD53: 0
C54: 1 | D54: 3 | E54: = | F54: 80 | G54: MELITON SALAS TEJADA | H54: I | I54: C.A.P.III | J54: 3.423269391 | K54: 1.8 | L54: 1.8 | M54: 1.98 | S54: 2.061488673 | T54: 1.408269196 | U54: 1.642615782 | V54: 1.747659906 | W54: 2.367973373 | X54: 2.160522435 | Y54: 1.756274022 | Z54: 1.853473974 | AA54: 1.623320795 | AB54: 3.423269391 | AC54: 0 | AD54: 0
C55: 1 | D55: 3 | E55: = | F55: 453 | G55: PAUCARPATA | H55: I | I55: C.A.P.III | J55: 2.924369748 | K55: 1.8 | L55: 1.8 | M55: 1.98 | S55: 2.661354582 | T55: 2.496546961 | U55: 3.24639076 | V55: 2.796753247 | W55: 3.110473458 | X55: 3.225212465 | Y55: 3.077807848 | Z55: 3.314647378 | AA55: 3.107198748 | AB55: 2.924369748 | AC55: 0 | AD55: 0
C56: 1 | D56: 3 | E56: = | F56: 482 | G56: ALTO SELVA ALEGRE | H56: I | I56: C.A.P.III | J56: 3.918770078 | K56: 1.8 | L56: 1.8 | M56: 1.98 | S56: 3.591511219 | T56: 3.053227931 | U56: 3.538303869 | V56: 3.690796734 | W56: 3.972599358 | X56: 4.134778013 | Y56: 4.082391359 | Z56: 4.144733315 | AA56: 3.58091954 | AB56: 3.918770078 | AC56: 0 | AD56: 0
C57: NA | D57: NA | E57: = | F57: 483 | G57: CERRO COLORADO | H57: NA | I57: NA | J57: NA | K57: NA | L57: NA | M57: NA | S57: NA | T57: NA | U57: NA | V57: NA | W57: NA | X57: NA | Y57: NA | Z57: NA | AA57: NA | AB57: NA | AC57: NA | AD57: NA
C58: 1 | D58: 3 | E58: = | F58: 522 | G58: MIRAFLORES | H58: I | I58: C.A.P.III | J58: 2.904986318 | K58: 1.8 | L58: 1.8 | M58: 1.98 | S58: 2.853908844 | T58: 3.668895079 | U58: 3.038861901 | V58: 3.023805843 | W58: 3.102588841 | X58: 3.10248185 | Y58: 3.180410515 | Z58: 3.007725476 | AA58: 2.755618819 | AB58: 2.904986318 | AC58: 0 | AD58: 0
C59: 1 | D59: 3 | E59: = | F59: 433 | G59: APLAO | H59: I | I59: C.M. | J59: 2.104700855 | K59: 1.8 | L59: 1.8 | M59: 1.98 | S59: 3.223292469 | T59: 2.495959596 | U59: 3.029831388 | V59: 2.65323993 | W59: 2.016 | X59: 2.488939741 | Y59: 2.34608985 | Z59: 2.16227758 | AA59: 2.047505938 | AB59: 2.104700855 | AC59: 0 | AD59: 0
C60: 1 | D60: 3 | E60: = | F60: 94 | G60: HUNTER | H60: I | I60: C.A.P.II | J60: 3.247714538 | K60: 1.8 | L60: 1.8 | M60: 1.98 | S60: 1.150896207 | T60: 1.791245791 | U60: 2.929513048 | V60: 3.301164725 | W60: 2.249806651 | X60: 2.381804435 | Y60: 2.279238948 | Z60: 3.395334928 | AA60: 3.30802738 | AB60: 3.247714538 | AC60: 0 | AD60: 0
C61: 1 | D61: 3 | E61: = | F61: 95 | G61: LA JOYA | H61: I | I61: P.M. | J61: 2.40018315 | K61: 1.8 | L61: 1.8 | M61: 1.98 | S61: 2.586489253 | T61: 2.569213732 | U61: 2.574750831 | V61: 2.984897519 | W61: 2.910733262 | X61: 3.093711467 | Y61: 3.656330749 | Z61: 2.569542254 | AA61: 2.738475177 | AB61: 2.40018315 | AC61: 0 | AD61: 0
C62: 1 | D62: 3 | E62: = | F62: 96 | G62: MATARANI | H62: I | I62: P.M. | J62: 3.662711864 | K62: 1.8 | L62: 1.8 | M62: 1.98 | S62: 3.672456576 | T62: 2.876857749 | U62: 3.351288056 | V62: 3.528440367 | W62: 4.12 | X62: 4.281318681 | Y62: 4.578366446 | Z62: 4.617537313 | AA62: 3.057491289 | AB62: 3.662711864 | AC62: 0 | AD62: 0
C63: 1 | D63: 3 | E63: = | F63: 99 | G63: SANTA RITA | H63: I | I63: P.M. | J63: 2.9204947 | K63: 1.8 | L63: 1.8 | M63: 1.98 | S63: 2.756302521 | T63: 2.328 | U63: 2.481012658 | V63: 2.724867725 | W63: 2.714801444 | X63: 3.392961877 | Y63: 2.906574394 | Z63: 3.077199282 | AA63: 3.073873874 | AB63: 2.9204947 | AC63: 0 | AD63: 0
C64: 1 | D64: 3 | E64: = | F64: 100 | G64: VITOR | H64: I | I64: P.M. | J64: 3.109452736 | K64: 1.8 | L64: 1.8 | M64: 1.98 | S64: 3.492211838 | T64: 3.403773585 | U64: 3.848708487 | V64: 3.909090909 | W64: 3.374384236 | X64: 3.53638814 | Y64: 3.411458333 | Z64: 3.952494062 | AA64: 3.467933492 | AB64: 3.109452736 | AC64: 0 | AD64: 0
C65: 5 | D65: 1 | E65: = | F65: 85 | G65: CARAVELI | H65: I | I65: P.M. | J65: 1.784660767 | K65: 1.8 | L65: 1.8 | M65: 1.98 | S65: 1.504385965 | T65: 1.088461538 | U65: 1.548672566 | V65: 1.628647215 | W65: 1.446428571 | X65: 1.495821727 | Y65: 1.64738292 | Z65: 1.646884273 | AA65: 1.729665072 | AB65: 1.784660767 | AC65: 0 | AD65: 0
C66: 5 | D66: 1 | E66: = | F66: 86 | G66: CHALA | H66: I | I66: P.M. | J66: 1.761006289 | K66: 1.8 | L66: 1.8 | M66: 1.98 | S66: 1.31981982 | T66: 1.643153527 | U66: 1.071197411 | V66: 1.807121662 | W66: 1.263297872 | X66: 1.46361186 | Y66: 1.12398374 | Z66: 2.063333333 | AA66: 1.97752809 | AB66: 1.761006289 | AC66: 0 | AD66: 0
C67: 1 | D67: 3 | E67: = | F67: 88 | G67: CHUCARAPI | H67: I | I67: P.M. | J67: 3.279069767 | K67: 1.8 | L67: 1.8 | M67: 1.98 | S67: 3.952830189 | T67: 3.295180723 | U67: 3.990196078 | V67: 6.041493776 | W67: 4.125423729 | X67: 2.8507109 | Y67: 3.4160401 | Z67: 3.365155131 | AA67: 2.902676399 | AB67: 3.279069767 | AC67: 0 | AD67: 0
C68: 1 | D68: 3 | E68: = | F68: 89 | G68: CHUQUIBAMBA | H68: I | I68: P.M. | J68: 2.212264151 | K68: 1.8 | L68: 1.8 | M68: 1.98 | S68: 2.356890459 | T68: 0.9102902375 | U68: 2.225352113 | V68: 1.977886978 | W68: 2.348571429 | X68: 2.087264151 | Y68: 2.43387471 | Z68: 2.200520833 | AA68: 2.230379747 | AB68: 2.212264151 | AC68: 0 | AD68: 0
C69: NA | D69: NA | E69: = | F69: 90 | G69: CONO NORTE | H69: NA | I69: NA | J69: NA | K69: NA | L69: NA | M69: NA | S69: NA | T69: NA | U69: NA | V69: NA | W69: NA | X69: NA | Y69: NA | Z69: NA | AA69: NA | AB69: NA | AC69: NA | AD69: NA
C70: 1 | D70: 3 | E70: = | F70: 91 | G70: CORIRE | H70: I | I70: P.M. | J70: 2.7 | K70: 1.8 | L70: 1.8 | M70: 1.98 | S70: 2.941176471 | T70: 2.820338983 | U70: 2.72972973 | V70: 2.267206478 | W70: 2.087962963 | X70: 1.786290323 | Y70: 1.527896996 | Z70: 1.515151515 | AA70: 1.933333333 | AB70: 2.7 | AC70: 0 | AD70: 0
C71: 1 | D71: 3 | E71: = | F71: 92 | G71: COTAHUASI | H71: I | I71: P.M. | J71: 3.688705234 | K71: 1.8 | L71: 1.8 | M71: 1.98 | S71: 2.227467811 | T71: 2.113149847 | U71: 2.760714286 | V71: 3.175757576 | W71: 2.922018349 | X71: 3.096654275 | Y71: 2.924092409 | Z71: 3.060606061 | AA71: 2.276029056 | AB71: 3.688705234 | AC71: 0 | AD71: 0
C72: 3 | D72: 2 | E72: = | F72: 82 | G72: ACARI | H72: I | I72: P.M. | J72: 1.972826087 | K72: 1.8 | L72: 1.8 | M72: 1.98 | S72: 1.6 | T72: 1.247838617 | U72: 1.828169014 | V72: 1.742268041 | W72: 1.92238806 | X72: 1.7239819 | Y72: 1.754216867 | Z72: 1.093301435 | AA72: 1.744639376 | AB72: 1.972826087 | AC72: 0 | AD72: 0
C73: 3 | D73: 2 | E73: = | F73: 84 | G73: ATICO | H73: I | I73: P.M. | J73: 1.951871658 | K73: 1.8 | L73: 1.8 | M73: 1.98 | S73: 2.003246753 | T73: 1.380403458 | U73: 1.457671958 | V73: 1.796875 | W73: 1.608571429 | X73: 1.611825193 | Y73: 1.965517241 | Z73: 2.801242236 | AA73: 1.631299735 | AB73: 1.951871658 | AC73: 0 | AD73: 0
C74: 5 | D74: 1 | E74: = | F74: 87 | G74: CHIVAY | H74: I | I74: C.A.P.I | J74: 1.220735786 | K74: 1.8 | L74: 1.8 | M74: 1.98 | S74: 1.930526316 | T74: 1.98816568 | U74: 2.907284768 | V74: 3.026431718 | W74: 2.548387097 | X74: 2.297468354 | Y74: 2.493011436 | Z74: 2.798179059 | AA74: 1.664634146 | AB74: 1.220735786 | AC74: 0 | AD74: 0
C75: 1 | D75: 3 | E75: = | F75: 101 | G75: YURA | H75: I | I75: C.A.P.I | J75: 2.17721519 | K75: 1.8 | L75: 1.8 | M75: 1.98 | S75: 2.149791956 | T75: 1.252348993 | U75: 2.322222222 | V75: 2.561097257 | W75: 2.772727273 | X75: 2.04342723 | Y75: 3.121518987 | Z75: 2.426535088 | AA75: 2.4844098 | AB75: 2.17721519 | AC75: 0 | AD75: 0
C76: 1 | E76: = | F76: 97 | G76: EL PEDREGAL | H76: I | I76: C.A.P.I | J76: 2.76098012 | K76: 1.8 | L76: 1.8 | M76: 1.98 | S76: 2.108195212 | T76: 1.969753374 | U76: 2.342022941 | V76: 2.602480803 | W76: 3.001876173 | X76: 3.205931729 | Y76: 2.946508172 | Z76: 3.060759494 | AA76: 2.934241428 | AB76: 2.76098012 | AC76: 0 | AD76: 0
C78: 1.8 | G78: RED ASISTENCIAL AYACUCHO
C79: 5 | D79: 1 | E79: = | F79: 102 | G79: HUAMANGA "CARLOS TUPPIA GARCIA GODOS" | H79: II | I79: H.II | J79: 1.699264855 | K79: 1.8 | L79: 1.8 | M79: 1.98 | S79: 1.544406631 | T79: 1.528646852 | U79: 1.5753147 | V79: 1.589841326 | W79: 1.783054646 | X79: 1.838057019 | Y79: 1.94946583 | Z79: 1.864409753 | AA79: 1.842658197 | AB79: 1.699264855 | AC79: 0 | AD79: 0
C80: 5 | D80: 1 | E80: = | F80: 449 | G80: METROPOLITANO | H80: I | I80: C.A.P.III | J80: 1.473339427 | K80: 1.8 | L80: 1.8 | M80: 1.98 | S80: 1.140720391 | T80: 1.320530867 | U80: 1.541608228 | V80: 1.590979782 | W80: 1.608639863 | X80: 1.74806001 | Y80: 1.638581856 | Z80: 1.621122263 | AA80: 1.484140234 | AB80: 1.473339427 | AC80: 0 | AD80: 0
C81: 1 | D81: 3 | E81: = | F81: 103 | G81: HUANTA | H81: I | I81: C.A.P.II | J81: 2.458098133 | K81: 1.8 | L81: 1.8 | M81: 1.98 | S81: 1.978819288 | T81: 1.875619425 | U81: 2.225053079 | V81: 2.438712522 | W81: 2.284412033 | X81: 2.775819873 | Y81: 2.64498645 | Z81: 2.640209125 | AA81: 2.613132581 | AB81: 2.458098133 | AC81: 0 | AD81: 0
C82: 1 | D82: 3 | E82: = | F82: 104 | G82: SAN MIGUEL | H82: I | I82: P.M. | J82: 2.624678663 | K82: 1.8 | L82: 1.8 | M82: 1.98 | S82: 2.422222222 | T82: 2.087527352 | U82: 2.603982301 | V82: 3.326259947 | W82: 3.013623978 | X82: 2.494871795 | Y82: 2.601466993 | Z82: 2.428217822 | AA82: 2.62371134 | AB82: 2.624678663 | AC82: 0 | AD82: 0
C83: 1 | D83: 3 | E83: = | F83: 105 | G83: CANGALLO | H83: I | I83: P.M. | J83: 2.509473684 | K83: 1.8 | L83: 1.8 | M83: 1.98 | S83: 2.46557971 | T83: 2.11023622 | U83: 2.916317992 | V83: 2.709369025 | W83: 2.576659039 | X83: 2.647186147 | Y83: 2.932377049 | Z83: 3.069605568 | AA83: 2.955789474 | AB83: 2.509473684 | AC83: 0 | AD83: 0
C84: 1 | D84: 3 | E84: = | F84: 109 | G84: SAN FRANCISCO | H84: I | I84: P.M. | J84: 2.868534483 | K84: 1.8 | L84: 1.8 | M84: 1.98 | S84: 3.198198198 | T84: 3.120634921 | U84: 3.512367491 | V84: 3.645687646 | W84: 2.152406417 | X84: 2.895377129 | Y84: 2.386091127 | Z84: 2.556935818 | AA84: 2.763043478 | AB84: 2.868534483 | AC84: 0 | AD84: 0
C85: 1 | D85: 3 | E85: = | F85: 110 | G85: VILCASHUAMAN | H85: I | I85: P.M. | J85: 2.430985915 | K85: 1.8 | L85: 1.8 | M85: 1.98 | S85: 2.21564482 | T85: 2.038004751 | U85: 2.036093418 | V85: 2.299610895 | W85: 2.395953757 | X85: 2.721698113 | Y85: 2.403263403 | Z85: 2.518518519 | AA85: 2.660220994 | AB85: 2.430985915 | AC85: 0 | AD85: 0
C86: 1 | D86: 3 | E86: = | F86: 423 | G86: QUEROBAMBA | H86: I | I86: P.M. | J86: 2.810666667 | K86: 1.8 | L86: 1.8 | M86: 1.98 | S86: 2.137741047 | T86: 1.696153846 | U86: 2.188405797 | V86: 2.620689655 | W86: 1.808411215 | X86: 2.427055703 | Y86: 2.819025522 | Z86: 2.956730769 | AA86: 2.852631579 | AB86: 2.810666667 | AC86: 0 | AD86: 0
C87: 1 | D87: 3 | E87: = | F87: 428 | G87: HUANCAPI | H87: I | I87: P.M. | J87: 2.944444444 | K87: 1.8 | L87: 1.8 | M87: 1.98 | S87: 2.20754717 | T87: 1.622911695 | U87: 2.025404157 | V87: 2.287735849 | W87: 1.824561404 | X87: 2.315010571 | Y87: 2.976744186 | Z87: 3.23880597 | AA87: 3.092783505 | AB87: 2.944444444 | AC87: 0 | AD87: 0
C88: 1 | D88: 3 | E88: = | F88: 401 | G88: HUANCASANCOS | H88: I | I88: C.A.P.I | J88: 3.778688525 | K88: 1.8 | L88: 1.8 | M88: 1.98 | S88: 2.837587007 | T88: 2.606557377 | U88: 2.52297593 | V88: 2.562056738 | W88: 2.812967581 | X88: 3.714592275 | Y88: 2.9844098 | Z88: 3.933333333 | AA88: 4.358695652 | AB88: 3.778688525 | AC88: 0 | AD88: 0
C90: 2.5 | G90: RED ASISTENCIAL CAJAMARCA
C91: 1 | D91: 3 | E91: = | F91: 191 | G91: CAJAMARCA | H91: II | I91: H.II | J91: 2.289967601 | K91: 1.8 | L91: 1.8 | M91: 1.98 | S91: 2.196365441 | T91: 2.064115532 | U91: 2.227493355 | V91: 2.181567817 | W91: 2.186354435 | X91: 2.212085244 | Y91: 2.349115228 | Z91: 2.327225434 | AA91: 2.197365544 | AB91: 2.289967601 | AC91: 0 | AD91: 0
C92: 3 | D92: 2 | E92: = | F92: 192 | G92: CAJABAMBA | H92: I | I92: C.M. | J92: 1.960378984 | K92: 1.8 | L92: 1.8 | M92: 1.98 | S92: 1.772277228 | T92: 1.871177016 | U92: 1.60696999 | V92: 1.548295455 | W92: 1.514634146 | X92: 1.624047417 | Y92: 1.993314231 | Z92: 1.880386983 | AA92: 1.228034876 | AB92: 1.960378984 | AC92: 0 | AD92: 0
C93: 1 | D93: 3 | E93: = | F93: 193 | G93: CELENDIN | H93: I | I93: C.M. | J93: 2.391467066 | K93: 1.8 | L93: 1.8 | M93: 1.98 | S93: 2.384831461 | T93: 2.604100946 | U93: 2.345531915 | V93: 2.276113952 | W93: 2.424242424 | X93: 2.381832179 | Y93: 2.379856115 | Z93: 2.228323699 | AA93: 2.33592645 | AB93: 2.391467066 | AC93: 0 | AD93: 0
C94: 1 | D94: 3 | E94: = | F94: 501 | G94: LOS BAÑOS DEL INCA | H94: I | I94: C.A.P.II | J94: 2.185185185 | K94: 1.8 | L94: 1.8 | M94: 1.98 | S94: 2.067597355 | T94: 1.815189873 | U94: 2.270091135 | V94: 2.300382653 | W94: 2.696031746 | X94: 2.9625 | Y94: 2.891588785 | Z94: 2.887179487 | AA94: 2.731448763 | AB94: 2.185185185 | AC94: 0 | AD94: 0
C95: 5 | D95: 1 | E95: = | F95: 196 | G95: BAMBAMARCA | H95: I | I95: P.M. | J95: 1.64837626 | K95: 1.8 | L95: 1.8 | M95: 1.98 | S95: 2.090373281 | T95: 1.716981132 | U95: 1.611328125 | V95: 2.008281573 | W95: 1.570205479 | X95: 1.549789621 | Y95: 1.486194478 | Z95: 1.45584989 | AA95: 1.029126214 | AB95: 1.64837626 | AC95: 0 | AD95: 0
C96: 1 | D96: 3 | E96: = | F96: 198 | G96: CONTUMAZA | H96: I | I96: P.M. | J96: 2.187817259 | K96: 1.8 | L96: 1.8 | M96: 1.98 | S96: 1.635658915 | T96: 1.752 | U96: 1.292428198 | V96: 2.307291667 | W96: 2.040345821 | X96: 2.476839237 | Y96: 1.75826972 | Z96: 2.48787062 | AA96: 2.272289157 | AB96: 2.187817259 | AC96: 0 | AD96: 0
C97: 5 | D97: 1 | E97: = | F97: 999 | G97: BOLIVAR | H97: I | I97: P.M. | J97: 1.453703704 | K97: 1.8 | L97: 1.8 | M97: 1.98 | S97: 1.633663366 | T97: 1.56768559 | U97: 1.58490566 | V97: 2.312757202 | W97: 2.359073359 | X97: 2.57480315 | Y97: 2.069958848 | Z97: 2.072463768 | AA97: 1.522666667 | AB97: 1.453703704 | AC97: 0 | AD97: 0
C98: 1 | D98: 3 | E98: = | F98: 201 | G98: SAN MARCOS | H98: I | I98: P.M. | J98: 3.066252588 | K98: 1.8 | L98: 1.8 | M98: 1.98 | S98: 2.631578947 | T98: 2.487964989 | U98: 2.680965147 | V98: 3.170731707 | W98: 2.282560706 | X98: 2.617710583 | Y98: 2.665198238 | Z98: 2.683438155 | AA98: 2.356454721 | AB98: 3.066252588 | AC98: 0 | AD98: 0
C99: 5 | D99: 1 | E99: = | F99: 202 | G99: SAN MIGUEL | H99: I | I99: P.M. | J99: 1.523002421 | K99: 1.8 | L99: 1.8 | M99: 1.98 | S99: 1.23480663 | T99: 1.337988827 | U99: 1.422907489 | V99: 1.524154589 | W99: 1.396270396 | X99: 1.350797267 | Y99: 1.22147651 | Z99: 1.677514793 | AA99: 1.745762712 | AB99: 1.523002421 | AC99: 0 | AD99: 0
C100: 1 | D100: 3 | E100: = | F100: 203 | G100: SAN PABLO | H100: I | I100: P.M. | J100: 2.454880295 | K100: 1.8 | L100: 1.8 | M100: 1.98 | S100: 2.079404467 | T100: 2.144475921 | U100: 2.139130435 | V100: 2.396226415 | W100: 1.875 | X100: 2.346938776 | Y100: 2.01953125 | Z100: 2.141463415 | AA100: 2.10707457 | AB100: 2.454880295 | AC100: 0 | AD100: 0
C101: 5 | D101: 1 | E101: = | F101: 204 | G101: TEMBLADERA | H101: I | I101: P.M. | J101: 1.592261905 | K101: 1.8 | L101: 1.8 | M101: 1.98 | S101: 2.262626263 | T101: 1.075949367 | U101: 1.081081081 | V101: 0.817551963 | W101: 1.950953678 | X101: 2.311688312 | Y101: 2.051490515 | Z101: 2.360119048 | AA101: 2.306878307 | AB101: 1.592261905 | AC101: 0 | AD101: 0
C102: 1 | D102: 3 | E102: = | F102: 199 | G102: HUALGAYOC | H102: I | I102: C.A.P.I | J102: 3.250922509 | K102: 1.8 | L102: 1.8 | M102: 1.98 | S102: 1.868613139 | T102: 2.592156863 | U102: 2.979508197 | V102: 1.945686901 | W102: 2.367412141 | X102: 4.239543726 | Y102: 2.414383562 | Z102: 3.273195876 | AA102: 2.882129278 | AB102: 3.250922509 | AC102: 0 | AD102: 0
C104: 1.556 | G104: RED ASISTENCIAL CUSCO
C105: 1 | D105: 3 | E105: = | F105: 111 | G105: ADOLFO GUEVARA VELASCO | H105: III | I105: H.N. | J105: 2.613869572 | K105: 2 | L105: 2 | M105: 2.2 | S105: 2.298776264 | T105: 2.281947705 | U105: 2.246472499 | V105: 2.374830525 | W105: 2.603077085 | X105: 2.365491852 | Y105: 2.552366013 | Z105: 2.436248845 | AA105: 2.32700092 | AB105: 2.613869572 | AC105: 0 | AD105: 0
C106: 1 | D106: 3 | E106: = | F106: 112 | G106: ESPINAR | H106: II | I106: H.I | J106: 2.221494817 | K106: 1.8 | L106: 1.8 | M106: 1.98 | S106: 1.664081146 | T106: 1.918523234 | U106: 1.711864407 | V106: 2.191868759 | W106: 2.391883323 | X106: 2.276475344 | Y106: 2.272727273 | Z106: 2.308087892 | AA106: 2.353195164 | AB106: 2.221494817 | AC106: 0 | AD106: 0
C107: 1 | D107: 3 | E107: = | F107: 113 | G107: QUILLABAMBA | H107: II | I107: H.I | J107: 2.203756403 | K107: 1.8 | L107: 1.8 | M107: 1.98 | S107: 1.854166667 | T107: 1.862197393 | U107: 1.829858776 | V107: 2.020645161 | W107: 2.160027952 | X107: 1.858447489 | Y107: 1.83353986 | Z107: 1.902577545 | AA107: 1.875412931 | AB107: 2.203756403 | AC107: 0 | AD107: 0
C108: 5 | D108: 1 | E108: = | F108: 114 | G108: URUBAMBA | H108: II | I108: H.I | J108: 1.637669593 | K108: 1.8 | L108: 1.8 | M108: 1.98 | S108: 1.76742671 | T108: 1.727588603 | U108: 1.822014052 | V108: 1.778289474 | W108: 1.986062718 | X108: 2.173859433 | Y108: 1.762711864 | Z108: 1.783757339 | AA108: 1.61410382 | AB108: 1.637669593 | AC108: 0 | AD108: 0
C109: 1 | D109: 3 | E109: = | F109: 115 | G109: SICUANI | H109: II | I109: H.I | J109: 2.115207373 | K109: 1.8 | L109: 1.8 | M109: 1.98 | S109: 1.808411215 | T109: 1.90857748 | U109: 2.021048287 | V109: 2.111638955 | W109: 2.287145969 | X109: 2.118270799 | Y109: 2.152420575 | Z109: 2.162727625 | AA109: 2.27307047 | AB109: 2.115207373 | AC109: 0 | AD109: 0
C110: 1 | D110: 3 | E110: = | F110: 126 | G110: SAN SEBASTIAN | H110: I | I110: POL. | J110: 2.102323503 | K110: 1.8 | L110: 1.8 | M110: 1.98 | S110: 2.480553155 | T110: 1.755989352 | U110: 1.778753027 | V110: 1.826040555 | W110: 1.986365045 | X110: 1.960674157 | Y110: 1.99268792 | Z110: 2.095735422 | AA110: 1.921097046 | AB110: 2.102323503 | AC110: 0 | AD110: 0
C111: 5 | D111: 1 | E111: = | F111: 121 | G111: MACHU PICCHU | H111: I | I111: C.M. | J111: 1.535019455 | K111: 1.8 | L111: 1.8 | M111: 1.98 | S111: 1.557065217 | T111: 1.186206897 | U111: 1.640350877 | V111: 1.25862069 | W111: 1.520242915 | X111: 1.700440529 | Y111: 1.398340249 | Z111: 1.618069815 | AA111: 1.45610687 | AB111: 1.535019455 | AC111: 0 | AD111: 0
C112: 1 | D112: 3 | E112: = | F112: 123 | G112: PAUCARTAMBO | H112: I | I112: C.M. | J112: 3.013157895 | K112: 1.8 | L112: 1.8 | M112: 1.98 | S112: 2.358585859 | T112: 2.517948718 | U112: 2.597633136 | V112: 2.9175 | W112: 2.597647059 | X112: 3.150510204 | Y112: 3.475555556 | Z112: 3.631707317 | AA112: 3.593137255 | AB112: 3.013157895 | AC112: 0 | AD112: 0
C113: 1 | D113: 3 | E113: = | F113: 116 | G113: ACOMAYO | H113: I | I113: C.M. | J113: 2.079632466 | K113: 1.8 | L113: 1.8 | M113: 1.98 | S113: 2.122749591 | T113: 1.654882155 | U113: 2.01826484 | V113: 1.818035427 | W113: 1.798932384 | X113: 2.237254902 | Y113: 2.22515528 | Z113: 2.324367089 | AA113: 2.284530387 | AB113: 2.079632466 | AC113: 0 | AD113: 0
C114: 1 | D114: 3 | E114: = | F114: 118 | G114: CALCA | H114: I | I114: C.M. | J114: 2.505571031 | K114: 1.8 | L114: 1.8 | M114: 1.98 | S114: 1.953784327 | T114: 2.2434905 | U114: 2.341213554 | V114: 2.305921053 | W114: 2.161033797 | X114: 2.475255302 | Y114: 2.264317181 | Z114: 2.428254438 | AA114: 2.267094017 | AB114: 2.505571031 | AC114: 0 | AD114: 0
C115: 1 | D115: 3 | E115: = | F115: 119 | G115: URCOS | H115: I | I115: C.M. | J115: 2.095118899 | K115: 1.8 | L115: 1.8 | M115: 1.98 | S115: 1.996138996 | T115: 1.937925814 | U115: 2.205928237 | V115: 2.068247126 | W115: 2.09400545 | X115: 2.527200791 | Y115: 2.006622517 | Z115: 2.038244514 | AA115: 2.41459854 | AB115: 2.095118899 | AC115: 0 | AD115: 0
C116: 1 | D116: 3 | E116: = | F116: 698 | G116: PICHARI | H116: I | I116: C.M. | J116: 3.254010695 | K116: 1.8 | L116: 1.8 | M116: 1.98 | S116: 2.490740741 | T116: 2.61038961 | U116: 2.572254335 | V116: 2.784660767 | W116: 3.108033241 | X116: 3.42228739 | Y116: 2.688622754 | Z116: 2.713947991 | AA116: 2.686354379 | AB116: 3.254010695 | AC116: 0 | AD116: 0
C117: 1 | D117: 3 | E117: = | F117: 417 | G117: METROPOLITANO | H117: I | I117: C.M. | J117: 2.754294804 | K117: 1.8 | L117: 1.8 | M117: 1.98 | S117: 2.753757633 | T117: 2.957370772 | U117: 2.859271523 | V117: 2.777250685 | W117: 2.877331502 | X117: 2.815402168 | Y117: 2.869502283 | Z117: 2.808690808 | AA117: 2.650404009 | AB117: 2.754294804 | AC117: 0 | AD117: 0
C118: 3 | D118: 2 | E118: = | F118: 373 | G118: SAN FRANCISCO | H118: I | I118: C.M. | J118: 1.886621315 | K118: 1.8 | L118: 1.8 | M118: 1.98 | S118: 1.836802271 | T118: 2.007098492 | U118: 1.918400876 | V118: 1.858751279 | W118: 2.002999539 | X118: 2.114705882 | Y118: 2.029518717 | Z118: 2.08346934 | AA118: 1.825843744 | AB118: 1.886621315 | AC118: 0 | AD118: 0
C119: 1 | D119: 3 | E119: = | F119: 120 | G119: HUYRO | H119: I | I119: C.A.P.II | J119: 2.504098361 | K119: 1.8 | L119: 1.8 | M119: 1.98 | S119: 3.408163265 | T119: 3.654867257 | U119: 4.145 | V119: 3.761133603 | W119: 3.803108808 | X119: 2.774891775 | Y119: 3.644736842 | Z119: 2.870253165 | AA119: 3.24822695 | AB119: 2.504098361 | AC119: 0 | AD119: 0
C120: 1 | D120: 3 | E120: = | F120: 134 | G120: SALVACION | H120: I | I120: P.M. | J120: 2.658536585 | K120: 1.8 | L120: 1.8 | M120: 1.98 | S120: 2.330508475 | T120: 2.207207207 | U120: 2.279475983 | V120: 1.810888252 | W120: 2.46728972 | X120: 2.172995781 | Y120: 2.718213058 | Z120: 2.713004484 | AA120: 2.99 | AB120: 2.658536585 | AC120: 0 | AD120: 0
C121: 1 | D121: 3 | E121: = | F121: 513 | G121: ECHARATE | H121: I | I121: C.A.P.I | J121: 3.6 | K121: 1.8 | L121: 1.8 | M121: 1.98 | S121: 2.528301887 | T121: 2.877192982 | U121: 2.759825328 | V121: 2.161538462 | W121: 2.924590164 | X121: 3.478021978 | Y121: 3.593625498 | Z121: 2.90877193 | AA121: 3.220588235 | AB121: 3.6 | AC121: 0 | AD121: 0
C122: 1 | D122: 3 | E122: = | F122: 510 | G122: SANTO TOMAS | H122: I | I122: C.A.P.I | J122: 2.073964497 | K122: 1.8 | L122: 1.8 | M122: 1.98 | S122: 2.169117647 | T122: 1.914171657 | U122: 1.975088968 | V122: 2.312788906 | W122: 2.505154639 | X122: 3.06281407 | Y122: 2.875555556 | Z122: 2.625990491 | AA122: 2.774733638 | AB122: 2.073964497 | AC122: 0 | AD122: 0
C124: 2.714 | G124: RED ASISTENCIAL HUANCAVELICA
C125: 5 | D125: 1 | E125: = | F125: 342 | G125: HUANCAVELICA | H125: II | I125: H.II | J125: 1.675627428 | K125: 1.8 | L125: 1.8 | M125: 1.98 | S125: 1.302432192 | T125: 1.500474963 | U125: 1.382710558 | V125: 1.677428181 | W125: 1.784453163 | X125: 1.6548985 | Y125: 1.841324341 | Z125: 1.283194759 | AA125: 1.710977081 | AB125: 1.675627428 | AC125: 0 | AD125: 0
C126: 1 | D126: 3 | E126: = | F126: 347 | G126: LIRCAY | H126: I | I126: C.M. | J126: 2.592684268 | K126: 1.8 | L126: 1.8 | M126: 1.98 | S126: 2.104465038 | T126: 1.85615199 | U126: 1.752071383 | V126: 1.980551524 | W126: 3.044487427 | X126: 2.880790411 | Y126: 2.750636132 | Z126: 3.192794547 | AA126: 2.555245536 | AB126: 2.592684268 | AC126: 0 | AD126: 0
C127: 1 | D127: 3 | E127: = | F127: 348 | G127: PAMPAS | H127: I | I127: C.M. | J127: 2.142035653 | K127: 1.8 | L127: 1.8 | M127: 1.98 | S127: 2.241148325 | T127: 2.010771993 | U127: 2.199004975 | V127: 2.344339623 | W127: 2.841932842 | X127: 2.830076466 | Y127: 2.484328358 | Z127: 2.557833089 | AA127: 2.366270431 | AB127: 2.142035653 | AC127: 0 | AD127: 0
C128: 5 | D128: 1 | E128: = | F128: 343 | G128: ACOBAMBA | H128: I | I128: P.M. | J128: 1.237337192 | K128: 1.8 | L128: 1.8 | M128: 1.98 | S128: 2.108943089 | T128: 2.02560241 | U128: 1.890909091 | V128: 1.933333333 | W128: 1.233285917 | X128: 1.900680272 | Y128: 1.702597403 | Z128: 1.7125 | AA128: 1.819628647 | AB128: 1.237337192 | AC128: 0 | AD128: 0
C129: 1 | D129: 3 | E129: = | F129: 344 | G129: CASTROVIRREYNA | H129: I | I129: P.M. | J129: 2.368421053 | K129: 1.8 | L129: 1.8 | M129: 1.98 | S129: 2.35426009 | T129: 1.051282051 | U129: 1.779874214 | V129: 1.888888889 | W129: 2.005076142 | X129: 2.099358974 | Y129: 2.960573477 | Z129: 2.482248521 | AA129: 2.407407407 | AB129: 2.368421053 | AC129: 0 | AD129: 0
C130: 5 | D130: 1 | E130: = | F130: 345 | G130: CHURCAMPA | H130: I | I130: C.A.P.I | J130: 1.489864865 | K130: 1.8 | L130: 1.8 | M130: 1.98 | S130: 1.090361446 | T130: 1.048824593 | U130: 1.077702703 | V130: 0.921686747 | W130: 1.258592471 | X130: 1.599025974 | Y130: 1.173419773 | Z130: 1.647577093 | AA130: 1.4875 | AB130: 1.489864865 | AC130: 0 | AD130: 0
C131: 1 | D131: 3 | E131: = | F131: 346 | G131: HUAYTARA | H131: I | I131: C.A.P.I | J131: 2.041935484 | K131: 1.8 | L131: 1.8 | M131: 1.98 | S131: 2.417177914 | T131: 3.306 | U131: 2.881602914 | V131: 2.23338257 | W131: 2.33390411 | X131: 2.611185087 | Y131: 2.718658892 | Z131: 2.909509202 | AA131: 2.465256798 | AB131: 2.041935484 | AC131: 0 | AD131: 0
C133: 1.857 | G133: RED ASISTENCIAL HUÁNUCO
C134: 5 | D134: 1 | E134: = | F134: 296 | G134: HUANUCO | H134: II | I134: H.II | J134: 1.573352411 | K134: 1.8 | L134: 1.8 | M134: 1.98 | S134: 1.336738864 | T134: 1.479611149 | U134: 1.379418516 | V134: 1.5124148 | W134: 1.60445456 | X134: 1.642408377 | Y134: 1.598395822 | Z134: 1.584217448 | AA134: 1.528254565 | AB134: 1.573352411 | AC134: 0 | AD134: 0
C135: 1 | D135: 3 | E135: = | F135: 297 | G135: TINGO MARIA | H135: II | I135: H.I | J135: 2.312542682 | K135: 1.8 | L135: 1.8 | M135: 1.98 | S135: 2.433488915 | T135: 2.346564885 | U135: 2.46776525 | V135: 2.482327483 | W135: 2.508426238 | X135: 2.544157815 | Y135: 2.258647799 | Z135: 2.439893359 | AA135: 2.485726738 | AB135: 2.312542682 | AC135: 0 | AD135: 0
C136: 3 | D136: 2 | E136: = | F136: 475 | G136: METROPOLITANO DE HUANUCO | H136: I | I136: C.A.P.III | J136: 1.84815373 | K136: 1.8 | L136: 1.8 | M136: 1.98 | S136: 1.979665794 | T136: 1.756781865 | U136: 1.75494308 | V136: 1.827963405 | W136: 1.923842405 | X136: 1.852019875 | Y136: 1.77096519 | Z136: 1.614218505 | AA136: 1.706820682 | AB136: 1.84815373 | AC136: 0 | AD136: 0
C137: 1 | D137: 3 | E137: = | F137: 771 | G137: AMARILIS PILCO-MARCA | H137: I | I137: C.A.P.III | J137: 3.738741836 | K137: 1.8 | L137: 1.8 | M137: 1.98 | S137: 4.604336043 | T137: 4.387655658 | U137: 4.76535986 | V137: 4.662994492 | W137: 5.768060837 | X137: 5.165445665 | Y137: 4.564733179 | Z137: 3.842537313 | AA137: 4.028358209 | AB137: 3.738741836 | AC137: 0 | AD137: 0
C138: 1 | D138: 3 | E138: = | F138: 298 | G138: LEONCIO PRADO | H138: I | I138: C.M. | J138: 3.081984334 | K138: 1.8 | L138: 1.8 | M138: 1.98 | S138: 3.52688172 | T138: 2.60974106 | U138: 2.577878104 | V138: 2.882450331 | W138: 2.979591837 | X138: 3.068590093 | Y138: 2.823030907 | Z138: 3.065762004 | AA138: 3.039058588 | AB138: 3.081984334 | AC138: 0 | AD138: 0
C139: 1 | D139: 3 | E139: = | F139: 299 | G139: AUCAYACU | H139: I | I139: P.M. | J139: 2.598347107 | K139: 1.8 | L139: 1.8 | M139: 1.98 | S139: 2.222453222 | T139: 2.223300971 | U139: 2.481152993 | V139: 3.208 | W139: 3.20781893 | X139: 1.589473684 | Y139: 4.137577002 | Z139: 2.44858156 | AA139: 3.357024793 | AB139: 2.598347107 | AC139: 0 | AD139: 0
C140: 1 | D140: 3 | E140: = | F140: 300 | G140: BAÑOS | H140: I | I140: P.M. | J140: 2.0969163 | K140: 1.8 | L140: 1.8 | M140: 1.98 | S140: 1.70259481 | T140: 1.801769912 | U140: 2.050301811 | V140: 2.262955854 | W140: 1.621621622 | X140: 3.037974684 | Y140: 2.164241164 | Z140: 2.317777778 | AA140: 2.02734375 | AB140: 2.0969163 | AC140: 0 | AD140: 0
C141: 5 | D141: 1 | E141: = | F141: 302 | G141: SÚNGARO | H141: I | I141: P.M. | J141: 1.701851852 | K141: 1.8 | L141: 1.8 | M141: 1.98 | S141: 1.672597865 | T141: 1.359489051 | U141: 1.790419162 | V141: 2.421245421 | W141: 1.17896679 | X141: 1.204819277 | Y141: 1.593516209 | Z141: 1.418006431 | AA141: 1.877408056 | AB141: 1.701851852 | AC141: 0 | AD141: 0
C142: 3 | D142: 2 | E142: = | F142: 303 | G142: LA UNION | H142: I | I142: P.M. | J142: 1.829816201 | K142: 1.8 | L142: 1.8 | M142: 1.98 | S142: 1.65060241 | T142: 1.493555724 | U142: 1.631705364 | V142: 1.724489796 | W142: 1.868754661 | X142: 1.747353564 | Y142: 1.904432133 | Z142: 1.892974393 | AA142: 2.021932831 | AB142: 1.829816201 | AC142: 0 | AD142: 0
C143: 1 | D143: 3 | E143: = | F143: 304 | G143: LLATA | H143: I | I143: P.M. | J143: 2.5025 | K143: 1.8 | L143: 1.8 | M143: 1.98 | S143: 3.462081129 | T143: 2.082978723 | U143: 2.139891697 | V143: 1.924357035 | W143: 1.886232481 | X143: 2.485061511 | Y143: 2.189640769 | Z143: 2.232578397 | AA143: 2.218799368 | AB143: 2.5025 | AC143: 0 | AD143: 0
C144: 1 | D144: 3 | E144: = | F144: 305 | G144: PANAO | H144: I | I144: P.M. | J144: 2.600858369 | K144: 1.8 | L144: 1.8 | M144: 1.98 | S144: 2.644155844 | T144: 2.183066362 | U144: 2.182017544 | V144: 3.097087379 | W144: 1.355855856 | X144: 2.163829787 | Y144: 2.247288503 | Z144: 1.991360691 | AA144: 2.417322835 | AB144: 2.600858369 | AC144: 0 | AD144: 0
C145: 1 | D145: 3 | E145: = | F145: 290 | G145: TOCACHE | H145: I | I145: P.M. | J145: 2.34672619 | K145: 1.8 | L145: 1.8 | M145: 1.98 | S145: 2.313001605 | T145: 1.80749354 | U145: 1.982008996 | V145: 2.351032448 | W145: 2.195945946 | X145: 2.570512821 | Y145: 2.367670365 | Z145: 2.5 | AA145: 2.429403202 | AB145: 2.34672619 | AC145: 0 | AD145: 0
C146: 1 | D146: 3 | E146: = | F146: 400 | G146: SANTA LUCIA | H146: I | I146: P.M. | J146: 2.163909774 | K146: 1.8 | L146: 1.8 | M146: 1.98 | S146: 1.44913928 | T146: 1.302390999 | U146: 1.495711835 | V146: 1.776859504 | W146: 1.993006993 | X146: 2.205925926 | Y146: 2.008982036 | Z146: 1.826725404 | AA146: 2.199712644 | AB146: 2.163909774 | AC146: 0 | AD146: 0
C147: 1 | D147: 3 | E147: = | F147: 291 | G147: UCHIZA | H147: I | I147: C.A.P.I | J147: 2.115909091 | K147: 1.8 | L147: 1.8 | M147: 1.98 | S147: 2.206825233 | T147: 1.782431052 | U147: 2.080412371 | V147: 2.110320285 | W147: 2.302304965 | X147: 2.120567376 | Y147: 2.061674009 | Z147: 1.88099631 | AA147: 2.626996805 | AB147: 2.115909091 | AC147: 0 | AD147: 0
C149: 2.143 | G149: RED ASISTENCIAL HUARAZ
C150: 1 | D150: 3 | E150: = | F150: 162 | G150: HUARAZ | H150: II | I150: H.II | J150: 2.362747245 | K150: 1.8 | L150: 1.8 | M150: 1.98 | S150: 2.458984575 | T150: 2.456955169 | U150: 2.574312527 | V150: 2.444434438 | W150: 2.598094889 | X150: 2.583160925 | Y150: 2.529439072 | Z150: 2.343930229 | AA150: 2.351148781 | AB150: 2.362747245 | AC150: 0 | AD150: 0
C151: 5 | D151: 1 | E151: = | F151: 163 | G151: CARAZ | H151: I | I151: C.M. | J151: 1.730434783 | K151: 1.8 | L151: 1.8 | M151: 1.98 | S151: 1.616993464 | T151: 1.502036067 | U151: 1.746433204 | V151: 1.567396594 | W151: 1.727122381 | X151: 1.797149123 | Y151: 1.684560044 | Z151: 1.785 | AA151: 1.725578769 | AB151: 1.730434783 | AC151: 0 | AD151: 0
C152: 1 | D152: 3 | E152: = | F152: 164 | G152: CARHUAZ | H152: I | I152: C.M. | J152: 2.050761421 | K152: 1.8 | L152: 1.8 | M152: 1.98 | S152: 1.875726744 | T152: 1.813409235 | U152: 1.919292852 | V152: 1.926729191 | W152: 1.995308311 | X152: 1.868169399 | Y152: 1.900452489 | Z152: 1.782426778 | AA152: 1.967006599 | AB152: 2.050761421 | AC152: 0 | AD152: 0
C153: 5 | D153: 1 | E153: = | F153: 168 | G153: HUARI | H153: I | I153: C.M. | J153: 1.209636084 | K153: 1.8 | L153: 1.8 | M153: 1.98 | S153: 1.861607143 | T153: 1.618563686 | U153: 1.381851401 | V153: 1.355090112 | W153: 1.447087379 | X153: 2.182149362 | Y153: 1.813165537 | Z153: 1.359877489 | AA153: 1.70790378 | AB153: 1.209636084 | AC153: 0 | AD153: 0
C154: 1 | D154: 3 | E154: = | F154: 181 | G154: POMABAMBA | H154: I | I154: C.A.P.II | J154: 2.340192044 | K154: 1.8 | L154: 1.8 | M154: 1.98 | S154: 1.772663877 | T154: 1.818484043 | U154: 2.381549815 | V154: 2.448790896 | W154: 2.17400722 | X154: 2.366226546 | Y154: 2.481584434 | Z154: 2.37037037 | AA154: 2.664415935 | AB154: 2.340192044 | AC154: 0 | AD154: 0
C155: 1 | D155: 3 | E155: = | F155: 179 | G155: PISCOBAMBA | H155: I | I155: P.M. | J155: 2.679699248 | K155: 1.8 | L155: 1.8 | M155: 1.98 | S155: 1.423 | T155: 1.301507538 | U155: 1.415028902 | V155: 1.514285714 | W155: 1.491902834 | X155: 1.286705202 | Y155: 2.30952381 | Z155: 1.625890736 | AA155: 2.275641026 | AB155: 2.679699248 | AC155: 0 | AD155: 0
C156: 1 | D156: 3 | E156: = | F156: 190 | G156: YUNGAY | H156: I | I156: P.M. | J156: 2.925724638 | K156: 1.8 | L156: 1.8 | M156: 1.98 | S156: 3.16322314 | T156: 2.641921397 | U156: 2.704761905 | V156: 3.12633833 | W156: 2.920258621 | X156: 3.117073171 | Y156: 2.855106888 | Z156: 2.638941399 | AA156: 2.830220713 | AB156: 2.925724638 | AC156: 0 | AD156: 0
C158: 3.706 | G158: RED ASISTENCIAL ICA
C159: 5 | D159: 1 | E159: = | F159: 854 | G159: AUGUSTO HERNANDEZ MENDOZA | H159: II | I159: H.IV | J159: 1.543014406 | K159: 2 | L159: 2 | M159: 2.2 | S159: 1.641068917 | T159: 1.540465514 | U159: 1.526119403 | V159: 1.576324395 | W159: 1.518758174 | X159: 1.573334232 | Y159: 1.690224263 | Z159: 1.535544397 | AA159: 1.628364389 | AB159: 1.543014406 | AC159: 0 | AD159: 0
C160: 1 | D160: 3 | E160: = | F160: 46 | G160: RENE TOCHE GROPPO | H160: II | I160: H.II | J160: 2.24390097 | K160: 1.8 | L160: 1.8 | M160: 1.98 | S160: 1.790036848 | T160: 1.79000071 | U160: 1.790229885 | V160: 1.80999891 | W160: 1.835093266 | X160: 1.910029767 | Y160: 2.019987469 | Z160: 1.789975093 | AA160: 1.780164047 | AB160: 2.24390097 | AC160: 0 | AD160: 0
C161: 1 | D161: 3 | E161: = | F161: 47 | G161: MARIA REICHE NEUMAN | H161: II | I161: H.I | J161: 2.759794222 | K161: 1.8 | L161: 1.8 | M161: 1.98 | S161: 2.721220527 | T161: 2.665606783 | U161: 2.749696233 | V161: 2.576142132 | W161: 2.775943396 | X161: 2.535502959 | Y161: 2.633087633 | Z161: 2.42688281 | AA161: 2.563818748 | AB161: 2.759794222 | AC161: 0 | AD161: 0
C162: 1 | D162: 3 | E162: = | F162: 45 | G162: FELIX TORREALVA GUTIERREZ | H162: II | I162: H.I | J162: 2.000882223 | K162: 1.8 | L162: 1.8 | M162: 1.98 | S162: 1.802403204 | T162: 1.694105944 | U162: 1.692380145 | V162: 1.690872603 | W162: 1.534633385 | X162: 1.726519769 | Y162: 1.977928974 | Z162: 1.97083639 | AA162: 1.984618831 | AB162: 2.000882223 | AC162: 0 | AD162: 0
C163: 5 | D163: 1 | E163: = | F163: 48 | G163: ANTONIO SKRABONJA ANTONCICH | H163: II | I163: H.I | J163: 1.73521414 | K163: 1.8 | L163: 1.8 | M163: 1.98 | S163: 1.775592417 | T163: 1.632986627 | U163: 1.676915946 | V163: 1.655105533 | W163: 1.737445231 | X163: 1.76136934 | Y163: 1.640161725 | Z163: 1.630504489 | AA163: 1.577976762 | AB163: 1.73521414 | AC163: 0 | AD163: 0
C164: 1 | D164: 3 | E164: = | F164: 424 | G164: PUEBLO NUEVO | H164: I | I164: C.A.P.II | J164: 2.176774194 | K164: 1.8 | L164: 1.8 | M164: 1.98 | S164: 2.485500879 | T164: 2.153321201 | U164: 2.160507446 | V164: 2.302083333 | W164: 2.401342783 | X164: 2.459636731 | Y164: 2.390397672 | Z164: 2.030184461 | AA164: 1.996301433 | AB164: 2.176774194 | AC164: 0 | AD164: 0
C165: 5 | D165: 1 | E165: = | F165: 432 | G165: NASCA | H165: I | I165: C.A.P.II | J165: 1.487746767 | K165: 1.8 | L165: 1.8 | M165: 1.98 | S165: 2.258431085 | T165: 1.844935543 | U165: 2.02607362 | V165: 2.082100592 | W165: 1.875637505 | X165: 1.973146293 | Y165: 1.789715034 | Z165: 1.744802146 | AA165: 1.520781528 | AB165: 1.487746767 | AC165: 0 | AD165: 0
C166: 5 | D166: 1 | E166: = | F166: 52 | G166: MACACONA | H166: I | I166: C.A.P.II | J166: 1.657956547 | K166: 1.8 | L166: 1.8 | M166: 1.98 | S166: 1.480277575 | T166: 1.55 | U166: 1.557012316 | V166: 1.478193146 | W166: 1.637580994 | X166: 1.797153025 | Y166: 1.78541492 | Z166: 1.652479339 | AA166: 1.621848739 | AB166: 1.657956547 | AC166: 0 | AD166: 0
C167: 5 | D167: 1 | E167: = | F167: 841 | G167: LA TINGUIÑA | H167: I | I167: C.A.P.II | J167: 1.726762539 | K167: 1.8 | L167: 1.8 | M167: 1.98 | S167: 1.612459547 | T167: 1.541003425 | U167: 1.581767395 | V167: 1.605758583 | W167: 1.863438381 | X167: 1.768079168 | Y167: 1.588554217 | Z167: 1.648324515 | AA167: 1.826412271 | AB167: 1.726762539 | AC167: 0 | AD167: 0
C168: 5 | D168: 1 | E168: = | F168: 842 | G168: SANTA MARGARITA | H168: I | I168: C.A.P.II | J168: 1.581789515 | K168: 1.8 | L168: 1.8 | M168: 1.98 | S168: 1.313429618 | T168: 1.698597194 | U168: 1.77315002 | V168: 1.906590085 | W168: 1.931666667 | X168: 1.937520994 | Y168: 1.870925684 | Z168: 1.748960931 | AA168: 1.516632017 | AB168: 1.581789515 | AC168: 0 | AD168: 0
C169: 5 | D169: 1 | E169: = | F169: 846 | G169: PUQUIO | H169: I | I169: C.A.P.II | J169: 1.275956284 | K169: 1.8 | L169: 1.8 | M169: 1.98 | S169: 1.295414462 | T169: 1.035301669 | U169: 1.398312236 | V169: 1.583088235 | W169: 1.670999188 | X169: 1.781412639 | Y169: 1.739502333 | Z169: 1.679216867 | AA169: 1.630311615 | AB169: 1.275956284 | AC169: 0 | AD169: 0
C170: 5 | D170: 1 | E170: = | F170: 832 | G170: CORACORA | H170: I | I170: C.A.P.I | J170: 1.715210356 | K170: 1.8 | L170: 1.8 | M170: 1.98 | S170: 1.530120482 | T170: 2.156043956 | U170: 0.8853754941 | V170: 2.822222222 | W170: 2.616883117 | X170: 2.957540264 | Y170: 3.160606061 | Z170: 3.265973254 | AA170: 3.072669826 | AB170: 1.715210356 | AC170: 0 | AD170: 0
C171: 5 | D171: 1 | E171: = | F171: 50 | G171: CHAVALINA | H171: I | I171: C.A.P.I | J171: 1.747815231 | K171: 1.8 | L171: 1.8 | M171: 1.98 | S171: 2.012562814 | T171: 1.668122271 | U171: 1.709734513 | V171: 1.819628647 | W171: 1.814044213 | X171: 1.696524064 | Y171: 1.644308943 | Z171: 1.691197691 | AA171: 1.668055556 | AB171: 1.747815231 | AC171: 0 | AD171: 0
C172: 3 | D172: 2 | E172: = | F172: 54 | G172: PALPA | H172: I | I172: C.A.P.I | J172: 1.876963351 | K172: 1.8 | L172: 1.8 | M172: 1.98 | S172: 2.950556242 | T172: 2.839790576 | U172: 3.346687211 | V172: 3.842185129 | W172: 3.033546326 | X172: 3.18989071 | Y172: 3.538842975 | Z172: 2.923376623 | AA172: 2.176470588 | AB172: 1.876963351 | AC172: 0 | AD172: 0
C173: 5 | D173: 1 | E173: = | F173: 57 | G173: SAN CLEMENTE | H173: I | I173: C.A.P.I | J173: 1.334067548 | K173: 1.8 | L173: 1.8 | M173: 1.98 | S173: 1.818532819 | T173: 1.488888889 | U173: 1.35045045 | V173: 1.829166667 | W173: 1.758241758 | X173: 1.685074627 | Y173: 1.36963434 | Z173: 1.290591174 | AA173: 1.221174764 | AB173: 1.334067548 | AC173: 0 | AD173: 0
C174: 1 | D174: 3 | E174: = | F174: 59 | G174: TAMBO DE MORA | H174: I | I174: C.A.P.I | J174: 2.610351562 | K174: 1.8 | L174: 1.8 | M174: 1.98 | S174: 2.495337995 | T174: 2.481445312 | U174: 2.283536585 | V174: 2.391019645 | W174: 2.885874649 | X174: 2.809124767 | Y174: 2.61097561 | Z174: 2.442804428 | AA174: 2.924547284 | AB174: 2.610351562 | AC174: 0 | AD174: 0
C175: 5 | D175: 1 | E175: = | F175: 61 | G175: VILLA TÚPAC AMARU | H175: I | I175: C.A.P.I | J175: 0.9706362153 | K175: 1.8 | L175: 1.8 | M175: 1.98 | S175: 1.636163982 | T175: 1.688011914 | U175: 1.810731707 | V175: 2.081395349 | W175: 2.242497972 | X175: 2.213168724 | Y175: 1.610197368 | Z175: 1.575163399 | AA175: 1.452901281 | AB175: 0.9706362153 | AC175: 0 | AD175: 0
C177: 3 | G177: RED ASISTENCIAL JUNÍN
C178: 5 | D178: 1 | E178: = | F178: 307 | G178: RAMIRO PRIALE PRIALE | H178: III | I178: H.N. | J178: 2 | K178: 2 | L178: 2 | M178: 2.2 | S178: 2.077789449 | T178: 2 | U178: 1.956696707 | V178: 2 | W178: 2 | X178: 2 | Y178: 2 | Z178: 1.885402616 | AA178: 2 | AB178: 2 | AC178: 0 | AD178: 0
C179: 1 | D179: 3 | E179: = | F179: 308 | G179: ALBERTO HURTADO ABADIA | H179: II | I179: H.II | J179: 2.050767414 | K179: 1.8 | L179: 1.8 | M179: 1.98 | S179: 1.892731947 | T179: 2.153772684 | U179: 2.199301638 | V179: 2.209380235 | W179: 2.187272727 | X179: 2.446570229 | Y179: 1.820285113 | Z179: 2.269723361 | AA179: 2.316089109 | AB179: 2.050767414 | AC179: 0 | AD179: 0
C180: 5 | D180: 1 | E180: = | F180: 309 | G180: RIO NEGRO - SATIPO | H180: II | I180: H.I | J180: 1.78141136 | K180: 1.8 | L180: 1.8 | M180: 1.98 | S180: 2.011824324 | T180: 1.820652174 | U180: 2.102637206 | V180: 1.956120092 | W180: 1.909034653 | X180: 1.991685563 | Y180: 2.011881188 | Z180: 1.793050588 | AA180: 1.899164054 | AB180: 1.78141136 | AC180: 0 | AD180: 0
C181: 1 | D181: 3 | E181: = | F181: 313 | G181: HOSPITAL DE LA SELVA CENTRAL Y ENFERMEDADES TROPICALES HUGO PESCE PESCETTO | H181: II | I181: H.I | J181: 2.675574891 | K181: 1.8 | L181: 1.8 | M181: 1.98 | S181: 2.191208791 | T181: 2.159125572 | U181: 2.329243354 | V181: 2.266203129 | W181: 2.073770492 | X181: 2.234645275 | Y181: 2.551864063 | Z181: 2.612101725 | AA181: 2.374398187 | AB181: 2.675574891 | AC181: 0 | AD181: 0
C182: 5 | D182: 1 | E182: = | F182: 310 | G182: TARMA | H182: II | I182: H.I | J182: 1.7645 | K182: 1.8 | L182: 1.8 | M182: 1.98 | S182: 3.006913891 | T182: 1.996300863 | U182: 2.051171393 | V182: 2.276819205 | W182: 2.452341137 | X182: 3.262421274 | Y182: 1.255226824 | Z182: 1.77115487 | AA182: 2.009784736 | AB182: 1.7645 | AC182: 0 | AD182: 0
C183: 1 | D183: 3 | E183: = | F183: 311 | G183: JAUJA | H183: I | I183: POL. | J183: 2.018526316 | K183: 1.8 | L183: 1.8 | M183: 1.98 | S183: 2.215487147 | T183: 2.147927032 | U183: 2.24399804 | V183: 2.371142981 | W183: 2.401793722 | X183: 2.471984805 | Y183: 2.39138756 | Z183: 2.331501832 | AA183: 2.048418972 | AB183: 2.018526316 | AC183: 0 | AD183: 0
C184: 5 | D184: 1 | E184: = | F184: 834 | G184: METROPOLITANO HUANCAYO | H184: I | I184: POL. | J184: 1.775593279 | K184: 1.8 | L184: 1.8 | M184: 1.98 | S184: 1.852338495 | T184: 1.797209064 | U184: 1.865728094 | V184: 1.731315128 | W184: 1.728368131 | X184: 1.903553299 | Y184: 2.128060523 | Z184: 1.941357673 | AA184: 1.992603681 | AB184: 1.775593279 | AC184: 0 | AD184: 0
C185: 1 | D185: 3 | E185: = | F185: 494 | G185: MANTARO | H185: I | I185: C.A.P.III | J185: 2.515344396 | K185: 1.8 | L185: 1.8 | M185: 1.98 | S185: 2.334444729 | T185: 2.141801386 | U185: 2.279239079 | V185: 2.372125763 | W185: 2.420894883 | X185: 2.557353976 | Y185: 2.426443203 | Z185: 2.435853132 | AA185: 2.414694894 | AB185: 2.515344396 | AC185: 0 | AD185: 0
C186: 3 | D186: 2 | E186: = | F186: 317 | G186: CONCEPCION | H186: I | I186: C.M. | J186: 1.910209993 | K186: 1.8 | L186: 1.8 | M186: 1.98 | S186: 2.031183558 | T186: 2.011816839 | U186: 2.013188518 | V186: 2.121693122 | W186: 2.044224422 | X186: 1.912564291 | Y186: 2.022282242 | Z186: 2.028611305 | AA186: 1.876684636 | AB186: 1.910209993 | AC186: 0 | AD186: 0
C187: 5 | D187: 1 | E187: = | F187: 312 | G187: JUNIN | H187: I | I187: C.A.P.II | J187: 0.8192771084 | K187: 1.8 | L187: 1.8 | M187: 1.98 | S187: 0.7295081967 | T187: 0.726342711 | U187: 0.7729885057 | V187: 0.8016528926 | W187: 0.9071856287 | X187: 0.7807017544 | Y187: 0.7243589744 | Z187: 0.858974359 | AA187: 0.7849223947 | AB187: 0.8192771084 | AC187: 0 | AD187: 0
C188: 5 | D188: 1 | E188: = | F188: 320 | G188: MOROCOCHA | H188: I | I188: C.A.P.II | J188: 1.132427844 | K188: 1.8 | L188: 1.8 | M188: 1.98 | S188: 1.624633431 | T188: 1.011547344 | U188: 1.662857143 | V188: 2.122857143 | W188: 1.971428571 | X188: 1.058495822 | Y188: 2.005747126 | Z188: 1.514423077 | AA188: 1.936813187 | AB188: 1.132427844 | AC188: 0 | AD188: 0
C189: 1 | D189: 3 | E189: = | F189: 454 | G189: CHILCA | H189: I | I189: C.A.P.II | J189: 1.997780518 | K189: 1.8 | L189: 1.8 | M189: 1.98 | S189: 1.959399823 | T189: 1.755313496 | U189: 1.877090725 | V189: 1.986776501 | W189: 2.066480707 | X189: 2.084307386 | Y189: 1.79279476 | Z189: 2.001143641 | AA189: 1.986816084 | AB189: 1.997780518 | AC189: 0 | AD189: 0
C190: 1 | D190: 3 | E190: = | F190: 853 | G190: CHUPACA | H190: I | I190: C.A.P.II | J190: 2.32629108 | K190: 1.8 | L190: 1.8 | M190: 1.98 | S190: 2.134262191 | T190: 2.022660819 | U190: 2.305997552 | V190: 2.558839628 | W190: 2.55616272 | X190: 2.572542902 | Y190: 2.292795389 | Z190: 2.355460385 | AA190: 2.33683596 | AB190: 2.32629108 | AC190: 0 | AD190: 0
C191: 5 | D191: 1 | E191: = | F191: 372 | G191: SAN PEDRO DE CAJAS | H191: I | I191: P.M. | J191: 1.041322314 | K191: 1.8 | L191: 1.8 | M191: 1.98 | S191: 2.138297872 | T191: 1.431818182 | U191: 1.518518519 | V191: 1.922222222 | W191: 1.131147541 | X191: 1.030927835 | Y191: 0.9208633094 | Z191: 1.010309278 | AA191: 1.721649485 | AB191: 1.041322314 | AC191: 0 | AD191: 0
C192: 5 | D192: 1 | E192: = | F192: 322 | G192: PACHACAYO | H192: I | I192: P.M. | J192: 1.585365854 | K192: 1.8 | L192: 1.8 | M192: 1.98 | S192: 1.950704225 | T192: 1.641975309 | U192: 1.633507853 | V192: 2.090909091 | W192: 2.255555556 | X192: 2.356382979 | Y192: 2.048543689 | Z192: 1.886363636 | AA192: 1.876494024 | AB192: 1.585365854 | AC192: 0 | AD192: 0
C193: 1 | D193: 3 | E193: = | F193: 323 | G193: SAN CRISTOBAL | H193: I | I193: P.M. | J193: 2.214705882 | K193: 1.8 | L193: 1.8 | M193: 1.98 | S193: 4.220338983 | T193: 3.576763485 | U193: 3.592857143 | V193: 3.86259542 | W193: 3.845 | X193: 3.401098901 | Y193: 3.318181818 | Z193: 2.17357002 | AA193: 2.066496164 | AB193: 2.214705882 | AC193: 0 | AD193: 0
C194: 1 | D194: 3 | E194: = | F194: 324 | G194: YAURICOCHA | H194: I | I194: P.M. | J194: 2.524390244 | K194: 1.8 | L194: 1.8 | M194: 1.98 | S194: 3.208333333 | T194: 3.005714286 | U194: 3.05 | V194: 3.221052632 | W194: 2.95483871 | X194: 2.922535211 | Y194: 2.661904762 | Z194: 2.106280193 | AA194: 2.35021097 | AB194: 2.524390244 | AC194: 0 | AD194: 0
C195: 3 | D195: 2 | E195: = | F195: 318 | G195: MARH-TÚNEL | H195: I | I195: P.M. | J195: 1.864864865 | K195: 1.8 | L195: 1.8 | M195: 1.98 | S195: 2.064171123 | T195: 2.414772727 | U195: 2.21978022 | V195: 2.628 | W195: 2.437810945 | X195: 2.942196532 | Y195: 2.019607843 | Z195: 2.03125 | AA195: 1.379781421 | AB195: 1.864864865 | AC195: 0 | AD195: 0
C196: 5 | D196: 1 | E196: = | F196: 314 | G196: ANDAYCHAGUA | H196: I | I196: P.M. | J196: 1.120535714 | K196: 1.8 | L196: 1.8 | M196: 1.98 | S196: 2.57079646 | T196: 2.213235294 | U196: 2.172413793 | V196: 2.754098361 | W196: 2.341836735 | X196: 2.594117647 | Y196: 1.72 | Z196: 1.844339623 | AA196: 1.922374429 | AB196: 1.120535714 | AC196: 0 | AD196: 0
C197: 1 | D197: 3 | E197: = | F197: 315 | G197: COBRIZA | H197: I | I197: P.M. | J197: 2.721925134 | K197: 1.8 | L197: 1.8 | M197: 1.98 | S197: 2.014814815 | T197: 1.842105263 | U197: 2.096153846 | V197: 2.471014493 | W197: 2.584615385 | X197: 1.690322581 | Y197: 3.940789474 | Z197: 1.931428571 | AA197: 2.680672269 | AB197: 2.721925134 | AC197: 0 | AD197: 0
C198: 3 | D198: 2 | E198: = | F198: 316 | G198: CORPACANCHA | H198: I | I198: P.M. | J198: 1.923076923 | K198: 1.8 | L198: 1.8 | M198: 1.98 | S198: 1.983333333 | T198: 1.755813953 | U198: 2 | V198: 2.057142857 | W198: 2.478723404 | X198: 2.436781609 | Y198: 2.7625 | Z198: 2.38961039 | AA198: 2.544117647 | AB198: 1.923076923 | AC198: 0 | AD198: 0
C199: 3 | D199: 2 | E199: = | F199: 492 | G199: PICHANAQUI | H199: I | I199: C.A.P.I | J199: 1.981333333 | K199: 1.8 | L199: 1.8 | M199: 1.98 | S199: 1.784269663 | T199: 1.651991614 | U199: 1.756871036 | V199: 1.49375 | W199: 1.708061002 | X199: 1.909594096 | Y199: 1.641472868 | Z199: 1.876712329 | AA199: 1.961165049 | AB199: 1.981333333 | AC199: 0 | AD199: 0
C201: 2.333 | G201: RED ASISTENCIAL JAEN
C202: 5 | D202: 1 | E202: = | F202: 245 | G202: JAEN | H202: II | I202: H.II | J202: 1.325960552 | K202: 1.8 | L202: 1.8 | M202: 1.98 | S202: 1.508507945 | T202: 1.225386048 | U202: 1.191011236 | V202: 1.316730841 | W202: 1.377026342 | X202: 1.333070866 | Y202: 1.384098101 | Z202: 1.334741551 | AA202: 1.305713608 | AB202: 1.325960552 | AC202: 0 | AD202: 0
C203: 1 | D203: 3 | E203: = | F203: 256 | G203: SAN IGNACIO | H203: I | I203: C.A.P.II | J203: 2.365202412 | K203: 1.8 | L203: 1.8 | M203: 1.98 | S203: 2.701863354 | T203: 1.754480287 | U203: 1.84464752 | V203: 2.120440069 | W203: 2.297887324 | X203: 2.533139111 | Y203: 2.683373111 | Z203: 2.604895105 | AA203: 2.918563923 | AB203: 2.365202412 | AC203: 0 | AD203: 0
C204: 1 | D204: 3 | E204: = | F204: 255 | G204: PUCARA | H204: I | I204: P.M. | J204: 2.076923077 | K204: 1.8 | L204: 1.8 | M204: 1.98 | S204: 1.1995842 | T204: 1.822355289 | U204: 1.563318777 | V204: 1.772635815 | W204: 1.529832936 | X204: 1.195544554 | Y204: 1.824207493 | Z204: 1.925619835 | AA204: 1.748677249 | AB204: 2.076923077 | AC204: 0 | AD204: 0
C206: 3.444 | G206: RED ASISTENCIAL LA LIBERTAD
C207: 5 | D207: 1 | E207: = | F207: 671 | G207: HOSPITAL DE ALTA COMPLEJIDAD DE LA LIBERTAD VIRGEN DE LA PUERTA | H207: III | I207: H.N. | J207: 1.460587057 | K207: 2 | L207: 2 | M207: 2.2 | S207: 1.643930532 | T207: 1.50800482 | U207: 1.509452383 | V207: 1.59602705 | W207: 1.43175151 | X207: 1.34912625 | Y207: 1.47189771 | Z207: 1.551686217 | AA207: 1.479555147 | AB207: 1.460587057 | AC207: 0 | AD207: 0
C208: 0 | D208: 3 | E208: = | F208: 205 | G208: VICTOR LAZARTE ECHEGARAY | H208: II | I208: H.IV | J208: 0 | K208: 2 | L208: 2 | M208: 2.2 | S208: 1.946199162 | T208: 1.762660916 | U208: 1.969018017 | V208: 1.940514754 | W208: 1.95339844 | X208: 1.920200125 | Y208: 1.965419774 | Z208: 1.970961303 | AA208: 1.898372171 | AB208: 0 | AC208: 0 | AD208: 0
C209: 3 | D209: 2 | E209: = | F209: 206 | G209: CHOCOPE | H209: II | I209: H.II | J209: 1.849085959 | K209: 1.8 | L209: 1.8 | M209: 1.98 | S209: 1.673567184 | T209: 1.643564356 | U209: 1.733243968 | V209: 1.855074848 | W209: 1.240037244 | X209: 0.374776706 | Y209: 1.814795009 | Z209: 1.879429964 | AA209: 2.011177988 | AB209: 1.849085959 | AC209: 0 | AD209: 0
C210: 5 | D210: 1 | E210: = | F210: 207 | G210: ALBRECHT | H210: II | I210: H.I | J210: 1.603383459 | K210: 1.8 | L210: 1.8 | M210: 1.98 | S210: 1.506286224 | T210: 1.468764011 | U210: 1.541861803 | V210: 1.588702021 | W210: 1.669052946 | X210: 1.621028521 | Y210: 1.636210976 | Z210: 1.619697624 | AA210: 1.599961541 | AB210: 1.603383459 | AC210: 0 | AD210: 0
C211: 5 | D211: 1 | E211: = | F211: 208 | G211: PACASMAYO | H211: II | I211: H.I | J211: 1.679044236 | K211: 1.8 | L211: 1.8 | M211: 1.98 | S211: 1.615958936 | T211: 1.507462687 | U211: 1.659625213 | V211: 1.748191027 | W211: 1.886155606 | X211: 1.986930545 | Y211: 1.754047537 | Z211: 1.830203443 | AA211: 1.63694075 | AB211: 1.679044236 | AC211: 0 | AD211: 0
C212: 5 | D212: 1 | E212: = | F212: 211 | G212: FLORENCIA DE MORA | H212: II | I212: H.I | J212: 1.399870021 | K212: 1.8 | L212: 1.8 | M212: 1.98 | S212: 1.325345719 | T212: 1.185543964 | U212: 1.249519785 | V212: 1.380333497 | W212: 1.383744557 | X212: 1.485854617 | Y212: 1.429061208 | Z212: 1.473844688 | AA212: 1.458107025 | AB212: 1.399870021 | AC212: 0 | AD212: 0
C213: 5 | D213: 1 | E213: = | F213: 212 | G213: LA ESPERANZA | H213: II | I213: H.I | J213: 1.596711685 | K213: 1.8 | L213: 1.8 | M213: 1.98 | S213: 1.433949888 | T213: 1.462219666 | U213: 1.591397849 | V213: 1.526220396 | W213: 1.645025295 | X213: 1.612669472 | Y213: 1.537394375 | Z213: 1.524516206 | AA213: 1.571282168 | AB213: 1.596711685 | AC213: 0 | AD213: 0
C214: 3 | D214: 2 | E214: = | F214: 213 | G214: MOCHE | H214: II | I214: H.I | J214: 1.885805423 | K214: 1.8 | L214: 1.8 | M214: 1.98 | S214: 1.770541958 | T214: 1.439589061 | U214: 1.721645022 | V214: 1.690479579 | W214: 1.895170057 | X214: 1.825642772 | Y214: 1.799235744 | Z214: 1.732387228 | AA214: 1.758944815 | AB214: 1.885805423 | AC214: 0 | AD214: 0
C215: 3 | D215: 2 | E215: = | F215: 241 | G215: VICTOR SOLES GARCIA | H215: II | I215: H.I | J215: 1.825464191 | K215: 1.8 | L215: 1.8 | M215: 1.98 | S215: 1.859355891 | T215: 1.807331628 | U215: 1.753075171 | V215: 1.557954545 | W215: 1.787450287 | X215: 1.656671664 | Y215: 1.621681416 | Z215: 1.604921077 | AA215: 1.780924615 | AB215: 1.825464191 | AC215: 0 | AD215: 0
C216: 1 | D216: 3 | E216: = | F216: 210 | G216: EL PORVENIR | H216: I | I216: POL. | J216: 2.234688995 | K216: 1.8 | L216: 1.8 | M216: 1.98 | S216: 1.978843124 | T216: 1.891598198 | U216: 2.092386258 | V216: 2.119422572 | W216: 2.135169763 | X216: 2.248870822 | Y216: 2.222310127 | Z216: 2.30673661 | AA216: 2.194102624 | AB216: 2.234688995 | AC216: 0 | AD216: 0
C217: 5 | D217: 1 | E217: = | F217: 443 | G217: VICTOR LARCO HERRERA | H217: I | I217: POL. | J217: 1.753120441 | K217: 1.8 | L217: 1.8 | M217: 1.98 | S217: 1.75580945 | T217: 1.800445576 | U217: 1.927612994 | V217: 1.868455713 | W217: 1.941941075 | X217: 1.982100239 | Y217: 1.847336432 | Z217: 1.904862175 | AA217: 1.986936523 | AB217: 1.753120441 | AC217: 0 | AD217: 0
... 241 more rows

Sheet H_Estancias
C1: CRITERIOS DE EVALUACION
C3: PROMEDIO DIA ESTANCIA
S5: AÑO: 2024
C6: Puntaje | E6: Red Asistencial / Establecimientos | H6: Nivel | I6: Tipo | J6: Valor Real | K6: Estandar | L6: Verde | M6: Rojo | R6: Anual | S6: Ene | T6: Feb | U6: Mar | V6: Abr | W6: May | X6: Jun | Y6: Jul | Z6: Ago | AA6: Sep | AB6: Oct | AC6: Nov | AD6: Dic
C8: 4.238 | G8: TOTAL NACIONAL
C10: 5 | G10: RED ASISTENCIAL AMAZONAS
C11: 5 | D11: 1 | E11: = | F11: 153 | G11: EL BUEN SAMARITANO | H11: II | I11: H.I | J11: 2.877358491 | K11: 3.5 | L11: 3.5 | M11: 4.2 | S11: 3.037974684 | T11: 3.223684211 | U11: 3.073394495 | V11: 3.289156627 | W11: 3.043956044 | X11: 3.213483146 | Y11: 2.849462366 | Z11: 3.136842105 | AA11: 3.287128713 | AB11: 2.877358491 | AC11: 0 | AD11: 0
C12: 5 | D12: 1 | E12: = | F12: 154 | G12: HEROES DEL CENEPA | H12: II | I12: H.I | J12: 3.388235294 | K12: 3.5 | L12: 3.5 | M12: 4.2 | S12: 3.18556701 | T12: 3.166666667 | U12: 2.960784314 | V12: 3.235294118 | W12: 3.075471698 | X12: 3.467391304 | Y12: 3.441176471 | Z12: 3.126315789 | AA12: 3.164705882 | AB12: 3.388235294 | AC12: 0 | AD12: 0
C13: 5 | D13: 1 | E13: = | F13: 155 | G13: HIGOS URCO | H13: II | I13: H.I | J13: 2.888888889 | K13: 3.5 | L13: 3.5 | M13: 4.2 | S13: 3.484375 | T13: 3.322834646 | U13: 3.390243902 | V13: 3.466666667 | W13: 3.177966102 | X13: 3.123188406 | Y13: 3.172043011 | Z13: 3.051020408 | AA13: 2.8 | AB13: 2.888888889 | AC13: 0 | AD13: 0
C14: NA | D14: NA | E14: = | F14: 843 | G14: RODRIGUEZ DE MENDOZA | H14: NA | I14: NA | J14: NA | K14: NA | L14: NA | M14: NA | S14: NA | T14: NA | U14: NA | V14: NA | W14: NA | X14: NA | Y14: NA | Z14: NA | AA14: NA | AB14: NA | AC14: NA | AD14: NA
C15: NA | D15: NA | E15: = | F15: 845 | G15: SANTA MARIA DE NIEVA | H15: NA | I15: NA | J15: NA | K15: NA | L15: NA | M15: NA | S15: NA | T15: NA | U15: NA | V15: NA | W15: NA | X15: NA | Y15: NA | Z15: NA | AA15: NA | AB15: NA | AC15: NA | AD15: NA
C16: NA | D16: NA | E16: = | F16: 855 | G16: IMAZA | H16: NA | I16: NA | J16: NA | K16: NA | L16: NA | M16: NA | S16: NA | T16: NA | U16: NA | V16: NA | W16: NA | X16: NA | Y16: NA | Z16: NA | AA16: NA | AB16: NA | AC16: NA | AD16: NA
